Workbook

Sheet свод
A1: Наименование закупки: | C1: Выполнение комплекса строительно-монтажных работ по монтажу подкрановых путей крытого склада №1 и №2 на объекте «Терминал по перевалке минеральных удобрений в морском торговом порту Усть-Луга».
A2: Исх. № ______________ от __.__.2023г.
A4: Наименование Участника:
A5: ИНН Участника
A7: № п/п | B7: Наименование | C7: Требование ООО «ЕТУ» | D7: Предложение Участника, руб без НДС
D8: Материалы | E8: Работы
A9: 1 | B9: 1632-2021-1.1,1.2-КМ1_07.02.010-П-01-01 | C9: Конструкции металлические. Основные конструкции. | D9: ='1632-2021-1.1,1.2-КМ1 '!I324 -> 46675351.42 | E9: ='1632-2021-1.1,1.2-КМ1 '!G324 -> 39889570.58
A10: 2 | B10: 1632-2021-1.1,1.2-КМ2_07.02.010-П-01-01 | C10: Конструкции металлические. Второстипенные конструкции. | D10: ='1632-2021-1.1,1.2-КМ2'!I247 -> 4499126.28 | E10: ='1632-2021-1.1,1.2-КМ2'!G247 -> 3580643.47
A11: 3 | B11: 1632-2021-1.1,1.2-КМ3_07.02.010-П-01-01 | C11: Конструкции металлические. Этажерка аспирационной установки. | D11: ='1632-2021-1.1,1.2-КМ3'!I246 -> 10578865.69 | E11: ='1632-2021-1.1,1.2-КМ3'!G246 -> 8620382.51
A12: 4 | B12: 1632-2021-2.1.11-КМ-07.05.050-П-01-02 | C12: Конструкции металлические | D12: ='1632-2021-2.1.11-КМ '!I315 -> 15092564.71 | E12: ='1632-2021-2.1.11-КМ '!G315 -> 19228127.38
A13: 5 | B13: 1632-2021-2.1.12.КМ_07.04.051-П-01-02 | C13: Конструкции металлические | D13: ='1632-2021-2.1.12.КМ'!I286 -> 9425487.62 | E13: ='1632-2021-2.1.12.КМ'!G286 -> 9086068.66
A14: 6 | B14: 1632-2021-2.2.1-КМ_07.04.020-П-01-03 | C14: Конструкции металлические. | D14: ='1632-2021-2.2.1-КМ '!I333 -> 14121176.33 | E14: ='1632-2021-2.2.1-КМ '!G333 -> 14353816.04
A15: 7 | B15: 1632-2021-2.2.4,2.1.6-КМ_07.04.023_07.04.045-П-01-02 | C15: Конструкции металлические | D15: ='1632-2021-2.2.4,2.1.6-КМ '!I581 -> 29636648.83 | E15: ='1632-2021-2.2.4,2.1.6-КМ '!G581 -> 20054287.53
A16: 8 | B16: 1632-2021-2.2.5,2.1.6,2.1.13-КМ_07.04.052-П-00-01 | C16: Конструкции металлические | D16: ='1632-2021-2.2.5,2.1.6,2.1.13-1'!I331 -> 21547098.33 | E16: ='1632-2021-2.2.5,2.1.6,2.1.13-1'!G331 -> 25271466.02
A17: 9 | B17: 1632-2021-2.2.5,2.1.6,2.1.13-КМ_07.04.045-П-00-01 | C17: Конструкции металлические | D17: ='1632-2021-2.2.5,2.1.6,2.1.13-2'!I257 -> 5520997.05 | E17: ='1632-2021-2.2.5,2.1.6,2.1.13-2'!G257 -> 4695592.23
A18: 10 | B18: 1632-2021-2.2.5,2.1.6,2.1.13-КМ_07.04.024-П-01-03 | C18: Конструкции металлические | D18: ='1632-2021-2.2.5,2.1.6,2.1.13-3'!I229 -> 2620244.58 | E18: ='1632-2021-2.2.5,2.1.6,2.1.13-3'!G229 -> 2215781.69
A19: 11 | B19: 1632-2021-2.2.6-КМ_07.04.025-П-01-03 | C19: Конструкции металлические | D19: ='1632-2021-2.2.6-КМ'!I324 -> 8194253.18 | E19: ='1632-2021-2.2.6-КМ'!G324 -> 9336256.88
A20: 12 | B20: 1632-2021-2.2.7-КМ_07.04.026-П-01-03 | C20: Конструкции металлические. | D20: ='1632-2021-2.2.7-КМ '!I328 -> 9185413.83 | E20: ='1632-2021-2.2.7-КМ '!G328 -> 9674020.58
A21: 13 | B21: 1632-2021-3.3.9-КМ-03.02.080-П-00-00 | C21: Конструкции металлические | D21: ='1632-2021-3.3.9-КМ'!I129 -> 2354674.59 | E21: ='1632-2021-3.3.9-КМ'!G129 -> 744545.23
B22: Итоговая стоимость строительно-монтажных работ | D22: =SUM(D9:D21) -> 179451902.4 | E22: =SUM(E9:E21) -> 166750558.8
B23: ВСЕГО | D23: =D22+E22 -> 346202461.2
B24: НДС | C24: 0.2 | D24: =D23*0.2 -> 69240492.25
B25: Итоговая стоимость СМР, руб с НДС | D25: =D23+D24 -> 415442953.5

Sheet 1632-2021-1.1,1.2-КМ1
A2: Терминал по перевалке минеральных удобрений в морском торговом порту Усть-Луга. Береговые объекты терминала
A3: (наименование стройки)
A5: ЛОКАЛЬНАЯ СМЕТА № 1632-2021-1.1,1.2-КМ1_07.02.010-П-01-01
A6: (локальная смета)
A7: на Конструкции металлические. Основные конструкции., 07.02.010 Станция разгрузки вагонов (код SAP 01.04.001) код ГП 1.1
A8: (наименование работ и затрат, наименование объекта)
B9: Основание: | C9: 1632-2021-1.1,1,2-КМ1_2_0_RU_IFС
A11: № п/п | B11: Обоснование | C11: Наименование работ и затрат | D11: Ед. изм. | E11: Кол-во | F11: Цена за ед.измерения работ, руб. с НДС | G11: Всего, стоимость работ,руб. с НДС | H11: Цена за ед.измерения материалов, руб. с НДС | I11: Всего, стоимость материалов, руб. с НДС | J11: Итого, руб. с НДС
A12: 1 | B12: 2 | C12: 3 | D12: 4 | E12: 5 | F12: 6 | G12: 7 | H12: 8 | I12: 9 | J12: 10
A13: Раздел 1. Колонны
A14: 1 | B14: ТЕР09-03-002-03 | C14: Монтаж колонн одноэтажных и многоэтажных зданий и крановых эстакад высотой: до 25 м цельного сечения массой до 5,0 т | D14: 1 т конструкций | E14: 87.152 | F14: =G14/E14 -> 10717.15 | G14: 934020.67 | H14: =I14/E14 -> 721.99 | I14: 62922.85 | J14: =G14+I14 -> 996943.52
B15: 101-0309 | C15: Канаты пеньковые пропитанные | D15: т | E15: 0,000113 0,0098 | J15: =G15+I15 -> 0
B16: 101-0324 | C16: Кислород технический: газообразный | D16: м3 | E16: 0,678 59,09 | J16: 0
B17: 101-0797 | C17: Проволока горячекатаная в мотках, диаметром 6,3-6,5 мм | D17: т | E17: 0,0000339 0,003 | J17: 0
B18: 101-1019 | C18: Швеллеры № 40 из стали марки: Ст0 | D18: т | E18: 0,0021922 0,1911 | J18: 0
B19: 101-1513 | C19: Электроды диаметром: 4 мм Э42 | D19: т | E19: 0,001243 0,1083 | J19: 0
B20: 101-1714 | C20: Болты с гайками и шайбами строительные | D20: т | E20: 0,0000791 0,0069 | J20: 0
B21: 101-1805 | C21: Гвозди строительные | D21: т | E21: 0,0000113 0,001 | J21: 0
B22: 101-2278 | C22: Пропан-бутан, смесь техническая | D22: кг | E22: 0,2034 17,73 | J22: 0
B23: 101-2467 | C23: Растворитель марки: Р-4 | D23: т | E23: 0,000678 0,0591 | J23: 0
B24: 102-0023 | C24: Бруски обрезные хвойных пород длиной: 4-6,5 м, шириной 75-150 мм, толщиной 40-75 мм, I сорта | D24: м3 | E24: 0,0011639 0,1014 | J24: 0
B25: 113-0021 | C25: Грунтовка: ГФ-021 красно-коричневая | D25: т | E25: 0,0003503 0,0305 | J25: 0
B26: 201-0756 | C26: Отдельные конструктивные элементы зданий и сооружений с преобладанием: горячекатаных профилей, средняя масса сборочной единицы от 0,1 до 0,5 т | D26: т | E26: 0,000339 0,0295 | J26: 0
B27: 508-0097 | C27: Канат двойной свивки типа ТК, конструкции 6х19(1+6+12)+1 о.с., оцинкованный из проволок марки В, маркировочная группа: 1770 н/мм2, диаметром 5,5 мм | D27: 10 м | E27: 0,021131 1,842 | J27: 0
A28: 2 | B28: ТЕРм38-01-002-03 | C28: Монорельсы, балки и другие аналогичные конструкции промышленных зданий, сборка с помощью: лебедок электрических (с установкой и снятием их в процессе работы) | D28: 1 т конструкций | E28: 83.8 | F28: =G28/E28 -> 38757.43 | G28: 3247873.03 | H28: =I28/E28 -> 602.19 | I28: 50463.55 | J28: 3298336.58
B29: 101-0324 | C29: Кислород технический: газообразный | D29: м3 | E29: 0,6 50,28 | J29: 0
B30: 101-1521 | C30: Электроды диаметром: 5 мм Э42 | D30: т | E30: 0,0032 0,2682 | J30: 0
B31: 101-2278 | C31: Пропан-бутан, смесь техническая | D31: кг | E31: 0,2 16,76 | J31: 0
B32: 999-9950 | C32: Вспомогательные ненормируемые ресурсы (2% от Оплаты труда рабочих) | D32: руб | E32: 10,14 849,7 | J32: 0
A33: 3 | B33: Прайс | C33: Двутавр 60Ш1 | D33: т | E33: 87.08232 | F33: 0 | G33: 0 | H33: 100458.78 | I33: 8748183.51 | J33: 8748183.51
A34: 4 | B34: Прайс | C34: Прокат листовой 40мм | D34: т | E34: 8.34392 | F34: 0 | G34: 0 | H34: 121283.21 | I34: 1011977.4 | J34: 1011977.4
A35: 5 | B35: Прайс | C35: Прокат листовой 16мм | D35: т | E35: 2.11536 | F35: 0 | G35: 0 | H35: 103817.57 | I35: 219611.53 | J35: 219611.53
A36: 6 | B36: Прайс | C36: Прокат листовой 12мм | D36: т | E36: 0.94016 | F36: 0 | G36: 0 | H36: 96028.52 | I36: 90282.17 | J36: 90282.17
A37: 7 | B37: ТЕР09-03-002-03 | C37: Монтаж колонн одноэтажных и многоэтажных зданий и крановых эстакад высотой: до 25 м цельного сечения массой до 5,0 т | D37: 1 т конструкций | E37: 15.6 | F37: 9484.23 | G37: 147953.99 | H37: 638.9 | I37: 9966.87 | J37: 157920.86
B38: 101-0309 | C38: Канаты пеньковые пропитанные | D38: т | E38: 0,0001 0,0016 | J38: 0
B39: 101-0324 | C39: Кислород технический: газообразный | D39: м3 | E39: 0,6 9,36 | J39: 0
B40: 101-0797 | C40: Проволока горячекатаная в мотках, диаметром 6,3-6,5 мм | D40: т | E40: 0,00003 0,0005 | J40: 0
B41: 101-1019 | C41: Швеллеры № 40 из стали марки: Ст0 | D41: т | E41: 0,00194 0,0303 | J41: 0
B42: 101-1513 | C42: Электроды диаметром: 4 мм Э42 | D42: т | E42: 0,0011 0,0172 | J42: 0
B43: 101-1714 | C43: Болты с гайками и шайбами строительные | D43: т | E43: 0,00007 0,0011 | J43: 0
B44: 101-1805 | C44: Гвозди строительные | D44: т | E44: 0,00001 0,0002 | J44: 0
B45: 101-2278 | C45: Пропан-бутан, смесь техническая | D45: кг | E45: 0,18 2,808 | J45: 0
B46: 101-2467 | C46: Растворитель марки: Р-4 | D46: т | E46: 0,0006 0,0094 | J46: 0
B47: 102-0023 | C47: Бруски обрезные хвойных пород длиной: 4-6,5 м, шириной 75-150 мм, толщиной 40-75 мм, I сорта | D47: м3 | E47: 0,00103 0,0161 | J47: 0
B48: 113-0021 | C48: Грунтовка: ГФ-021 красно-коричневая | D48: т | E48: 0,00031 0,0048 | J48: 0
B49: 201-0756 | C49: Отдельные конструктивные элементы зданий и сооружений с преобладанием: горячекатаных профилей, средняя масса сборочной единицы от 0,1 до 0,5 т | D49: т | E49: 0,0003 0,0047 | J49: 0
B50: 508-0097 | C50: Канат двойной свивки типа ТК, конструкции 6х19(1+6+12)+1 о.с., оцинкованный из проволок марки В, маркировочная группа: 1770 н/мм2, диаметром 5,5 мм | D50: 10 м | E50: 0,0187 0,2917 | J50: 0
A51: 8 | B51: ТЕРм38-01-002-03 | C51: Монорельсы, балки и другие аналогичные конструкции промышленных зданий, сборка с помощью: лебедок электрических (с установкой и снятием их в процессе работы) | D51: 1 т конструкций | E51: 15 | F51: 38757.28 | G51: 581359.22 | H51: 602.3 | I51: 9034.54 | J51: 590393.76
B52: 101-0324 | C52: Кислород технический: газообразный | D52: м3 | E52: 0,6 9 | J52: 0
B53: 101-1521 | C53: Электроды диаметром: 5 мм Э42 | D53: т | E53: 0,0032 0,048 | J53: 0
B54: 101-2278 | C54: Пропан-бутан, смесь техническая | D54: кг | E54: 0,2 3 | J54: 0
B55: 999-9950 | C55: Вспомогательные ненормируемые ресурсы (2% от Оплаты труда рабочих) | D55: руб | E55: 10,14 152,1 | J55: 0
A56: 9 | B56: Прайс | C56: Профиль гн. 200*6 | D56: т | E56: 12.064 | F56: 0 | G56: 0 | H56: 134183.5 | I56: 1618789.76 | J56: 1618789.76
A57: 10 | B57: Прайс | C57: Уголок равнополочный 100*8 | D57: т | E57: 0.52 | F57: 0 | G57: 0 | H57: 112543.58 | I57: 58522.66 | J57: 58522.66
A58: 11 | B58: Прайс | C58: Прокат листовой 30мм | D58: т | E58: 3.016 | F58: 0 | G58: 0 | H58: 117874.28 | I58: 355508.84 | J58: 355508.84
A59: Перевозка материалов (металл 140 км. ОП "МКМ-СПб") | J59: 0
A60: 12 | C60: металлопрокат, трубопрокат и металлоконструкции | D60: т | E60: 98.8 | F60: 0 | G60: 0 | H60: 0 | I60: 0 | J60: 0
A61: 13 | B61: ТССЦпг-03-02-01-140 | C61: Перевозка строительных грузов (кроме массовых навалочных, перевозимых автомобилями-самосвалами, а также бетонных и железобетонных изделий, стеновых и перегородочных материалов, лесоматериалов круглых и пиломатериалов, включенных в таблицу 03-01), бортовым автомобилем грузоподъемностью 5 т, на расстояние до 140 км I класс груза | D61: 1 т груза | E61: 98.8 | F61: 0 | G61: 0 | H61: 2338.66 | I61: 231059.49 | J61: 231059.49
A62: 14 | B62: ТССЦпг-01-01-02-015 | C62: Разгрузочные работы при автомобильных перевозках: металлических конструкций массой до 1 т | D62: 1 т груза | E62: 98.8 | F62: 0 | G62: 0 | H62: 470.66 | I62: 46501.51 | J62: 46501.51
A63: Раздел 2. Балки | J63: 0
A64: 15 | B64: ТЕР09-03-002-12 | C64: Монтаж балок, ригелей перекрытия, покрытия и под установку оборудования многоэтажных зданий при высоте здания: до 25 м | D64: 1 т конструкций | E64: 58.864 | F64: 39819.4 | G64: 2343929.35 | H64: 1853.52 | I64: 109105.44 | J64: 2453034.79
B65: 101-0309 | C65: Канаты пеньковые пропитанные | D65: т | E65: 0,000113 0,0067 | J65: 0
B66: 101-0324 | C66: Кислород технический: газообразный | D66: м3 | E66: 2,2035 129,7 | J66: 0
B67: 101-0797 | C67: Проволока горячекатаная в мотках, диаметром 6,3-6,5 мм | D67: т | E67: 0,0000339 0,002 | J67: 0
B68: 101-1019 | C68: Швеллеры № 40 из стали марки: Ст0 | D68: т | E68: 0,0021922 0,129 | J68: 0
B69: 101-1513 | C69: Электроды диаметром: 4 мм Э42 | D69: т | E69: 0,003503 0,2062 | J69: 0
B70: 101-1714 | C70: Болты с гайками и шайбами строительные | D70: т | E70: 0,003503 0,2062 | J70: 0
B71: 101-1805 | C71: Гвозди строительные | D71: т | E71: 0,0000113 0,0007 | J71: 0
B72: 101-2278 | C72: Пропан-бутан, смесь техническая | D72: кг | E72: 0,6667 39,24 | J72: 0
B73: 101-2467 | C73: Растворитель марки: Р-4 | D73: т | E73: 0,000678 0,0399 | J73: 0
B74: 102-0023 | C74: Бруски обрезные хвойных пород длиной: 4-6,5 м, шириной 75-150 мм, толщиной 40-75 мм, I сорта | D74: м3 | E74: 0,0011639 0,0685 | J74: 0
B75: 113-0021 | C75: Грунтовка: ГФ-021 красно-коричневая | D75: т | E75: 0,0003503 0,0206 | J75: 0
B76: 201-0756 | C76: Отдельные конструктивные элементы зданий и сооружений с преобладанием: горячекатаных профилей, средняя масса сборочной единицы от 0,1 до 0,5 т | D76: т | E76: 0,000565 0,0333 | J76: 0
B77: 508-0097 | C77: Канат двойной свивки типа ТК, конструкции 6х19(1+6+12)+1 о.с., оцинкованный из проволок марки В, маркировочная группа: 1770 н/мм2, диаметром 5,5 мм | D77: 10 м | E77: 0,021131 1,244 | J77: 0
A78: 16 | B78: ТЕРм38-01-002-03 | C78: Монорельсы, балки и другие аналогичные конструкции промышленных зданий, сборка с помощью: лебедок электрических (с установкой и снятием их в процессе работы) | D78: 1 т конструкций | E78: 56.6 | F78: 38757.39 | G78: 2193668.43 | H78: 602.19 | I78: 34083.87 | J78: 2227752.3
B79: 101-0324 | C79: Кислород технический: газообразный | D79: м3 | E79: 0,6 33,96 | J79: =G79+I79 -> 0
B80: 101-1521 | C80: Электроды диаметром: 5 мм Э42 | D80: т | E80: 0,0032 0,1811 | J80: 0
B81: 101-2278 | C81: Пропан-бутан, смесь техническая | D81: кг | E81: 0,2 11,32 | J81: 0
B82: 999-9950 | C82: Вспомогательные ненормируемые ресурсы (2% от Оплаты труда рабочих) | D82: руб | E82: 10,14 573,9 | J82: 0
A83: 17 | B83: Прайс | C83: Двутавр 60Б2 | D83: т | E83: 61.93304 | F83: =G83/E83 -> 0 | G83: 0 | H83: =I83/E83 -> 120613.71 | I83: 7469973.84 | J83: 7469973.84
A84: 18 | B84: Прайс | C84: Двутавр 40Б1 | D84: т | E84: 1.64528 | F84: 0 | G84: 0 | H84: 117753.58 | I84: 193737.61 | J84: 193737.61
A85: 19 | B85: Прайс | C85: Двутавр 40Ш1 | D85: т | E85: 1.52776 | F85: 0 | G85: 0 | H85: 96028.75 | I85: 146708.88 | J85: 146708.88
A86: 20 | B86: Прайс | C86: Прокат листовой 25мм | D86: т | E86: 1.41024 | F86: 0 | G86: 0 | H86: 112337.34 | I86: 158422.61 | J86: 158422.61
A87: 21 | B87: ТЕР09-03-002-12 | C87: Монтаж балок, ригелей перекрытия, покрытия и под установку оборудования многоэтажных зданий при высоте здания: до 25 м | D87: 1 т конструкций | E87: 45.344 | F87: 35238.44 | G87: 1597851.72 | H87: 1640.24 | I87: 74375.12 | J87: 1672226.84
B88: 101-0309 | C88: Канаты пеньковые пропитанные | D88: т | E88: 0,0001 0,0045 | J88: 0
B89: 101-0324 | C89: Кислород технический: газообразный | D89: м3 | E89: 1,95 88,42 | J89: 0
B90: 101-0797 | C90: Проволока горячекатаная в мотках, диаметром 6,3-6,5 мм | D90: т | E90: 0,00003 0,0014 | J90: 0
B91: 101-1019 | C91: Швеллеры № 40 из стали марки: Ст0 | D91: т | E91: 0,00194 0,088 | J91: 0
B92: 101-1513 | C92: Электроды диаметром: 4 мм Э42 | D92: т | E92: 0,0031 0,1406 | J92: 0
B93: 101-1714 | C93: Болты с гайками и шайбами строительные | D93: т | E93: 0,0031 0,1406 | J93: 0
B94: 101-1805 | C94: Гвозди строительные | D94: т | E94: 0,00001 0,0005 | J94: 0
B95: 101-2278 | C95: Пропан-бутан, смесь техническая | D95: кг | E95: 0,59 26,75 | J95: 0
B96: 101-2467 | C96: Растворитель марки: Р-4 | D96: т | E96: 0,0006 0,0272 | J96: 0
B97: 102-0023 | C97: Бруски обрезные хвойных пород длиной: 4-6,5 м, шириной 75-150 мм, толщиной 40-75 мм, I сорта | D97: м3 | E97: 0,00103 0,0467 | J97: 0
B98: 113-0021 | C98: Грунтовка: ГФ-021 красно-коричневая | D98: т | E98: 0,00031 0,0141 | J98: 0
B99: 201-0756 | C99: Отдельные конструктивные элементы зданий и сооружений с преобладанием: горячекатаных профилей, средняя масса сборочной единицы от 0,1 до 0,5 т | D99: т | E99: 0,0005 0,0227 | J99: 0
B100: 508-0097 | C100: Канат двойной свивки типа ТК, конструкции 6х19(1+6+12)+1 о.с., оцинкованный из проволок марки В, маркировочная группа: 1770 н/мм2, диаметром 5,5 мм | D100: 10 м | E100: 0,0187 0,8479 | J100: 0
A101: 22 | B101: ТЕРм38-01-002-03 | C101: Монорельсы, балки и другие аналогичные конструкции промышленных зданий, сборка с помощью: лебедок электрических (с установкой и снятием их в процессе работы) | D101: 1 т конструкций | E101: 43.6 | F101: 38757.42 | G101: 1689823.58 | H101: 602.17 | I101: 26254.61 | J101: 1716078.19
B102: 101-0324 | C102: Кислород технический: газообразный | D102: м3 | E102: 0,6 26,16 | J102: 0
B103: 101-1521 | C103: Электроды диаметром: 5 мм Э42 | D103: т | E103: 0,0032 0,1395 | J103: 0
B104: 101-2278 | C104: Пропан-бутан, смесь техническая | D104: кг | E104: 0,2 8,72 | J104: 0
B105: 999-9950 | C105: Вспомогательные ненормируемые ресурсы (2% от Оплаты труда рабочих) | D105: руб | E105: 10,14 442,1 | J105: 0
A106: 23 | B106: Прайс | C106: Двутавр 25Б1 | D106: т | E106: 0.52 | F106: 0 | G106: 0 | H106: 113714.92 | I106: 59131.76 | J106: 59131.76
A107: 24 | B107: Прайс | C107: Двутавр М45 | D107: т | E107: 29.224 | F107: 0 | G107: 0 | H107: 113067.46 | I107: 3304283.4 | J107: 3304283.4
A108: 25 | B108: Прайс | C108: Двутавр М30 | D108: т | E108: 8.632 | F108: 0 | G108: 0 | H108: 110754.56 | I108: 956033.37 | J108: 956033.37
A109: 26 | B109: Прайс | C109: Швеллер 24П | D109: т | E109: 0.624 | F109: 0 | G109: 0 | H109: 109841.73 | I109: 68541.24 | J109: 68541.24
A110: 27 | B110: Прайс | C110: Швеллер 8П | D110: т | E110: 0.728 | F110: 0 | G110: 0 | H110: 95590.56 | I110: 69589.93 | J110: 69589.93
A111: 28 | B111: Прайс | C111: Уголок не равнополочный 160*100*9 | D111: т | E111: 0.936 | F111: 0 | G111: 0 | H111: 143616.28 | I111: 134424.84 | J111: 134424.84
A112: 29 | B112: Прайс | C112: Уголок равнополочный 100*8 | D112: т | E112: 0.104 | F112: 0 | G112: 0 | H112: 112549.13 | I112: 11705.11 | J112: 11705.11
A113: 30 | B113: Прайс | C113: Уголок равнополочный 63*5 | D113: т | E113: 0.312 | F113: 0 | G113: 0 | H113: 103575.19 | I113: 32315.46 | J113: 32315.46
A114: 31 | B114: Прайс | C114: Прокат листовой 20мм | D114: т | E114: 3.848 | F114: 0 | G114: 0 | H114: 106982.05 | I114: 411666.92 | J114: 411666.92
A115: 32 | B115: Прайс | C115: Прокат листовой 12мм | D115: т | E115: 0.208 | F115: 0 | G115: 0 | H115: 96028.65 | I115: 19973.96 | J115: 19973.96
A116: 33 | B116: Прайс | C116: Прокат листовой 8мм | D116: т | E116: 0.208 | F116: 0 | G116: 0 | H116: 93155.53 | I116: 19376.35 | J116: 19376.35
A117: Перевозка материалов (металл 140 км. ОП "МКМ-СПб") | J117: 0
A118: 34 | C118: металлопрокат, трубопрокат и металлоконструкции | D118: т | E118: 100.2 | F118: 0 | G118: 0 | H118: 0 | I118: 0 | J118: 0
A119: 35 | B119: ТССЦпг-03-02-01-140 | C119: Перевозка строительных грузов (кроме массовых навалочных, перевозимых автомобилями-самосвалами, а также бетонных и железобетонных изделий, стеновых и перегородочных материалов, лесоматериалов круглых и пиломатериалов, включенных в таблицу 03-01), бортовым автомобилем грузоподъемностью 5 т, на расстояние до 140 км I класс груза | D119: 1 т груза | E119: 100.2 | F119: 0 | G119: 0 | H119: 2338.66 | I119: 234333.41 | J119: 234333.41
A120: 36 | B120: ТССЦпг-01-01-02-015 | C120: Разгрузочные работы при автомобильных перевозках: металлических конструкций массой до 1 т | D120: 1 т груза | E120: 100.2 | F120: 0 | G120: 0 | H120: 470.67 | I120: 47160.89 | J120: 47160.89
A121: Раздел 3. Связи и распорки | J121: 0
A122: 37 | B122: ТЕР09-03-014-01 | C122: Монтаж связей и распорок из одиночных и парных уголков, гнутосварных профилей для пролетов: до 24 м при высоте здания до 25 м | D122: 1 т конструкций | E122: 39.832 | F122: 85073.62 | G122: 3388652.44 | H122: 4252.34 | I122: 169379.27 | J122: 3558031.71
B123: 101-0309 | C123: Канаты пеньковые пропитанные | D123: т | E123: 0,0001 0,004 | J123: 0
B124: 101-0324 | C124: Кислород технический: газообразный | D124: м3 | E124: 1,2 47,8 | J124: 0
B125: 101-0797 | C125: Проволока горячекатаная в мотках, диаметром 6,3-6,5 мм | D125: т | E125: 0,00003 0,0012 | J125: 0
B126: 101-1019 | C126: Швеллеры № 40 из стали марки: Ст0 | D126: т | E126: 0,00194 0,0773 | J126: 0
B127: 101-1513 | C127: Электроды диаметром: 4 мм Э42 | D127: т | E127: 0,00044 0,0175 | J127: 0
B128: 101-1714 | C128: Болты с гайками и шайбами строительные | D128: т | E128: 0,021 0,8365 | J128: 0
B129: 101-1805 | C129: Гвозди строительные | D129: т | E129: 0,00001 0,0004 | J129: 0
B130: 101-2278 | C130: Пропан-бутан, смесь техническая | D130: кг | E130: 0,36 14,34 | J130: 0
B131: 101-2467 | C131: Растворитель марки: Р-4 | D131: т | E131: 0,0006 0,0239 | J131: 0
B132: 102-0023 | C132: Бруски обрезные хвойных пород длиной: 4-6,5 м, шириной 75-150 мм, толщиной 40-75 мм, I сорта | D132: м3 | E132: 0,00103 0,041 | J132: 0
B133: 113-0021 | C133: Грунтовка: ГФ-021 красно-коричневая | D133: т | E133: 0,00031 0,0123 | J133: 0
B134: 201-0756 | C134: Отдельные конструктивные элементы зданий и сооружений с преобладанием: горячекатаных профилей, средняя масса сборочной единицы от 0,1 до 0,5 т | D134: т | E134: 0,0002 0,008 | J134: 0
B135: 508-0097 | C135: Канат двойной свивки типа ТК, конструкции 6х19(1+6+12)+1 о.с., оцинкованный из проволок марки В, маркировочная группа: 1770 н/мм2, диаметром 5,5 мм | D135: 10 м | E135: 0,0187 0,7449 | J135: 0
A136: 38 | B136: ТЕРм38-01-003-03 | C136: Решетчатые конструкции (стойки, опоры, фермы и пр.), сборка с помощью: лебедок электрических (с установкой и снятием их в процессе работы) | D136: 1 т конструкций | E136: 38.3 | F136: 144453.66 | G136: 5532575.15 | H136: 3563.16 | I136: 136469.07 | J136: 5669044.22
B137: 101-0324 | C137: Кислород технический: газообразный | D137: м3 | E137: 2,6 99,58 | J137: 0
B138: 101-1521 | C138: Электроды диаметром: 5 мм Э42 | D138: т | E138: 0,0215 0,8235 | J138: 0
B139: 101-2278 | C139: Пропан-бутан, смесь техническая | D139: кг | E139: 0,5 19,15 | J139: 0
B140: 999-9950 | C140: Вспомогательные ненормируемые ресурсы (2% от Оплаты труда рабочих) | D140: руб | E140: 42,32 1621 | J140: 0
A141: 39 | B141: Прайс | C141: Профиль гн. 140*5 | D141: т | E141: 3.224 | F141: 0 | G141: 0 | H141: 120369.54 | I141: 388071.39 | J141: 388071.39
A142: 40 | B142: Прайс | C142: Профиль гн. 120*5 | D142: т | E142: 17.784 | F142: 0 | G142: 0 | H142: 113870.47 | I142: 2025072.45 | J142: 2025072.45
A143: 41 | B143: Прайс | C143: Профиль гн. 100*5 | D143: т | E143: 11.128 | F143: =G143/E143 -> 0 | G143: 0 | H143: =I143/E143 -> 109780.67 | I143: 1221639.3 | J143: =G143+I143 -> 1221639.3
A144: 42 | B144: Прайс | C144: Швеллер 12П | D144: т | E144: 5.2 | F144: 0 | G144: 0 | H144: 98426.04 | I144: 511815.4 | J144: 511815.4
A145: 43 | B145: Прайс | C145: Уголок не равнополочный 125*80*8 | D145: т | E145: 1.352 | F145: 0 | G145: 0 | H145: 123474.19 | I145: 166937.11 | J145: 166937.11
A146: 44 | B146: Прайс | C146: Уголок равнополочный 63*5 | D146: т | E146: 0.312 | F146: 0 | G146: 0 | H146: 103575.19 | I146: 32315.46 | J146: 32315.46
A147: 45 | B147: Прайс | C147: Прокат листовой 8мм | D147: т | E147: 0.52 | F147: 0 | G147: 0 | H147: 93155.52 | I147: 48440.87 | J147: 48440.87
A148: 46 | B148: Прайс | C148: Прокат листовой 4мм | D148: т | E148: 0.312 | F148: 0 | G148: 0 | H148: 76432.47 | I148: 23846.93 | J148: 23846.93
A149: Перевозка материалов (металл 140 км. ОП "МКМ-СПб") | J149: 0
A150: 47 | C150: металлопрокат, трубопрокат и металлоконструкции | D150: т | E150: 38.3 | F150: 0 | G150: 0 | H150: 0 | I150: 0 | J150: 0
A151: 48 | B151: ТССЦпг-03-02-01-140 | C151: Перевозка строительных грузов (кроме массовых навалочных, перевозимых автомобилями-самосвалами, а также бетонных и железобетонных изделий, стеновых и перегородочных материалов, лесоматериалов круглых и пиломатериалов, включенных в таблицу 03-01), бортовым автомобилем грузоподъемностью 5 т, на расстояние до 140 км I класс груза | D151: 1 т груза | E151: 38.3 | F151: 0 | G151: 0 | H151: 2338.67 | I151: 89571.07 | J151: 89571.07
A152: 49 | B152: ТССЦпг-01-01-02-015 | C152: Разгрузочные работы при автомобильных перевозках: металлических конструкций массой до 1 т | D152: 1 т груза | E152: 38.3 | F152: 0 | G152: 0 | H152: 470.65 | I152: 18025.98 | J152: 18025.98
A153: Раздел 4. Прогоны | J153: 0
A154: 50 | B154: ТЕР09-03-015-01 | C154: Монтаж прогонов при шаге ферм до 12 м при высоте здания: до 25 м | D154: 1 т конструкций | E154: 19.136 | F154: 24539.93 | G154: 469596.01 | H154: 1307.51 | I154: 25020.6 | J154: 494616.61
B155: 101-0309 | C155: Канаты пеньковые пропитанные | D155: т | E155: 0,0001 0,0019 | J155: 0
B156: 101-0324 | C156: Кислород технический: газообразный | D156: м3 | E156: 0,5 9,568 | J156: 0
B157: 101-0797 | C157: Проволока горячекатаная в мотках, диаметром 6,3-6,5 мм | D157: т | E157: 0,00003 0,0006 | J157: 0
B158: 101-1019 | C158: Швеллеры № 40 из стали марки: Ст0 | D158: т | E158: 0,00194 0,0371 | J158: 0
B159: 101-1513 | C159: Электроды диаметром: 4 мм Э42 | D159: т | E159: 0,0026 0,0498 | J159: 0
B160: 101-1714 | C160: Болты с гайками и шайбами строительные | D160: т | E160: 0,003 0,0574 | J160: 0
B161: 101-1805 | C161: Гвозди строительные | D161: т | E161: 0,00001 0,0002 | J161: 0
B162: 101-2278 | C162: Пропан-бутан, смесь техническая | D162: кг | E162: 0,15 2,87 | J162: 0
B163: 101-2467 | C163: Растворитель марки: Р-4 | D163: т | E163: 0,0006 0,0115 | J163: 0
B164: 102-0023 | C164: Бруски обрезные хвойных пород длиной: 4-6,5 м, шириной 75-150 мм, толщиной 40-75 мм, I сорта | D164: м3 | E164: 0,00103 0,0197 | J164: 0
B165: 113-0021 | C165: Грунтовка: ГФ-021 красно-коричневая | D165: т | E165: 0,00031 0,0059 | J165: 0
B166: 201-0756 | C166: Отдельные конструктивные элементы зданий и сооружений с преобладанием: горячекатаных профилей, средняя масса сборочной единицы от 0,1 до 0,5 т | D166: т | E166: 0,0001 0,0019 | J166: 0
B167: 508-0097 | C167: Канат двойной свивки типа ТК, конструкции 6х19(1+6+12)+1 о.с., оцинкованный из проволок марки В, маркировочная группа: 1770 н/мм2, диаметром 5,5 мм | D167: 10 м | E167: 0,0187 0,3578 | J167: 0
A168: 51 | B168: ТЕРм38-01-003-03 | C168: Решетчатые конструкции (стойки, опоры, фермы и пр.), сборка с помощью: лебедок электрических (с установкой и снятием их в процессе работы) | D168: 1 т конструкций | E168: 18.4 | F168: 144453.68 | G168: 2657947.67 | H168: 3563.14 | I168: 65561.81 | J168: 2723509.48
B169: 101-0324 | C169: Кислород технический: газообразный | D169: м3 | E169: 2,6 47,84 | J169: 0
B170: 101-1521 | C170: Электроды диаметром: 5 мм Э42 | D170: т | E170: 0,0215 0,3956 | J170: 0
B171: 101-2278 | C171: Пропан-бутан, смесь техническая | D171: кг | E171: 0,5 9,2 | J171: 0
B172: 999-9950 | C172: Вспомогательные ненормируемые ресурсы (2% от Оплаты труда рабочих) | D172: руб | E172: 42,32 778,7 | J172: 0
A173: 52 | B173: Прайс | C173: Швеллер 24П | D173: т | E173: 2.808 | F173: 0 | G173: 0 | H173: 109842.24 | I173: 308437.02 | J173: 308437.02
A174: 53 | B174: Прайс | C174: Швеллер 20П | D174: т | E174: 16.224 | F174: 0 | G174: 0 | H174: 107663.16 | I174: 1746727.09 | J174: 1746727.09
A175: 54 | B175: Прайс | C175: Швеллер 12П | D175: т | E175: 0.104 | F175: 0 | G175: 0 | H175: 98432.12 | I175: 10236.94 | J175: 10236.94
A176: Перевозка материалов (металл 140 км. ОП "МКМ-СПб") | J176: 0
A177: 55 | C177: металлопрокат, трубопрокат и металлоконструкции | D177: т | E177: 18.4 | F177: 0 | G177: 0 | H177: 0 | I177: 0 | J177: 0
A178: 56 | B178: ТССЦпг-03-02-01-140 | C178: Перевозка строительных грузов (кроме массовых навалочных, перевозимых автомобилями-самосвалами, а также бетонных и железобетонных изделий, стеновых и перегородочных материалов, лесоматериалов круглых и пиломатериалов, включенных в таблицу 03-01), бортовым автомобилем грузоподъемностью 5 т, на расстояние до 140 км I класс груза | D178: 1 т груза | E178: 18.4 | F178: 0 | G178: 0 | H178: 2338.63 | I178: 43030.77 | J178: 43030.77
A179: 57 | B179: ТССЦпг-01-01-02-015 | C179: Разгрузочные работы при автомобильных перевозках: металлических конструкций массой до 1 т | D179: 1 т груза | E179: 18.4 | F179: 0 | G179: 0 | H179: 470.63 | I179: 8659.6 | J179: 8659.6
A180: Раздел 5. Фахверк | J180: 0
A181: 58 | B181: ТЕР09-04-006-01 | C181: Монтаж фахверка | D181: 1 т конструкций | E181: 3.224 | F181: 26664.53 | G181: 85966.44 | H181: 2974.27 | I181: 9589.05 | J181: 95555.49
B182: 101-0309 | C182: Канаты пеньковые пропитанные | D182: т | E182: 0,000112 0,0004 | J182: 0
B183: 101-0324 | C183: Кислород технический: газообразный | D183: м3 | E183: 2,912 9,388 | J183: 0
B184: 101-0797 | C184: Проволока горячекатаная в мотках, диаметром 6,3-6,5 мм | D184: т | E184: 0,0000336 0,0001 | J184: 0
B185: 101-1019 | C185: Швеллеры № 40 из стали марки: Ст0 | D185: т | E185: 0,0021728 0,007 | J185: 0
B186: 101-1515 | C186: Электроды диаметром: 4 мм Э46 | D186: т | E186: 0,01792 0,0578 | J186: 0
B187: 101-1805 | C187: Гвозди строительные | D187: т | E187: 0,0000112 0 | J187: 0
B188: 101-2278 | C188: Пропан-бутан, смесь техническая | D188: кг | E188: 0,8736 2,816 | J188: 0
B189: 101-2467 | C189: Растворитель марки: Р-4 | D189: т | E189: 0,000672 0,0022 | J189: 0
B190: 113-0021 | C190: Грунтовка: ГФ-021 красно-коричневая | D190: т | E190: 0,0003472 0,0011 | J190: 0
B191: 201-0756 | C191: Отдельные конструктивные элементы зданий и сооружений с преобладанием: горячекатаных профилей, средняя масса сборочной единицы от 0,1 до 0,5 т | D191: т | E191: 0,00112 0,0036 | J191: 0
B192: 508-0097 | C192: Канат двойной свивки типа ТК, конструкции 6х19(1+6+12)+1 о.с., оцинкованный из проволок марки В, маркировочная группа: 1770 н/мм2, диаметром 5,5 мм | D192: 10 м | E192: 0,020944 0,0675 | J192: 0
A193: 59 | B193: ТЕРм38-01-002-03 | C193: Монорельсы, балки и другие аналогичные конструкции промышленных зданий, сборка с помощью: лебедок электрических (с установкой и снятием их в процессе работы) | D193: 1 т конструкций | E193: 3.1 | F193: 38756.59 | G193: 120145.42 | H193: 49815.8 | I193: 154428.97 | J193: 274574.39
B194: 101-0324 | C194: Кислород технический: газообразный | D194: м3 | E194: 0,6 1,86 | J194: 0
B195: 101-1015 | C195: Балки двутавровые № 60 из стали марки: Ст3сп | D195: т | E195: 1,02 3,162 | J195: 0
B196: 101-1521 | C196: Электроды диаметром: 5 мм Э42 | D196: т | E196: 0,0032 0,0099 | J196: 0
B197: 101-2278 | C197: Пропан-бутан, смесь техническая | D197: кг | E197: 0,2 0,62 | J197: 0
B198: 999-9950 | C198: Вспомогательные ненормируемые ресурсы (2% от Оплаты труда рабочих) | D198: руб | E198: 10,14 31,43 | J198: 0
A199: 60 | B199: Прайс | C199: Двутавр 40Б1 | D199: т | E199: 3.61088 | F199: 0 | G199: 0 | H199: 117753.45 | I199: 425193.59 | J199: 425193.59
A200: 61 | B200: ТЕР09-04-006-01 | C200: Монтаж фахверка | D200: 1 т конструкций | E200: 35.984 | F200: 23807.33 | G200: 856683.09 | H200: 2656.03 | I200: 95574.46 | J200: 952257.55
B201: 101-0309 | C201: Канаты пеньковые пропитанные | D201: т | E201: 0,0001 0,0036 | J201: 0
B202: 101-0324 | C202: Кислород технический: газообразный | D202: м3 | E202: 2,6 93,56 | J202: 0
B203: 101-0797 | C203: Проволока горячекатаная в мотках, диаметром 6,3-6,5 мм | D203: т | E203: 0,00003 0,0011 | J203: 0
... 121 more rows

Sheet 1632-2021-1.1,1.2-КМ2
A2: Терминал по перевалке минеральных удобрений в морском торговом порту Усть-Луга. Береговые объекты терминала
A3: (наименование стройки)
A5: ЛОКАЛЬНАЯ СМЕТА № 1632-2021-1.1,1.2-КМ2_07.02.010-П-01-01
A6: (локальная смета)
A7: на Конструкции металлические. Второстипенные конструкции., 07.02.010 Станция разгрузки вагонов (код SAP 01.04.001) код ГП 1.1
A8: (наименование работ и затрат, наименование объекта)
B9: Основание: | C9: 1632-2021-1.1, 1.2-КМ2_1_0_RU_IFС
A11: № п/п | B11: Обоснование | C11: Наименование работ и затрат | D11: Ед. изм. | E11: Кол-во | F11: Цена за ед.измерения работ, руб. с НДС | G11: Всего, стоимость работ,руб. с НДС | H11: Цена за ед.измерения материалов, руб. с НДС | I11: Всего, стоимость материалов, руб. с НДС | J11: Итого, руб. с НДС
A12: 1 | B12: 2 | C12: 3 | D12: 4 | E12: 5 | F12: 6 | G12: 7 | H12: 8 | I12: 9 | J12: 10
A13: Раздел 1. Колонны
A14: 1 | B14: ТЕР09-03-002-10 | C14: Монтаж колонн многоэтажных зданий различного назначения при высоте здания: до 25 м | D14: т | E14: 1.144 | F14: 12993.1 | G14: 14864.11 | H14: 860.17 | I14: 984.04 | J14: =G14+I14 -> 15848.15
B15: 01.3.02.08-0001 | C15: Кислород газообразный технический | D15: м3 | E15: 1,95 2,231 | J15: =G15+I15 -> 0
B16: 01.3.02.09-0022 | C16: Пропан-бутан смесь техническая | D16: кг | E16: 0,59 0,675 | J16: 0
B17: 01.7.11.07-0032 | C17: Электроды сварочные Э42, диаметр 4 мм | D17: т | E17: 0,0016 0,0018 | J17: 0
B18: 01.7.15.03-0042 | C18: Болты с гайками и шайбами строительные | D18: кг | E18: 0,04 0,0458 | J18: 0
B19: 01.7.15.06-0111 | C19: Гвозди строительные | D19: т | E19: 0,00001 0 | J19: 0
B20: 01.7.20.08-0071 | C20: Канат пеньковый пропитанный | D20: т | E20: 0,0001 0,0001 | J20: 0
B21: 07.2.07.12-0020 | C21: Элементы конструктивные зданий и сооружений с преобладанием горячекатаных профилей, средняя масса сборочной единицы от 0,1 до 0,5 т | D21: т | E21: 0,0023 0,0026 | J21: 0
B22: 08.2.02.11-0007 | C22: Канат двойной свивки ТК, конструкции 6х19(1+6+12)+1 о.с., оцинкованный, из проволок марки В, маркировочная группа 1770 н/мм2, диаметр 5,5 мм | D22: 10 м | E22: 0,0187 0,0214 | J22: 0
B23: 08.3.03.06-0002 | C23: Проволока горячекатаная в мотках, диаметр 6,3-6,5 мм | D23: т | E23: 0,00003 0 | J23: 0
B24: 08.3.11.01-0091 | C24: Швеллеры № 40, марка стали Ст0 | D24: т | E24: 0,00194 0,0022 | J24: 0
B25: 11.1.03.01-0077 | C25: Бруски обрезные, хвойных пород, длина 4-6,5 м, ширина 75-150 мм, толщина 40-75 мм, сорт I | D25: м3 | E25: 0,00103 0,0012 | J25: 0
B26: 14.4.01.01-0003 | C26: Грунтовка ГФ-021 | D26: т | E26: 0,00031 0,0004 | J26: 0
B27: 14.5.09.07-0030 | C27: Растворитель Р-4 | D27: кг | E27: 0,6 0,6864 | J27: 0
A28: 2 | B28: ТЕРм38-01-002-03 | C28: Монорельсы, балки и другие аналогичные конструкции промышленных зданий, сборка с помощью: лебедок электрических (с установкой и снятием их в процессе работы) | D28: 1 т конструкций | E28: 1.1 | F28: 39049.7 | G28: 42954.64 | H28: 603.35 | I28: 663.69 | J28: 43618.33
B29: 101-0324 | C29: Кислород технический: газообразный | D29: м3 | E29: 0,6 0,66 | J29: 0
B30: 101-1521 | C30: Электроды диаметром: 5 мм Э42 | D30: т | E30: 0,0032 0,0035 | J30: 0
B31: 101-2278 | C31: Пропан-бутан, смесь техническая | D31: кг | E31: 0,2 0,22 | J31: 0
B32: 999-9950 | C32: Вспомогательные ненормируемые ресурсы (2% от Оплаты труда рабочих) | D32: руб | E32: 10,14 11,15 | J32: 0
A33: 3 | B33: Прайс | C33: Профиль гн. 200*6 | D33: т | E33: 0.832 | F33: 0 | G33: 0 | H33: 134183.86 | I33: 111640.97 | J33: 111640.97
A34: 4 | B34: Прайс | C34: Профиль гн. 120*5 | D34: т | E34: 0.312 | F34: 0 | G34: 0 | H34: 113870.54 | I34: 35527.61 | J34: 35527.61
A35: 5 | B35: ТЕР09-03-002-10 | C35: Монтаж колонн многоэтажных зданий различного назначения при высоте здания: до 25 м | D35: т | E35: 2.496 | F35: 14031.8 | G35: 35023.38 | H35: 928.93 | I35: 2318.61 | J35: 37341.99
B36: 01.3.02.08-0001 | C36: Кислород газообразный технический | D36: м3 | E36: 2,106 5,257 | J36: 0
B37: 01.3.02.09-0022 | C37: Пропан-бутан смесь техническая | D37: кг | E37: 0,6372 1,59 | J37: 0
B38: 01.7.11.07-0032 | C38: Электроды сварочные Э42, диаметр 4 мм | D38: т | E38: 0,001728 0,0043 | J38: 0
B39: 01.7.15.03-0042 | C39: Болты с гайками и шайбами строительные | D39: кг | E39: 0,0432 0,1078 | J39: 0
B40: 01.7.15.06-0111 | C40: Гвозди строительные | D40: т | E40: 0,0000108 0 | J40: 0
B41: 01.7.20.08-0071 | C41: Канат пеньковый пропитанный | D41: т | E41: 0,000108 0,0003 | J41: 0
B42: 07.2.07.12-0020 | C42: Элементы конструктивные зданий и сооружений с преобладанием горячекатаных профилей, средняя масса сборочной единицы от 0,1 до 0,5 т | D42: т | E42: 0,002484 0,0062 | J42: 0
B43: 08.2.02.11-0007 | C43: Канат двойной свивки ТК, конструкции 6х19(1+6+12)+1 о.с., оцинкованный, из проволок марки В, маркировочная группа 1770 н/мм2, диаметр 5,5 мм | D43: 10 м | E43: 0,020196 0,0504 | J43: 0
B44: 08.3.03.06-0002 | C44: Проволока горячекатаная в мотках, диаметр 6,3-6,5 мм | D44: т | E44: 0,0000324 0,0001 | J44: 0
B45: 08.3.11.01-0091 | C45: Швеллеры № 40, марка стали Ст0 | D45: т | E45: 0,0020952 0,0052 | J45: 0
B46: 11.1.03.01-0077 | C46: Бруски обрезные, хвойных пород, длина 4-6,5 м, ширина 75-150 мм, толщина 40-75 мм, сорт I | D46: м3 | E46: 0,0011124 0,0028 | J46: 0
B47: 14.4.01.01-0003 | C47: Грунтовка ГФ-021 | D47: т | E47: 0,0003348 0,0008 | J47: 0
B48: 14.5.09.07-0030 | C48: Растворитель Р-4 | D48: кг | E48: 0,648 1,617 | J48: 0
A49: 6 | B49: ТЕРм38-01-002-03 | C49: Монорельсы, балки и другие аналогичные конструкции промышленных зданий, сборка с помощью: лебедок электрических (с установкой и снятием их в процессе работы) | D49: 1 т конструкций | E49: 2.4 | F49: 39050.5 | G49: 93721.3 | H49: 602.16 | I49: 1445.18 | J49: 95166.48
B50: 101-0324 | C50: Кислород технический: газообразный | D50: м3 | E50: 0,6 1,44 | J50: 0
B51: 101-1521 | C51: Электроды диаметром: 5 мм Э42 | D51: т | E51: 0,0032 0,0077 | J51: 0
B52: 101-2278 | C52: Пропан-бутан, смесь техническая | D52: кг | E52: 0,2 0,48 | J52: 0
B53: 999-9950 | C53: Вспомогательные ненормируемые ресурсы (2% от Оплаты труда рабочих) | D53: руб | E53: 10,14 24,34 | J53: 0
A54: 7 | B54: Прайс | C54: Прокат листовой 40мм | D54: т | E54: 1.79712 | F54: 0 | G54: 0 | H54: 121283.45 | I54: 217960.92 | J54: 217960.92
A55: 8 | B55: Прайс | C55: Прокат листовой 25мм | D55: т | E55: 0.33696 | F55: 0 | G55: 0 | H55: 112337.99 | I55: 37853.41 | J55: 37853.41
A56: 9 | B56: Прайс | C56: Прокат листовой 16мм | D56: т | E56: 0.5616 | F56: 0 | G56: 0 | H56: 103818.2 | I56: 58304.3 | J56: 58304.3
A57: 10 | B57: ТЕР09-03-002-10 | C57: Монтаж колонн многоэтажных зданий различного назначения при высоте здания: до 25 м | D57: т | E57: 12.792 | F57: 14420.76 | G57: 184470.35 | H57: 955.13 | I57: 12217.96 | J57: 196688.31
B58: 01.3.02.08-0001 | C58: Кислород газообразный технический | D58: м3 | E58: 2,1645 27,69 | J58: 0
B59: 01.3.02.09-0022 | C59: Пропан-бутан смесь техническая | D59: кг | E59: 0,6549 8,377 | J59: 0
B60: 01.7.11.07-0032 | C60: Электроды сварочные Э42, диаметр 4 мм | D60: т | E60: 0,001776 0,0227 | J60: 0
B61: 01.7.15.03-0042 | C61: Болты с гайками и шайбами строительные | D61: кг | E61: 0,0444 0,568 | J61: 0
B62: 01.7.15.06-0111 | C62: Гвозди строительные | D62: т | E62: 0,0000111 0,0001 | J62: 0
B63: 01.7.20.08-0071 | C63: Канат пеньковый пропитанный | D63: т | E63: 0,000111 0,0014 | J63: 0
B64: 07.2.07.12-0020 | C64: Элементы конструктивные зданий и сооружений с преобладанием горячекатаных профилей, средняя масса сборочной единицы от 0,1 до 0,5 т | D64: т | E64: 0,002553 0,0327 | J64: 0
B65: 08.2.02.11-0007 | C65: Канат двойной свивки ТК, конструкции 6х19(1+6+12)+1 о.с., оцинкованный, из проволок марки В, маркировочная группа 1770 н/мм2, диаметр 5,5 мм | D65: 10 м | E65: 0,020757 0,2655 | J65: 0
B66: 08.3.03.06-0002 | C66: Проволока горячекатаная в мотках, диаметр 6,3-6,5 мм | D66: т | E66: 0,0000333 0,0004 | J66: 0
B67: 08.3.11.01-0091 | C67: Швеллеры № 40, марка стали Ст0 | D67: т | E67: 0,0021534 0,0275 | J67: 0
B68: 11.1.03.01-0077 | C68: Бруски обрезные, хвойных пород, длина 4-6,5 м, ширина 75-150 мм, толщина 40-75 мм, сорт I | D68: м3 | E68: 0,0011433 0,0146 | J68: 0
B69: 14.4.01.01-0003 | C69: Грунтовка ГФ-021 | D69: т | E69: 0,0003441 0,0044 | J69: 0
B70: 14.5.09.07-0030 | C70: Растворитель Р-4 | D70: кг | E70: 0,666 8,519 | J70: 0
A71: 11 | B71: ТЕРм38-01-002-03 | C71: Монорельсы, балки и другие аналогичные конструкции промышленных зданий, сборка с помощью: лебедок электрических (с установкой и снятием их в процессе работы) | D71: 1 т конструкций | E71: 12.3 | F71: 39050.4 | G71: 480320.21 | H71: 602.19 | I71: 7406.91 | J71: 487727.12
B72: 101-0324 | C72: Кислород технический: газообразный | D72: м3 | E72: 0,6 7,38 | J72: 0
B73: 101-1521 | C73: Электроды диаметром: 5 мм Э42 | D73: т | E73: 0,0032 0,0394 | J73: 0
B74: 101-2278 | C74: Пропан-бутан, смесь техническая | D74: кг | E74: 0,2 2,46 | J74: 0
B75: 999-9950 | C75: Вспомогательные ненормируемые ресурсы (2% от Оплаты труда рабочих) | D75: руб | E75: 10,14 124,7 | J75: 0
A76: 12 | B76: Прайс | C76: Двутавр 30Ш1 | D76: т | E76: 14.19912 | F76: 0 | G76: 0 | H76: 94324.63 | I76: 1339326.76 | J76: 1339326.76
A77: Перевозка материалов (металл 140 км. ОП "МКМ-СПб") | J77: 0
A78: 13 | C78: металлопрокат, трубопрокат и металлоконструкции 201-0757 | D78: т | E78: 15.8 | F78: 0 | G78: 0 | H78: 0 | I78: 0 | J78: 0
A79: 14 | B79: ТССЦпг-03-02-01-140 | C79: Перевозка строительных грузов (кроме массовых навалочных, перевозимых автомобилями-самосвалами, а также бетонных и железобетонных изделий, стеновых и перегородочных материалов, лесоматериалов круглых и пиломатериалов, включенных в таблицу 03-01), бортовым автомобилем грузоподъемностью 5 т, на расстояние до 140 км I класс груза | D79: 1 т груза | E79: 15.8 | F79: 0 | G79: 0 | H79: 2338.69 | I79: 36951.24 | J79: =G79+I79 -> 36951.24
A80: 15 | B80: ТССЦпг-01-01-02-015 | C80: Разгрузочные работы при автомобильных перевозках: металлических конструкций массой до 1 т | D80: 1 т груза | E80: 15.8 | F80: 0 | G80: 0 | H80: 470.7 | I80: 7437.08 | J80: 7437.08
A81: Раздел 2. Балки | J81: 0
A82: 16 | B82: ТЕР09-03-002-12 | C82: Монтаж балок, ригелей перекрытия, покрытия и под установку оборудования многоэтажных зданий при высоте здания: до 25 м | D82: 1 т конструкций | E82: 0.312 | F82: 35508.88 | G82: 11078.77 | H82: 1639.17 | I82: 511.42 | J82: 11590.19
B83: 101-0309 | C83: Канаты пеньковые пропитанные | D83: т | E83: 0,0001 0 | J83: 0
B84: 101-0324 | C84: Кислород технический: газообразный | D84: м3 | E84: 1,95 0,6084 | J84: 0
B85: 101-0797 | C85: Проволока горячекатаная в мотках, диаметром 6,3-6,5 мм | D85: т | E85: 0,00003 0 | J85: 0
B86: 101-1019 | C86: Швеллеры № 40 из стали марки: Ст0 | D86: т | E86: 0,00194 0,0006 | J86: 0
B87: 101-1513 | C87: Электроды диаметром: 4 мм Э42 | D87: т | E87: 0,0031 0,001 | J87: 0
B88: 101-1714 | C88: Болты с гайками и шайбами строительные | D88: т | E88: 0,0031 0,001 | J88: 0
B89: 101-1805 | C89: Гвозди строительные | D89: т | E89: 0,00001 0 | J89: 0
B90: 101-2278 | C90: Пропан-бутан, смесь техническая | D90: кг | E90: 0,59 0,1841 | J90: 0
B91: 101-2467 | C91: Растворитель марки: Р-4 | D91: т | E91: 0,0006 0,0002 | J91: 0
B92: 102-0023 | C92: Бруски обрезные хвойных пород длиной: 4-6,5 м, шириной 75-150 мм, толщиной 40-75 мм, I сорта | D92: м3 | E92: 0,00103 0,0003 | J92: 0
B93: 113-0021 | C93: Грунтовка: ГФ-021 красно-коричневая | D93: т | E93: 0,00031 0,0001 | J93: 0
B94: 201-0756 | C94: Отдельные конструктивные элементы зданий и сооружений с преобладанием: горячекатаных профилей, средняя масса сборочной единицы от 0,1 до 0,5 т | D94: т | E94: 0,0005 0,0002 | J94: 0
B95: 508-0097 | C95: Канат двойной свивки типа ТК, конструкции 6х19(1+6+12)+1 о.с., оцинкованный из проволок марки В, маркировочная группа: 1770 н/мм2, диаметром 5,5 мм | D95: 10 м | E95: 0,0187 0,0058 | J95: 0
A96: 17 | B96: ТЕРм38-01-002-03 | C96: Монорельсы, балки и другие аналогичные конструкции промышленных зданий, сборка с помощью: лебедок электрических (с установкой и снятием их в процессе работы) | D96: 1 т конструкций | E96: 0.3 | F96: 39045.8 | G96: 11713.73 | H96: 603.37 | I96: 181.01 | J96: 11894.74
B97: 101-0324 | C97: Кислород технический: газообразный | D97: м3 | E97: 0,6 0,18 | J97: 0
B98: 101-1521 | C98: Электроды диаметром: 5 мм Э42 | D98: т | E98: 0,0032 0,001 | J98: 0
B99: 101-2278 | C99: Пропан-бутан, смесь техническая | D99: кг | E99: 0,2 0,06 | J99: 0
B100: 999-9950 | C100: Вспомогательные ненормируемые ресурсы (2% от Оплаты труда рабочих) | D100: руб | E100: 10,14 3,042 | J100: 0
A101: 18 | B101: Прайс | C101: Прокат листовой 8мм | D101: т | E101: 0.312 | F101: 0 | G101: 0 | H101: 93155.51 | I101: 29064.52 | J101: 29064.52
A102: 19 | B102: ТЕР09-03-002-12 | C102: Монтаж балок, ригелей перекрытия, покрытия и под установку оборудования многоэтажных зданий при высоте здания: до 25 м | D102: 1 т конструкций | E102: 18.72 | F102: 40120.29 | G102: 751051.79 | H102: 1853.49 | I102: 34697.28 | J102: 785749.07
B103: 101-0309 | C103: Канаты пеньковые пропитанные | D103: т | E103: 0,000113 0,0021 | J103: 0
B104: 101-0324 | C104: Кислород технический: газообразный | D104: м3 | E104: 2,2035 41,25 | J104: 0
B105: 101-0797 | C105: Проволока горячекатаная в мотках, диаметром 6,3-6,5 мм | D105: т | E105: 0,0000339 0,0006 | J105: 0
B106: 101-1019 | C106: Швеллеры № 40 из стали марки: Ст0 | D106: т | E106: 0,0021922 0,041 | J106: 0
B107: 101-1513 | C107: Электроды диаметром: 4 мм Э42 | D107: т | E107: 0,003503 0,0656 | J107: 0
B108: 101-1714 | C108: Болты с гайками и шайбами строительные | D108: т | E108: 0,003503 0,0656 | J108: 0
B109: 101-1805 | C109: Гвозди строительные | D109: т | E109: 0,0000113 0,0002 | J109: 0
B110: 101-2278 | C110: Пропан-бутан, смесь техническая | D110: кг | E110: 0,6667 12,48 | J110: 0
B111: 101-2467 | C111: Растворитель марки: Р-4 | D111: т | E111: 0,000678 0,0127 | J111: 0
B112: 102-0023 | C112: Бруски обрезные хвойных пород длиной: 4-6,5 м, шириной 75-150 мм, толщиной 40-75 мм, I сорта | D112: м3 | E112: 0,0011639 0,0218 | J112: 0
B113: 113-0021 | C113: Грунтовка: ГФ-021 красно-коричневая | D113: т | E113: 0,0003503 0,0066 | J113: 0
B114: 201-0756 | C114: Отдельные конструктивные элементы зданий и сооружений с преобладанием: горячекатаных профилей, средняя масса сборочной единицы от 0,1 до 0,5 т | D114: т | E114: 0,000565 0,0106 | J114: 0
B115: 508-0097 | C115: Канат двойной свивки типа ТК, конструкции 6х19(1+6+12)+1 о.с., оцинкованный из проволок марки В, маркировочная группа: 1770 н/мм2, диаметром 5,5 мм | D115: 10 м | E115: 0,021131 0,3956 | J115: 0
A116: 20 | B116: ТЕРм38-01-002-03 | C116: Монорельсы, балки и другие аналогичные конструкции промышленных зданий, сборка с помощью: лебедок электрических (с установкой и снятием их в процессе работы) | D116: 1 т конструкций | E116: 18 | F116: 39050 | G116: 702905.42 | H116: 602.16 | I116: 10838.86 | J116: 713744.28
B117: 101-0324 | C117: Кислород технический: газообразный | D117: м3 | E117: 0,6 10,8 | J117: 0
B118: 101-1521 | C118: Электроды диаметром: 5 мм Э42 | D118: т | E118: 0,0032 0,0576 | J118: 0
B119: 101-2278 | C119: Пропан-бутан, смесь техническая | D119: кг | E119: 0,2 3,6 | J119: 0
B120: 999-9950 | C120: Вспомогательные ненормируемые ресурсы (2% от Оплаты труда рабочих) | D120: руб | E120: 10,14 182,5 | J120: 0
A121: 21 | B121: Прайс | C121: Двутавр 30Ш1 | D121: т | E121: 2.3504 | F121: 0 | G121: 0 | H121: 94324.49 | I121: 221700.29 | J121: 221700.29
A122: 22 | B122: Прайс | C122: Двутавр 25Ш1 | D122: т | E122: 6.4636 | F122: 0 | G122: 0 | H122: 93228.5 | I122: 602591.74 | J122: 602591.74
A123: 23 | B123: Прайс | C123: Прокат листовой 16мм | D123: т | E123: 0.70512 | F123: 0 | G123: 0 | H123: 103818.24 | I123: 73204.32 | J123: 73204.32
A124: 24 | B124: Прайс | C124: Двутавр 30Б1 | D124: т | E124: 7.75632 | F124: 0 | G124: 0 | H124: 114649.06 | I124: 889254.79 | J124: 889254.79
A125: 25 | B125: Прайс | C125: Двутавр 25Б2 | D125: т | E125: 3.87816 | F125: 0 | G125: 0 | H125: 113715.22 | I125: 441005.82 | J125: 441005.82
A126: Перевозка материалов (металл 140 км. ОП "МКМ-СПб") | J126: 0
A127: 26 | C127: металлопрокат, трубопрокат и металлоконструкции | D127: т | E127: 18.3 | F127: 0 | G127: 0 | H127: 0 | I127: 0 | J127: 0
A128: 27 | B128: ТССЦпг-03-02-01-140 | C128: Перевозка строительных грузов (кроме массовых навалочных, перевозимых автомобилями-самосвалами, а также бетонных и железобетонных изделий, стеновых и перегородочных материалов, лесоматериалов круглых и пиломатериалов, включенных в таблицу 03-01), бортовым автомобилем грузоподъемностью 5 т, на расстояние до 140 км I класс груза | D128: 1 т груза | E128: 18.3 | F128: 0 | G128: 0 | H128: 2338.69 | I128: 42798.05 | J128: 42798.05
A129: 28 | B129: ТССЦпг-01-01-02-015 | C129: Разгрузочные работы при автомобильных перевозках: металлических конструкций массой до 1 т | D129: 1 т груза | E129: 18.3 | F129: 0 | G129: 0 | H129: 470.69 | I129: 8613.63 | J129: 8613.63
A130: Раздел 3. Связи и распорки | J130: 0
A131: 29 | B131: ТЕР09-03-014-01 | C131: Монтаж связей и распорок из одиночных и парных уголков, гнутосварных профилей для пролетов: до 24 м при высоте здания до 25 м | D131: 1 т конструкций | E131: 1.768 | F131: 85715.94 | G131: 151545.79 | H131: 4252.81 | I131: 7518.96 | J131: 159064.75
B132: 101-0309 | C132: Канаты пеньковые пропитанные | D132: т | E132: 0,0001 0,0002 | J132: 0
B133: 101-0324 | C133: Кислород технический: газообразный | D133: м3 | E133: 1,2 2,122 | J133: 0
B134: 101-0797 | C134: Проволока горячекатаная в мотках, диаметром 6,3-6,5 мм | D134: т | E134: 0,00003 0,0001 | J134: 0
B135: 101-1019 | C135: Швеллеры № 40 из стали марки: Ст0 | D135: т | E135: 0,00194 0,0034 | J135: 0
B136: 101-1513 | C136: Электроды диаметром: 4 мм Э42 | D136: т | E136: 0,00044 0,0008 | J136: 0
B137: 101-1714 | C137: Болты с гайками и шайбами строительные | D137: т | E137: 0,021 0,0371 | J137: 0
B138: 101-1805 | C138: Гвозди строительные | D138: т | E138: 0,00001 0 | J138: 0
B139: 101-2278 | C139: Пропан-бутан, смесь техническая | D139: кг | E139: 0,36 0,6365 | J139: 0
B140: 101-2467 | C140: Растворитель марки: Р-4 | D140: т | E140: 0,0006 0,0011 | J140: 0
B141: 102-0023 | C141: Бруски обрезные хвойных пород длиной: 4-6,5 м, шириной 75-150 мм, толщиной 40-75 мм, I сорта | D141: м3 | E141: 0,00103 0,0018 | J141: 0
B142: 113-0021 | C142: Грунтовка: ГФ-021 красно-коричневая | D142: т | E142: 0,00031 0,0005 | J142: 0
B143: 201-0756 | C143: Отдельные конструктивные элементы зданий и сооружений с преобладанием: горячекатаных профилей, средняя масса сборочной единицы от 0,1 до 0,5 т | D143: т | E143: 0,0002 0,0004 | J143: =G143+I143 -> 0
B144: 508-0097 | C144: Канат двойной свивки типа ТК, конструкции 6х19(1+6+12)+1 о.с., оцинкованный из проволок марки В, маркировочная группа: 1770 н/мм2, диаметром 5,5 мм | D144: 10 м | E144: 0,0187 0,0331 | J144: 0
A145: 30 | B145: ТЕРм38-01-003-03 | C145: Решетчатые конструкции (стойки, опоры, фермы и пр.), сборка с помощью: лебедок электрических (с установкой и снятием их в процессе работы) | D145: 1 т конструкций | E145: 1.7 | F145: 145545.7 | G145: 247427.67 | H145: 3563.52 | I145: 6057.98 | J145: 253485.65
B146: 101-0324 | C146: Кислород технический: газообразный | D146: м3 | E146: 2,6 4,42 | J146: 0
B147: 101-1521 | C147: Электроды диаметром: 5 мм Э42 | D147: т | E147: 0,0215 0,0366 | J147: 0
B148: 101-2278 | C148: Пропан-бутан, смесь техническая | D148: кг | E148: 0,5 0,85 | J148: 0
B149: 999-9950 | C149: Вспомогательные ненормируемые ресурсы (2% от Оплаты труда рабочих) | D149: руб | E149: 42,32 71,94 | J149: 0
A150: 31 | B150: Прайс | C150: Профиль гн. 120*5 | D150: т | E150: 1.352 | F150: 0 | G150: 0 | H150: 113870.9 | I150: 153953.46 | J150: 153953.46
A151: 32 | B151: Прайс | C151: Швеллер гнутый 120*60*5 | D151: т | E151: 0.104 | F151: 0 | G151: 0 | H151: 134539.52 | I151: 13992.11 | J151: 13992.11
A152: 33 | B152: Прайс | C152: Прокат листовой 8мм | D152: т | E152: 0.208 | F152: 0 | G152: 0 | H152: 93155.53 | I152: 19376.35 | J152: 19376.35
A153: 34 | B153: Прайс | C153: Прокат листовой 4мм | D153: т | E153: 0.104 | F153: 0 | G153: 0 | H153: 76427.88 | I153: 7948.5 | J153: 7948.5
A154: Перевозка материалов (металл 140 км. ОП "МКМ-СПб") | J154: 0
A155: 35 | C155: металлопрокат, трубопрокат и металлоконструкции | D155: т | E155: 1.7 | F155: 0 | G155: 0 | H155: 0 | I155: 0 | J155: 0
A156: 36 | B156: ТССЦпг-03-02-01-140 | C156: Перевозка строительных грузов (кроме массовых навалочных, перевозимых автомобилями-самосвалами, а также бетонных и железобетонных изделий, стеновых и перегородочных материалов, лесоматериалов круглых и пиломатериалов, включенных в таблицу 03-01), бортовым автомобилем грузоподъемностью 5 т, на расстояние до 140 км I класс груза | D156: 1 т груза | E156: 1.7 | F156: 0 | G156: 0 | H156: 2339.06 | I156: 3976.4 | J156: 3976.4
A157: 37 | B157: ТССЦпг-01-01-02-015 | C157: Разгрузочные работы при автомобильных перевозках: металлических конструкций массой до 1 т | D157: 1 т груза | E157: 1.7 | F157: 0 | G157: 0 | H157: 470.68 | I157: 800.16 | J157: 800.16
A158: Раздел 4. Фахверк | J158: 0
A159: 38 | B159: ТЕР09-04-006-01 | C159: Монтаж фахверка | D159: 1 т конструкций | E159: 3.224 | F159: 50227.53 | G159: 161933.57 | H159: 2655.68 | I159: 8561.91 | J159: 170495.48
B160: 101-0309 | C160: Канаты пеньковые пропитанные | D160: т | E160: 0,0001 0,0003 | J160: 0
B161: 101-0324 | C161: Кислород технический: газообразный | D161: м3 | E161: 2,6 8,382 | J161: 0
B162: 101-0797 | C162: Проволока горячекатаная в мотках, диаметром 6,3-6,5 мм | D162: т | E162: 0,00003 0,0001 | J162: 0
B163: 101-1019 | C163: Швеллеры № 40 из стали марки: Ст0 | D163: т | E163: 0,00194 0,0063 | J163: 0
B164: 101-1515 | C164: Электроды диаметром: 4 мм Э46 | D164: т | E164: 0,016 0,0516 | J164: 0
B165: 101-1805 | C165: Гвозди строительные | D165: т | E165: 0,00001 0 | J165: 0
B166: 101-2278 | C166: Пропан-бутан, смесь техническая | D166: кг | E166: 0,78 2,515 | J166: 0
B167: 101-2467 | C167: Растворитель марки: Р-4 | D167: т | E167: 0,0006 0,0019 | J167: 0
B168: 113-0021 | C168: Грунтовка: ГФ-021 красно-коричневая | D168: т | E168: 0,00031 0,001 | J168: 0
B169: 201-0756 | C169: Отдельные конструктивные элементы зданий и сооружений с преобладанием: горячекатаных профилей, средняя масса сборочной единицы от 0,1 до 0,5 т | D169: т | E169: 0,001 0,0032 | J169: 0
B170: 508-0097 | C170: Канат двойной свивки типа ТК, конструкции 6х19(1+6+12)+1 о.с., оцинкованный из проволок марки В, маркировочная группа: 1770 н/мм2, диаметром 5,5 мм | D170: 10 м | E170: 0,0187 0,0603 | J170: 0
A171: 39 | B171: ТЕРм38-01-003-03 | C171: Решетчатые конструкции (стойки, опоры, фермы и пр.), сборка с помощью: лебедок электрических (с установкой и снятием их в процессе работы) | D171: 1 т конструкций | E171: 3.1 | F171: 145545.5 | G171: 451191.05 | H171: 3563.14 | I171: 11045.72 | J171: 462236.77
B172: 101-0324 | C172: Кислород технический: газообразный | D172: м3 | E172: 2,6 8,06 | J172: 0
B173: 101-1521 | C173: Электроды диаметром: 5 мм Э42 | D173: т | E173: 0,0215 0,0667 | J173: 0
B174: 101-2278 | C174: Пропан-бутан, смесь техническая | D174: кг | E174: 0,5 1,55 | J174: 0
B175: 999-9950 | C175: Вспомогательные ненормируемые ресурсы (2% от Оплаты труда рабочих) | D175: руб | E175: 42,32 131,2 | J175: 0
A176: 40 | B176: Прайс | C176: Профиль гн. 120*5 | D176: т | E176: 2.912 | F176: 0 | G176: 0 | H176: 113870.22 | I176: 331590.09 | J176: 331590.09
A177: 41 | B177: Прайс | C177: Уголок равнополочный 75*5 | D177: т | E177: 0.312 | F177: 0 | G177: 0 | H177: 106130.61 | I177: 33112.75 | J177: 33112.75
A178: 42 | B178: ТССЦ-110-0008 | C178: Болты сборочные с гайками и шайбами по классу прочности: 8,8 | D178: т | E178: 0.03224 | F178: 0 | G178: 0 | H178: 150384.62 | I178: 4848.4 | J178: 4848.4
A179: Перевозка материалов (металл 140 км. ОП "МКМ-СПб") | J179: 0
A180: 43 | C180: металлопрокат, трубопрокат и металлоконструкции | D180: т | E180: 3.1 | F180: 0 | G180: 0 | H180: 0 | I180: 0 | J180: 0
A181: 44 | B181: ТССЦпг-03-02-01-140 | C181: Перевозка строительных грузов (кроме массовых навалочных, перевозимых автомобилями-самосвалами, а также бетонных и железобетонных изделий, стеновых и перегородочных материалов, лесоматериалов круглых и пиломатериалов, включенных в таблицу 03-01), бортовым автомобилем грузоподъемностью 5 т, на расстояние до 140 км I класс груза | D181: 1 т груза | E181: 3.1 | F181: 0 | G181: 0 | H181: 2338.82 | I181: 7250.33 | J181: 7250.33
A182: 45 | B182: ТССЦпг-01-01-02-015 | C182: Разгрузочные работы при автомобильных перевозках: металлических конструкций массой до 1 т | D182: 1 т груза | E182: 3.1 | F182: 0 | G182: 0 | H182: 470.82 | I182: 1459.55 | J182: 1459.55
A183: Раздел 5. Лестницы, площадки, ограждения | J183: 0
A184: 46 | B184: ТЕР09-03-029-01 | C184: Монтаж лестниц прямолинейных и криволинейных, пожарных с ограждением | D184: 1 т конструкций | E184: 3.64 | F184: 57879.24 | G184: =210680.42*0.9 -> 189612.38 | H184: 1157.14 | I184: 4212 | J184: 193824.38
B185: 101-0309 | C185: Канаты пеньковые пропитанные | D185: т | E185: 0,0001 0,0004 | J185: 0
B186: 101-0324 | C186: Кислород технический: газообразный | D186: м3 | E186: 1,37 4,987 | J186: 0
B187: 101-0797 | C187: Проволока горячекатаная в мотках, диаметром 6,3-6,5 мм | D187: т | E187: 0,00003 0,0001 | J187: 0
B188: 101-1019 | C188: Швеллеры № 40 из стали марки: Ст0 | D188: т | E188: 0,00194 0,0071 | J188: 0
B189: 101-1515 | C189: Электроды диаметром: 4 мм Э46 | D189: т | E189: 0,004 0,0146 | J189: 0
B190: 101-1805 | C190: Гвозди строительные | D190: т | E190: 0,00001 0 | J190: 0
B191: 101-2278 | C191: Пропан-бутан, смесь техническая | D191: кг | E191: 0,41 1,492 | J191: 0
B192: 101-2467 | C192: Растворитель марки: Р-4 | D192: т | E192: 0,0006 0,0022 | J192: 0
B193: 102-0023 | C193: Бруски обрезные хвойных пород длиной: 4-6,5 м, шириной 75-150 мм, толщиной 40-75 мм, I сорта | D193: м3 | E193: 0,00103 0,0037 | J193: 0
B194: 113-0021 | C194: Грунтовка: ГФ-021 красно-коричневая | D194: т | E194: 0,00031 0,0011 | J194: 0
B195: 201-0756 | C195: Отдельные конструктивные элементы зданий и сооружений с преобладанием: горячекатаных профилей, средняя масса сборочной единицы от 0,1 до 0,5 т | D195: т | E195: 0,001 0,0036 | J195: 0
B196: 508-0097 | C196: Канат двойной свивки типа ТК, конструкции 6х19(1+6+12)+1 о.с., оцинкованный из проволок марки В, маркировочная группа: 1770 н/мм2, диаметром 5,5 мм | D196: 10 м | E196: 0,0187 0,0681 | J196: 0
A197: 47 | B197: ТЕРм38-01-004-06 | C197: Сборка с помощью лебедок электрических (с установкой и снятием их в процессе работы): лестницы прямолинейные и криволинейные с ограждением | D197: 1 т конструкций | E197: 3.5 | F197: 181388.1 | G197: 622161.19 | H197: 2724.95 | I197: 9537.33 | J197: 631698.52
B198: 101-0324 | C198: Кислород технический: газообразный | D198: м3 | E198: 0,6 2,1 | J198: 0
B199: 101-1521 | C199: Электроды диаметром: 5 мм Э42 | D199: т | E199: 0,016 0,056 | J199: 0
B200: 101-2278 | C200: Пропан-бутан, смесь техническая | D200: кг | E200: 0,2 0,7 | J200: 0
B201: 999-9950 | C201: Вспомогательные ненормируемые ресурсы (2% от Оплаты труда рабочих) | D201: руб | E201: 51,07 178,7 | J201: 0
A202: 48 | B202: Прайс | C202: Швеллер 16П | D202: т | E202: 1.872 | F202: 0 | G202: 0 | H202: 102843.1 | I202: 192522.28 | J202: 192522.28
A203: 49 | B203: Прайс | C203: Швеллер 160х80х4 | D203: т | E203: 0.52 | F203: 0 | G203: 0 | H203: 152029.69 | I203: 79055.44 | J203: 79055.44
... 44 more rows

Sheet 1632-2021-1.1,1.2-КМ3
A2: Терминал по перевалке минеральных удобрений в морском торговом порту Усть-Луга. Береговые объекты терминала
A3: (наименование стройки)
A5: ЛОКАЛЬНАЯ СМЕТА № 1632-2021-1.1,1.2-КМ3_07.02.010-П-01-01
A6: (локальная смета)
A7: на Конструкции металлические. Этажерка аспирационной установки., 07.02.010 Станция разгрузки вагонов (код SAP 01.04.001) код ГП 1.1
A8: (наименование работ и затрат, наименование объекта)
B9: Основание: | C9: 1632-2021-1.1, 1.2-КМ3_0_0_RU_IFС
A11: № п/п | B11: Обоснование | C11: Наименование работ и затрат | D11: Ед. изм. | E11: Кол-во | F11: Цена за ед.измерения работ, руб. с НДС | G11: Всего, стоимость работ,руб. с НДС | H11: Цена за ед.измерения материалов, руб. с НДС | I11: Всего, стоимость материалов, руб. с НДС | J11: Итого, руб. с НДС
A12: 1 | B12: 2 | C12: 3 | D12: 4 | E12: 5 | F12: 6 | G12: 7 | H12: 8 | I12: 9 | J12: 10
A13: Раздел 1. Колонны
A14: 1 | B14: ТЕР09-03-002-10 | C14: Монтаж колонн многоэтажных зданий различного назначения при высоте здания: до 25 м | D14: т | E14: 0.832 | F14: 14032.38 | G14: 11674.94 | H14: 928.93 | I14: 772.87 | J14: =G14+I14 -> 12447.81
B15: 01.3.02.08-0001 | C15: Кислород газообразный технический | D15: м3 | E15: 2,106 1,752 | J15: =G15+I15 -> 0
B16: 01.3.02.09-0022 | C16: Пропан-бутан смесь техническая | D16: кг | E16: 0,6372 0,5302 | J16: 0
B17: 01.7.11.07-0032 | C17: Электроды сварочные Э42, диаметр 4 мм | D17: т | E17: 0,001728 0,0014 | J17: 0
B18: 01.7.15.03-0042 | C18: Болты с гайками и шайбами строительные | D18: кг | E18: 0,0432 0,0359 | J18: 0
B19: 01.7.15.06-0111 | C19: Гвозди строительные | D19: т | E19: 0,0000108 0 | J19: 0
B20: 01.7.20.08-0071 | C20: Канат пеньковый пропитанный | D20: т | E20: 0,000108 0,0001 | J20: 0
B21: 07.2.07.12-0020 | C21: Элементы конструктивные зданий и сооружений с преобладанием горячекатаных профилей, средняя масса сборочной единицы от 0,1 до 0,5 т | D21: т | E21: 0,002484 0,0021 | J21: 0
B22: 08.2.02.11-0007 | C22: Канат двойной свивки ТК, конструкции 6х19(1+6+12)+1 о.с., оцинкованный, из проволок марки В, маркировочная группа 1770 н/мм2, диаметр 5,5 мм | D22: 10 м | E22: 0,020196 0,0168 | J22: 0
B23: 08.3.03.06-0002 | C23: Проволока горячекатаная в мотках, диаметр 6,3-6,5 мм | D23: т | E23: 0,0000324 0 | J23: 0
B24: 08.3.11.01-0091 | C24: Швеллеры № 40, марка стали Ст0 | D24: т | E24: 0,0020952 0,0017 | J24: 0
B25: 11.1.03.01-0077 | C25: Бруски обрезные, хвойных пород, длина 4-6,5 м, ширина 75-150 мм, толщина 40-75 мм, сорт I | D25: м3 | E25: 0,0011124 0,0009 | J25: 0
B26: 14.4.01.01-0003 | C26: Грунтовка ГФ-021 | D26: т | E26: 0,0003348 0,0003 | J26: 0
B27: 14.5.09.07-0030 | C27: Растворитель Р-4 | D27: кг | E27: 0,648 0,5391 | J27: 0
A28: 2 | B28: ТЕРм38-01-002-03 | C28: Монорельсы, балки и другие аналогичные конструкции промышленных зданий, сборка с помощью: лебедок электрических (с установкой и снятием их в процессе работы) | D28: 1 т конструкций | E28: 0.8 | F28: 39051.1 | G28: 31240.91 | H28: 601.56 | I28: 481.25 | J28: 31722.16
B29: 101-0324 | C29: Кислород технический: газообразный | D29: м3 | E29: 0,6 0,48 | J29: 0
B30: 101-1521 | C30: Электроды диаметром: 5 мм Э42 | D30: т | E30: 0,0032 0,0026 | J30: 0
B31: 101-2278 | C31: Пропан-бутан, смесь техническая | D31: кг | E31: 0,2 0,16 | J31: 0
B32: 999-9950 | C32: Вспомогательные ненормируемые ресурсы (2% от Оплаты труда рабочих) | D32: руб | E32: 10,14 8,112 | J32: 0
A33: 3 | B33: Прайс | C33: Профиль гн. 200*10 | D33: т | E33: 0.89856 | F33: 0 | G33: 0 | H33: 136811.99 | I33: 122933.78 | J33: 122933.78
A34: 4 | B34: ТЕР09-03-002-10 | C34: Монтаж колонн многоэтажных зданий различного назначения при высоте здания: до 25 м | D34: т | E34: 27.144 | F34: 14291.1 | G34: 387917.68 | H34: 946.38 | I34: 25688.6 | J34: 413606.28
B35: 01.3.02.08-0001 | C35: Кислород газообразный технический | D35: м3 | E35: 2,145 58,22 | J35: 0
B36: 01.3.02.09-0022 | C36: Пропан-бутан смесь техническая | D36: кг | E36: 0,649 17,62 | J36: 0
B37: 01.7.11.07-0032 | C37: Электроды сварочные Э42, диаметр 4 мм | D37: т | E37: 0,00176 0,0478 | J37: 0
B38: 01.7.15.03-0042 | C38: Болты с гайками и шайбами строительные | D38: кг | E38: 0,044 1,194 | J38: 0
B39: 01.7.15.06-0111 | C39: Гвозди строительные | D39: т | E39: 0,000011 0,0003 | J39: 0
B40: 01.7.20.08-0071 | C40: Канат пеньковый пропитанный | D40: т | E40: 0,00011 0,003 | J40: 0
B41: 07.2.07.12-0020 | C41: Элементы конструктивные зданий и сооружений с преобладанием горячекатаных профилей, средняя масса сборочной единицы от 0,1 до 0,5 т | D41: т | E41: 0,00253 0,0687 | J41: 0
B42: 08.2.02.11-0007 | C42: Канат двойной свивки ТК, конструкции 6х19(1+6+12)+1 о.с., оцинкованный, из проволок марки В, маркировочная группа 1770 н/мм2, диаметр 5,5 мм | D42: 10 м | E42: 0,02057 0,5584 | J42: 0
B43: 08.3.03.06-0002 | C43: Проволока горячекатаная в мотках, диаметр 6,3-6,5 мм | D43: т | E43: 0,000033 0,0009 | J43: 0
B44: 08.3.11.01-0091 | C44: Швеллеры № 40, марка стали Ст0 | D44: т | E44: 0,002134 0,0579 | J44: 0
B45: 11.1.03.01-0077 | C45: Бруски обрезные, хвойных пород, длина 4-6,5 м, ширина 75-150 мм, толщина 40-75 мм, сорт I | D45: м3 | E45: 0,001133 0,0308 | J45: 0
B46: 14.4.01.01-0003 | C46: Грунтовка ГФ-021 | D46: т | E46: 0,000341 0,0093 | J46: 0
B47: 14.5.09.07-0030 | C47: Растворитель Р-4 | D47: кг | E47: 0,66 17,92 | J47: 0
A48: 5 | B48: ТЕРм38-01-002-03 | C48: Монорельсы, балки и другие аналогичные конструкции промышленных зданий, сборка с помощью: лебедок электрических (с установкой и снятием их в процессе работы) | D48: 1 т конструкций | E48: 26.1 | F48: 39050.3 | G48: 1019213.36 | H48: 602.2 | I48: 15717.42 | J48: 1034930.78
B49: 101-0324 | C49: Кислород технический: газообразный | D49: м3 | E49: 0,6 15,66 | J49: 0
B50: 101-1521 | C50: Электроды диаметром: 5 мм Э42 | D50: т | E50: 0,0032 0,0835 | J50: 0
B51: 101-2278 | C51: Пропан-бутан, смесь техническая | D51: кг | E51: 0,2 5,22 | J51: 0
B52: 999-9950 | C52: Вспомогательные ненормируемые ресурсы (2% от Оплаты труда рабочих) | D52: руб | E52: 10,14 264,7 | J52: 0
A53: 6 | B53: Прайс | C53: Прокат листовой 60мм | D53: т | E53: 5.148 | F53: 0 | G53: 0 | H53: 132054.58 | I53: 679817 | J53: 679817
A54: 7 | B54: Прайс | C54: Прокат листовой 40мм | D54: т | E54: 0.572 | F54: 0 | G54: 0 | H54: 121284 | I54: 69374.45 | J54: 69374.45
A55: 8 | B55: Прайс | C55: Прокат листовой 25мм | D55: т | E55: 12.6984 | F55: 0 | G55: 0 | H55: 112337.68 | I55: 1426508.83 | J55: 1426508.83
A56: 9 | B56: Прайс | C56: Прокат листовой 20мм | D56: т | E56: 11.44 | F56: 0 | G56: 0 | H56: 106982.17 | I56: 1223876.03 | J56: 1223876.03
A57: Перевозка материалов ( металл 140 км. ОП "МКМ-СПб") | J57: 0
A58: 10 | C58: металлопрокат, трубопрокат и металлоконструкции 201-0757 | D58: т | E58: 26.9 | F58: 0 | G58: 0 | H58: 0 | I58: 0 | J58: 0
A59: 11 | B59: ТССЦпг-03-02-01-140 | C59: Перевозка строительных грузов (кроме массовых навалочных, перевозимых автомобилями-самосвалами, а также бетонных и железобетонных изделий, стеновых и перегородочных материалов, лесоматериалов круглых и пиломатериалов, включенных в таблицу 03-01), бортовым автомобилем грузоподъемностью 5 т, на расстояние до 140 км I класс груза | D59: 1 т груза | E59: 26.9 | F59: 0 | G59: 0 | H59: 2338.66 | I59: 62909.92 | J59: 62909.92
A60: 12 | B60: ТССЦпг-01-01-02-015 | C60: Разгрузочные работы при автомобильных перевозках: металлических конструкций массой до 1 т | D60: 1 т груза | E60: 26.9 | F60: 0 | G60: 0 | H60: 470.65 | I60: 12660.42 | J60: 12660.42
A61: Раздел 2. Балки | J61: 0
A62: 13 | B62: ТЕР09-03-002-12 | C62: Монтаж балок, ригелей перекрытия, покрытия и под установку оборудования многоэтажных зданий при высоте здания: до 25 м | D62: 1 т конструкций | E62: 34.32 | F62: 40830.38 | G62: 1401298.6 | H62: 1886.32 | I62: 64738.66 | J62: 1466037.26
B63: 101-0309 | C63: Канаты пеньковые пропитанные | D63: т | E63: 0,000115 0,0039 | J63: 0
B64: 101-0324 | C64: Кислород технический: газообразный | D64: м3 | E64: 2,2425 76,96 | J64: 0
B65: 101-0797 | C65: Проволока горячекатаная в мотках, диаметром 6,3-6,5 мм | D65: т | E65: 0,0000345 0,0012 | J65: 0
B66: 101-1019 | C66: Швеллеры № 40 из стали марки: Ст0 | D66: т | E66: 0,002231 0,0766 | J66: 0
B67: 101-1513 | C67: Электроды диаметром: 4 мм Э42 | D67: т | E67: 0,003565 0,1224 | J67: 0
B68: 101-1714 | C68: Болты с гайками и шайбами строительные | D68: т | E68: 0,003565 0,1224 | J68: 0
B69: 101-1805 | C69: Гвозди строительные | D69: т | E69: 0,0000115 0,0004 | J69: 0
B70: 101-2278 | C70: Пропан-бутан, смесь техническая | D70: кг | E70: 0,6785 23,29 | J70: 0
B71: 101-2467 | C71: Растворитель марки: Р-4 | D71: т | E71: 0,00069 0,0237 | J71: 0
B72: 102-0023 | C72: Бруски обрезные хвойных пород длиной: 4-6,5 м, шириной 75-150 мм, толщиной 40-75 мм, I сорта | D72: м3 | E72: 0,0011845 0,0407 | J72: 0
B73: 113-0021 | C73: Грунтовка: ГФ-021 красно-коричневая | D73: т | E73: 0,0003565 0,0122 | J73: 0
B74: 201-0756 | C74: Отдельные конструктивные элементы зданий и сооружений с преобладанием: горячекатаных профилей, средняя масса сборочной единицы от 0,1 до 0,5 т | D74: т | E74: 0,000575 0,0197 | J74: 0
B75: 508-0097 | C75: Канат двойной свивки типа ТК, конструкции 6х19(1+6+12)+1 о.с., оцинкованный из проволок марки В, маркировочная группа: 1770 н/мм2, диаметром 5,5 мм | D75: 10 м | E75: 0,021505 0,7381 | J75: 0
A76: 14 | B76: ТЕРм38-01-002-03 | C76: Монорельсы, балки и другие аналогичные конструкции промышленных зданий, сборка с помощью: лебедок электрических (с установкой и снятием их в процессе работы) | D76: 1 т конструкций | E76: 33 | F76: 39050 | G76: 1288659.22 | H76: 602.18 | I76: 19871.96 | J76: 1308531.18
B77: 101-0324 | C77: Кислород технический: газообразный | D77: м3 | E77: 0,6 19,8 | J77: 0
B78: 101-1521 | C78: Электроды диаметром: 5 мм Э42 | D78: т | E78: 0,0032 0,1056 | J78: 0
B79: 101-2278 | C79: Пропан-бутан, смесь техническая | D79: кг | E79: 0,2 6,6 | J79: =G79+I79 -> 0
B80: 999-9950 | C80: Вспомогательные ненормируемые ресурсы (2% от Оплаты труда рабочих) | D80: руб | E80: 10,14 334,6 | J80: 0
A81: 15 | B81: Прайс | C81: Прокат листовой 30мм | D81: т | E81: 2.2724 | F81: 0 | G81: 0 | H81: 117874.06 | I81: 267857.02 | J81: 267857.02
A82: 16 | B82: Прайс | C82: Прокат листовой 25мм | D82: т | E82: 17.1028 | F82: 0 | G82: 0 | H82: 112337.71 | I82: 1921289.47 | J82: 1921289.47
A83: 17 | B83: Прайс | C83: Прокат листовой 20мм | D83: т | E83: 19.3752 | F83: 0 | G83: 0 | H83: 106982.24 | I83: 2072802.22 | J83: 2072802.22
A84: 18 | B84: Прайс | C84: Прокат листовой 12мм | D84: т | E84: 0.7176 | F84: 0 | G84: 0 | H84: 96029.04 | I84: 68910.44 | J84: 68910.44
A85: 19 | B85: ТЕР09-03-002-12 | C85: Монтаж балок, ригелей перекрытия, покрытия и под установку оборудования многоэтажных зданий при высоте здания: до 25 м | D85: 1 т конструкций | E85: 7.488 | F85: 35504.83 | G85: 265860.2 | H85: 1640.11 | I85: 12281.17 | J85: 278141.37
B86: 101-0309 | C86: Канаты пеньковые пропитанные | D86: т | E86: 0,0001 0,0007 | J86: 0
B87: 101-0324 | C87: Кислород технический: газообразный | D87: м3 | E87: 1,95 14,6 | J87: 0
B88: 101-0797 | C88: Проволока горячекатаная в мотках, диаметром 6,3-6,5 мм | D88: т | E88: 0,00003 0,0002 | J88: 0
B89: 101-1019 | C89: Швеллеры № 40 из стали марки: Ст0 | D89: т | E89: 0,00194 0,0145 | J89: 0
B90: 101-1513 | C90: Электроды диаметром: 4 мм Э42 | D90: т | E90: 0,0031 0,0232 | J90: 0
B91: 101-1714 | C91: Болты с гайками и шайбами строительные | D91: т | E91: 0,0031 0,0232 | J91: 0
B92: 101-1805 | C92: Гвозди строительные | D92: т | E92: 0,00001 0,0001 | J92: 0
B93: 101-2278 | C93: Пропан-бутан, смесь техническая | D93: кг | E93: 0,59 4,418 | J93: 0
B94: 101-2467 | C94: Растворитель марки: Р-4 | D94: т | E94: 0,0006 0,0045 | J94: 0
B95: 102-0023 | C95: Бруски обрезные хвойных пород длиной: 4-6,5 м, шириной 75-150 мм, толщиной 40-75 мм, I сорта | D95: м3 | E95: 0,00103 0,0077 | J95: 0
B96: 113-0021 | C96: Грунтовка: ГФ-021 красно-коричневая | D96: т | E96: 0,00031 0,0023 | J96: 0
B97: 201-0756 | C97: Отдельные конструктивные элементы зданий и сооружений с преобладанием: горячекатаных профилей, средняя масса сборочной единицы от 0,1 до 0,5 т | D97: т | E97: 0,0005 0,0037 | J97: 0
B98: 508-0097 | C98: Канат двойной свивки типа ТК, конструкции 6х19(1+6+12)+1 о.с., оцинкованный из проволок марки В, маркировочная группа: 1770 н/мм2, диаметром 5,5 мм | D98: 10 м | E98: 0,0187 0,14 | J98: 0
A99: 20 | B99: ТЕРм38-01-002-03 | C99: Монорельсы, балки и другие аналогичные конструкции промышленных зданий, сборка с помощью: лебедок электрических (с установкой и снятием их в процессе работы) | D99: 1 т конструкций | E99: 7.2 | F99: 39050.3 | G99: 281162.46 | H99: 602.36 | I99: 4336.98 | J99: 285499.44
B100: 101-0324 | C100: Кислород технический: газообразный | D100: м3 | E100: 0,6 4,32 | J100: 0
B101: 101-1521 | C101: Электроды диаметром: 5 мм Э42 | D101: т | E101: 0,0032 0,023 | J101: 0
B102: 101-2278 | C102: Пропан-бутан, смесь техническая | D102: кг | E102: 0,2 1,44 | J102: 0
B103: 999-9950 | C103: Вспомогательные ненормируемые ресурсы (2% от Оплаты труда рабочих) | D103: руб | E103: 10,14 73,01 | J103: 0
A104: 21 | B104: Прайс | C104: Швеллер 20П | D104: т | E104: 7.072 | F104: 0 | G104: 0 | H104: 107663.12 | I104: 761393.6 | J104: 761393.6
A105: 22 | B105: Прайс | C105: Прокат листовой 8мм | D105: т | E105: 0.416 | F105: 0 | G105: 0 | H105: 93155.5 | I105: 38752.69 | J105: 38752.69
A106: Перевозка материалов ( металл 140 км. ОП "МКМ-СПб") | J106: 0
A107: 23 | C107: металлопрокат, трубопрокат и металлоконструкции | D107: т | E107: 40.2 | F107: 0 | G107: 0 | H107: 0 | I107: 0 | J107: 0
A108: 24 | B108: ТССЦпг-03-02-01-140 | C108: Перевозка строительных грузов (кроме массовых навалочных, перевозимых автомобилями-самосвалами, а также бетонных и железобетонных изделий, стеновых и перегородочных материалов, лесоматериалов круглых и пиломатериалов, включенных в таблицу 03-01), бортовым автомобилем грузоподъемностью 5 т, на расстояние до 140 км I класс груза | D108: 1 т груза | E108: 40.2 | F108: 0 | G108: 0 | H108: 2338.67 | I108: 94014.36 | J108: 94014.36
A109: 25 | B109: ТССЦпг-01-01-02-015 | C109: Разгрузочные работы при автомобильных перевозках: металлических конструкций массой до 1 т | D109: 1 т груза | E109: 40.2 | F109: 0 | G109: 0 | H109: 470.67 | I109: 18920.96 | J109: 18920.96
A110: Раздел 3. Связи и распорки | J110: 0
A111: 26 | B111: ТЕР09-03-014-01 | C111: Монтаж связей и распорок из одиночных и парных уголков, гнутосварных профилей для пролетов: до 24 м при высоте здания до 25 м | D111: 1 т конструкций | E111: 2.184 | F111: 85716.18 | G111: 187204.13 | H111: 4252.46 | I111: 9287.37 | J111: 196491.5
B112: 101-0309 | C112: Канаты пеньковые пропитанные | D112: т | E112: 0,0001 0,0002 | J112: 0
B113: 101-0324 | C113: Кислород технический: газообразный | D113: м3 | E113: 1,2 2,621 | J113: 0
B114: 101-0797 | C114: Проволока горячекатаная в мотках, диаметром 6,3-6,5 мм | D114: т | E114: 0,00003 0,0001 | J114: 0
B115: 101-1019 | C115: Швеллеры № 40 из стали марки: Ст0 | D115: т | E115: 0,00194 0,0042 | J115: 0
B116: 101-1513 | C116: Электроды диаметром: 4 мм Э42 | D116: т | E116: 0,00044 0,001 | J116: 0
B117: 101-1714 | C117: Болты с гайками и шайбами строительные | D117: т | E117: 0,021 0,0459 | J117: 0
B118: 101-1805 | C118: Гвозди строительные | D118: т | E118: 0,00001 0 | J118: 0
B119: 101-2278 | C119: Пропан-бутан, смесь техническая | D119: кг | E119: 0,36 0,7862 | J119: 0
B120: 101-2467 | C120: Растворитель марки: Р-4 | D120: т | E120: 0,0006 0,0013 | J120: 0
B121: 102-0023 | C121: Бруски обрезные хвойных пород длиной: 4-6,5 м, шириной 75-150 мм, толщиной 40-75 мм, I сорта | D121: м3 | E121: 0,00103 0,0022 | J121: 0
B122: 113-0021 | C122: Грунтовка: ГФ-021 красно-коричневая | D122: т | E122: 0,00031 0,0007 | J122: 0
B123: 201-0756 | C123: Отдельные конструктивные элементы зданий и сооружений с преобладанием: горячекатаных профилей, средняя масса сборочной единицы от 0,1 до 0,5 т | D123: т | E123: 0,0002 0,0004 | J123: 0
B124: 508-0097 | C124: Канат двойной свивки типа ТК, конструкции 6х19(1+6+12)+1 о.с., оцинкованный из проволок марки В, маркировочная группа: 1770 н/мм2, диаметром 5,5 мм | D124: 10 м | E124: 0,0187 0,0408 | J124: 0
A125: 27 | B125: ТЕРм38-01-003-03 | C125: Решетчатые конструкции (стойки, опоры, фермы и пр.), сборка с помощью: лебедок электрических (с установкой и снятием их в процессе работы) | D125: 1 т конструкций | E125: 2.1 | F125: 145545.6 | G125: 305645.78 | H125: 3563.36 | I125: 7483.05 | J125: 313128.83
B126: 101-0324 | C126: Кислород технический: газообразный | D126: м3 | E126: 2,6 5,46 | J126: 0
B127: 101-1521 | C127: Электроды диаметром: 5 мм Э42 | D127: т | E127: 0,0215 0,0452 | J127: 0
B128: 101-2278 | C128: Пропан-бутан, смесь техническая | D128: кг | E128: 0,5 1,05 | J128: 0
B129: 999-9950 | C129: Вспомогательные ненормируемые ресурсы (2% от Оплаты труда рабочих) | D129: руб | E129: 42,32 88,87 | J129: 0
A130: 28 | B130: Прайс | C130: Швеллер 20П | D130: т | E130: 1.56 | F130: 0 | G130: 0 | H130: 107662.95 | I130: 167954.2 | J130: 167954.2
A131: 29 | B131: Прайс | C131: Уголок равнополочный 63*5 | D131: т | E131: 0.312 | F131: 0 | G131: 0 | H131: 103575.19 | I131: 32315.46 | J131: 32315.46
A132: 30 | B132: Прайс | C132: Прокат листовой 4мм | D132: т | E132: 0.104 | F132: 0 | G132: 0 | H132: 76427.88 | I132: 7948.5 | J132: 7948.5
A133: 31 | B133: Прайс | C133: Прокат листовой 8мм | D133: т | E133: 0.208 | F133: 0 | G133: 0 | H133: 93155.53 | I133: 19376.35 | J133: 19376.35
A134: 32 | B134: ТЕР09-03-014-01 | C134: Монтаж связей и распорок из одиночных и парных уголков, гнутосварных профилей для пролетов: до 24 м при высоте здания до 25 м | D134: 1 т конструкций | E134: 0.728 | F134: 96004.96 | G134: 69891.61 | H134: 4761.57 | I134: 3466.42 | J134: 73358.03
B135: 101-0309 | C135: Канаты пеньковые пропитанные | D135: т | E135: 0,000112 0,0001 | J135: 0
B136: 101-0324 | C136: Кислород технический: газообразный | D136: м3 | E136: 1,344 0,9784 | J136: 0
B137: 101-0797 | C137: Проволока горячекатаная в мотках, диаметром 6,3-6,5 мм | D137: т | E137: 0,0000336 0 | J137: 0
B138: 101-1019 | C138: Швеллеры № 40 из стали марки: Ст0 | D138: т | E138: 0,0021728 0,0016 | J138: 0
B139: 101-1513 | C139: Электроды диаметром: 4 мм Э42 | D139: т | E139: 0,0004928 0,0004 | J139: 0
B140: 101-1714 | C140: Болты с гайками и шайбами строительные | D140: т | E140: 0,02352 0,0171 | J140: 0
B141: 101-1805 | C141: Гвозди строительные | D141: т | E141: 0,0000112 0 | J141: 0
B142: 101-2278 | C142: Пропан-бутан, смесь техническая | D142: кг | E142: 0,4032 0,2935 | J142: 0
B143: 101-2467 | C143: Растворитель марки: Р-4 | D143: т | E143: 0,000672 0,0005 | J143: =G143+I143 -> 0
B144: 102-0023 | C144: Бруски обрезные хвойных пород длиной: 4-6,5 м, шириной 75-150 мм, толщиной 40-75 мм, I сорта | D144: м3 | E144: 0,0011536 0,0008 | J144: 0
B145: 113-0021 | C145: Грунтовка: ГФ-021 красно-коричневая | D145: т | E145: 0,0003472 0,0003 | J145: 0
B146: 201-0756 | C146: Отдельные конструктивные элементы зданий и сооружений с преобладанием: горячекатаных профилей, средняя масса сборочной единицы от 0,1 до 0,5 т | D146: т | E146: 0,000224 0,0002 | J146: 0
B147: 508-0097 | C147: Канат двойной свивки типа ТК, конструкции 6х19(1+6+12)+1 о.с., оцинкованный из проволок марки В, маркировочная группа: 1770 н/мм2, диаметром 5,5 мм | D147: 10 м | E147: 0,020944 0,0152 | J147: 0
A148: 33 | B148: ТЕРм38-01-003-03 | C148: Решетчатые конструкции (стойки, опоры, фермы и пр.), сборка с помощью: лебедок электрических (с установкой и снятием их в процессе работы) | D148: 1 т конструкций | E148: 0.7 | F148: 145546.3 | G148: 101882.41 | H148: 3562.67 | I148: 2493.87 | J148: 104376.28
B149: 101-0324 | C149: Кислород технический: газообразный | D149: м3 | E149: 2,6 1,82 | J149: 0
B150: 101-1521 | C150: Электроды диаметром: 5 мм Э42 | D150: т | E150: 0,0215 0,0151 | J150: 0
B151: 101-2278 | C151: Пропан-бутан, смесь техническая | D151: кг | E151: 0,5 0,35 | J151: 0
B152: 999-9950 | C152: Вспомогательные ненормируемые ресурсы (2% от Оплаты труда рабочих) | D152: руб | E152: 42,32 29,62 | J152: 0
A153: 34 | B153: Прайс | C153: Прокат листовой 25мм | D153: т | E153: 0.208 | F153: 0 | G153: 0 | H153: 112335 | I153: 23365.68 | J153: 23365.68
A154: 35 | B154: Прайс | C154: Прокат листовой 16мм | D154: т | E154: 0.312 | F154: 0 | G154: 0 | H154: 103819.23 | I154: 32391.6 | J154: 32391.6
A155: 36 | B155: Прайс | C155: Прокат листовой 12мм | D155: т | E155: 0.208 | F155: 0 | G155: 0 | H155: 96028.65 | I155: 19973.96 | J155: 19973.96
A156: 37 | B156: ТЕР09-03-014-01 | C156: Монтаж связей и распорок из одиночных и парных уголков, гнутосварных профилей для пролетов: до 24 м при высоте здания до 25 м | D156: 1 т конструкций | E156: 5.2 | F156: 94288.2 | G156: 490298.57 | H156: 4677.39 | I156: 24322.43 | J156: 514621
B157: 101-0309 | C157: Канаты пеньковые пропитанные | D157: т | E157: 0,00011 0,0006 | J157: 0
B158: 101-0324 | C158: Кислород технический: газообразный | D158: м3 | E158: 1,32 6,864 | J158: 0
B159: 101-0797 | C159: Проволока горячекатаная в мотках, диаметром 6,3-6,5 мм | D159: т | E159: 0,000033 0,0002 | J159: 0
B160: 101-1019 | C160: Швеллеры № 40 из стали марки: Ст0 | D160: т | E160: 0,002134 0,0111 | J160: 0
B161: 101-1513 | C161: Электроды диаметром: 4 мм Э42 | D161: т | E161: 0,000484 0,0025 | J161: 0
B162: 101-1714 | C162: Болты с гайками и шайбами строительные | D162: т | E162: 0,0231 0,1201 | J162: 0
B163: 101-1805 | C163: Гвозди строительные | D163: т | E163: 0,000011 0,0001 | J163: 0
B164: 101-2278 | C164: Пропан-бутан, смесь техническая | D164: кг | E164: 0,396 2,059 | J164: 0
B165: 101-2467 | C165: Растворитель марки: Р-4 | D165: т | E165: 0,00066 0,0034 | J165: 0
B166: 102-0023 | C166: Бруски обрезные хвойных пород длиной: 4-6,5 м, шириной 75-150 мм, толщиной 40-75 мм, I сорта | D166: м3 | E166: 0,001133 0,0059 | J166: 0
B167: 113-0021 | C167: Грунтовка: ГФ-021 красно-коричневая | D167: т | E167: 0,000341 0,0018 | J167: 0
B168: 201-0756 | C168: Отдельные конструктивные элементы зданий и сооружений с преобладанием: горячекатаных профилей, средняя масса сборочной единицы от 0,1 до 0,5 т | D168: т | E168: 0,00022 0,0011 | J168: 0
B169: 508-0097 | C169: Канат двойной свивки типа ТК, конструкции 6х19(1+6+12)+1 о.с., оцинкованный из проволок марки В, маркировочная группа: 1770 н/мм2, диаметром 5,5 мм | D169: 10 м | E169: 0,02057 0,107 | J169: 0
A170: 38 | B170: ТЕРм38-01-003-03 | C170: Решетчатые конструкции (стойки, опоры, фермы и пр.), сборка с помощью: лебедок электрических (с установкой и снятием их в процессе работы) | D170: 1 т конструкций | E170: 5 | F170: 145546 | G170: 727727.77 | H170: 3562.96 | I170: 17814.8 | J170: 745542.57
B171: 101-0324 | C171: Кислород технический: газообразный | D171: м3 | E171: 2,6 13 | J171: 0
B172: 101-1521 | C172: Электроды диаметром: 5 мм Э42 | D172: т | E172: 0,0215 0,1075 | J172: 0
B173: 101-2278 | C173: Пропан-бутан, смесь техническая | D173: кг | E173: 0,5 2,5 | J173: 0
B174: 999-9950 | C174: Вспомогательные ненормируемые ресурсы (2% от Оплаты труда рабочих) | D174: руб | E174: 42,32 211,6 | J174: 0
A175: 39 | B175: Прайс | C175: Профиль гн. 200*9 | D175: т | E175: 3.5464 | F175: 0 | G175: 0 | H175: 136812.43 | I175: 485191.59 | J175: 485191.59
A176: 40 | B176: Прайс | C176: Профиль гн. 160*5 | D176: т | E176: 2.1736 | F176: 0 | G176: 0 | H176: 124873.02 | I176: 271424 | J176: 271424
A177: Перевозка материалов ( металл 140 км. ОП "МКМ-СПб") | J177: 0
A178: 41 | C178: металлопрокат, трубопрокат и металлоконструкции | D178: т | E178: 7.8 | F178: 0 | G178: 0 | H178: 0 | I178: 0 | J178: 0
A179: 42 | B179: ТССЦпг-03-02-01-140 | C179: Перевозка строительных грузов (кроме массовых навалочных, перевозимых автомобилями-самосвалами, а также бетонных и железобетонных изделий, стеновых и перегородочных материалов, лесоматериалов круглых и пиломатериалов, включенных в таблицу 03-01), бортовым автомобилем грузоподъемностью 5 т, на расстояние до 140 км I класс груза | D179: 1 т груза | E179: 7.8 | F179: 0 | G179: 0 | H179: 2338.65 | I179: 18241.46 | J179: 18241.46
A180: 43 | B180: ТССЦпг-01-01-02-015 | C180: Разгрузочные работы при автомобильных перевозках: металлических конструкций массой до 1 т | D180: 1 т груза | E180: 7.8 | F180: 0 | G180: 0 | H180: 470.75 | I180: 3671.85 | J180: 3671.85
A181: Раздел 4. Лестницы, площадки, ограждения | J181: 0
A182: 44 | B182: ТЕР09-03-029-01 | C182: Монтаж лестниц прямолинейных и криволинейных, пожарных с ограждением | D182: 1 т конструкций | E182: 3.952 | F182: 57879.41 | G182: 228739.44 | H182: 1156.66 | I182: 4571.14 | J182: 233310.58
B183: 101-0309 | C183: Канаты пеньковые пропитанные | D183: т | E183: 0,0001 0,0004 | J183: 0
B184: 101-0324 | C184: Кислород технический: газообразный | D184: м3 | E184: 1,37 5,414 | J184: 0
B185: 101-0797 | C185: Проволока горячекатаная в мотках, диаметром 6,3-6,5 мм | D185: т | E185: 0,00003 0,0001 | J185: 0
B186: 101-1019 | C186: Швеллеры № 40 из стали марки: Ст0 | D186: т | E186: 0,00194 0,0077 | J186: 0
B187: 101-1515 | C187: Электроды диаметром: 4 мм Э46 | D187: т | E187: 0,004 0,0158 | J187: 0
B188: 101-1805 | C188: Гвозди строительные | D188: т | E188: 0,00001 0 | J188: 0
B189: 101-2278 | C189: Пропан-бутан, смесь техническая | D189: кг | E189: 0,41 1,62 | J189: 0
B190: 101-2467 | C190: Растворитель марки: Р-4 | D190: т | E190: 0,0006 0,0024 | J190: 0
B191: 102-0023 | C191: Бруски обрезные хвойных пород длиной: 4-6,5 м, шириной 75-150 мм, толщиной 40-75 мм, I сорта | D191: м3 | E191: 0,00103 0,0041 | J191: 0
B192: 113-0021 | C192: Грунтовка: ГФ-021 красно-коричневая | D192: т | E192: 0,00031 0,0012 | J192: 0
B193: 201-0756 | C193: Отдельные конструктивные элементы зданий и сооружений с преобладанием: горячекатаных профилей, средняя масса сборочной единицы от 0,1 до 0,5 т | D193: т | E193: 0,001 0,004 | J193: 0
B194: 508-0097 | C194: Канат двойной свивки типа ТК, конструкции 6х19(1+6+12)+1 о.с., оцинкованный из проволок марки В, маркировочная группа: 1770 н/мм2, диаметром 5,5 мм | D194: 10 м | E194: 0,0187 0,0739 | J194: 0
A195: 45 | B195: ТЕРм38-01-004-06 | C195: Сборка с помощью лебедок электрических (с установкой и снятием их в процессе работы): лестницы прямолинейные и криволинейные с ограждением | D195: 1 т конструкций | E195: 3.8 | F195: 181387.1 | G195: =689271.01 -> 689271.01 | H195: 2724.93 | I195: 10354.74 | J195: 699625.75
B196: 101-0324 | C196: Кислород технический: газообразный | D196: м3 | E196: 0,6 2,28 | J196: 0
B197: 101-1521 | C197: Электроды диаметром: 5 мм Э42 | D197: т | E197: 0,016 0,0608 | J197: 0
B198: 101-2278 | C198: Пропан-бутан, смесь техническая | D198: кг | E198: 0,2 0,76 | J198: 0
B199: 999-9950 | C199: Вспомогательные ненормируемые ресурсы (2% от Оплаты труда рабочих) | D199: руб | E199: 51,07 194,1 | J199: 0
A200: 46 | B200: Прайс | C200: Швеллер 20П | D200: т | E200: 1.352 | F200: 0 | G200: 0 | H200: 107663.51 | I200: 145561.07 | J200: 145561.07
A201: 47 | B201: Прайс | C201: Уголок равнополочный 100*8 | D201: т | E201: 0.52 | F201: 0 | G201: 0 | H201: 112543.58 | I201: 58522.66 | J201: 58522.66
A202: 48 | B202: Прайс | C202: Уголок равнополочный 32*4 | D202: т | E202: 0.312 | F202: 0 | G202: 0 | H202: 95176.83 | I202: 29695.17 | J202: 29695.17
A203: 49 | B203: Прайс | C203: Прокат листовой 6мм | D203: т | E203: 0.208 | F203: 0 | G203: 0 | H203: 91035.19 | I203: 18935.32 | J203: 18935.32
... 43 more rows

Sheet 1632-2021-2.1.11-КМ
A2: Терминал по перевалке минеральных удобрений в морском торговом порту Усть-Луга. Береговые объекты терминала
A3: (наименование стройки)
A5: ЛОКАЛЬНАЯ СМЕТА № 1632-2021-2.1.11-КМ-07.05.050-П-01-02
A6: (локальная смета)
A7: на Конструкции металлические, 07.04.050 Конвейерная галерея №11 (код SAP 01.02.008) код ГП 2.1.11
A8: (наименование работ и затрат, наименование объекта)
B9: Основание: | C9: 1632-2021-2.1.11-КМ_0_0_RU_IFС
A11: № п/п | B11: Обоснование | C11: Наименование работ и затрат | D11: Ед. изм. | E11: Кол-во | F11: Цена за ед.измерения работ, руб. с НДС | G11: Всего, стоимость работ,руб. с НДС | H11: Цена за ед.измерения материалов, руб. с НДС | I11: Всего, стоимость материалов, руб. с НДС | J11: Итого, руб. с НДС
A12: 1 | B12: 2 | C12: 3 | D12: 4 | E12: 5 | F12: 6 | G12: 7 | H12: 8 | I12: 9 | J12: 10
A13: Раздел 1. Колонны
A14: 1 | B14: ТЕР09-03-002-02 | C14: Монтаж колонн одноэтажных и многоэтажных зданий и крановых эстакад высотой: до 25 м цельного сечения массой до 3,0 т | D14: 1 т конструкций | E14: 20.8 | F14: 11888.3 | G14: 247276.83 | H14: 834.93 | I14: 17366.6 | J14: =G14+I14 -> 264643.43
B15: 101-0309 | C15: Канаты пеньковые пропитанные | D15: т | E15: 0,0001 0,0021 | J15: =G15+I15 -> 0
B16: 101-0324 | C16: Кислород технический: газообразный | D16: м3 | E16: 0,7 14,56 | J16: 0
B17: 101-0797 | C17: Проволока горячекатаная в мотках, диаметром 6,3-6,5 мм | D17: т | E17: 0,00003 0,0006 | J17: 0
B18: 101-1019 | C18: Швеллеры № 40 из стали марки: Ст0 | D18: т | E18: 0,00194 0,0404 | J18: 0
B19: 101-1513 | C19: Электроды диаметром: 4 мм Э42 | D19: т | E19: 0,0018 0,0374 | J19: 0
B20: 101-1714 | C20: Болты с гайками и шайбами строительные | D20: т | E20: 0,00015 0,0031 | J20: 0
B21: 101-1805 | C21: Гвозди строительные | D21: т | E21: 0,00001 0,0002 | J21: 0
B22: 101-2278 | C22: Пропан-бутан, смесь техническая | D22: кг | E22: 0,21 4,368 | J22: 0
B23: 101-2467 | C23: Растворитель марки: Р-4 | D23: т | E23: 0,0006 0,0125 | J23: 0
B24: 102-0023 | C24: Бруски обрезные хвойных пород длиной: 4-6,5 м, шириной 75-150 мм, толщиной 40-75 мм, I сорта | D24: м3 | E24: 0,00103 0,0214 | J24: 0
B25: 113-0021 | C25: Грунтовка: ГФ-021 красно-коричневая | D25: т | E25: 0,00031 0,0064 | J25: 0
B26: 201-0756 | C26: Отдельные конструктивные элементы зданий и сооружений с преобладанием: горячекатаных профилей, средняя масса сборочной единицы от 0,1 до 0,5 т | D26: т | E26: 0,0007 0,0146 | J26: 0
B27: 508-0097 | C27: Канат двойной свивки типа ТК, конструкции 6х19(1+6+12)+1 о.с., оцинкованный из проволок марки В, маркировочная группа: 1770 н/мм2, диаметром 5,5 мм | D27: 10 м | E27: 0,0187 0,389 | J27: 0
A28: 2 | B28: ТЕРм38-01-002-03 | C28: Монорельсы, балки и другие аналогичные конструкции промышленных зданий, сборка с помощью: лебедок электрических (с установкой и снятием их в процессе работы) | D28: 1 т конструкций | E28: 20 | F28: 39050 | G28: 781005.54 | H28: 602.21 | I28: 12044.13 | J28: 793049.67
B29: 101-0324 | C29: Кислород технический: газообразный | D29: м3 | E29: 0,6 12 | J29: 0
B30: 101-1521 | C30: Электроды диаметром: 5 мм Э42 | D30: т | E30: 0,0032 0,064 | J30: 0
B31: 101-2278 | C31: Пропан-бутан, смесь техническая | D31: кг | E31: 0,2 4 | J31: 0
B32: 999-9950 | C32: Вспомогательные ненормируемые ресурсы (2% от Оплаты труда рабочих) | D32: руб | E32: 10,14 202,8 | J32: 0
A33: Колонны | J33: 0
A34: 3 | B34: Прайс | C34: Двутавр 50Ш1 | D34: т | E34: 6.76 | F34: 0 | G34: 0 | H34: 98826.96 | I34: 668070.23 | J34: 668070.23
A35: 4 | B35: Прайс | C35: Двутавр 40Ш1 | D35: т | E35: 7.904 | F35: 0 | G35: 0 | H35: 96028.46 | I35: 759008.91 | J35: 759008.91
A36: 5 | B36: Прайс | C36: Двутавр 35Ш1 | D36: т | E36: 3.848 | F36: 0 | G36: 0 | H36: 95663.52 | I36: 368113.24 | J36: 368113.24
A37: 6 | B37: Прайс | C37: Уголок равнополочный 100*7 | D37: т | E37: 0.208 | F37: 0 | G37: 0 | H37: 112542.21 | I37: 23408.78 | J37: 23408.78
A38: 7 | B38: Прайс | C38: Прокат листовой 30мм | D38: т | E38: 0.624 | F38: 0 | G38: 0 | H38: 117874.05 | I38: 73553.41 | J38: 73553.41
A39: 8 | B39: Прайс | C39: Прокат листовой 16мм | D39: т | E39: 0.208 | F39: 0 | G39: 0 | H39: 103819.23 | I39: 21594.4 | J39: 21594.4
A40: 9 | B40: Прайс | C40: Прокат листовой 12мм | D40: т | E40: 0.936 | F40: 0 | G40: 0 | H40: 96028.63 | I40: 89882.8 | J40: 89882.8
A41: 10 | B41: Прайс | C41: Прокат листовой 10мм | D41: т | E41: 0.208 | F41: 0 | G41: 0 | H41: 94509.18 | I41: 19657.91 | J41: 19657.91
A42: 11 | B42: Прайс | C42: Прокат листовой 8мм | D42: т | E42: 0.104 | F42: 0 | G42: 0 | H42: 93155.48 | I42: 9688.17 | J42: 9688.17
A43: Перевозка материалов ( металл 140 км. ОП "МКМ-СПб") | J43: 0
A44: 12 | C44: Арматура, металлопрокат, трубопрокат и металлоконструкции | D44: т | E44: 20 | F44: 0 | G44: 0 | H44: 0 | I44: 0 | J44: 0
A45: 13 | B45: ТССЦпг-03-02-01-140 | C45: Перевозка строительных грузов (кроме массовых навалочных, перевозимых автомобилями-самосвалами, а также бетонных и железобетонных изделий, стеновых и перегородочных материалов, лесоматериалов круглых и пиломатериалов, включенных в таблицу 03-01), бортовым автомобилем грузоподъемностью 5 т, на расстояние до 140 км I класс груза | D45: 1 т груза | E45: 20 | F45: 0 | G45: 0 | H45: 2338.65 | I45: 46773.02 | J45: 46773.02
A46: 14 | B46: ТССЦпг-01-01-02-015 | C46: Разгрузочные работы при автомобильных перевозках: металлических конструкций массой до 1 т | D46: 1 т груза | E46: 20 | F46: 0 | G46: 0 | H46: 470.69 | I46: 9413.79 | J46: 9413.79
A47: Раздел 2. Балки и рамы | J47: 0
A48: 15 | B48: ТЕР09-03-002-12 | C48: Монтаж балок, ригелей перекрытия, покрытия и под установку оборудования многоэтажных зданий при высоте здания: до 25 м | D48: 1 т конструкций | E48: 29.848 | F48: 35504.71 | G48: 1059744.52 | H48: 1640.24 | I48: 48958.03 | J48: 1108702.55
B49: 101-0309 | C49: Канаты пеньковые пропитанные | D49: т | E49: 0,0001 0,003 | J49: 0
B50: 101-0324 | C50: Кислород технический: газообразный | D50: м3 | E50: 1,95 58,2 | J50: 0
B51: 101-0797 | C51: Проволока горячекатаная в мотках, диаметром 6,3-6,5 мм | D51: т | E51: 0,00003 0,0009 | J51: 0
B52: 101-1019 | C52: Швеллеры № 40 из стали марки: Ст0 | D52: т | E52: 0,00194 0,0579 | J52: 0
B53: 101-1513 | C53: Электроды диаметром: 4 мм Э42 | D53: т | E53: 0,0031 0,0925 | J53: 0
B54: 101-1714 | C54: Болты с гайками и шайбами строительные | D54: т | E54: 0,0031 0,0925 | J54: 0
B55: 101-1805 | C55: Гвозди строительные | D55: т | E55: 0,00001 0,0003 | J55: 0
B56: 101-2278 | C56: Пропан-бутан, смесь техническая | D56: кг | E56: 0,59 17,61 | J56: 0
B57: 101-2467 | C57: Растворитель марки: Р-4 | D57: т | E57: 0,0006 0,0179 | J57: 0
B58: 102-0023 | C58: Бруски обрезные хвойных пород длиной: 4-6,5 м, шириной 75-150 мм, толщиной 40-75 мм, I сорта | D58: м3 | E58: 0,00103 0,0307 | J58: 0
B59: 113-0021 | C59: Грунтовка: ГФ-021 красно-коричневая | D59: т | E59: 0,00031 0,0093 | J59: 0
B60: 201-0756 | C60: Отдельные конструктивные элементы зданий и сооружений с преобладанием: горячекатаных профилей, средняя масса сборочной единицы от 0,1 до 0,5 т | D60: т | E60: 0,0005 0,0149 | J60: 0
B61: 508-0097 | C61: Канат двойной свивки типа ТК, конструкции 6х19(1+6+12)+1 о.с., оцинкованный из проволок марки В, маркировочная группа: 1770 н/мм2, диаметром 5,5 мм | D61: 10 м | E61: 0,0187 0,5582 | J61: 0
A62: 16 | B62: ТЕРм38-01-002-03 | C62: Монорельсы, балки и другие аналогичные конструкции промышленных зданий, сборка с помощью: лебедок электрических (с установкой и снятием их в процессе работы) | D62: 1 т конструкций | E62: 28.7 | F62: 39050.4 | G62: 1120746.68 | H62: 602.15 | I62: 17281.84 | J62: 1138028.52
B63: 101-0324 | C63: Кислород технический: газообразный | D63: м3 | E63: 0,6 17,22 | J63: 0
B64: 101-1521 | C64: Электроды диаметром: 5 мм Э42 | D64: т | E64: 0,0032 0,0918 | J64: 0
B65: 101-2278 | C65: Пропан-бутан, смесь техническая | D65: кг | E65: 0,2 5,74 | J65: 0
B66: 999-9950 | C66: Вспомогательные ненормируемые ресурсы (2% от Оплаты труда рабочих) | D66: руб | E66: 10,14 291 | J66: 0
A67: 17 | B67: Прайс | C67: Швеллер 24П | D67: т | E67: 5.824 | F67: 0 | G67: 0 | H67: 109842.47 | I67: 639722.56 | J67: 639722.56
A68: 18 | B68: Прайс | C68: Швеллер 20П | D68: т | E68: 5.512 | F68: 0 | G68: 0 | H68: 107663.17 | I68: 593439.41 | J68: 593439.41
A69: 19 | B69: Прайс | C69: Двутавр 25Ш1 | D69: т | E69: 14.456 | F69: 0 | G69: 0 | H69: 93228.55 | I69: 1347711.97 | J69: 1347711.97
A70: 20 | B70: Прайс | C70: Двутавр 25К1 | D70: т | E70: 0.312 | F70: 0 | G70: 0 | H70: 89393.75 | I70: 27890.85 | J70: 27890.85
A71: 21 | B71: Прайс | C71: Уголок не равнополочный 100*63*8 | D71: т | E71: 0.832 | F71: 0 | G71: 0 | H71: 118666.57 | I71: 98730.59 | J71: 98730.59
A72: 22 | B72: Прайс | C72: Прокат листовой 16мм | D72: т | E72: 0.312 | F72: 0 | G72: 0 | H72: 103819.23 | I72: 32391.6 | J72: 32391.6
A73: 23 | B73: Прайс | C73: Прокат листовой 12мм | D73: т | E73: 0.728 | F73: 0 | G73: 0 | H73: 96028.64 | I73: 69908.85 | J73: 69908.85
A74: 24 | B74: Прайс | C74: Прокат листовой 10мм | D74: т | E74: 1.56 | F74: 0 | G74: 0 | H74: 94507.35 | I74: 147431.47 | J74: 147431.47
A75: 25 | B75: Прайс | C75: Прокат листовой 8мм | D75: т | E75: 0.208 | F75: 0 | G75: 0 | H75: 93155.53 | I75: 19376.35 | J75: 19376.35
A76: 26 | B76: Прайс | C76: Прокат листовой 6мм | D76: т | E76: 0.104 | F76: 0 | G76: 0 | H76: 91042.12 | I76: 9468.38 | J76: 9468.38
A77: Перевозка материалов ( металл 140 км. ОП "МКМ-СПб") | J77: 0
A78: 27 | C78: Арматура, металлопрокат, трубопрокат и металлоконструкции | D78: т | E78: 28.7 | F78: 0 | G78: 0 | H78: 0 | I78: 0 | J78: 0
A79: 28 | B79: ТССЦпг-03-02-01-140 | C79: Перевозка строительных грузов (кроме массовых навалочных, перевозимых автомобилями-самосвалами, а также бетонных и железобетонных изделий, стеновых и перегородочных материалов, лесоматериалов круглых и пиломатериалов, включенных в таблицу 03-01), бортовым автомобилем грузоподъемностью 5 т, на расстояние до 140 км I класс груза | D79: 1 т груза | E79: 28.7 | F79: 0 | G79: 0 | H79: 2338.64 | I79: 67119.04 | J79: =G79+I79 -> 67119.04
A80: 29 | B80: ТССЦпг-01-01-02-015 | C80: Разгрузочные работы при автомобильных перевозках: металлических конструкций массой до 1 т | D80: 1 т груза | E80: 28.7 | F80: 0 | G80: 0 | H80: 470.66 | I80: 13507.99 | J80: 13507.99
A81: Раздел 3. Прогоны | J81: 0
A82: 30 | B82: ТЕР09-03-015-01 | C82: Монтаж прогонов при шаге ферм до 12 м при высоте здания: до 25 м | D82: 1 т конструкций | E82: 8.944 | F82: 24725.12 | G82: 221141.46 | H82: 1307.59 | I82: 11695.05 | J82: 232836.51
B83: 101-0309 | C83: Канаты пеньковые пропитанные | D83: т | E83: 0,0001 0,0009 | J83: 0
B84: 101-0324 | C84: Кислород технический: газообразный | D84: м3 | E84: 0,5 4,472 | J84: 0
B85: 101-0797 | C85: Проволока горячекатаная в мотках, диаметром 6,3-6,5 мм | D85: т | E85: 0,00003 0,0003 | J85: 0
B86: 101-1019 | C86: Швеллеры № 40 из стали марки: Ст0 | D86: т | E86: 0,00194 0,0174 | J86: 0
B87: 101-1513 | C87: Электроды диаметром: 4 мм Э42 | D87: т | E87: 0,0026 0,0233 | J87: 0
B88: 101-1714 | C88: Болты с гайками и шайбами строительные | D88: т | E88: 0,003 0,0268 | J88: 0
B89: 101-1805 | C89: Гвозди строительные | D89: т | E89: 0,00001 0,0001 | J89: 0
B90: 101-2278 | C90: Пропан-бутан, смесь техническая | D90: кг | E90: 0,15 1,342 | J90: 0
B91: 101-2467 | C91: Растворитель марки: Р-4 | D91: т | E91: 0,0006 0,0054 | J91: 0
B92: 102-0023 | C92: Бруски обрезные хвойных пород длиной: 4-6,5 м, шириной 75-150 мм, толщиной 40-75 мм, I сорта | D92: м3 | E92: 0,00103 0,0092 | J92: 0
B93: 113-0021 | C93: Грунтовка: ГФ-021 красно-коричневая | D93: т | E93: 0,00031 0,0028 | J93: 0
B94: 201-0756 | C94: Отдельные конструктивные элементы зданий и сооружений с преобладанием: горячекатаных профилей, средняя масса сборочной единицы от 0,1 до 0,5 т | D94: т | E94: 0,0001 0,0009 | J94: 0
B95: 508-0097 | C95: Канат двойной свивки типа ТК, конструкции 6х19(1+6+12)+1 о.с., оцинкованный из проволок марки В, маркировочная группа: 1770 н/мм2, диаметром 5,5 мм | D95: 10 м | E95: 0,0187 0,1673 | J95: 0
A96: 31 | B96: ТЕРм38-01-003-03 | C96: Решетчатые конструкции (стойки, опоры, фермы и пр.), сборка с помощью: лебедок электрических (с установкой и снятием их в процессе работы) | D96: 1 т конструкций | E96: 8.6 | F96: 145545.1 | G96: 1251687.86 | H96: 3563.17 | I96: 30643.3 | J96: 1282331.16
B97: 101-0324 | C97: Кислород технический: газообразный | D97: м3 | E97: 2,6 22,36 | J97: 0
B98: 101-1521 | C98: Электроды диаметром: 5 мм Э42 | D98: т | E98: 0,0215 0,1849 | J98: 0
B99: 101-2278 | C99: Пропан-бутан, смесь техническая | D99: кг | E99: 0,5 4,3 | J99: 0
B100: 999-9950 | C100: Вспомогательные ненормируемые ресурсы (2% от Оплаты труда рабочих) | D100: руб | E100: 42,32 364 | J100: 0
A101: 32 | B101: Прайс | C101: Швеллер 20П | D101: т | E101: 8.528 | F101: 0 | G101: 0 | H101: 107663.14 | I101: 918151.23 | J101: 918151.23
A102: 33 | B102: Прайс | C102: Уголок не равнополочный 140*90*8 | D102: т | E102: 0.312 | F102: 0 | G102: 0 | H102: 139176.15 | I102: 43422.96 | J102: 43422.96
A103: 34 | B103: Прайс | C103: Прокат листовой 6мм | D103: т | E103: 0.104 | F103: 0 | G103: 0 | H103: 91042.12 | I103: 9468.38 | J103: 9468.38
A104: Перевозка материалов ( металл 140 км. ОП "МКМ-СПб") | J104: 0
A105: 35 | C105: Арматура, металлопрокат, трубопрокат и металлоконструкции | D105: т | E105: 8.6 | F105: 0 | G105: 0 | H105: 0 | I105: 0 | J105: 0
A106: 36 | B106: ТССЦпг-03-02-01-140 | C106: Перевозка строительных грузов (кроме массовых навалочных, перевозимых автомобилями-самосвалами, а также бетонных и железобетонных изделий, стеновых и перегородочных материалов, лесоматериалов круглых и пиломатериалов, включенных в таблицу 03-01), бортовым автомобилем грузоподъемностью 5 т, на расстояние до 140 км I класс груза | D106: 1 т груза | E106: 8.6 | F106: 0 | G106: 0 | H106: 2338.59 | I106: 20111.87 | J106: 20111.87
A107: 37 | B107: ТССЦпг-01-01-02-015 | C107: Разгрузочные работы при автомобильных перевозках: металлических конструкций массой до 1 т | D107: 1 т груза | E107: 8.6 | F107: 0 | G107: 0 | H107: 470.72 | I107: 4048.23 | J107: 4048.23
A108: Раздел 4. Фермы | J108: 0
A109: 38 | B109: ТЕР09-03-012-01 | C109: Монтаж стропильных и подстропильных ферм на высоте до 25 м пролетом: до 24 м массой до 3,0 т | D109: 1 т конструкций | E109: 22.984 | F109: 44491.6 | G109: 1022595.03 | H109: 1506.57 | I109: 34626.89 | J109: 1057221.92
B110: 101-0309 | C110: Канаты пеньковые пропитанные | D110: т | E110: 0,0001 0,0023 | J110: 0
B111: 101-0324 | C111: Кислород технический: газообразный | D111: м3 | E111: 0,72 16,55 | J111: 0
B112: 101-0797 | C112: Проволока горячекатаная в мотках, диаметром 6,3-6,5 мм | D112: т | E112: 0,00003 0,0007 | J112: 0
B113: 101-1019 | C113: Швеллеры № 40 из стали марки: Ст0 | D113: т | E113: 0,00194 0,0446 | J113: 0
B114: 101-1513 | C114: Электроды диаметром: 4 мм Э42 | D114: т | E114: 0,0027 0,0621 | J114: 0
B115: 101-1714 | C115: Болты с гайками и шайбами строительные | D115: т | E115: 0,0019 0,0437 | J115: 0
B116: 101-1805 | C116: Гвозди строительные | D116: т | E116: 0,00001 0,0002 | J116: 0
B117: 101-2278 | C117: Пропан-бутан, смесь техническая | D117: кг | E117: 0,22 5,056 | J117: 0
B118: 101-2467 | C118: Растворитель марки: Р-4 | D118: т | E118: 0,0006 0,0138 | J118: 0
B119: 102-0023 | C119: Бруски обрезные хвойных пород длиной: 4-6,5 м, шириной 75-150 мм, толщиной 40-75 мм, I сорта | D119: м3 | E119: 0,00103 0,0237 | J119: 0
B120: 113-0021 | C120: Грунтовка: ГФ-021 красно-коричневая | D120: т | E120: 0,00031 0,0071 | J120: 0
B121: 201-0756 | C121: Отдельные конструктивные элементы зданий и сооружений с преобладанием: горячекатаных профилей, средняя масса сборочной единицы от 0,1 до 0,5 т | D121: т | E121: 0,002 0,046 | J121: 0
B122: 508-0097 | C122: Канат двойной свивки типа ТК, конструкции 6х19(1+6+12)+1 о.с., оцинкованный из проволок марки В, маркировочная группа: 1770 н/мм2, диаметром 5,5 мм | D122: 10 м | E122: 0,0187 0,4298 | J122: 0
A123: 39 | B123: ТЕРм38-01-003-03 | C123: Решетчатые конструкции (стойки, опоры, фермы и пр.), сборка с помощью: лебедок электрических (с установкой и снятием их в процессе работы) | D123: 1 т конструкций | E123: 22.1 | F123: 145545.2 | G123: 3216549.69 | H123: 3563.19 | I123: 78746.58 | J123: 3295296.27
B124: 101-0324 | C124: Кислород технический: газообразный | D124: м3 | E124: 2,6 57,46 | J124: 0
B125: 101-1521 | C125: Электроды диаметром: 5 мм Э42 | D125: т | E125: 0,0215 0,4752 | J125: 0
B126: 101-2278 | C126: Пропан-бутан, смесь техническая | D126: кг | E126: 0,5 11,05 | J126: 0
B127: 999-9950 | C127: Вспомогательные ненормируемые ресурсы (2% от Оплаты труда рабочих) | D127: руб | E127: 42,32 935,3 | J127: 0
A128: 40 | B128: Прайс | C128: Двутавр 25К1 | D128: т | E128: 11.232 | F128: 0 | G128: 0 | H128: 89394.39 | I128: 1004077.75 | J128: 1004077.75
A129: 41 | B129: Прайс | C129: Профиль гн. 180*7 | D129: т | E129: 2.392 | F129: 0 | G129: 0 | H129: 128950.05 | I129: 308448.51 | J129: 308448.51
A130: 42 | B130: Прайс | C130: Профиль гн. 140*6 | D130: т | E130: 2.912 | F130: 0 | G130: 0 | H130: 120369.28 | I130: 350515.35 | J130: 350515.35
A131: 43 | B131: Прайс | C131: Профиль гн. 120*5 | D131: т | E131: 1.768 | F131: 0 | G131: 0 | H131: 113870.28 | I131: 201322.66 | J131: 201322.66
A132: 44 | B132: Прайс | C132: Профиль гн. 100*5 | D132: т | E132: 2.184 | F132: 0 | G132: 0 | H132: 109780.56 | I132: 239760.74 | J132: 239760.74
A133: 45 | B133: Прайс | C133: Профиль гн. 80*5 | D133: т | E133: 0.52 | F133: 0 | G133: 0 | H133: 99241.56 | I133: 51605.61 | J133: 51605.61
A134: 46 | B134: Прайс | C134: Прокат листовой 25мм | D134: т | E134: 0.624 | F134: 0 | G134: 0 | H134: 112337.29 | I134: 70098.47 | J134: 70098.47
A135: 47 | B135: Прайс | C135: Прокат листовой 12мм | D135: т | E135: 0.832 | F135: 0 | G135: 0 | H135: 96028.64 | I135: 79895.83 | J135: 79895.83
A136: 48 | B136: Прайс | C136: Прокат листовой 10мм | D136: т | E136: 0.104 | F136: 0 | G136: 0 | H136: 94509.23 | I136: 9828.96 | J136: 9828.96
A137: 49 | B137: Прайс | C137: Прокат листовой 8мм | D137: т | E137: 0.208 | F137: 0 | G137: 0 | H137: 93155.53 | I137: 19376.35 | J137: 19376.35
A138: 50 | B138: Прайс | C138: Прокат листовой 6мм | D138: т | E138: 0.104 | F138: 0 | G138: 0 | H138: 91042.12 | I138: 9468.38 | J138: 9468.38
A139: 51 | B139: Прайс | C139: Прокат листовой 4мм | D139: т | E139: 0.104 | F139: 0 | G139: 0 | H139: 76427.88 | I139: 7948.5 | J139: 7948.5
A140: Перевозка материалов ( металл 140 км. ОП "МКМ-СПб") | J140: 0
A141: 52 | C141: Арматура, металлопрокат, трубопрокат и металлоконструкции | D141: т | E141: 22.1 | F141: 0 | G141: 0 | H141: 0 | I141: 0 | J141: 0
A142: 53 | B142: ТССЦпг-03-02-01-140 | C142: Перевозка строительных грузов (кроме массовых навалочных, перевозимых автомобилями-самосвалами, а также бетонных и железобетонных изделий, стеновых и перегородочных материалов, лесоматериалов круглых и пиломатериалов, включенных в таблицу 03-01), бортовым автомобилем грузоподъемностью 5 т, на расстояние до 140 км I класс груза | D142: 1 т груза | E142: 22.1 | F142: 0 | G142: 0 | H142: 2338.67 | I142: 51684.62 | J142: 51684.62
A143: 54 | B143: ТССЦпг-01-01-02-015 | C143: Разгрузочные работы при автомобильных перевозках: металлических конструкций массой до 1 т | D143: 1 т груза | E143: 22.1 | F143: 0 | G143: 0 | H143: 470.69 | I143: 10402.14 | J143: =G143+I143 -> 10402.14
A144: Раздел 5. Фахверк | J144: 0
A145: 55 | B145: ТЕР09-04-006-01 | C145: Монтаж фахверка | D145: 1 т конструкций | E145: 6.032 | F145: 50227.03 | G145: 302969.47 | H145: 2655.93 | I145: 16020.54 | J145: 318990.01
B146: 101-0309 | C146: Канаты пеньковые пропитанные | D146: т | E146: 0,0001 0,0006 | J146: 0
B147: 101-0324 | C147: Кислород технический: газообразный | D147: м3 | E147: 2,6 15,68 | J147: 0
B148: 101-0797 | C148: Проволока горячекатаная в мотках, диаметром 6,3-6,5 мм | D148: т | E148: 0,00003 0,0002 | J148: 0
B149: 101-1019 | C149: Швеллеры № 40 из стали марки: Ст0 | D149: т | E149: 0,00194 0,0117 | J149: 0
B150: 101-1515 | C150: Электроды диаметром: 4 мм Э46 | D150: т | E150: 0,016 0,0965 | J150: 0
B151: 101-1805 | C151: Гвозди строительные | D151: т | E151: 0,00001 0,0001 | J151: 0
B152: 101-2278 | C152: Пропан-бутан, смесь техническая | D152: кг | E152: 0,78 4,705 | J152: 0
B153: 101-2467 | C153: Растворитель марки: Р-4 | D153: т | E153: 0,0006 0,0036 | J153: 0
B154: 113-0021 | C154: Грунтовка: ГФ-021 красно-коричневая | D154: т | E154: 0,00031 0,0019 | J154: 0
B155: 201-0756 | C155: Отдельные конструктивные элементы зданий и сооружений с преобладанием: горячекатаных профилей, средняя масса сборочной единицы от 0,1 до 0,5 т | D155: т | E155: 0,001 0,006 | J155: 0
B156: 508-0097 | C156: Канат двойной свивки типа ТК, конструкции 6х19(1+6+12)+1 о.с., оцинкованный из проволок марки В, маркировочная группа: 1770 н/мм2, диаметром 5,5 мм | D156: 10 м | E156: 0,0187 0,1128 | J156: 0
A157: 56 | B157: ТЕРм38-01-003-03 | C157: Решетчатые конструкции (стойки, опоры, фермы и пр.), сборка с помощью: лебедок электрических (с установкой и снятием их в процессе работы) | D157: 1 т конструкций | E157: 5.8 | F157: 145545.5 | G157: 844163.99 | H157: 3562.92 | I157: 20664.94 | J157: 864828.93
B158: 101-0324 | C158: Кислород технический: газообразный | D158: м3 | E158: 2,6 15,08 | J158: 0
B159: 101-1521 | C159: Электроды диаметром: 5 мм Э42 | D159: т | E159: 0,0215 0,1247 | J159: 0
B160: 101-2278 | C160: Пропан-бутан, смесь техническая | D160: кг | E160: 0,5 2,9 | J160: 0
B161: 999-9950 | C161: Вспомогательные ненормируемые ресурсы (2% от Оплаты труда рабочих) | D161: руб | E161: 42,32 245,5 | J161: 0
A162: 57 | B162: Прайс | C162: Профиль гн. 80*5 | D162: т | E162: 4.784 | F162: 0 | G162: 0 | H162: 99241.98 | I162: 474773.65 | J162: 474773.65
A163: 58 | B163: Прайс | C163: Уголок равнополочный 100*7 | D163: т | E163: 0.312 | F163: 0 | G163: 0 | H163: 112544.49 | I163: 35113.88 | J163: 35113.88
A164: 59 | B164: Прайс | C164: Уголок равнополочный 63*5 | D164: т | E164: 0.728 | F164: 0 | G164: 0 | H164: 103574.53 | I164: 75402.26 | J164: 75402.26
A165: 60 | B165: Прайс | C165: Прокат листовой 10мм | D165: т | E165: 0.208 | F165: 0 | G165: 0 | H165: 94509.18 | I165: 19657.91 | J165: 19657.91
A166: Перевозка материалов ( металл 140 км. ОП "МКМ-СПб") | J166: 0
A167: 61 | C167: Арматура, металлопрокат, трубопрокат и металлоконструкции | D167: т | E167: 5.8 | F167: 0 | G167: 0 | H167: 0 | I167: 0 | J167: 0
A168: 62 | B168: ТССЦпг-03-02-01-140 | C168: Перевозка строительных грузов (кроме массовых навалочных, перевозимых автомобилями-самосвалами, а также бетонных и железобетонных изделий, стеновых и перегородочных материалов, лесоматериалов круглых и пиломатериалов, включенных в таблицу 03-01), бортовым автомобилем грузоподъемностью 5 т, на расстояние до 140 км I класс груза | D168: 1 т груза | E168: 5.8 | F168: 0 | G168: 0 | H168: 2338.62 | I168: 13564.02 | J168: 13564.02
A169: Раздел 6. Связи, распорки | J169: 0
A170: 63 | B170: ТЕР09-03-014-01 | C170: Монтаж связей и распорок из одиночных и парных уголков, гнутосварных профилей для пролетов: до 24 м при высоте здания до 25 м | D170: 1 т конструкций | E170: 15.704 | F170: 85716.66 | G170: 1346094.4 | H170: 4252.33 | I170: 66778.58 | J170: 1412872.98
B171: 101-0309 | C171: Канаты пеньковые пропитанные | D171: т | E171: 0,0001 0,0016 | J171: 0
B172: 101-0324 | C172: Кислород технический: газообразный | D172: м3 | E172: 1,2 18,84 | J172: 0
B173: 101-0797 | C173: Проволока горячекатаная в мотках, диаметром 6,3-6,5 мм | D173: т | E173: 0,00003 0,0005 | J173: 0
B174: 101-1019 | C174: Швеллеры № 40 из стали марки: Ст0 | D174: т | E174: 0,00194 0,0305 | J174: 0
B175: 101-1513 | C175: Электроды диаметром: 4 мм Э42 | D175: т | E175: 0,00044 0,0069 | J175: 0
B176: 101-1714 | C176: Болты с гайками и шайбами строительные | D176: т | E176: 0,021 0,3298 | J176: 0
B177: 101-1805 | C177: Гвозди строительные | D177: т | E177: 0,00001 0,0002 | J177: 0
B178: 101-2278 | C178: Пропан-бутан, смесь техническая | D178: кг | E178: 0,36 5,653 | J178: 0
B179: 101-2467 | C179: Растворитель марки: Р-4 | D179: т | E179: 0,0006 0,0094 | J179: 0
B180: 102-0023 | C180: Бруски обрезные хвойных пород длиной: 4-6,5 м, шириной 75-150 мм, толщиной 40-75 мм, I сорта | D180: м3 | E180: 0,00103 0,0162 | J180: 0
B181: 113-0021 | C181: Грунтовка: ГФ-021 красно-коричневая | D181: т | E181: 0,00031 0,0049 | J181: 0
B182: 201-0756 | C182: Отдельные конструктивные элементы зданий и сооружений с преобладанием: горячекатаных профилей, средняя масса сборочной единицы от 0,1 до 0,5 т | D182: т | E182: 0,0002 0,0031 | J182: 0
B183: 508-0097 | C183: Канат двойной свивки типа ТК, конструкции 6х19(1+6+12)+1 о.с., оцинкованный из проволок марки В, маркировочная группа: 1770 н/мм2, диаметром 5,5 мм | D183: 10 м | E183: 0,0187 0,2937 | J183: 0
A184: 64 | B184: ТЕРм38-01-003-03 | C184: Решетчатые конструкции (стойки, опоры, фермы и пр.), сборка с помощью: лебедок электрических (с установкой и снятием их в процессе работы) | D184: 1 т конструкций | E184: 15.1 | F184: 145545.3 | G184: 2197734.26 | H184: 3563.15 | I184: 53803.55 | J184: 2251537.81
B185: 101-0324 | C185: Кислород технический: газообразный | D185: м3 | E185: 2,6 39,26 | J185: 0
B186: 101-1521 | C186: Электроды диаметром: 5 мм Э42 | D186: т | E186: 0,0215 0,3247 | J186: 0
B187: 101-2278 | C187: Пропан-бутан, смесь техническая | D187: кг | E187: 0,5 7,55 | J187: 0
B188: 999-9950 | C188: Вспомогательные ненормируемые ресурсы (2% от Оплаты труда рабочих) | D188: руб | E188: 42,32 639 | J188: 0
A189: 65 | B189: Прайс | C189: Профиль гн. 160*5 | D189: т | E189: 4.056 | F189: 0 | G189: 0 | H189: 124873.21 | I189: 506485.75 | J189: 506485.75
A190: 66 | B190: Прайс | C190: Профиль гн. 120*5 | D190: т | E190: 6.76 | F190: 0 | G190: 0 | H190: 113870.48 | I190: 769764.45 | J190: 769764.45
A191: 67 | B191: Прайс | C191: Профиль гн. 100*5 | D191: т | E191: 1.352 | F191: 0 | G191: 0 | H191: 109781.17 | I191: 148424.14 | J191: 148424.14
A192: 68 | B192: Прайс | C192: Уголок равнополочный 125*9 | D192: т | E192: 2.184 | F192: 0 | G192: 0 | H192: 123900.83 | I192: 270599.42 | J192: 270599.42
A193: 69 | B193: Прайс | C193: Уголок равнополочный 100*7 | D193: т | E193: 0.104 | F193: 0 | G193: 0 | H193: 112549.13 | I193: 11705.11 | J193: 11705.11
A194: 70 | B194: Прайс | C194: Прокат листовой 12мм | D194: т | E194: 0.728 | F194: 0 | G194: 0 | H194: 96028.64 | I194: 69908.85 | J194: 69908.85
A195: 71 | B195: Прайс | C195: Прокат листовой 10мм | D195: т | E195: 0.104 | F195: 0 | G195: 0 | H195: 94509.23 | I195: 9828.96 | J195: 9828.96
A196: 72 | B196: Прайс | C196: Прокат листовой 4мм | D196: т | E196: 0.312 | F196: 0 | G196: 0 | H196: 76432.47 | I196: 23846.93 | J196: 23846.93
A197: Перевозка материалов ( металл 140 км. ОП "МКМ-СПб") | J197: 0
A198: 73 | C198: Арматура, металлопрокат, трубопрокат и металлоконструкции | D198: т | E198: 15.1 | F198: 0 | G198: 0 | H198: 0 | I198: 0 | J198: 0
A199: 74 | B199: ТССЦпг-03-02-01-140 | C199: Перевозка строительных грузов (кроме массовых навалочных, перевозимых автомобилями-самосвалами, а также бетонных и железобетонных изделий, стеновых и перегородочных материалов, лесоматериалов круглых и пиломатериалов, включенных в таблицу 03-01), бортовым автомобилем грузоподъемностью 5 т, на расстояние до 140 км I класс груза | D199: 1 т груза | E199: 15.1 | F199: 0 | G199: 0 | H199: 2338.65 | I199: 35313.56 | J199: 35313.56
A200: 75 | B200: ТССЦпг-01-01-02-015 | C200: Разгрузочные работы при автомобильных перевозках: металлических конструкций массой до 1 т | D200: 1 т груза | E200: 15.1 | F200: 0 | G200: 0 | H200: 470.64 | I200: 7106.67 | J200: 7106.67
A201: Раздел 7. Лестницы, площадки, ограждение | J201: 0
A202: 76 | B202: ТЕР09-03-029-01 | C202: Монтаж лестниц прямолинейных и криволинейных, пожарных с ограждением | D202: 1 т конструкций | E202: 15.08 | F202: 57878.96 | G202: 872814.78 | H202: 1156.97 | I202: 17447.04 | J202: 890261.82
B203: 101-0309 | C203: Канаты пеньковые пропитанные | D203: т | E203: 0,0001 0,0015 | J203: 0
... 112 more rows

Sheet 1632-2021-2.1.12.КМ
A2: Терминал по перевалке минеральных удобрений в морском торговом порту Усть-Луга. Береговые объекты терминала
A3: (наименование стройки)
A5: ЛОКАЛЬНАЯ СМЕТА № 1632-2021-2.1.12.КМ_07.04.051-П-01-02
A6: (локальная смета)
A7: на Конструкции металлические, 07.04.051 Конвейерная галерея №12 (код SAP 01.02.008) код ГП 2.1.12
A8: (наименование работ и затрат, наименование объекта)
B9: Основание: | C9: 1632-2021-2.1.12-КМ_1_0_RU_IFC
A11: № п/п | B11: Обоснование | C11: Наименование работ и затрат | D11: Ед. изм. | E11: Кол-во | F11: Цена за ед.измерения работ, руб. с НДС | G11: Всего, стоимость работ,руб. с НДС | H11: Цена за ед.измерения материалов, руб. с НДС | I11: Всего, стоимость материалов, руб. с НДС | J11: Итого, руб. с НДС
A12: 1 | B12: 2 | C12: 3 | D12: 4 | E12: 5 | F12: 6 | G12: 7 | H12: 8 | I12: 9 | J12: 10
A13: Раздел 1. Колонны
A14: 1 | B14: ТЕР09-03-002-02 | C14: Монтаж колонн одноэтажных и многоэтажных зданий и крановых эстакад высотой: до 25 м цельного сечения массой до 3,0 т | D14: 1 т конструкций | E14: 7.488 | F14: 11888.28 | G14: 89019.43 | H14: 834.93 | I14: 6251.92 | J14: =G14+I14 -> 95271.35
B15: 101-0309 | C15: Канаты пеньковые пропитанные | D15: т | E15: 0,0001 0,0007 | J15: =G15+I15 -> 0
B16: 101-0324 | C16: Кислород технический: газообразный | D16: м3 | E16: 0,7 5,242 | J16: 0
B17: 101-0797 | C17: Проволока горячекатаная в мотках, диаметром 6,3-6,5 мм | D17: т | E17: 0,00003 0,0002 | J17: 0
B18: 101-1019 | C18: Швеллеры № 40 из стали марки: Ст0 | D18: т | E18: 0,00194 0,0145 | J18: 0
B19: 101-1513 | C19: Электроды диаметром: 4 мм Э42 | D19: т | E19: 0,0018 0,0135 | J19: 0
B20: 101-1714 | C20: Болты с гайками и шайбами строительные | D20: т | E20: 0,00015 0,0011 | J20: 0
B21: 101-1805 | C21: Гвозди строительные | D21: т | E21: 0,00001 0,0001 | J21: 0
B22: 101-2278 | C22: Пропан-бутан, смесь техническая | D22: кг | E22: 0,21 1,572 | J22: 0
B23: 101-2467 | C23: Растворитель марки: Р-4 | D23: т | E23: 0,0006 0,0045 | J23: 0
B24: 102-0023 | C24: Бруски обрезные хвойных пород длиной: 4-6,5 м, шириной 75-150 мм, толщиной 40-75 мм, I сорта | D24: м3 | E24: 0,00103 0,0077 | J24: 0
B25: 113-0021 | C25: Грунтовка: ГФ-021 красно-коричневая | D25: т | E25: 0,00031 0,0023 | J25: 0
B26: 201-0756 | C26: Отдельные конструктивные элементы зданий и сооружений с преобладанием: горячекатаных профилей, средняя масса сборочной единицы от 0,1 до 0,5 т | D26: т | E26: 0,0007 0,0052 | J26: 0
B27: 508-0097 | C27: Канат двойной свивки типа ТК, конструкции 6х19(1+6+12)+1 о.с., оцинкованный из проволок марки В, маркировочная группа: 1770 н/мм2, диаметром 5,5 мм | D27: 10 м | E27: 0,0187 0,14 | J27: 0
A28: 2 | B28: ТЕРм38-01-002-03 | C28: Монорельсы, балки и другие аналогичные конструкции промышленных зданий, сборка с помощью: лебедок электрических (с установкой и снятием их в процессе работы) | D28: 1 т конструкций | E28: 7.2 | F28: 39050.1 | G28: 281160.76 | H28: 602.19 | I28: 4335.8 | J28: 285496.56
B29: 101-0324 | C29: Кислород технический: газообразный | D29: м3 | E29: 0,6 4,32 | J29: 0
B30: 101-1521 | C30: Электроды диаметром: 5 мм Э42 | D30: т | E30: 0,0032 0,023 | J30: 0
B31: 101-2278 | C31: Пропан-бутан, смесь техническая | D31: кг | E31: 0,2 1,44 | J31: 0
B32: 999-9950 | C32: Вспомогательные ненормируемые ресурсы (2% от Оплаты труда рабочих) | D32: руб | E32: 10,14 73,01 | J32: 0
A33: 3 | B33: Прайс | C33: Двутавр 35Ш1 | D33: т | E33: 2.08 | F33: 0 | G33: 0 | H33: 95663.54 | I33: 198980.17 | J33: 198980.17
A34: 4 | B34: Прайс | C34: Двутавр 25Ш1 | D34: т | E34: 1.976 | F34: 0 | G34: 0 | H34: 93228.53 | I34: 184219.58 | J34: 184219.58
A35: 5 | B35: Прайс | C35: Швеллер 24П | D35: т | E35: 1.976 | F35: 0 | G35: 0 | H35: 109842.4 | I35: 217048.58 | J35: 217048.58
A36: 6 | B36: Прайс | C36: Прокат листовой 40мм | D36: т | E36: 0.104 | F36: 0 | G36: 0 | H36: 121283.27 | I36: 12613.46 | J36: 12613.46
A37: 7 | B37: Прайс | C37: Прокат листовой 30мм | D37: т | E37: 0.728 | F37: 0 | G37: 0 | H37: 117874.19 | I37: 85812.41 | J37: 85812.41
A38: 8 | B38: Прайс | C38: Прокат листовой 16мм | D38: т | E38: 0.312 | F38: 0 | G38: 0 | H38: 103817.44 | I38: 32391.04 | J38: 32391.04
A39: 9 | B39: Прайс | C39: Прокат листовой 12мм | D39: т | E39: 0.208 | F39: 0 | G39: 0 | H39: 96028.41 | I39: 19973.91 | J39: 19973.91
A40: 10 | B40: Прайс | C40: Прокат листовой 10мм | D40: т | E40: 0.104 | F40: 0 | G40: 0 | H40: 94507.12 | I40: 9828.74 | J40: 9828.74
A41: Перевозка материалов ( металл 140 км. ОП "МКМ-СПб") | J41: 0
A42: 11 | C42: Арматура, металлопрокат, трубопрокат и металлоконструкции | D42: т | E42: 7.2 | F42: 0 | G42: 0 | H42: 0 | I42: 0 | J42: 0
A43: 12 | B43: ТССЦпг-03-02-01-140 | C43: Перевозка строительных грузов (кроме массовых навалочных, перевозимых автомобилями-самосвалами, а также бетонных и железобетонных изделий, стеновых и перегородочных материалов, лесоматериалов круглых и пиломатериалов, включенных в таблицу 03-01), бортовым автомобилем грузоподъемностью 5 т, на расстояние до 140 км I класс груза | D43: 1 т груза | E43: 7.2 | F43: 0 | G43: 0 | H43: 2338.66 | I43: 16838.37 | J43: 16838.37
A44: 13 | B44: ТССЦпг-01-01-02-015 | C44: Разгрузочные работы при автомобильных перевозках: металлических конструкций массой до 1 т | D44: 1 т груза | E44: 7.2 | F44: 0 | G44: 0 | H44: 470.66 | I44: 3388.76 | J44: 3388.76
A45: Раздел 2. Балки | J45: 0
A46: 14 | B46: ТЕР09-03-002-12 | C46: Монтаж балок, ригелей перекрытия, покрытия и под установку оборудования многоэтажных зданий при высоте здания: до 25 м | D46: 1 т конструкций | E46: 0.208 | F46: 40823.75 | G46: 8491.34 | H46: 1886.3 | I46: 392.35 | J46: 8883.69
B47: 101-0309 | C47: Канаты пеньковые пропитанные | D47: т | E47: 0,000115 0 | J47: 0
B48: 101-0324 | C48: Кислород технический: газообразный | D48: м3 | E48: 2,2425 0,4664 | J48: 0
B49: 101-0797 | C49: Проволока горячекатаная в мотках, диаметром 6,3-6,5 мм | D49: т | E49: 0,0000345 0 | J49: 0
B50: 101-1019 | C50: Швеллеры № 40 из стали марки: Ст0 | D50: т | E50: 0,002231 0,0005 | J50: 0
B51: 101-1513 | C51: Электроды диаметром: 4 мм Э42 | D51: т | E51: 0,003565 0,0007 | J51: 0
B52: 101-1714 | C52: Болты с гайками и шайбами строительные | D52: т | E52: 0,003565 0,0007 | J52: 0
B53: 101-1805 | C53: Гвозди строительные | D53: т | E53: 0,0000115 0 | J53: 0
B54: 101-2278 | C54: Пропан-бутан, смесь техническая | D54: кг | E54: 0,6785 0,1411 | J54: 0
B55: 101-2467 | C55: Растворитель марки: Р-4 | D55: т | E55: 0,00069 0,0001 | J55: 0
B56: 102-0023 | C56: Бруски обрезные хвойных пород длиной: 4-6,5 м, шириной 75-150 мм, толщиной 40-75 мм, I сорта | D56: м3 | E56: 0,0011845 0,0002 | J56: 0
B57: 113-0021 | C57: Грунтовка: ГФ-021 красно-коричневая | D57: т | E57: 0,0003565 0,0001 | J57: 0
B58: 201-0756 | C58: Отдельные конструктивные элементы зданий и сооружений с преобладанием: горячекатаных профилей, средняя масса сборочной единицы от 0,1 до 0,5 т | D58: т | E58: 0,000575 0,0001 | J58: 0
B59: 508-0097 | C59: Канат двойной свивки типа ТК, конструкции 6х19(1+6+12)+1 о.с., оцинкованный из проволок марки В, маркировочная группа: 1770 н/мм2, диаметром 5,5 мм | D59: 10 м | E59: 0,021505 0,0045 | J59: 0
A60: 15 | B60: Прайс | C60: Прокат листовой 16мм | D60: т | E60: 0.208 | F60: 0 | G60: 0 | H60: 103817.4 | I60: 21594.02 | J60: 21594.02
A61: 16 | B61: ТЕР09-03-002-12 | C61: Монтаж балок, ригелей перекрытия, покрытия и под установку оборудования многоэтажных зданий при высоте здания: до 25 м | D61: 1 т конструкций | E61: 35.152 | F61: 35504.7 | G61: 1248061.1 | H61: 1640.27 | I61: 57658.72 | J61: 1305719.82
B62: 101-0309 | C62: Канаты пеньковые пропитанные | D62: т | E62: 0,0001 0,0035 | J62: 0
B63: 101-0324 | C63: Кислород технический: газообразный | D63: м3 | E63: 1,95 68,55 | J63: 0
B64: 101-0797 | C64: Проволока горячекатаная в мотках, диаметром 6,3-6,5 мм | D64: т | E64: 0,00003 0,0011 | J64: 0
B65: 101-1019 | C65: Швеллеры № 40 из стали марки: Ст0 | D65: т | E65: 0,00194 0,0682 | J65: 0
B66: 101-1513 | C66: Электроды диаметром: 4 мм Э42 | D66: т | E66: 0,0031 0,109 | J66: 0
B67: 101-1714 | C67: Болты с гайками и шайбами строительные | D67: т | E67: 0,0031 0,109 | J67: 0
B68: 101-1805 | C68: Гвозди строительные | D68: т | E68: 0,00001 0,0004 | J68: 0
B69: 101-2278 | C69: Пропан-бутан, смесь техническая | D69: кг | E69: 0,59 20,74 | J69: 0
B70: 101-2467 | C70: Растворитель марки: Р-4 | D70: т | E70: 0,0006 0,0211 | J70: 0
B71: 102-0023 | C71: Бруски обрезные хвойных пород длиной: 4-6,5 м, шириной 75-150 мм, толщиной 40-75 мм, I сорта | D71: м3 | E71: 0,00103 0,0362 | J71: 0
B72: 113-0021 | C72: Грунтовка: ГФ-021 красно-коричневая | D72: т | E72: 0,00031 0,0109 | J72: 0
B73: 201-0756 | C73: Отдельные конструктивные элементы зданий и сооружений с преобладанием: горячекатаных профилей, средняя масса сборочной единицы от 0,1 до 0,5 т | D73: т | E73: 0,0005 0,0176 | J73: 0
B74: 508-0097 | C74: Канат двойной свивки типа ТК, конструкции 6х19(1+6+12)+1 о.с., оцинкованный из проволок марки В, маркировочная группа: 1770 н/мм2, диаметром 5,5 мм | D74: 10 м | E74: 0,0187 0,6573 | J74: 0
A75: 17 | B75: ТЕРм38-01-002-01 | C75: Монорельсы, балки и другие аналогичные конструкции промышленных зданий, сборка с помощью: крана на автомобильном ходу | D75: 1 т конструкций | E75: 34 | F75: 32736 | G75: 1113007.55 | H75: 583.89 | I75: 19852.22 | J75: 1132859.77
B76: 101-0324 | C76: Кислород технический: газообразный | D76: м3 | E76: 0,6 20,4 | J76: 0
B77: 101-1521 | C77: Электроды диаметром: 5 мм Э42 | D77: т | E77: 0,0032 0,1088 | J77: 0
B78: 101-2278 | C78: Пропан-бутан, смесь техническая | D78: кг | E78: 0,2 6,8 | J78: 0
B79: 999-9950 | C79: Вспомогательные ненормируемые ресурсы (2% от Оплаты труда рабочих) | D79: руб | E79: 8,5 289 | J79: =G79+I79 -> 0
A80: 18 | B80: Прайс | C80: Двутавр 70Б1 | D80: т | E80: 4.68 | F80: 0 | G80: 0 | H80: 121465.6 | I80: 568458.99 | J80: 568458.99
A81: 19 | B81: Прайс | C81: Двутавр 60Б2 | D81: т | E81: 3.432 | F81: 0 | G81: 0 | H81: 120613.71 | I81: 413946.24 | J81: 413946.24
A82: 20 | B82: Прайс | C82: Двутавр 50Ш1 | D82: т | E82: 5.824 | F82: 0 | G82: 0 | H82: 98826.88 | I82: 575567.73 | J82: 575567.73
A83: 21 | B83: Прайс | C83: Двутавр 30Ш1 | D83: т | E83: 10.4 | F83: 0 | G83: 0 | H83: 94324.65 | I83: 980976.34 | J83: 980976.34
A84: 22 | B84: Прайс | C84: Двутавр 25Ш1 | D84: т | E84: 1.352 | F84: 0 | G84: 0 | H84: 93228.53 | I84: 126044.97 | J84: 126044.97
A85: 23 | B85: Прайс | C85: Швеллер 24П | D85: т | E85: 1.872 | F85: 0 | G85: 0 | H85: 109842.41 | I85: 205624.99 | J85: 205624.99
A86: 24 | B86: Прайс | C86: Швеллер 16П | D86: т | E86: 2.6 | F86: 0 | G86: 0 | H86: 102843.44 | I86: 267392.95 | J86: 267392.95
A87: 25 | B87: Прайс | C87: Прокат листовой 40мм | D87: т | E87: 0.312 | F87: 0 | G87: 0 | H87: 121283.21 | I87: 37840.36 | J87: 37840.36
A88: 26 | B88: Прайс | C88: Прокат листовой 25мм | D88: т | E88: 0.312 | F88: 0 | G88: 0 | H88: 112337.66 | I88: 35049.35 | J88: 35049.35
A89: 27 | B89: Прайс | C89: Прокат листовой 20мм | D89: т | E89: 0.832 | F89: 0 | G89: 0 | H89: 106982.24 | I89: 89009.22 | J89: 89009.22
A90: 28 | B90: Прайс | C90: Прокат листовой 16мм | D90: т | E90: 1.352 | F90: 0 | G90: 0 | H90: 103817.45 | I90: 140361.19 | J90: 140361.19
A91: 29 | B91: Прайс | C91: Прокат листовой 12мм | D91: т | E91: 1.56 | F91: 0 | G91: 0 | H91: 96028.42 | I91: 149804.34 | J91: 149804.34
A92: 30 | B92: Прайс | C92: Прокат листовой 10мм | D92: т | E92: 0.624 | F92: 0 | G92: 0 | H92: 94507.15 | I92: 58972.46 | J92: 58972.46
A93: Перевозка материалов ( металл 140 км. ОП "МКМ-СПб") | J93: 0
A94: 31 | C94: Арматура, металлопрокат, трубопрокат и металлоконструкции | D94: т | E94: 34 | F94: 0 | G94: 0 | H94: 0 | I94: 0 | J94: 0
A95: 32 | B95: ТССЦпг-03-02-01-140 | C95: Перевозка строительных грузов (кроме массовых навалочных, перевозимых автомобилями-самосвалами, а также бетонных и железобетонных изделий, стеновых и перегородочных материалов, лесоматериалов круглых и пиломатериалов, включенных в таблицу 03-01), бортовым автомобилем грузоподъемностью 5 т, на расстояние до 140 км I класс груза | D95: 1 т груза | E95: 34 | F95: 0 | G95: 0 | H95: 2338.66 | I95: 79514.55 | J95: 79514.55
A96: 33 | B96: ТССЦпг-01-01-02-015 | C96: Разгрузочные работы при автомобильных перевозках: металлических конструкций массой до 1 т | D96: 1 т груза | E96: 34 | F96: 0 | G96: 0 | H96: 470.66 | I96: 16002.47 | J96: 16002.47
A97: Раздел 3. Прогоны | J97: 0
A98: 34 | B98: ТЕР09-03-002-12 | C98: Монтаж балок, ригелей перекрытия, покрытия и под установку оборудования многоэтажных зданий при высоте здания: до 25 м | D98: 1 т конструкций | E98: 8.424 | F98: 35504.68 | G98: 299091.41 | H98: 1640.27 | I98: 13817.63 | J98: 312909.04
B99: 101-0309 | C99: Канаты пеньковые пропитанные | D99: т | E99: 0,0001 0,0008 | J99: 0
B100: 101-0324 | C100: Кислород технический: газообразный | D100: м3 | E100: 1,95 16,43 | J100: 0
B101: 101-0797 | C101: Проволока горячекатаная в мотках, диаметром 6,3-6,5 мм | D101: т | E101: 0,00003 0,0003 | J101: 0
B102: 101-1019 | C102: Швеллеры № 40 из стали марки: Ст0 | D102: т | E102: 0,00194 0,0163 | J102: 0
B103: 101-1513 | C103: Электроды диаметром: 4 мм Э42 | D103: т | E103: 0,0031 0,0261 | J103: 0
B104: 101-1714 | C104: Болты с гайками и шайбами строительные | D104: т | E104: 0,0031 0,0261 | J104: 0
B105: 101-1805 | C105: Гвозди строительные | D105: т | E105: 0,00001 0,0001 | J105: 0
B106: 101-2278 | C106: Пропан-бутан, смесь техническая | D106: кг | E106: 0,59 4,97 | J106: 0
B107: 101-2467 | C107: Растворитель марки: Р-4 | D107: т | E107: 0,0006 0,0051 | J107: 0
B108: 102-0023 | C108: Бруски обрезные хвойных пород длиной: 4-6,5 м, шириной 75-150 мм, толщиной 40-75 мм, I сорта | D108: м3 | E108: 0,00103 0,0087 | J108: 0
B109: 113-0021 | C109: Грунтовка: ГФ-021 красно-коричневая | D109: т | E109: 0,00031 0,0026 | J109: 0
B110: 201-0756 | C110: Отдельные конструктивные элементы зданий и сооружений с преобладанием: горячекатаных профилей, средняя масса сборочной единицы от 0,1 до 0,5 т | D110: т | E110: 0,0005 0,0042 | J110: 0
B111: 508-0097 | C111: Канат двойной свивки типа ТК, конструкции 6х19(1+6+12)+1 о.с., оцинкованный из проволок марки В, маркировочная группа: 1770 н/мм2, диаметром 5,5 мм | D111: 10 м | E111: 0,0187 0,1575 | J111: 0
A112: 35 | B112: ТЕРм38-01-002-01 | C112: Монорельсы, балки и другие аналогичные конструкции промышленных зданий, сборка с помощью: крана на автомобильном ходу | D112: 1 т конструкций | E112: 8.1 | F112: 32735.5 | G112: 265157.39 | H112: 583.89 | I112: 4729.49 | J112: 269886.88
B113: 101-0324 | C113: Кислород технический: газообразный | D113: м3 | E113: 0,6 4,86 | J113: 0
B114: 101-1521 | C114: Электроды диаметром: 5 мм Э42 | D114: т | E114: 0,0032 0,0259 | J114: 0
B115: 101-2278 | C115: Пропан-бутан, смесь техническая | D115: кг | E115: 0,2 1,62 | J115: 0
B116: 999-9950 | C116: Вспомогательные ненормируемые ресурсы (2% от Оплаты труда рабочих) | D116: руб | E116: 8,5 68,85 | J116: 0
A117: 36 | B117: Прайс | C117: Швеллер 16П | D117: т | E117: 6.24 | F117: 0 | G117: 0 | H117: 102843.44 | I117: 641743.07 | J117: 641743.07
A118: 37 | B118: Прайс | C118: Швеллер 14П | D118: т | E118: 0.416 | F118: 0 | G118: 0 | H118: 100093.89 | I118: 41639.06 | J118: 41639.06
A119: 38 | B119: Прайс | C119: Уголок не равнополочный 140*90*8 | D119: т | E119: 0.312 | F119: 0 | G119: 0 | H119: 139174.1 | I119: 43422.32 | J119: 43422.32
A120: 39 | B120: Прайс | C120: Прокат листовой 10мм | D120: т | E120: 0.624 | F120: 0 | G120: 0 | H120: 94507.15 | I120: 58972.46 | J120: 58972.46
A121: Перевозка материалов ( металл 140 км. ОП "МКМ-СПб") | J121: 0
A122: 40 | C122: Арматура, металлопрокат, трубопрокат и металлоконструкции | D122: т | E122: 8.1 | F122: 0 | G122: 0 | H122: 0 | I122: 0 | J122: 0
A123: 41 | B123: ТССЦпг-03-02-01-140 | C123: Перевозка строительных грузов (кроме массовых навалочных, перевозимых автомобилями-самосвалами, а также бетонных и железобетонных изделий, стеновых и перегородочных материалов, лесоматериалов круглых и пиломатериалов, включенных в таблицу 03-01), бортовым автомобилем грузоподъемностью 5 т, на расстояние до 140 км I класс груза | D123: 1 т груза | E123: 8.1 | F123: 0 | G123: 0 | H123: 2338.66 | I123: 18943.17 | J123: 18943.17
A124: 42 | B124: ТССЦпг-01-01-02-015 | C124: Разгрузочные работы при автомобильных перевозках: металлических конструкций массой до 1 т | D124: 1 т груза | E124: 8.1 | F124: 0 | G124: 0 | H124: 470.66 | I124: 3812.35 | J124: 3812.35
A125: Раздел 4. Связи, распорки | J125: 0
A126: 43 | B126: ТЕР09-03-014-01 | C126: Монтаж связей и распорок из одиночных и парных уголков, гнутосварных профилей для пролетов: до 24 м при высоте здания до 25 м | D126: 1 т конструкций | E126: 4.056 | F126: 85716.27 | G126: 347665.21 | H126: 4252.31 | I126: 17247.36 | J126: 364912.57
B127: 101-0309 | C127: Канаты пеньковые пропитанные | D127: т | E127: 0,0001 0,0004 | J127: 0
B128: 101-0324 | C128: Кислород технический: газообразный | D128: м3 | E128: 1,2 4,867 | J128: 0
B129: 101-0797 | C129: Проволока горячекатаная в мотках, диаметром 6,3-6,5 мм | D129: т | E129: 0,00003 0,0001 | J129: 0
B130: 101-1019 | C130: Швеллеры № 40 из стали марки: Ст0 | D130: т | E130: 0,00194 0,0079 | J130: 0
B131: 101-1513 | C131: Электроды диаметром: 4 мм Э42 | D131: т | E131: 0,00044 0,0018 | J131: 0
B132: 101-1714 | C132: Болты с гайками и шайбами строительные | D132: т | E132: 0,021 0,0852 | J132: 0
B133: 101-1805 | C133: Гвозди строительные | D133: т | E133: 0,00001 0 | J133: 0
B134: 101-2278 | C134: Пропан-бутан, смесь техническая | D134: кг | E134: 0,36 1,46 | J134: 0
B135: 101-2467 | C135: Растворитель марки: Р-4 | D135: т | E135: 0,0006 0,0024 | J135: 0
B136: 102-0023 | C136: Бруски обрезные хвойных пород длиной: 4-6,5 м, шириной 75-150 мм, толщиной 40-75 мм, I сорта | D136: м3 | E136: 0,00103 0,0042 | J136: 0
B137: 113-0021 | C137: Грунтовка: ГФ-021 красно-коричневая | D137: т | E137: 0,00031 0,0013 | J137: 0
B138: 201-0756 | C138: Отдельные конструктивные элементы зданий и сооружений с преобладанием: горячекатаных профилей, средняя масса сборочной единицы от 0,1 до 0,5 т | D138: т | E138: 0,0002 0,0008 | J138: 0
B139: 508-0097 | C139: Канат двойной свивки типа ТК, конструкции 6х19(1+6+12)+1 о.с., оцинкованный из проволок марки В, маркировочная группа: 1770 н/мм2, диаметром 5,5 мм | D139: 10 м | E139: 0,0187 0,0758 | J139: 0
A140: 44 | B140: ТЕРм38-01-003-01 | C140: Решетчатые конструкции (стойки, опоры, фермы и пр.), сборка с помощью: крана на автомобильном ходу | D140: 1 т конструкций | E140: 3.9 | F140: 131477.5 | G140: 512762.15 | H140: 3461.36 | I140: 13499.31 | J140: 526261.46
B141: 101-0324 | C141: Кислород технический: газообразный | D141: м3 | E141: 2,6 10,14 | J141: 0
B142: 101-1521 | C142: Электроды диаметром: 5 мм Э42 | D142: т | E142: 0,0215 0,0839 | J142: 0
B143: 101-2278 | C143: Пропан-бутан, смесь техническая | D143: кг | E143: 0,5 1,95 | J143: =G143+I143 -> 0
B144: 999-9950 | C144: Вспомогательные ненормируемые ресурсы (2% от Оплаты труда рабочих) | D144: руб | E144: 33,2 129,5 | J144: 0
A145: 45 | B145: Прайс | C145: Профиль гн. 160*5 | D145: т | E145: 0.312 | F145: 0 | G145: 0 | H145: 124873.14 | I145: 38960.42 | J145: 38960.42
A146: 46 | B146: Прайс | C146: Профиль гн. 120*5 | D146: т | E146: 0.728 | F146: 0 | G146: 0 | H146: 113870.45 | I146: 82897.69 | J146: 82897.69
A147: 47 | B147: Прайс | C147: Профиль гн. 80*5 | D147: т | E147: 0.52 | F147: 0 | G147: 0 | H147: 99242 | I147: 51605.84 | J147: 51605.84
A148: 48 | B148: Прайс | C148: Уголок равнополочный 125*8 | D148: т | E148: 1.976 | F148: 0 | G148: 0 | H148: 123900.61 | I148: 244827.6 | J148: 244827.6
A149: 49 | B149: Прайс | C149: Прокат листовой 14мм | D149: т | E149: 0.312 | F149: 0 | G149: 0 | H149: 99313.91 | I149: 30985.94 | J149: 30985.94
A150: 50 | B150: Прайс | C150: Прокат листовой 10мм | D150: т | E150: 0.208 | F150: 0 | G150: 0 | H150: 94507.12 | I150: 19657.48 | J150: 19657.48
A151: Перевозка материалов ( металл 140 км. ОП "МКМ-СПб") | J151: 0
A152: 51 | C152: Арматура, металлопрокат, трубопрокат и металлоконструкции | D152: т | E152: 3.9 | F152: 0 | G152: 0 | H152: 0 | I152: 0 | J152: 0
A153: 52 | B153: ТССЦпг-03-02-01-140 | C153: Перевозка строительных грузов (кроме массовых навалочных, перевозимых автомобилями-самосвалами, а также бетонных и железобетонных изделий, стеновых и перегородочных материалов, лесоматериалов круглых и пиломатериалов, включенных в таблицу 03-01), бортовым автомобилем грузоподъемностью 5 т, на расстояние до 140 км I класс груза | D153: 1 т груза | E153: 3.9 | F153: 0 | G153: 0 | H153: 2338.66 | I153: 9120.79 | J153: 9120.79
A154: 53 | B154: ТССЦпг-01-01-02-015 | C154: Разгрузочные работы при автомобильных перевозках: металлических конструкций массой до 1 т | D154: 1 т груза | E154: 3.9 | F154: 0 | G154: 0 | H154: 470.66 | I154: 1835.58 | J154: 1835.58
A155: Раздел 5. Фахверк | J155: 0
A156: 54 | B156: ТЕР09-04-006-01 | C156: Монтаж фахверка | D156: 1 т конструкций | E156: 10.504 | F156: 50226.94 | G156: 527583.75 | H156: 2656.02 | I156: 27898.82 | J156: 555482.57
B157: 101-0309 | C157: Канаты пеньковые пропитанные | D157: т | E157: 0,0001 0,0011 | J157: 0
B158: 101-0324 | C158: Кислород технический: газообразный | D158: м3 | E158: 2,6 27,31 | J158: 0
B159: 101-0797 | C159: Проволока горячекатаная в мотках, диаметром 6,3-6,5 мм | D159: т | E159: 0,00003 0,0003 | J159: 0
B160: 101-1019 | C160: Швеллеры № 40 из стали марки: Ст0 | D160: т | E160: 0,00194 0,0204 | J160: 0
B161: 101-1515 | C161: Электроды диаметром: 4 мм Э46 | D161: т | E161: 0,016 0,1681 | J161: 0
B162: 101-1805 | C162: Гвозди строительные | D162: т | E162: 0,00001 0,0001 | J162: 0
B163: 101-2278 | C163: Пропан-бутан, смесь техническая | D163: кг | E163: 0,78 8,193 | J163: 0
B164: 101-2467 | C164: Растворитель марки: Р-4 | D164: т | E164: 0,0006 0,0063 | J164: 0
B165: 113-0021 | C165: Грунтовка: ГФ-021 красно-коричневая | D165: т | E165: 0,00031 0,0033 | J165: 0
B166: 201-0756 | C166: Отдельные конструктивные элементы зданий и сооружений с преобладанием: горячекатаных профилей, средняя масса сборочной единицы от 0,1 до 0,5 т | D166: т | E166: 0,001 0,0105 | J166: 0
B167: 508-0097 | C167: Канат двойной свивки типа ТК, конструкции 6х19(1+6+12)+1 о.с., оцинкованный из проволок марки В, маркировочная группа: 1770 н/мм2, диаметром 5,5 мм | D167: 10 м | E167: 0,0187 0,1964 | J167: 0
A168: 55 | B168: ТЕРм38-01-003-01 | C168: Решетчатые конструкции (стойки, опоры, фермы и пр.), сборка с помощью: крана на автомобильном ходу | D168: 1 т конструкций | E168: 10.1 | F168: 131477.7 | G168: 1327925.17 | H168: 3461.36 | I168: 34959.77 | J168: 1362884.94
B169: 101-0324 | C169: Кислород технический: газообразный | D169: м3 | E169: 2,6 26,26 | J169: 0
B170: 101-1521 | C170: Электроды диаметром: 5 мм Э42 | D170: т | E170: 0,0215 0,2172 | J170: 0
B171: 101-2278 | C171: Пропан-бутан, смесь техническая | D171: кг | E171: 0,5 5,05 | J171: 0
B172: 999-9950 | C172: Вспомогательные ненормируемые ресурсы (2% от Оплаты труда рабочих) | D172: руб | E172: 33,2 335,3 | J172: 0
A173: 56 | B173: Прайс | C173: Профиль гн. 100*5 | D173: т | E173: 2.184 | F173: 0 | G173: 0 | H173: 109780.68 | I173: 239761 | J173: 239761
A174: 57 | B174: Прайс | C174: Профиль гн. 80*5 | D174: т | E174: 6.344 | F174: 0 | G174: 0 | H174: 99241.99 | I174: 629591.2 | J174: 629591.2
A175: 58 | B175: Прайс | C175: Уголок равнополочный 100*7 | D175: т | E175: 0.416 | F175: 0 | G175: 0 | H175: 112544.5 | I175: 46818.51 | J175: 46818.51
A176: 59 | B176: Прайс | C176: Уголок равнополочный 75*5 | D176: т | E176: 0.728 | F176: 0 | G176: 0 | H176: 106130.33 | I176: 77262.88 | J176: 77262.88
A177: 60 | B177: Прайс | C177: Уголок не равнополочный 140*90*8 | D177: т | E177: 0.208 | F177: 0 | G177: 0 | H177: 139174.13 | I177: 28948.22 | J177: 28948.22
A178: 61 | B178: Прайс | C178: Прокат листовой 10мм | D178: т | E178: 0.624 | F178: 0 | G178: 0 | H178: 94507.15 | I178: 58972.46 | J178: 58972.46
A179: Перевозка материалов ( металл 140 км. ОП "МКМ-СПб") | J179: 0
A180: 62 | C180: Арматура, металлопрокат, трубопрокат и металлоконструкции | D180: т | E180: 10.1 | F180: 0 | G180: 0 | H180: 0 | I180: 0 | J180: 0
A181: 63 | B181: ТССЦпг-03-02-01-140 | C181: Перевозка строительных грузов (кроме массовых навалочных, перевозимых автомобилями-самосвалами, а также бетонных и железобетонных изделий, стеновых и перегородочных материалов, лесоматериалов круглых и пиломатериалов, включенных в таблицу 03-01), бортовым автомобилем грузоподъемностью 5 т, на расстояние до 140 км I класс груза | D181: 1 т груза | E181: 10.1 | F181: 0 | G181: 0 | H181: 2338.66 | I181: 23620.5 | J181: 23620.5
A182: 64 | B182: ТССЦпг-01-01-02-015 | C182: Разгрузочные работы при автомобильных перевозках: металлических конструкций массой до 1 т | D182: 1 т груза | E182: 10.1 | F182: 0 | G182: 0 | H182: 470.66 | I182: 4753.67 | J182: 4753.67
A183: Раздел 6. Лестницы, площадки, ограждение | J183: 0
A184: 65 | B184: ТЕР09-03-029-01 | C184: Монтаж лестниц прямолинейных и криволинейных, пожарных с ограждением | D184: 1 т конструкций | E184: 5.304 | F184: 57878.87 | G184: 306989.5 | H184: 1156.95 | I184: 6136.46 | J184: 313125.96
B185: 101-0309 | C185: Канаты пеньковые пропитанные | D185: т | E185: 0,0001 0,0005 | J185: 0
B186: 101-0324 | C186: Кислород технический: газообразный | D186: м3 | E186: 1,37 7,266 | J186: 0
B187: 101-0797 | C187: Проволока горячекатаная в мотках, диаметром 6,3-6,5 мм | D187: т | E187: 0,00003 0,0002 | J187: 0
B188: 101-1019 | C188: Швеллеры № 40 из стали марки: Ст0 | D188: т | E188: 0,00194 0,0103 | J188: 0
B189: 101-1515 | C189: Электроды диаметром: 4 мм Э46 | D189: т | E189: 0,004 0,0212 | J189: 0
B190: 101-1805 | C190: Гвозди строительные | D190: т | E190: 0,00001 0,0001 | J190: 0
B191: 101-2278 | C191: Пропан-бутан, смесь техническая | D191: кг | E191: 0,41 2,175 | J191: 0
B192: 101-2467 | C192: Растворитель марки: Р-4 | D192: т | E192: 0,0006 0,0032 | J192: 0
B193: 102-0023 | C193: Бруски обрезные хвойных пород длиной: 4-6,5 м, шириной 75-150 мм, толщиной 40-75 мм, I сорта | D193: м3 | E193: 0,00103 0,0055 | J193: 0
B194: 113-0021 | C194: Грунтовка: ГФ-021 красно-коричневая | D194: т | E194: 0,00031 0,0016 | J194: 0
B195: 201-0756 | C195: Отдельные конструктивные элементы зданий и сооружений с преобладанием: горячекатаных профилей, средняя масса сборочной единицы от 0,1 до 0,5 т | D195: т | E195: 0,001 0,0053 | J195: 0
B196: 508-0097 | C196: Канат двойной свивки типа ТК, конструкции 6х19(1+6+12)+1 о.с., оцинкованный из проволок марки В, маркировочная группа: 1770 н/мм2, диаметром 5,5 мм | D196: 10 м | E196: 0,0187 0,0992 | J196: 0
A197: 66 | B197: ТЕРм38-01-004-02 | C197: Сборка с помощью крана на автомобильном ходу: лестницы прямолинейные и криволинейные с ограждением | D197: 1 т конструкций | E197: 5.1 | F197: 156866.8 | G197: 800020.67 | H197: 2404.54 | I197: 12263.14 | J197: 812283.81
B198: 101-0324 | C198: Кислород технический: газообразный | D198: м3 | E198: 0,6 3,06 | J198: 0
B199: 101-1515 | C199: Электроды диаметром: 4 мм Э46 | D199: т | E199: 0,016 0,0816 | J199: 0
B200: 101-2278 | C200: Пропан-бутан, смесь техническая | D200: кг | E200: 0,2 1,02 | J200: 0
B201: 999-9950 | C201: Вспомогательные ненормируемые ресурсы (2% от Оплаты труда рабочих) | D201: руб | E201: 43,78 223,3 | J201: 0
A202: 67 | B202: Прайс | C202: Профиль гн. 120*5 | D202: т | E202: 0.104 | F202: 0 | G202: 0 | H202: 113870.48 | I202: 11842.53 | J202: 11842.53
A203: 68 | B203: Прайс | C203: Швеллер 24П | D203: т | E203: 0.52 | F203: 0 | G203: 0 | H203: 109842.4 | I203: 57118.05 | J203: 57118.05
... 83 more rows

Sheet 1632-2021-2.2.1-КМ
A2: Терминал по перевалке минеральных удобрений в морском торговом порту Усть-Луга. Береговые объекты терминала
A3: (наименование стройки)
A5: ЛОКАЛЬНАЯ СМЕТА № 1632-2021-2.2.1-КМ_07.04.020-П-01-03
A6: (локальная смета)
A7: на Конструкции металлические., 07.04.020 Пересыпная станция №1 (код SAP 01.02.001) код ГП 2.2.1
A8: (наименование работ и затрат, наименование объекта)
B9: Основание: | C9: 1632-2021-2.2.1-КМ_1_0_RU_IFC
A11: № п/п | B11: Обоснование | C11: Наименование работ и затрат | D11: Ед. изм. | E11: Кол-во | F11: Цена за ед.измерения работ, руб. с НДС | G11: Всего, стоимость работ,руб. с НДС | H11: Цена за ед.измерения материалов, руб. с НДС | I11: Всего, стоимость материалов, руб. с НДС | J11: Итого, руб. с НДС
A12: 1 | B12: 2 | C12: 3 | D12: 4 | E12: 5 | F12: 6 | G12: 7 | H12: 8 | I12: 9 | J12: 10
A13: Раздел 1. Монорельсы
A14: 1 | B14: ТЕР09-03-003-03 | C14: Монтаж одиночных подкрановых балок на отметке до 25 м массой: более 2,0 т | D14: 1 т конструкций | E14: 5.408 | F14: =G14/E14 -> 19675.41 | G14: 106404.6 | H14: 1650.68 | I14: 8926.9 | J14: =G14+I14 -> 115331.5
B15: 101-0309 | C15: Канаты пеньковые пропитанные | D15: т | E15: 0,000113 0,0006 | J15: =G15+I15 -> 0
B16: 101-0324 | C16: Кислород технический: газообразный | D16: м3 | E16: 0,904 4,889 | J16: 0
B17: 101-0797 | C17: Проволока горячекатаная в мотках, диаметром 6,3-6,5 мм | D17: т | E17: 0,0000339 0,0002 | J17: 0
B18: 101-1019 | C18: Швеллеры № 40 из стали марки: Ст0 | D18: т | E18: 0,0021922 0,0119 | J18: 0
B19: 101-1513 | C19: Электроды диаметром: 4 мм Э42 | D19: т | E19: 0,002599 0,0141 | J19: 0
B20: 101-1714 | C20: Болты с гайками и шайбами строительные | D20: т | E20: 0,002147 0,0116 | J20: 0
B21: 101-1805 | C21: Гвозди строительные | D21: т | E21: 0,0000113 0,0001 | J21: 0
B22: 101-2278 | C22: Пропан-бутан, смесь техническая | D22: кг | E22: 0,2712 1,467 | J22: 0
B23: 101-2467 | C23: Растворитель марки: Р-4 | D23: т | E23: 0,000678 0,0037 | J23: 0
B24: 102-0023 | C24: Бруски обрезные хвойных пород длиной: 4-6,5 м, шириной 75-150 мм, толщиной 40-75 мм, I сорта | D24: м3 | E24: 0,0011639 0,0063 | J24: 0
B25: 113-0021 | C25: Грунтовка: ГФ-021 красно-коричневая | D25: т | E25: 0,0003503 0,0019 | J25: 0
B26: 201-0756 | C26: Отдельные конструктивные элементы зданий и сооружений с преобладанием: горячекатаных профилей, средняя масса сборочной единицы от 0,1 до 0,5 т | D26: т | E26: 0,00226 0,0122 | J26: 0
B27: 508-0097 | C27: Канат двойной свивки типа ТК, конструкции 6х19(1+6+12)+1 о.с., оцинкованный из проволок марки В, маркировочная группа: 1770 н/мм2, диаметром 5,5 мм | D27: 10 м | E27: 0,021131 0,1143 | J27: 0
A28: 2 | B28: ТЕРм38-01-002-03 | C28: Монорельсы, балки и другие аналогичные конструкции промышленных зданий, сборка с помощью: лебедок электрических (с установкой и снятием их в процессе работы) | D28: 1 т конструкций | E28: 5.2 | F28: 39050.23 | G28: 203061.18 | H28: 602.2 | I28: 3131.42 | J28: 206192.6
B29: 101-0324 | C29: Кислород технический: газообразный | D29: м3 | E29: 0,6 3,12 | J29: 0
B30: 101-1521 | C30: Электроды диаметром: 5 мм Э42 | D30: т | E30: 0,0032 0,0166 | J30: 0
B31: 101-2278 | C31: Пропан-бутан, смесь техническая | D31: кг | E31: 0,2 1,04 | J31: 0
B32: 999-9950 | C32: Вспомогательные ненормируемые ресурсы (2% от Оплаты труда рабочих) | D32: руб | E32: 10,14 52,73 | J32: 0
A33: 3 | B33: Прайс | C33: Двутавр М36 | D33: т | E33: 6.2192 | F33: 0 | G33: 0 | H33: 112215.57 | I33: 697891.1 | J33: 697891.1
A34: 4 | B34: ТЕР09-03-003-02 | C34: Монтаж одиночных подкрановых балок на отметке до 25 м массой: до 2,0 т | D34: 1 т конструкций | E34: 2.6 | F34: 23012.84 | G34: 59833.38 | H34: 1989.42 | I34: 5172.48 | J34: 65005.86
B35: 101-0309 | C35: Канаты пеньковые пропитанные | D35: т | E35: 0,0001 0,0003 | J35: 0
B36: 101-0324 | C36: Кислород технический: газообразный | D36: м3 | E36: 1,1 2,86 | J36: 0
B37: 101-0797 | C37: Проволока горячекатаная в мотках, диаметром 6,3-6,5 мм | D37: т | E37: 0,00003 0,0001 | J37: 0
B38: 101-1019 | C38: Швеллеры № 40 из стали марки: Ст0 | D38: т | E38: 0,00194 0,005 | J38: 0
B39: 101-1513 | C39: Электроды диаметром: 4 мм Э42 | D39: т | E39: 0,0034 0,0088 | J39: 0
B40: 101-1714 | C40: Болты с гайками и шайбами строительные | D40: т | E40: 0,0028 0,0073 | J40: 0
B41: 101-1805 | C41: Гвозди строительные | D41: т | E41: 0,00001 0 | J41: 0
B42: 101-2278 | C42: Пропан-бутан, смесь техническая | D42: кг | E42: 0,33 0,858 | J42: 0
B43: 101-2467 | C43: Растворитель марки: Р-4 | D43: т | E43: 0,0006 0,0016 | J43: 0
B44: 102-0023 | C44: Бруски обрезные хвойных пород длиной: 4-6,5 м, шириной 75-150 мм, толщиной 40-75 мм, I сорта | D44: м3 | E44: 0,00103 0,0027 | J44: 0
B45: 113-0021 | C45: Грунтовка: ГФ-021 красно-коричневая | D45: т | E45: 0,00031 0,0008 | J45: 0
B46: 201-0756 | C46: Отдельные конструктивные элементы зданий и сооружений с преобладанием: горячекатаных профилей, средняя масса сборочной единицы от 0,1 до 0,5 т | D46: т | E46: 0,003 0,0078 | J46: 0
B47: 508-0097 | C47: Канат двойной свивки типа ТК, конструкции 6х19(1+6+12)+1 о.с., оцинкованный из проволок марки В, маркировочная группа: 1770 н/мм2, диаметром 5,5 мм | D47: 10 м | E47: 0,0187 0,0486 | J47: 0
A48: 5 | B48: ТЕРм38-01-002-03 | C48: Монорельсы, балки и другие аналогичные конструкции промышленных зданий, сборка с помощью: лебедок электрических (с установкой и снятием их в процессе работы) | D48: 1 т конструкций | E48: 2.5 | F48: 39049.78 | G48: 97624.46 | H48: 602.2 | I48: 1505.49 | J48: 99129.95
B49: 101-0324 | C49: Кислород технический: газообразный | D49: м3 | E49: 0,6 1,5 | J49: 0
B50: 101-1521 | C50: Электроды диаметром: 5 мм Э42 | D50: т | E50: 0,0032 0,008 | J50: 0
B51: 101-2278 | C51: Пропан-бутан, смесь техническая | D51: кг | E51: 0,2 0,5 | J51: 0
B52: 999-9950 | C52: Вспомогательные ненормируемые ресурсы (2% от Оплаты труда рабочих) | D52: руб | E52: 10,14 25,35 | J52: 0
A53: 6 | B53: Прайс | C53: Уголок равнополочный 100*7 | D53: т | E53: 0.104 | F53: 0 | G53: 0 | H53: 112544.52 | I53: 11704.63 | J53: 11704.63
A54: 7 | B54: Прайс | C54: Прокат листовой 25мм | D54: т | E54: 0.624 | F54: 0 | G54: 0 | H54: 112337.69 | I54: 70098.72 | J54: 70098.72
A55: 8 | B55: Прайс | C55: Прокат листовой 20мм | D55: т | E55: 0.728 | F55: 0 | G55: 0 | H55: 106982.23 | I55: 77883.06 | J55: 77883.06
A56: 9 | B56: Прайс | C56: Прокат листовой 16мм | D56: т | E56: 0.104 | F56: 0 | G56: 0 | H56: 103817.4 | I56: 10797.01 | J56: 10797.01
A57: 10 | B57: Прайс | C57: Прокат листовой 10мм | D57: т | E57: 0.936 | F57: 0 | G57: 0 | H57: 94507.16 | I57: 88458.7 | J57: 88458.7
A58: 11 | B58: Прайс | C58: Прокат листовой 8мм | D58: т | E58: 0.104 | F58: 0 | G58: 0 | H58: 93155.38 | I58: 9688.16 | J58: 9688.16
A59: Перевозка материалов (металл 140 км. ОП "МКМ-СПб") | G59: 0 | I59: 0 | J59: 0
A60: 12 | C60: металлопрокат, трубопрокат и металлоконструкции 201-0758 | D60: т | E60: 7.7 | F60: 0 | G60: 0 | H60: 0 | I60: 0 | J60: 0
A61: 13 | B61: ТССЦпг-03-02-01-140 | C61: Перевозка строительных грузов (кроме массовых навалочных, перевозимых автомобилями-самосвалами, а также бетонных и железобетонных изделий, стеновых и перегородочных материалов, лесоматериалов круглых и пиломатериалов, включенных в таблицу 03-01), бортовым автомобилем грузоподъемностью 5 т, на расстояние до 140 км I класс груза | D61: 1 т груза | E61: 7.7 | F61: 0 | G61: 0 | H61: 2338.66 | I61: 18007.71 | J61: 18007.71
A62: 14 | B62: ТССЦпг-01-01-02-015 | C62: Разгрузочные работы при автомобильных перевозках: металлических конструкций массой до 1 т | D62: 1 т груза | E62: 7.7 | F62: 0 | G62: 0 | H62: 470.66 | I62: 3624.09 | J62: 3624.09
A63: Раздел 2. Настил | G63: 0 | I63: 0 | J63: 0
A64: 15 | B64: ТЕР09-03-030-01 | C64: Монтаж площадок с настилом и ограждением из листовой, рифленой, просечной и круглой стали | D64: 1 т конструкций | E64: 4.472 | F64: 63386.18 | G64: 283463.01 | H64: 1156.95 | I64: 5173.88 | J64: 288636.89
B65: 101-0309 | C65: Канаты пеньковые пропитанные | D65: т | E65: 0,0001 0,0004 | J65: 0
B66: 101-0324 | C66: Кислород технический: газообразный | D66: м3 | E66: 1,37 6,127 | J66: 0
B67: 101-0797 | C67: Проволока горячекатаная в мотках, диаметром 6,3-6,5 мм | D67: т | E67: 0,00003 0,0001 | J67: 0
B68: 101-1019 | C68: Швеллеры № 40 из стали марки: Ст0 | D68: т | E68: 0,00194 0,0087 | J68: 0
B69: 101-1515 | C69: Электроды диаметром: 4 мм Э46 | D69: т | E69: 0,004 0,0179 | J69: 0
B70: 101-1805 | C70: Гвозди строительные | D70: т | E70: 0,00001 0 | J70: 0
B71: 101-2278 | C71: Пропан-бутан, смесь техническая | D71: кг | E71: 0,41 1,834 | J71: 0
B72: 101-2467 | C72: Растворитель марки: Р-4 | D72: т | E72: 0,0006 0,0027 | J72: 0
B73: 102-0023 | C73: Бруски обрезные хвойных пород длиной: 4-6,5 м, шириной 75-150 мм, толщиной 40-75 мм, I сорта | D73: м3 | E73: 0,00103 0,0046 | J73: 0
B74: 113-0021 | C74: Грунтовка: ГФ-021 красно-коричневая | D74: т | E74: 0,00031 0,0014 | J74: 0
B75: 201-0756 | C75: Отдельные конструктивные элементы зданий и сооружений с преобладанием: горячекатаных профилей, средняя масса сборочной единицы от 0,1 до 0,5 т | D75: т | E75: 0,001 0,0045 | J75: 0
B76: 508-0097 | C76: Канат двойной свивки типа ТК, конструкции 6х19(1+6+12)+1 о.с., оцинкованный из проволок марки В, маркировочная группа: 1770 н/мм2, диаметром 5,5 мм | D76: 10 м | E76: 0,0187 0,0836 | J76: 0
A77: 16 | B77: ТССЦ-110-0008 | C77: Болты сборочные с гайками и шайбами по классу прочности: 8,8 | D77: т | E77: 0.046062 | F77: 0 | G77: 0 | H77: 150374.93 | I77: 6926.57 | J77: 6926.57
A78: 17 | B78: ТЕРм38-01-004-05 | C78: Сборка с помощью лебедок электрических (с установкой и снятием их в процессе работы): площадки для обслуживания оборудования и трубопроводов | D78: 1 т конструкций | E78: 4.3 | F78: 153618.51 | G78: 660559.61 | H78: 2902.25 | I78: 12479.69 | J78: 673039.3
B79: 101-0324 | C79: Кислород технический: газообразный | D79: м3 | E79: 0,9 3,87 | J79: =G79+I79 -> 0
B80: 101-1521 | C80: Электроды диаметром: 5 мм Э42 | D80: т | E80: 0,0179 0,077 | J80: 0
B81: 101-2278 | C81: Пропан-бутан, смесь техническая | D81: кг | E81: 0,2 0,86 | J81: 0
B82: 999-9950 | C82: Вспомогательные ненормируемые ресурсы (2% от Оплаты труда рабочих) | D82: руб | E82: 42,08 180,9 | J82: 0
A83: 18 | B83: Прайс | C83: Лист стальной с рифлением ромбическим 4мм | D83: т | E83: 3.4 | F83: 0 | G83: 0 | H83: 105765.45 | I83: 359602.54 | J83: 359602.54
A84: 19 | B84: Прайс | C84: Лист ПВЛ ПВ506 | D84: т | E84: 0.9 | F84: 0 | G84: 0 | H84: 165782.08 | I84: 149203.87 | J84: 149203.87
A85: 20 | B85: ТЕР09-04-002-01 10% на подрезку | C85: Монтаж кровельного покрытия: из профилированного листа при высоте здания до 25 м | D85: 100 м2 покрытия | E85: 4.59 | F85: 52050.33 | G85: 238911.03 | H85: 3033.52 | I85: 13923.86 | J85: 252834.89
B86: 101-0309 | C86: Канаты пеньковые пропитанные | D86: т | E86: 0,00015 0,0007 | J86: 0
B87: 101-0324 | C87: Кислород технический: газообразный | D87: м3 | E87: 1,4 6,426 | J87: 0
B88: 101-0797 | C88: Проволока горячекатаная в мотках, диаметром 6,3-6,5 мм | D88: т | E88: 0,00004 0,0002 | J88: 0
B89: 101-1019 | C89: Швеллеры № 40 из стали марки: Ст0 | D89: т | E89: 0,00297 0,0136 | J89: 0
B90: 101-1513 | C90: Электроды диаметром: 4 мм Э42 | D90: т | E90: 0,00061 0,0028 | J90: 0
B91: 101-1714 | C91: Болты с гайками и шайбами строительные | D91: т | E91: 0,0022 0,0101 | J91: 0
B92: 101-2278 | C92: Пропан-бутан, смесь техническая | D92: кг | E92: 0,42 1,928 | J92: 0
B93: 101-2467 | C93: Растворитель марки: Р-4 | D93: т | E93: 0,00009 0,0004 | J93: 0
B94: 102-0023 | C94: Бруски обрезные хвойных пород длиной: 4-6,5 м, шириной 75-150 мм, толщиной 40-75 мм, I сорта | D94: м3 | E94: 0,0013 0,006 | J94: 0
B95: 113-0021 | C95: Грунтовка: ГФ-021 красно-коричневая | D95: т | E95: 0,00047 0,0022 | J95: 0
B96: 201-0756 | C96: Отдельные конструктивные элементы зданий и сооружений с преобладанием: горячекатаных профилей, средняя масса сборочной единицы от 0,1 до 0,5 т | D96: т | E96: 0,011 0,0505 | J96: 0
B97: 508-0097 | C97: Канат двойной свивки типа ТК, конструкции 6х19(1+6+12)+1 о.с., оцинкованный из проволок марки В, маркировочная группа: 1770 н/мм2, диаметром 5,5 мм | D97: 10 м | E97: 0,016 0,0734 | J97: 0
A98: 21 | B98: Прайс | C98: Профиль H57-750-0,8 | D98: т | E98: 5 | F98: 0 | G98: 0 | H98: 153670.44 | I98: 768352.22 | J98: 768352.22
A99: 22 | B99: ТЕР09-04-006-02 | C99: Монтаж ограждающих конструкций стен: из профилированного листа при высоте здания до 30 м | D99: 100 м2 | E99: 5.8546 | F99: 184715.42 | G99: 1081434.87 | H99: 5922.38 | I99: 34673.16 | J99: 1116108.03
B100: 101-0309 | C100: Канаты пеньковые пропитанные | D100: т | E100: 0,00015 0,0009 | J100: 0
B101: 101-0324 | C101: Кислород технический: газообразный | D101: м3 | E101: 2,98 17,45 | J101: 0
B102: 101-0797 | C102: Проволока горячекатаная в мотках, диаметром 6,3-6,5 мм | D102: т | E102: 0,00004 0,0002 | J102: 0
B103: 101-1019 | C103: Швеллеры № 40 из стали марки: Ст0 | D103: т | E103: 0,00297 0,0174 | J103: 0
B104: 101-1513 | C104: Электроды диаметром: 4 мм Э42 | D104: т | E104: 0,0034 0,0199 | J104: 0
B105: 101-1714 | C105: Болты с гайками и шайбами строительные | D105: т | E105: 0,007 0,041 | J105: 0
B106: 101-1805 | C106: Гвозди строительные | D106: т | E106: 0,00002 0,0001 | J106: 0
B107: 101-2278 | C107: Пропан-бутан, смесь техническая | D107: кг | E107: 0,903 5,287 | J107: 0
B108: 101-2467 | C108: Растворитель марки: Р-4 | D108: т | E108: 0,00009 0,0005 | J108: 0
B109: 102-0023 | C109: Бруски обрезные хвойных пород длиной: 4-6,5 м, шириной 75-150 мм, толщиной 40-75 мм, I сорта | D109: м3 | E109: 0,0013 0,0076 | J109: 0
B110: 113-0021 | C110: Грунтовка: ГФ-021 красно-коричневая | D110: т | E110: 0,00047 0,0028 | J110: 0
B111: 201-0756 | C111: Отдельные конструктивные элементы зданий и сооружений с преобладанием: горячекатаных профилей, средняя масса сборочной единицы от 0,1 до 0,5 т | D111: т | E111: 0,019 0,1112 | J111: 0
B112: 508-0097 | C112: Канат двойной свивки типа ТК, конструкции 6х19(1+6+12)+1 о.с., оцинкованный из проволок марки В, маркировочная группа: 1770 н/мм2, диаметром 5,5 мм | D112: 10 м | E112: 0,016 0,0937 | J112: 0
A113: 23 | B113: ТССЦ-201-0382 | C113: Конструкции: стальные нащельников и деталей обрамления | D113: т | E113: 0.3384 | F113: 0 | G113: 0 | H113: 179935.76 | I113: 60890.26 | J113: 60890.26
A114: 24 | B114: Прайс | C114: Профиль HC35-1000-0,7 | D114: т | E114: 5.1 | F114: 0 | G114: 0 | H114: 190108.85 | I114: 969555.14 | J114: 969555.14
A115: 25 | B115: ТССЦ-101-1810 | C115: Винты самонарезающие: для крепления профилированного настила и панелей к несущим конструкциям | D115: т | E115: 0.0225 | F115: 0 | G115: 0 | H115: 256486.22 | I115: 5770.94 | J115: 5770.94
A116: Перевозка материалов (металл 140 км. ОП "МКМ-СПб") | G116: 0 | I116: 0 | J116: 0
A117: 26 | C117: металлопрокат, трубопрокат и металлоконструкции | D117: т | E117: 14.4 | F117: 0 | G117: 0 | H117: 0 | I117: 0 | J117: 0
A118: 27 | B118: ТССЦпг-03-02-01-140 | C118: Перевозка строительных грузов (кроме массовых навалочных, перевозимых автомобилями-самосвалами, а также бетонных и железобетонных изделий, стеновых и перегородочных материалов, лесоматериалов круглых и пиломатериалов, включенных в таблицу 03-01), бортовым автомобилем грузоподъемностью 5 т, на расстояние до 140 км I класс груза | D118: 1 т груза | E118: 14.4 | F118: 0 | G118: 0 | H118: 2338.66 | I118: 33676.75 | J118: 33676.75
A119: 28 | B119: ТССЦпг-01-01-02-015 | C119: Разгрузочные работы при автомобильных перевозках: металлических конструкций массой до 1 т | D119: 1 т груза | E119: 14.4 | F119: 0 | G119: 0 | H119: 470.66 | I119: 6777.51 | J119: 6777.51
A120: Раздел 3. Фахверк | G120: 0 | I120: 0 | J120: 0
A121: 29 | B121: ТЕР09-04-006-01 | C121: Монтаж фахверка | D121: 1 т конструкций | E121: 14.976 | F121: 50226.94 | G121: 752198.6 | H121: 2656.02 | I121: 39776.53 | J121: 791975.13
B122: 101-0309 | C122: Канаты пеньковые пропитанные | D122: т | E122: 0,0001 0,0015 | J122: 0
B123: 101-0324 | C123: Кислород технический: газообразный | D123: м3 | E123: 2,6 38,94 | J123: 0
B124: 101-0797 | C124: Проволока горячекатаная в мотках, диаметром 6,3-6,5 мм | D124: т | E124: 0,00003 0,0004 | J124: 0
B125: 101-1019 | C125: Швеллеры № 40 из стали марки: Ст0 | D125: т | E125: 0,00194 0,0291 | J125: 0
B126: 101-1515 | C126: Электроды диаметром: 4 мм Э46 | D126: т | E126: 0,016 0,2396 | J126: 0
B127: 101-1805 | C127: Гвозди строительные | D127: т | E127: 0,00001 0,0001 | J127: 0
B128: 101-2278 | C128: Пропан-бутан, смесь техническая | D128: кг | E128: 0,78 11,68 | J128: 0
B129: 101-2467 | C129: Растворитель марки: Р-4 | D129: т | E129: 0,0006 0,009 | J129: 0
B130: 113-0021 | C130: Грунтовка: ГФ-021 красно-коричневая | D130: т | E130: 0,00031 0,0046 | J130: 0
B131: 201-0756 | C131: Отдельные конструктивные элементы зданий и сооружений с преобладанием: горячекатаных профилей, средняя масса сборочной единицы от 0,1 до 0,5 т | D131: т | E131: 0,001 0,015 | J131: 0
B132: 508-0097 | C132: Канат двойной свивки типа ТК, конструкции 6х19(1+6+12)+1 о.с., оцинкованный из проволок марки В, маркировочная группа: 1770 н/мм2, диаметром 5,5 мм | D132: 10 м | E132: 0,0187 0,2801 | J132: 0
A133: 30 | B133: ТЕРм38-01-003-03 | C133: Решетчатые конструкции (стойки, опоры, фермы и пр.), сборка с помощью: лебедок электрических (с установкой и снятием их в процессе работы) | D133: 1 т конструкций | E133: 14.4 | F133: 145545.18 | G133: 2095850.57 | H133: 3563.16 | I133: 51309.52 | J133: 2147160.09
B134: 101-0324 | C134: Кислород технический: газообразный | D134: м3 | E134: 2,6 37,44 | J134: 0
B135: 101-1521 | C135: Электроды диаметром: 5 мм Э42 | D135: т | E135: 0,0215 0,3096 | J135: 0
B136: 101-2278 | C136: Пропан-бутан, смесь техническая | D136: кг | E136: 0,5 7,2 | J136: 0
B137: 999-9950 | C137: Вспомогательные ненормируемые ресурсы (2% от Оплаты труда рабочих) | D137: руб | E137: 42,32 609,4 | J137: 0
A138: 31 | B138: ТССЦ-110-0008 | C138: Болты сборочные с гайками и шайбами по классу прочности: 8,8 | D138: т | E138: 0.14976 | F138: 0 | G138: 0 | H138: 150374.8 | I138: 22520.13 | J138: 22520.13
A139: 32 | B139: Прайс | C139: Профиль гн. 160*6 | D139: т | E139: 0.312 | F139: 0 | G139: 0 | H139: 124873.14 | I139: 38960.42 | J139: 38960.42
A140: 33 | B140: Прайс | C140: Профиль гн. 140*7 | D140: т | E140: 5.408 | F140: 0 | G140: 0 | H140: 120613.7 | I140: 652278.91 | J140: 652278.91
A141: 34 | B141: Прайс | C141: Профиль гн. 120*5 | D141: т | E141: 5.512 | F141: 0 | G141: 0 | H141: 113870.46 | I141: 627654 | J141: 627654
A142: 35 | B142: Прайс | C142: Профиль гн. 100*4 | D142: т | E142: 0.624 | F142: 0 | G142: 0 | H142: 109659.9 | I142: 68427.78 | J142: 68427.78
A143: 36 | B143: Прайс | C143: Швеллер 16П | D143: т | E143: 0.416 | F143: 0 | G143: 0 | H143: 102843.44 | I143: 42782.87 | J143: =G143+I143 -> 42782.87
A144: 37 | B144: Прайс | C144: Швеллер гнутый 120*60*5 | D144: т | E144: 2.808 | F144: 0 | G144: 0 | H144: 134535.51 | I144: 377775.7 | J144: 377775.7
A145: 38 | B145: Прайс | C145: Уголок равнополочный 90*6 | D145: т | E145: 0.52 | F145: 0 | G145: 0 | H145: 108953.12 | I145: 56655.62 | J145: 56655.62
A146: 39 | B146: Прайс | C146: Уголок равнополочный 50*3 | D146: т | E146: 0.104 | F146: 0 | G146: 0 | H146: 101626.63 | I146: 10569.17 | J146: 10569.17
A147: 40 | B147: Прайс | C147: Уголок равнополочный 35*4 | D147: т | E147: 1.768 | F147: 0 | G147: 0 | H147: 95176.54 | I147: 168272.12 | J147: 168272.12
A148: 41 | B148: Прайс | C148: Уголок не равнополочный 140*90*8 | D148: т | E148: 0.312 | F148: 0 | G148: 0 | H148: 139174.1 | I148: 43422.32 | J148: 43422.32
A149: Перевозка материалов (металл 140 км. ОП "МКМ-СПб") | G149: 0 | I149: 0 | J149: 0
A150: 42 | C150: металлопрокат, трубопрокат и металлоконструкции | D150: т | E150: 14.4 | F150: 0 | G150: 0 | H150: 0 | I150: 0 | J150: 0
A151: 43 | B151: ТССЦпг-03-02-01-140 | C151: Перевозка строительных грузов (кроме массовых навалочных, перевозимых автомобилями-самосвалами, а также бетонных и железобетонных изделий, стеновых и перегородочных материалов, лесоматериалов круглых и пиломатериалов, включенных в таблицу 03-01), бортовым автомобилем грузоподъемностью 5 т, на расстояние до 140 км I класс груза | D151: 1 т груза | E151: 14.4 | F151: 0 | G151: 0 | H151: 2338.66 | I151: 33676.75 | J151: 33676.75
A152: 44 | B152: ТССЦпг-01-01-02-015 | C152: Разгрузочные работы при автомобильных перевозках: металлических конструкций массой до 1 т | D152: 1 т груза | E152: 14.4 | F152: 0 | G152: 0 | H152: 470.66 | I152: 6777.51 | J152: 6777.51
A153: Раздел 4. Пристройка | G153: 0 | I153: 0 | J153: 0
A154: 45 | B154: ТЕР09-04-006-01 | C154: Монтаж фахверка | D154: 1 т конструкций | E154: 7.28 | F154: 50226.83 | G154: 365651.29 | H154: 2656.02 | I154: 19335.81 | J154: 384987.1
B155: 101-0309 | C155: Канаты пеньковые пропитанные | D155: т | E155: 0,0001 0,0007 | J155: 0
B156: 101-0324 | C156: Кислород технический: газообразный | D156: м3 | E156: 2,6 18,93 | J156: 0
B157: 101-0797 | C157: Проволока горячекатаная в мотках, диаметром 6,3-6,5 мм | D157: т | E157: 0,00003 0,0002 | J157: 0
B158: 101-1019 | C158: Швеллеры № 40 из стали марки: Ст0 | D158: т | E158: 0,00194 0,0141 | J158: 0
B159: 101-1515 | C159: Электроды диаметром: 4 мм Э46 | D159: т | E159: 0,016 0,1165 | J159: 0
B160: 101-1805 | C160: Гвозди строительные | D160: т | E160: 0,00001 0,0001 | J160: 0
B161: 101-2278 | C161: Пропан-бутан, смесь техническая | D161: кг | E161: 0,78 5,678 | J161: 0
B162: 101-2467 | C162: Растворитель марки: Р-4 | D162: т | E162: 0,0006 0,0044 | J162: 0
B163: 113-0021 | C163: Грунтовка: ГФ-021 красно-коричневая | D163: т | E163: 0,00031 0,0023 | J163: 0
B164: 201-0756 | C164: Отдельные конструктивные элементы зданий и сооружений с преобладанием: горячекатаных профилей, средняя масса сборочной единицы от 0,1 до 0,5 т | D164: т | E164: 0,001 0,0073 | J164: 0
B165: 508-0097 | C165: Канат двойной свивки типа ТК, конструкции 6х19(1+6+12)+1 о.с., оцинкованный из проволок марки В, маркировочная группа: 1770 н/мм2, диаметром 5,5 мм | D165: 10 м | E165: 0,0187 0,1361 | J165: 0
A166: 46 | B166: ТЕРм38-01-002-03 | C166: Монорельсы, балки и другие аналогичные конструкции промышленных зданий, сборка с помощью: лебедок электрических (с установкой и снятием их в процессе работы) | D166: 1 т конструкций | E166: 7 | F166: 39050.2 | G166: 273351.38 | H166: 602.19 | I166: 4215.36 | J166: 277566.74
B167: 101-0324 | C167: Кислород технический: газообразный | D167: м3 | E167: 0,6 4,2 | J167: 0
B168: 101-1521 | C168: Электроды диаметром: 5 мм Э42 | D168: т | E168: 0,0032 0,0224 | J168: 0
B169: 101-2278 | C169: Пропан-бутан, смесь техническая | D169: кг | E169: 0,2 1,4 | J169: 0
B170: 999-9950 | C170: Вспомогательные ненормируемые ресурсы (2% от Оплаты труда рабочих) | D170: руб | E170: 10,14 70,98 | J170: 0
A171: 47 | B171: ТССЦ-110-0008 | C171: Болты сборочные с гайками и шайбами по классу прочности: 8,8 | D171: т | E171: 0.0728 | F171: 0 | G171: 0 | H171: 150374.86 | I171: 10947.29 | J171: 10947.29
A172: 48 | B172: Прайс | C172: Профиль гн. 120*5 | D172: т | E172: 0.416 | F172: 0 | G172: 0 | H172: 113870.46 | I172: 47370.11 | J172: 47370.11
A173: 49 | B173: Прайс | C173: Профиль гн. 100*4 | D173: т | E173: 0.52 | F173: 0 | G173: 0 | H173: 109659.9 | I173: 57023.15 | J173: 57023.15
A174: 50 | B174: Прайс | C174: Двутавр 30Б1 | D174: т | E174: 0.936 | F174: 0 | G174: 0 | H174: 114649.13 | I174: 107311.59 | J174: 107311.59
A175: 51 | B175: Прайс | C175: Двутавр 30Ш1 | D175: т | E175: 5.096 | F175: 0 | G175: 0 | H175: 94324.65 | I175: 480678.4 | J175: 480678.4
A176: 52 | B176: Прайс | C176: Уголок равнополочный 100*7 | D176: т | E176: 0.208 | F176: 0 | G176: 0 | H176: 112544.52 | I176: 23409.26 | J176: 23409.26
A177: 53 | B177: Прайс | C177: Прокат листовой 20мм | D177: т | E177: 0.104 | F177: 0 | G177: 0 | H177: 106982.31 | I177: 11126.16 | J177: 11126.16
A178: Перевозка материалов (металл 140 км. ОП "МКМ-СПб") | G178: 0 | I178: 0 | J178: 0
A179: 54 | C179: металлопрокат, трубопрокат и металлоконструкции | D179: т | E179: 7 | F179: 0 | G179: 0 | H179: 0 | I179: 0 | J179: 0
A180: 55 | B180: ТССЦпг-03-02-01-140 | C180: Перевозка строительных грузов (кроме массовых навалочных, перевозимых автомобилями-самосвалами, а также бетонных и железобетонных изделий, стеновых и перегородочных материалов, лесоматериалов круглых и пиломатериалов, включенных в таблицу 03-01), бортовым автомобилем грузоподъемностью 5 т, на расстояние до 140 км I класс груза | D180: 1 т груза | E180: 7 | F180: 0 | G180: 0 | H180: 2338.66 | I180: 16370.64 | J180: 16370.64
A181: 56 | B181: ТССЦпг-01-01-02-015 | C181: Разгрузочные работы при автомобильных перевозках: металлических конструкций массой до 1 т | D181: 1 т груза | E181: 7 | F181: 0 | G181: 0 | H181: 470.66 | I181: 3294.63 | J181: 3294.63
A182: Раздел 5. Лестницы, площадки, ограждения | G182: 0 | I182: 0 | J182: 0
A183: 57 | B183: ТЕР09-03-029-01 | C183: Монтаж лестниц прямолинейных и криволинейных, пожарных с ограждением | D183: 1 т конструкций | E183: 19.136 | F183: 57878.94 | G183: 1107571.43 | H183: 1156.95 | I183: 22139.4 | J183: 1129710.83
B184: 101-0309 | C184: Канаты пеньковые пропитанные | D184: т | E184: 0,0001 0,0019 | J184: 0
B185: 101-0324 | C185: Кислород технический: газообразный | D185: м3 | E185: 1,37 26,22 | J185: 0
B186: 101-0797 | C186: Проволока горячекатаная в мотках, диаметром 6,3-6,5 мм | D186: т | E186: 0,00003 0,0006 | J186: 0
B187: 101-1019 | C187: Швеллеры № 40 из стали марки: Ст0 | D187: т | E187: 0,00194 0,0371 | J187: 0
B188: 101-1515 | C188: Электроды диаметром: 4 мм Э46 | D188: т | E188: 0,004 0,0765 | J188: 0
B189: 101-1805 | C189: Гвозди строительные | D189: т | E189: 0,00001 0,0002 | J189: 0
B190: 101-2278 | C190: Пропан-бутан, смесь техническая | D190: кг | E190: 0,41 7,846 | J190: 0
B191: 101-2467 | C191: Растворитель марки: Р-4 | D191: т | E191: 0,0006 0,0115 | J191: 0
B192: 102-0023 | C192: Бруски обрезные хвойных пород длиной: 4-6,5 м, шириной 75-150 мм, толщиной 40-75 мм, I сорта | D192: м3 | E192: 0,00103 0,0197 | J192: 0
B193: 113-0021 | C193: Грунтовка: ГФ-021 красно-коричневая | D193: т | E193: 0,00031 0,0059 | J193: 0
B194: 201-0756 | C194: Отдельные конструктивные элементы зданий и сооружений с преобладанием: горячекатаных профилей, средняя масса сборочной единицы от 0,1 до 0,5 т | D194: т | E194: 0,001 0,0191 | J194: 0
B195: 508-0097 | C195: Канат двойной свивки типа ТК, конструкции 6х19(1+6+12)+1 о.с., оцинкованный из проволок марки В, маркировочная группа: 1770 н/мм2, диаметром 5,5 мм | D195: 10 м | E195: 0,0187 0,3578 | J195: 0
A196: 58 | B196: ТЕРм38-01-004-06 | C196: Сборка с помощью лебедок электрических (с установкой и снятием их в процессе работы): лестницы прямолинейные и криволинейные с ограждением | D196: 1 т конструкций | E196: 18.4 | F196: 181387.27 | G196: 3337525.76 | H196: 2725 | I196: 50140 | J196: 3387665.76
B197: 101-0324 | C197: Кислород технический: газообразный | D197: м3 | E197: 0,6 11,04 | J197: 0
B198: 101-1521 | C198: Электроды диаметром: 5 мм Э42 | D198: т | E198: 0,016 0,2944 | J198: 0
B199: 101-2278 | C199: Пропан-бутан, смесь техническая | D199: кг | E199: 0,2 3,68 | J199: 0
B200: 999-9950 | C200: Вспомогательные ненормируемые ресурсы (2% от Оплаты труда рабочих) | D200: руб | E200: 51,07 939,7 | J200: 0
A201: 59 | B201: ТССЦ-110-0008 | C201: Болты сборочные с гайками и шайбами по классу прочности: 8,8 | D201: т | E201: 0.248768 | F201: 0 | G201: 0 | H201: 150374.81 | I201: 37408.44 | J201: 37408.44
A202: 60 | B202: Прайс | C202: Профиль гн. 160*6 | D202: т | E202: 0.832 | F202: 0 | G202: 0 | I202: 103894.47 | J202: 103894.47
A203: 61 | B203: Прайс | C203: Профиль гн. 140*7 | D203: т | E203: 0.52 | F203: 0 | G203: 0 | I203: 62719.13 | J203: 62719.13
... 130 more rows

Sheet 1632-2021-2.2.4,2.1.6-КМ
A2: Терминал по перевалке минеральных удобрений в морском торговом порту Усть-Луга. Береговые объекты терминала
A3: (наименование стройки)
A5: ЛОКАЛЬНАЯ СМЕТА № 1632-2021-2.2.4,2.1.6-КМ_07.04.023_07.04.045-П-01-02
A6: (локальная смета)
A7: на Конструкции металлические, 07.04.023 Пересыпная станция №4 (код SAP 01.02.004) код ГП 2.2.4 07.04.045 Конвейерная галерея №6 код ГП 2.1.6
A8: (наименование работ и затрат, наименование объекта)
B9: Основание: | C9: 1632-2021-2.2.4, 2.1.6-КМ_6_0_RU_IFС
A11: № п/п | B11: Обоснование | C11: Наименование работ и затрат | D11: Ед. изм. | E11: Кол-во | F11: Цена за ед.измерения работ, руб. с НДС | G11: Всего, стоимость работ,руб. с НДС | H11: Цена за ед.измерения материалов, руб. с НДС | I11: Всего, стоимость материалов, руб. с НДС | J11: Итого, руб. с НДС
A12: 1 | B12: 2 | C12: 3 | D12: 4 | E12: 5 | F12: 6 | G12: 7 | H12: 8 | I12: 9 | J12: 10
A13: Раздел 1. Пересыпная станция №4, (1632-2021-2.2.4, 2.1.6-КМ.СМ1, л. 1)
A14: Колонны и вертикальные связи | J14: 0
A15: 1 | B15: ТЕРм38-01-002-03 | C15: Монорельсы, балки и другие аналогичные конструкции промышленных зданий, сборка с помощью: лебедок электрических (с установкой и снятием их в процессе работы) | D15: 1 т конструкций | E15: 56.3 | F15: 39050.3 | G15: 2198532.98 | H15: 602.18 | I15: 33902.86 | J15: =G15+I15 -> 2232435.84
B16: 101-0324 | C16: Кислород технический: газообразный | D16: м3 | E16: 0,6 33,78 | J16: =G16+I16 -> 0
B17: 101-1521 | C17: Электроды диаметром: 5 мм Э42 | D17: т | E17: 0,0032 0,1802 | J17: 0
B18: 101-2278 | C18: Пропан-бутан, смесь техническая | D18: кг | E18: 0,2 11,26 | J18: 0
B19: 999-9950 | C19: Вспомогательные ненормируемые ресурсы (2% от Оплаты труда рабочих) | D19: руб | E19: 10,14 570,9 | J19: 0
A20: 2 | B20: ТЕР09-03-002-03 Тех. часть ТЕР09. Строительные металлические конструкции. II. Исчисление объемов работ, п. 2.9.1, k=1,04, (1 % на массу сварных швов и 3 % к итогу на уточнение массы при разработке чертежей КМД) | C20: Монтаж колонн одноэтажных и многоэтажных зданий и крановых эстакад высотой: до 25 м цельного сечения массой до 5,0 т | D20: 1 т конструкций | E20: 58.552 | F20: 9555.96 | G20: 559520.74 | H20: 638.91 | I20: 37409.51 | J20: 596930.25
B21: 101-0309 | C21: Канаты пеньковые пропитанные | D21: т | E21: 0,0001 0,0059 | J21: 0
B22: 101-0324 | C22: Кислород технический: газообразный | D22: м3 | E22: 0,6 35,13 | J22: 0
B23: 101-0797 | C23: Проволока горячекатаная в мотках, диаметром 6,3-6,5 мм | D23: т | E23: 0,00003 0,0018 | J23: 0
B24: 101-1019 | C24: Швеллеры № 40 из стали марки: Ст0 | D24: т | E24: 0,00194 0,1136 | J24: 0
B25: 101-1513 | C25: Электроды диаметром: 4 мм Э42 | D25: т | E25: 0,0011 0,0644 | J25: 0
B26: 101-1714 | C26: Болты с гайками и шайбами строительные | D26: т | E26: 0,00007 0,0041 | J26: 0
B27: 101-1805 | C27: Гвозди строительные | D27: т | E27: 0,00001 0,0006 | J27: 0
B28: 101-2278 | C28: Пропан-бутан, смесь техническая | D28: кг | E28: 0,18 10,54 | J28: 0
B29: 101-2467 | C29: Растворитель марки: Р-4 | D29: т | E29: 0,0006 0,0351 | J29: 0
B30: 102-0023 | C30: Бруски обрезные хвойных пород длиной: 4-6,5 м, шириной 75-150 мм, толщиной 40-75 мм, I сорта | D30: м3 | E30: 0,00103 0,0603 | J30: 0
B31: 113-0021 | C31: Грунтовка: ГФ-021 красно-коричневая | D31: т | E31: 0,00031 0,0182 | J31: 0
B32: 201-0756 | C32: Отдельные конструктивные элементы зданий и сооружений с преобладанием: горячекатаных профилей, средняя масса сборочной единицы от 0,1 до 0,5 т | D32: т | E32: 0,0003 0,0176 | J32: 0
B33: 508-0097 | C33: Канат двойной свивки типа ТК, конструкции 6х19(1+6+12)+1 о.с., оцинкованный из проволок марки В, маркировочная группа: 1770 н/мм2, диаметром 5,5 мм | D33: 10 м | E33: 0,0187 1,095 | J33: 0
A34: 3 | B34: Прайс | C34: Двутавры стальные горяекатанные с параллельными гранями полок 40Ш1 | D34: т | E34: 37.232 | F34: 0 | G34: 0 | H34: 96028.44 | I34: 3575331.02 | J34: 3575331.02
A35: 4 | B35: Прайс | C35: Профили стальные гнутые замкнутые квадратные и прямоугольные для строительных конструкций 200х8 мм | D35: т | E35: 5.304 | F35: 0 | G35: 0 | H35: 136812.48 | I35: 725653.38 | J35: 725653.38
A36: 5 | B36: Прайс | C36: Профили стальные гнутые замкнутые квадратные и прямоугольные для строительных конструкций 200х6 мм | D36: т | E36: 1.664 | F36: 0 | G36: 0 | H36: 134183.86 | I36: 223281.94 | J36: 223281.94
A37: 6 | B37: Прайс | C37: Профили стальные гнутые замкнутые квадратные и прямоугольные для строительных конструкций 120х5 мм | D37: т | E37: 4.68 | F37: 0 | G37: 0 | H37: 113870.55 | I37: 532914.18 | J37: 532914.18
A38: 7 | B38: Прайс | C38: Профили стальные гнутые замкнутые квадратные и прямоугольные для строительных конструкций 100х5 мм | D38: т | E38: 0.416 | F38: 0 | G38: 0 | H38: 109779.57 | I38: 45668.3 | J38: 45668.3
A39: 8 | B39: Прайс | C39: Прокат листовой горячекатаный t=40 мм | D39: т | E39: 0.832 | F39: 0 | G39: 0 | H39: 121282.43 | I39: 100906.98 | J39: 100906.98
A40: 9 | B40: Прайс | C40: Прокат листовой горячекатаный t=30 мм | D40: т | E40: 0.52 | F40: 0 | G40: 0 | H40: 117875.42 | I40: 61295.22 | J40: 61295.22
A41: 10 | B41: Прайс | C41: Прокат листовой горячекатаный t=20 мм | D41: т | E41: 1.664 | F41: 0 | G41: 0 | H41: 106982.42 | I41: 178018.75 | J41: 178018.75
A42: 11 | B42: Прайс | C42: Прокат листовой горячекатаный t=16 мм | D42: т | E42: 2.184 | F42: 0 | G42: 0 | H42: 103817.25 | I42: 226736.87 | J42: 226736.87
A43: 12 | B43: Прайс | C43: Прокат листовой горячекатаный t=12 мм | D43: т | E43: 1.664 | F43: 0 | G43: 0 | H43: 96028.64 | I43: 159791.65 | J43: 159791.65
A44: 13 | B44: Прайс | C44: Прокат листовой горячекатаный t=10 мм | D44: т | E44: 1.872 | F44: 0 | G44: 0 | H44: 94506.9 | I44: 176916.91 | J44: 176916.91
A45: 14 | B45: Прайс | C45: Прокат листовой горячекатаный t=8 мм | D45: т | E45: 0.52 | F45: 0 | G45: 0 | H45: 93155.52 | I45: 48440.87 | J45: 48440.87
A46: 15 | B46: ТССЦпг-03-02-01-140 | C46: Перевозка строительных грузов (кроме массовых навалочных, перевозимых автомобилями-самосвалами, а также бетонных и железобетонных изделий, стеновых и перегородочных материалов, лесоматериалов круглых и пиломатериалов, включенных в таблицу 03-01), бортовым автомобилем грузоподъемностью 5 т, на расстояние до 140 км I класс груза | D46: 1 т груза | E46: 56.3 | F46: 0 | G46: 0 | H46: 2338.66 | I46: 131666.64 | J46: 131666.64
A47: 16 | B47: ТССЦпг-01-01-02-015 | C47: Разгрузочные работы при автомобильных перевозках: металлических конструкций массой до 1 т | D47: 1 т груза | E47: 56.3 | F47: 0 | G47: 0 | H47: 470.67 | I47: 26498.82 | J47: 26498.82
A48: Конструкции перекрытий | J48: 0
A49: 17 | B49: ТЕРм38-01-002-03 | C49: Монорельсы, балки и другие аналогичные конструкции промышленных зданий, сборка с помощью: лебедок электрических (с установкой и снятием их в процессе работы) | D49: 1 т конструкций | E49: 3.7 | F49: 39050 | G49: 144485.08 | H49: 602.19 | I49: 2228.11 | J49: 146713.19
B50: 101-0324 | C50: Кислород технический: газообразный | D50: м3 | E50: 0,6 2,22 | J50: 0
B51: 101-1521 | C51: Электроды диаметром: 5 мм Э42 | D51: т | E51: 0,0032 0,0118 | J51: 0
B52: 101-2278 | C52: Пропан-бутан, смесь техническая | D52: кг | E52: 0,2 0,74 | J52: 0
B53: 999-9950 | C53: Вспомогательные ненормируемые ресурсы (2% от Оплаты труда рабочих) | D53: руб | E53: 10,14 37,52 | J53: 0
A54: 18 | B54: ТЕР09-03-002-12 Тех. часть ТЕР09. Строительные металлические конструкции. II. Исчисление объемов работ, п. 2.9.1, k=1,04, (1 % на массу сварных швов и 3 % к итогу на уточнение массы при разработке чертежей КМД) | C54: Монтаж балок, ригелей перекрытия, покрытия и под установку оборудования многоэтажных зданий при высоте здания: до 25 м | D54: 1 т конструкций | E54: 3.848 | F54: 40830.39 | G54: 157115.34 | H54: 1886.42 | I54: 7258.95 | J54: 164374.29
B55: 101-0309 | C55: Канаты пеньковые пропитанные | D55: т | E55: 0,000115 0,0004 | J55: 0
B56: 101-0324 | C56: Кислород технический: газообразный | D56: м3 | E56: 2,2425 8,629 | J56: 0
B57: 101-0797 | C57: Проволока горячекатаная в мотках, диаметром 6,3-6,5 мм | D57: т | E57: 0,0000345 0,0001 | J57: 0
B58: 101-1019 | C58: Швеллеры № 40 из стали марки: Ст0 | D58: т | E58: 0,002231 0,0086 | J58: 0
B59: 101-1513 | C59: Электроды диаметром: 4 мм Э42 | D59: т | E59: 0,003565 0,0137 | J59: 0
B60: 101-1714 | C60: Болты с гайками и шайбами строительные | D60: т | E60: 0,003565 0,0137 | J60: 0
B61: 101-1805 | C61: Гвозди строительные | D61: т | E61: 0,0000115 0 | J61: 0
B62: 101-2278 | C62: Пропан-бутан, смесь техническая | D62: кг | E62: 0,6785 2,611 | J62: 0
B63: 101-2467 | C63: Растворитель марки: Р-4 | D63: т | E63: 0,00069 0,0027 | J63: 0
B64: 102-0023 | C64: Бруски обрезные хвойных пород длиной: 4-6,5 м, шириной 75-150 мм, толщиной 40-75 мм, I сорта | D64: м3 | E64: 0,0011845 0,0046 | J64: 0
B65: 113-0021 | C65: Грунтовка: ГФ-021 красно-коричневая | D65: т | E65: 0,0003565 0,0014 | J65: 0
B66: 201-0756 | C66: Отдельные конструктивные элементы зданий и сооружений с преобладанием: горячекатаных профилей, средняя масса сборочной единицы от 0,1 до 0,5 т | D66: т | E66: 0,000575 0,0022 | J66: 0
B67: 508-0097 | C67: Канат двойной свивки типа ТК, конструкции 6х19(1+6+12)+1 о.с., оцинкованный из проволок марки В, маркировочная группа: 1770 н/мм2, диаметром 5,5 мм | D67: 10 м | E67: 0,021505 0,0828 | J67: 0
A68: 19 | B68: Прайс | C68: Двутавры стальные горяекатанные с параллельными гранями полок 70Б1 | D68: т | E68: 3.8272 | F68: 0 | G68: 0 | H68: 121465.53 | I68: 464872.86 | J68: 464872.86
A69: 20 | B69: Прайс | C69: Прокат листовой горячекатаный t=25 мм | D69: т | E69: 0.4784 | F69: 0 | G69: 0 | H69: 112336.5 | I69: 53741.78 | J69: 53741.78
A70: 21 | B70: Прайс | C70: Прокат листовой горячекатаный t=20 мм | D70: т | E70: 0.1196 | F70: 0 | G70: 0 | H70: 106985.45 | I70: 12795.46 | J70: 12795.46
A71: 22 | B71: ТЕРм38-01-002-03 | C71: Монорельсы, балки и другие аналогичные конструкции промышленных зданий, сборка с помощью: лебедок электрических (с установкой и снятием их в процессе работы) | D71: 1 т конструкций | E71: 33 | F71: 39050 | G71: 1288659.22 | H71: 602.18 | I71: 19871.96 | J71: 1308531.18
B72: 101-0324 | C72: Кислород технический: газообразный | D72: м3 | E72: 0,6 19,8 | J72: 0
B73: 101-1521 | C73: Электроды диаметром: 5 мм Э42 | D73: т | E73: 0,0032 0,1056 | J73: 0
B74: 101-2278 | C74: Пропан-бутан, смесь техническая | D74: кг | E74: 0,2 6,6 | J74: 0
B75: 999-9950 | C75: Вспомогательные ненормируемые ресурсы (2% от Оплаты труда рабочих) | D75: руб | E75: 10,14 334,6 | J75: 0
A76: 23 | B76: ТЕР09-03-002-12 Тех. часть ТЕР09. Строительные металлические конструкции. II. Исчисление объемов работ, п. 2.9.1, k=1,04, (1 % на массу сварных швов и 3 % к итогу на уточнение массы при разработке чертежей КМД) | C76: Монтаж балок, ригелей перекрытия, покрытия и под установку оборудования многоэтажных зданий при высоте здания: до 25 м | D76: 1 т конструкций | E76: 34.32 | F76: 35504.68 | G76: 1218520.52 | H76: 1640.28 | I76: 56294.55 | J76: 1274815.07
B77: 101-0309 | C77: Канаты пеньковые пропитанные | D77: т | E77: 0,0001 0,0034 | J77: 0
B78: 101-0324 | C78: Кислород технический: газообразный | D78: м3 | E78: 1,95 66,92 | J78: 0
B79: 101-0797 | C79: Проволока горячекатаная в мотках, диаметром 6,3-6,5 мм | D79: т | E79: 0,00003 0,001 | J79: 0
B80: 101-1019 | C80: Швеллеры № 40 из стали марки: Ст0 | D80: т | E80: 0,00194 0,0666 | J80: =G80+I80 -> 0
B81: 101-1513 | C81: Электроды диаметром: 4 мм Э42 | D81: т | E81: 0,0031 0,1064 | J81: 0
B82: 101-1714 | C82: Болты с гайками и шайбами строительные | D82: т | E82: 0,0031 0,1064 | J82: 0
B83: 101-1805 | C83: Гвозди строительные | D83: т | E83: 0,00001 0,0003 | J83: 0
B84: 101-2278 | C84: Пропан-бутан, смесь техническая | D84: кг | E84: 0,59 20,25 | J84: 0
B85: 101-2467 | C85: Растворитель марки: Р-4 | D85: т | E85: 0,0006 0,0206 | J85: 0
B86: 102-0023 | C86: Бруски обрезные хвойных пород длиной: 4-6,5 м, шириной 75-150 мм, толщиной 40-75 мм, I сорта | D86: м3 | E86: 0,00103 0,0353 | J86: 0
B87: 113-0021 | C87: Грунтовка: ГФ-021 красно-коричневая | D87: т | E87: 0,00031 0,0106 | J87: 0
B88: 201-0756 | C88: Отдельные конструктивные элементы зданий и сооружений с преобладанием: горячекатаных профилей, средняя масса сборочной единицы от 0,1 до 0,5 т | D88: т | E88: 0,0005 0,0172 | J88: 0
B89: 508-0097 | C89: Канат двойной свивки типа ТК, конструкции 6х19(1+6+12)+1 о.с., оцинкованный из проволок марки В, маркировочная группа: 1770 н/мм2, диаметром 5,5 мм | D89: 10 м | E89: 0,0187 0,6418 | J89: 0
A90: 24 | B90: Прайс | C90: Двутавры стальные горяекатанные с параллельными гранями полок 50Ш2 | D90: т | E90: 2.392 | F90: 0 | G90: 0 | H90: 98826.69 | I90: 236393.44 | J90: 236393.44
A91: 25 | B91: Прайс | C91: Двутавры стальные горяекатанные с параллельными гранями полок 45Б1 | D91: т | E91: 2.08 | F91: 0 | G91: 0 | H91: 119030.89 | I91: 247584.26 | J91: 247584.26
A92: 26 | B92: Прайс | C92: Двутавры стальные горяекатанные с параллельными гранями полок 40Б1 | D92: т | E92: 0.624 | F92: 0 | G92: 0 | H92: 117754.33 | I92: 73478.7 | J92: 73478.7
A93: 27 | B93: Прайс | C93: Двутавры стальные горяекатанные с параллельными гранями полок 35Б1 | D93: т | E93: 0.936 | F93: 0 | G93: 0 | H93: 116415.24 | I93: 108964.66 | J93: 108964.66
A94: 28 | B94: Прайс | C94: Двутавры стальные горяекатанные с параллельными гранями полок 35Ш1 | D94: т | E94: 1.352 | F94: 0 | G94: 0 | H94: 95663.12 | I94: 129336.54 | J94: 129336.54
A95: 29 | B95: Прайс | C95: Двутавры стальные горяекатанные с параллельными гранями полок 30Б1 | D95: т | E95: 5.512 | F95: 0 | G95: 0 | H95: 114649.21 | I95: 631946.45 | J95: 631946.45
A96: 30 | B96: Прайс | C96: Двутавры стальные горяекатанные с параллельными гранями полок 30Ш1 | D96: т | E96: 2.288 | F96: 0 | G96: 0 | H96: 94324.6 | I96: 215814.69 | J96: 215814.69
A97: 31 | B97: Прайс | C97: Двутавры стальные горяекатанные с параллельными гранями полок 25Б1 | D97: т | E97: 2.496 | F97: 0 | G97: 0 | H97: 113715.15 | I97: 283833.02 | J97: 283833.02
A98: 32 | B98: Прайс | C98: Двутавры стальные горяекатанные с параллельными гранями полок 20Б1 | D98: т | E98: 1.976 | F98: 0 | G98: 0 | H98: 101626.57 | I98: 200814.11 | J98: 200814.11
A99: 33 | B99: Прайс | C99: Профили стальные гнутые замкнутые квадратные и прямоугольные для строительных конструкций 180х6 мм | D99: т | E99: 0.208 | F99: 0 | G99: 0 | H99: 128399.62 | I99: 26707.12 | J99: 26707.12
A100: 34 | B100: Прайс | C100: Профили стальные гнутые замкнутые квадратные и прямоугольные для строительных конструкций 120х5 мм | D100: т | E100: 0.104 | F100: 0 | G100: 0 | H100: 113875.19 | I100: 11843.02 | J100: 11843.02
A101: 35 | B101: Прайс | C101: Профили стальные гнутые замкнутые квадратные и прямоугольные для строительных конструкций 100х5 мм | D101: т | E101: 0.104 | F101: 0 | G101: 0 | H101: 109786.44 | I101: 11417.79 | J101: 11417.79
A102: 36 | B102: Прайс | C102: Швеллеры стальные горячекатанные 30П | D102: т | E102: 1.664 | F102: 0 | G102: 0 | H102: 114161.78 | I102: 189965.2 | J102: 189965.2
A103: 37 | B103: Прайс | C103: Швеллеры стальные горячекатанные 24П | D103: т | E103: 0.624 | F103: 0 | G103: 0 | H103: 109841.73 | I103: 68541.24 | J103: 68541.24
A104: 38 | B104: Прайс | C104: Швеллеры стальные горячекатанные 20П | D104: т | E104: 1.352 | F104: 0 | G104: 0 | H104: 107663.51 | I104: 145561.07 | J104: 145561.07
A105: 39 | B105: Прайс | C105: Швеллеры стальные горячекатанные 16П | D105: т | E105: 1.352 | F105: 0 | G105: 0 | H105: 102843.8 | I105: 139044.82 | J105: 139044.82
A106: 40 | B106: Прайс | C106: Прокат листовой горячекатаный t=20 мм | D106: т | E106: 0.416 | F106: 0 | G106: 0 | H106: 106982.43 | I106: 44504.69 | J106: 44504.69
A107: 41 | B107: Прайс | C107: Прокат листовой горячекатаный t=16 мм | D107: т | E107: 0.416 | F107: 0 | G107: 0 | H107: 103815.77 | I107: 43187.36 | J107: 43187.36
A108: 42 | B108: Прайс | C108: Прокат листовой горячекатаный t=14 мм | D108: т | E108: 1.04 | F108: 0 | G108: 0 | H108: 99313.39 | I108: 103285.93 | J108: 103285.93
A109: 43 | B109: Прайс | C109: Прокат листовой горячекатаный t=12 мм | D109: т | E109: 1.04 | F109: 0 | G109: 0 | H109: 96028.63 | I109: 99869.78 | J109: 99869.78
A110: 44 | B110: Прайс | C110: Прокат листовой горячекатаный t=10 мм | D110: т | E110: 2.08 | F110: 0 | G110: 0 | H110: 94507.13 | I110: 196574.82 | J110: 196574.82
A111: 45 | B111: Прайс | C111: Прокат листовой горячекатаный t=8 мм | D111: т | E111: 0.624 | F111: 0 | G111: 0 | H111: 93155.51 | I111: 58129.04 | J111: 58129.04
A112: 46 | B112: Прайс | C112: Прокат листовой горячекатаный t=6 мм | D112: т | E112: 0.416 | F112: 0 | G112: 0 | H112: 91038.65 | I112: 37872.08 | J112: 37872.08
A113: 47 | B113: Прайс | C113: Уголки стальные горячекатаные равнополочные 110х7 мм | D113: т | E113: 0.312 | F113: 0 | G113: 0 | H113: 115256.47 | I113: 35960.02 | J113: 35960.02
A114: 48 | B114: Прайс | C114: Листы стальные с ромбическим и чечевичным рифлением t=4 мм | D114: т | E114: 2.912 | F114: 0 | G114: 0 | H114: 105765.39 | I114: 307988.81 | J114: 307988.81
A115: 49 | B115: ТССЦпг-03-02-01-140 | C115: Перевозка строительных грузов (кроме массовых навалочных, перевозимых автомобилями-самосвалами, а также бетонных и железобетонных изделий, стеновых и перегородочных материалов, лесоматериалов круглых и пиломатериалов, включенных в таблицу 03-01), бортовым автомобилем грузоподъемностью 5 т, на расстояние до 140 км I класс груза | D115: 1 т груза | E115: 36.7 | F115: 0 | G115: 0 | H115: 2338.66 | I115: 85828.83 | J115: 85828.83
A116: 50 | B116: ТССЦпг-01-01-02-015 | C116: Разгрузочные работы при автомобильных перевозках: металлических конструкций массой до 1 т | D116: 1 т груза | E116: 36.7 | F116: 0 | G116: 0 | H116: 470.66 | I116: 17273.22 | J116: 17273.22
A117: Конструкции покрытий | J117: 0
A118: 51 | B118: ТЕРм38-01-002-03 | C118: Монорельсы, балки и другие аналогичные конструкции промышленных зданий, сборка с помощью: лебедок электрических (с установкой и снятием их в процессе работы) | D118: 1 т конструкций | E118: 12.6 | F118: 39050.3 | G118: 492033.94 | H118: 602.22 | I118: 7587.92 | J118: 499621.86
B119: 101-0324 | C119: Кислород технический: газообразный | D119: м3 | E119: 0,6 7,56 | J119: 0
B120: 101-1521 | C120: Электроды диаметром: 5 мм Э42 | D120: т | E120: 0,0032 0,0403 | J120: 0
B121: 101-2278 | C121: Пропан-бутан, смесь техническая | D121: кг | E121: 0,2 2,52 | J121: 0
B122: 999-9950 | C122: Вспомогательные ненормируемые ресурсы (2% от Оплаты труда рабочих) | D122: руб | E122: 10,14 127,8 | J122: 0
A123: 52 | B123: ТЕР09-03-002-12 Тех. часть ТЕР09. Строительные металлические конструкции. II. Исчисление объемов работ, п. 2.9.1, k=1,04, (1 % на массу сварных швов и 3 % к итогу на уточнение массы при разработке чертежей КМД) | C123: Монтаж балок, ригелей перекрытия, покрытия и под установку оборудования многоэтажных зданий при высоте здания: до 25 м | D123: 1 т конструкций | E123: 13.104 | F123: 35504.7 | G123: 465253.55 | H123: 1640.36 | I123: 21495.28 | J123: 486748.83
B124: 101-0309 | C124: Канаты пеньковые пропитанные | D124: т | E124: 0,0001 0,0013 | J124: 0
B125: 101-0324 | C125: Кислород технический: газообразный | D125: м3 | E125: 1,95 25,55 | J125: 0
B126: 101-0797 | C126: Проволока горячекатаная в мотках, диаметром 6,3-6,5 мм | D126: т | E126: 0,00003 0,0004 | J126: 0
B127: 101-1019 | C127: Швеллеры № 40 из стали марки: Ст0 | D127: т | E127: 0,00194 0,0254 | J127: 0
B128: 101-1513 | C128: Электроды диаметром: 4 мм Э42 | D128: т | E128: 0,0031 0,0406 | J128: 0
B129: 101-1714 | C129: Болты с гайками и шайбами строительные | D129: т | E129: 0,0031 0,0406 | J129: 0
B130: 101-1805 | C130: Гвозди строительные | D130: т | E130: 0,00001 0,0001 | J130: 0
B131: 101-2278 | C131: Пропан-бутан, смесь техническая | D131: кг | E131: 0,59 7,731 | J131: 0
B132: 101-2467 | C132: Растворитель марки: Р-4 | D132: т | E132: 0,0006 0,0079 | J132: 0
B133: 102-0023 | C133: Бруски обрезные хвойных пород длиной: 4-6,5 м, шириной 75-150 мм, толщиной 40-75 мм, I сорта | D133: м3 | E133: 0,00103 0,0135 | J133: 0
B134: 113-0021 | C134: Грунтовка: ГФ-021 красно-коричневая | D134: т | E134: 0,00031 0,0041 | J134: 0
B135: 201-0756 | C135: Отдельные конструктивные элементы зданий и сооружений с преобладанием: горячекатаных профилей, средняя масса сборочной единицы от 0,1 до 0,5 т | D135: т | E135: 0,0005 0,0066 | J135: 0
B136: 508-0097 | C136: Канат двойной свивки типа ТК, конструкции 6х19(1+6+12)+1 о.с., оцинкованный из проволок марки В, маркировочная группа: 1770 н/мм2, диаметром 5,5 мм | D136: 10 м | E136: 0,0187 0,245 | J136: 0
A137: 53 | B137: Прайс | C137: Двутавры стальные горяекатанные с параллельными гранями полок 70Б1 | D137: т | E137: 3.224 | F137: 0 | G137: 0 | H137: 121465.67 | I137: 391605.33 | J137: 391605.33
A138: 54 | B138: Прайс | C138: Двутавры стальные горяекатанные с параллельными гранями полок 55Б1 | D138: т | E138: 1.56 | F138: 0 | G138: 0 | H138: 120734.74 | I138: 188346.19 | J138: 188346.19
A139: 55 | B139: Прайс | C139: Двутавры стальные горяекатанные с параллельными гранями полок 40Б1 | D139: т | E139: 0.416 | F139: 0 | G139: 0 | H139: 117753.17 | I139: 48985.32 | J139: 48985.32
A140: 56 | B140: Прайс | C140: Двутавры стальные горяекатанные с параллельными гранями полок 25Б1 | D140: т | E140: 0.832 | F140: 0 | G140: 0 | H140: 113714.58 | I140: 94610.53 | J140: 94610.53
A141: 57 | B141: Прайс | C141: Двутавры стальные горяекатанные с параллельными гранями полок 20Б1 | D141: т | E141: 0.624 | F141: 0 | G141: 0 | H141: 101627.55 | I141: 63415.59 | J141: 63415.59
A142: 58 | B142: Прайс | C142: Швеллеры стальные горячекатанные 20П | D142: т | E142: 4.472 | F142: 0 | G142: 0 | H142: 107663.12 | I142: 481469.46 | J142: 481469.46
A143: 59 | B143: Прайс | C143: Прокат листовой горячекатаный t=10 мм | D143: т | E143: 1.144 | F143: 0 | G143: 0 | H143: 94506.69 | I143: 108115.65 | J143: 108115.65
A144: 60 | B144: Прайс | C144: Уголки стальные горячекатаные равнополочные 110х7 мм | D144: т | E144: 0.416 | F144: 0 | G144: 0 | H144: 115259.93 | I144: 47948.13 | J144: =G144+I144 -> 47948.13
A145: 61 | B145: Прайс | C145: Уголки стальные горячекатаные неравнополочные 140х90х8 мм | D145: т | E145: 0.312 | F145: 0 | G145: 0 | H145: 139176.15 | I145: 43422.96 | J145: 43422.96
A146: 62 | B146: Прайс | C146: Прокат сортовой стальной горячетканый круглый Ø16 мм | D146: т | E146: 0.104 | F146: 0 | G146: 0 | H146: 102990.48 | I146: 10711.01 | J146: 10711.01
A147: 63 | B147: ТЕР09-04-002-01 | C147: Монтаж кровельного покрытия: из профилированного листа при высоте здания до 25 м | D147: 100 м2 покрытия | E147: 2.85 | F147: 52050.42 | G147: 148343.69 | H147: 3033.41 | I147: 8645.23 | J147: 156988.92
B148: 101-0309 | C148: Канаты пеньковые пропитанные | D148: т | E148: 0,00015 0,0004 | J148: 0
B149: 101-0324 | C149: Кислород технический: газообразный | D149: м3 | E149: 1,4 3,99 | J149: 0
B150: 101-0797 | C150: Проволока горячекатаная в мотках, диаметром 6,3-6,5 мм | D150: т | E150: 0,00004 0,0001 | J150: 0
B151: 101-1019 | C151: Швеллеры № 40 из стали марки: Ст0 | D151: т | E151: 0,00297 0,0085 | J151: 0
B152: 101-1513 | C152: Электроды диаметром: 4 мм Э42 | D152: т | E152: 0,00061 0,0017 | J152: 0
B153: 101-1714 | C153: Болты с гайками и шайбами строительные | D153: т | E153: 0,0022 0,0063 | J153: 0
B154: 101-2278 | C154: Пропан-бутан, смесь техническая | D154: кг | E154: 0,42 1,197 | J154: 0
B155: 101-2467 | C155: Растворитель марки: Р-4 | D155: т | E155: 0,00009 0,0003 | J155: 0
B156: 102-0023 | C156: Бруски обрезные хвойных пород длиной: 4-6,5 м, шириной 75-150 мм, толщиной 40-75 мм, I сорта | D156: м3 | E156: 0,0013 0,0037 | J156: 0
B157: 113-0021 | C157: Грунтовка: ГФ-021 красно-коричневая | D157: т | E157: 0,00047 0,0013 | J157: 0
B158: 201-0756 | C158: Отдельные конструктивные элементы зданий и сооружений с преобладанием: горячекатаных профилей, средняя масса сборочной единицы от 0,1 до 0,5 т | D158: т | E158: 0,011 0,0314 | J158: 0
B159: 508-0097 | C159: Канат двойной свивки типа ТК, конструкции 6х19(1+6+12)+1 о.с., оцинкованный из проволок марки В, маркировочная группа: 1770 н/мм2, диаметром 5,5 мм | D159: 10 м | E159: 0,016 0,0456 | J159: 0
A160: 64 | B160: Прайс | C160: Профили стальные листовые гнутые с трапециевидными гофрами для строительства H57-750-0,8 | D160: т | E160: 3.1 | F160: 0 | G160: 0 | H160: 153670.42 | I160: 476378.29 | J160: 476378.29
A161: 65 | B161: ТССЦ-101-1810 | C161: Винты самонарезающие: для крепления профилированного настила и панелей к несущим конструкциям | D161: т | E161: 0.01094 | F161: 0 | G161: 0 | H161: 256454.3 | I161: 2805.61 | J161: 2805.61
A162: 66 | B162: ТССЦпг-03-02-01-140 | C162: Перевозка строительных грузов (кроме массовых навалочных, перевозимых автомобилями-самосвалами, а также бетонных и железобетонных изделий, стеновых и перегородочных материалов, лесоматериалов круглых и пиломатериалов, включенных в таблицу 03-01), бортовым автомобилем грузоподъемностью 5 т, на расстояние до 140 км I класс груза | D162: 1 т груза | E162: 15.7 | F162: 0 | G162: 0 | H162: 2338.67 | I162: 36717.09 | J162: 36717.09
A163: 67 | B163: ТССЦпг-01-01-02-015 | C163: Разгрузочные работы при автомобильных перевозках: металлических конструкций массой до 1 т | D163: 1 т груза | E163: 15.7 | F163: 0 | G163: 0 | H163: 470.68 | I163: 7389.67 | J163: 7389.67
A164: Крановые пути и монорельсы | J164: 0
A165: 68 | B165: ТЕРм38-01-002-03 | C165: Монорельсы, балки и другие аналогичные конструкции промышленных зданий, сборка с помощью: лебедок электрических (с установкой и снятием их в процессе работы) | D165: 1 т конструкций | E165: 5.2 | F165: 39050.5 | G165: 203062.33 | H165: 602.25 | I165: 3131.7 | J165: 206194.03
B166: 101-0324 | C166: Кислород технический: газообразный | D166: м3 | E166: 0,6 3,12 | J166: 0
B167: 101-1521 | C167: Электроды диаметром: 5 мм Э42 | D167: т | E167: 0,0032 0,0166 | J167: 0
B168: 101-2278 | C168: Пропан-бутан, смесь техническая | D168: кг | E168: 0,2 1,04 | J168: 0
B169: 999-9950 | C169: Вспомогательные ненормируемые ресурсы (2% от Оплаты труда рабочих) | D169: руб | E169: 10,14 52,73 | J169: 0
A170: 69 | B170: ТЕР09-03-003-02 Тех. часть ТЕР09. Строительные металлические конструкции. II. Исчисление объемов работ, п. 2.9.1, k=1,04, (1 % на массу сварных швов и 3 % к итогу на уточнение массы при разработке чертежей КМД) | C170: Монтаж одиночных подкрановых балок на отметке до 25 м массой: до 2,0 т | D170: 1 т конструкций | E170: 5.408 | F170: 23013.68 | G170: 124457.98 | H170: 1989.35 | I170: 10758.41 | J170: 135216.39
B171: 101-0309 | C171: Канаты пеньковые пропитанные | D171: т | E171: 0,0001 0,0005 | J171: 0
B172: 101-0324 | C172: Кислород технический: газообразный | D172: м3 | E172: 1,1 5,949 | J172: 0
B173: 101-0797 | C173: Проволока горячекатаная в мотках, диаметром 6,3-6,5 мм | D173: т | E173: 0,00003 0,0002 | J173: 0
B174: 101-1019 | C174: Швеллеры № 40 из стали марки: Ст0 | D174: т | E174: 0,00194 0,0105 | J174: 0
B175: 101-1513 | C175: Электроды диаметром: 4 мм Э42 | D175: т | E175: 0,0034 0,0184 | J175: 0
B176: 101-1714 | C176: Болты с гайками и шайбами строительные | D176: т | E176: 0,0028 0,0151 | J176: 0
B177: 101-1805 | C177: Гвозди строительные | D177: т | E177: 0,00001 0,0001 | J177: 0
B178: 101-2278 | C178: Пропан-бутан, смесь техническая | D178: кг | E178: 0,33 1,785 | J178: 0
B179: 101-2467 | C179: Растворитель марки: Р-4 | D179: т | E179: 0,0006 0,0032 | J179: 0
B180: 102-0023 | C180: Бруски обрезные хвойных пород длиной: 4-6,5 м, шириной 75-150 мм, толщиной 40-75 мм, I сорта | D180: м3 | E180: 0,00103 0,0056 | J180: 0
B181: 113-0021 | C181: Грунтовка: ГФ-021 красно-коричневая | D181: т | E181: 0,00031 0,0017 | J181: 0
B182: 201-0756 | C182: Отдельные конструктивные элементы зданий и сооружений с преобладанием: горячекатаных профилей, средняя масса сборочной единицы от 0,1 до 0,5 т | D182: т | E182: 0,003 0,0162 | J182: 0
B183: 508-0097 | C183: Канат двойной свивки типа ТК, конструкции 6х19(1+6+12)+1 о.с., оцинкованный из проволок марки В, маркировочная группа: 1770 н/мм2, диаметром 5,5 мм | D183: 10 м | E183: 0,0187 0,1011 | J183: 0
A184: 70 | B184: Прайс | C184: Двутавры стальные горяекатанные с параллельными гранями полок 45М | D184: т | E184: 2.496 | F184: 0 | G184: 0 | H184: 113067.66 | I184: 282216.89 | J184: 282216.89
A185: 71 | B185: Прайс | C185: Двутавры стальные горяекатанные с параллельными гранями полок 36М | D185: т | E185: 1.56 | F185: 0 | G185: 0 | H185: 112215.74 | I185: 175056.56 | J185: 175056.56
A186: 72 | B186: Прайс | C186: Прокат листовой горячекатаный t=10 мм | D186: т | E186: 1.04 | F186: 0 | G186: 0 | H186: 94507.82 | I186: 98288.13 | J186: 98288.13
A187: 73 | B187: Прайс | C187: Прокат листовой горячекатаный t=6 мм | D187: т | E187: 0.104 | F187: 0 | G187: 0 | H187: 91042.12 | I187: 9468.38 | J187: 9468.38
A188: 74 | B188: Прайс | C188: Уголки стальные горячекатаные равнополочные 110х7 мм | D188: т | E188: 0.104 | F188: 0 | G188: 0 | H188: 115256.44 | I188: 11986.67 | J188: 11986.67
A189: 75 | B189: Прайс | C189: Уголки стальные горячекатаные равнополочные 75х5 мм | D189: т | E189: 0.104 | F189: 0 | G189: 0 | H189: 106125.96 | I189: 11037.1 | J189: 11037.1
A190: 76 | B190: ТССЦпг-03-02-01-140 | C190: Перевозка строительных грузов (кроме массовых навалочных, перевозимых автомобилями-самосвалами, а также бетонных и железобетонных изделий, стеновых и перегородочных материалов, лесоматериалов круглых и пиломатериалов, включенных в таблицу 03-01), бортовым автомобилем грузоподъемностью 5 т, на расстояние до 140 км I класс груза | D190: 1 т груза | E190: 5.2 | F190: 0 | G190: 0 | H190: 2338.56 | I190: 12160.5 | J190: 12160.5
A191: 77 | B191: ТССЦпг-01-01-02-015 | C191: Разгрузочные работы при автомобильных перевозках: металлических конструкций массой до 1 т | D191: 1 т груза | E191: 5.2 | F191: 0 | G191: 0 | H191: 470.75 | I191: 2447.9 | J191: 2447.9
A192: Конструкции фахверка | J192: 0
A193: 78 | B193: ТЕРм38-01-003-03 | C193: Решетчатые конструкции (стойки, опоры, фермы и пр.), сборка с помощью: лебедок электрических (с установкой и снятием их в процессе работы) | D193: 1 т конструкций | E193: 9.3 | F193: 145545 | G193: 1353568.83 | H193: 3563.29 | I193: 33138.61 | J193: 1386707.44
B194: 101-0324 | C194: Кислород технический: газообразный | D194: м3 | E194: 2,6 24,18 | J194: 0
B195: 101-1521 | C195: Электроды диаметром: 5 мм Э42 | D195: т | E195: 0,0215 0,2 | J195: 0
B196: 101-2278 | C196: Пропан-бутан, смесь техническая | D196: кг | E196: 0,5 4,65 | J196: 0
B197: 999-9950 | C197: Вспомогательные ненормируемые ресурсы (2% от Оплаты труда рабочих) | D197: руб | E197: 42,32 393,6 | J197: 0
A198: 79 | B198: ТЕР09-04-006-01 Тех. часть ТЕР09. Строительные металлические конструкции. II. Исчисление объемов работ, п. 2.9.1, k=1,04, (1 % на массу сварных швов и 3 % к итогу на уточнение массы при разработке чертежей КМД) | C198: Монтаж фахверка | D198: 1 т конструкций | E198: 9.672 | F198: 50226.94 | G198: 485794.95 | H198: 2655.98 | I198: 25688.6 | J198: 511483.55
B199: 101-0309 | C199: Канаты пеньковые пропитанные | D199: т | E199: 0,0001 0,001 | J199: 0
B200: 101-0324 | C200: Кислород технический: газообразный | D200: м3 | E200: 2,6 25,15 | J200: 0
B201: 101-0797 | C201: Проволока горячекатаная в мотках, диаметром 6,3-6,5 мм | D201: т | E201: 0,00003 0,0003 | J201: 0
B202: 101-1019 | C202: Швеллеры № 40 из стали марки: Ст0 | D202: т | E202: 0,00194 0,0188 | J202: 0
B203: 101-1515 | C203: Электроды диаметром: 4 мм Э46 | D203: т | E203: 0,016 0,1548 | J203: 0
... 378 more rows

Sheet 1632-2021-2.2.5,2.1.6,2.1.13-1
A2: Терминал по перевалке минеральных удобрений в морском торговом порту Усть-Луга. Береговые объекты терминала
A3: (наименование стройки)
A5: ЛОКАЛЬНАЯ СМЕТА № 1632-2021-2.2.5,2.1.6,2.1.13-КМ_07.04.024-П-01-03
A6: (локальная смета)
A7: на Конструкции металлические, 07.04.024 Пересыпная станция №5 (код SAP 01.02.019) код ГП 2.2.5
A8: (наименование работ и затрат, наименование объекта)
B9: Основание: | C9: 1632-2021-2.2.5, 2.1.6, 2.1.13-КМ_2_0_RU_IFC
A11: № п/п | B11: Обоснование | C11: Наименование работ и затрат | D11: Ед. изм. | E11: Кол-во | F11: Цена за ед.измерения работ, руб. с НДС | G11: Всего, стоимость работ,руб. с НДС | H11: Цена за ед.измерения материалов, руб. с НДС | I11: Всего, стоимость материалов, руб. с НДС | J11: Итого, руб. с НДС
A12: 1 | B12: 2 | C12: 3 | D12: 4 | E12: 5 | F12: 6 | G12: 7 | H12: 8 | I12: 9 | J12: 10
A13: Раздел 1. Колонны
A14: 1 | B14: ТЕР09-03-002-03 | C14: Монтаж колонн одноэтажных и многоэтажных зданий и крановых эстакад высотой: до 25 м цельного сечения массой до 5,0 т | D14: 1 т конструкций | E14: 34.85005 | F14: 10199.25 | G14: 355444.2 | H14: 638.93 | I14: 22266.71 | J14: =G14+I14 -> 377710.91
B15: 101-0309 | C15: Канаты пеньковые пропитанные | D15: т | E15: 0,0001 0,0035 | J15: =G15+I15 -> 0
B16: 101-0324 | C16: Кислород технический: газообразный | D16: м3 | E16: 0,6 20,91 | J16: 0
B17: 101-0797 | C17: Проволока горячекатаная в мотках, диаметром 6,3-6,5 мм | D17: т | E17: 0,00003 0,001 | J17: 0
B18: 101-1019 | C18: Швеллеры № 40 из стали марки: Ст0 | D18: т | E18: 0,00194 0,0676 | J18: 0
B19: 101-1513 | C19: Электроды диаметром: 4 мм Э42 | D19: т | E19: 0,0011 0,0383 | J19: 0
B20: 101-1714 | C20: Болты с гайками и шайбами строительные | D20: т | E20: 0,00007 0,0024 | J20: 0
B21: 101-1805 | C21: Гвозди строительные | D21: т | E21: 0,00001 0,0003 | J21: 0
B22: 101-2278 | C22: Пропан-бутан, смесь техническая | D22: кг | E22: 0,18 6,273 | J22: 0
B23: 101-2467 | C23: Растворитель марки: Р-4 | D23: т | E23: 0,0006 0,0209 | J23: 0
B24: 102-0023 | C24: Бруски обрезные хвойных пород длиной: 4-6,5 м, шириной 75-150 мм, толщиной 40-75 мм, I сорта | D24: м3 | E24: 0,00103 0,0359 | J24: 0
B25: 113-0021 | C25: Грунтовка: ГФ-021 красно-коричневая | D25: т | E25: 0,00031 0,0108 | J25: 0
B26: 201-0756 | C26: Отдельные конструктивные элементы зданий и сооружений с преобладанием: горячекатаных профилей, средняя масса сборочной единицы от 0,1 до 0,5 т | D26: т | E26: 0,0003 0,0105 | J26: 0
B27: 508-0097 | C27: Канат двойной свивки типа ТК, конструкции 6х19(1+6+12)+1 о.с., оцинкованный из проволок марки В, маркировочная группа: 1770 н/мм2, диаметром 5,5 мм | D27: 10 м | E27: 0,0187 0,6517 | J27: 0
A28: 2 | B28: ТЕРм38-01-002-03 | C28: Монорельсы, балки и другие аналогичные конструкции промышленных зданий, сборка с помощью: лебедок электрических (с установкой и снятием их в процессе работы) | D28: 1 т конструкций | E28: 34.505 | F28: 39050.34 | G28: 1347431.84 | H28: 602.19 | I28: 20778.43 | J28: 1368210.27
B29: 101-0324 | C29: Кислород технический: газообразный | D29: м3 | E29: 0,6 20,7 | J29: 0
B30: 101-1521 | C30: Электроды диаметром: 5 мм Э42 | D30: т | E30: 0,0032 0,1104 | J30: 0
B31: 101-2278 | C31: Пропан-бутан, смесь техническая | D31: кг | E31: 0,2 6,901 | J31: 0
B32: 999-9950 | C32: Вспомогательные ненормируемые ресурсы (2% от Оплаты труда рабочих) | D32: руб | E32: 10,14 349,9 | J32: 0
A33: 3 | B33: Прайс | C33: Двутавр 30Ш1 | D33: т | E33: 5.665 | F33: 0 | G33: 0 | H33: 94324.68 | I33: 534349.31 | J33: 534349.31
A34: 4 | B34: Прайс | C34: Двутавр 35Ш1 | D34: т | E34: 24.617 | F34: 0 | G34: 0 | H34: 95663.51 | I34: 2354948.72 | J34: 2354948.72
A35: 5 | B35: Прайс | C35: Уголок не равнополочный 100*63*8 | D35: т | E35: 0.309 | F35: 0 | G35: 0 | H35: 118667.44 | I35: 36668.24 | J35: 36668.24
A36: 6 | B36: Прайс | C36: Прокат листовой 30мм | D36: т | E36: 0.927 | F36: 0 | G36: 0 | H36: 117874.01 | I36: 109269.21 | J36: 109269.21
A37: 7 | B37: Прайс | C37: Прокат листовой 20мм | D37: т | E37: 1.236 | F37: 0 | G37: 0 | H37: 106982.02 | I37: 132229.78 | J37: 132229.78
A38: 8 | B38: Прайс | C38: Прокат листовой 16мм | D38: т | E38: 0.206 | F38: 0 | G38: 0 | H38: 103816.02 | I38: 21386.1 | J38: 21386.1
A39: 9 | B39: Прайс | C39: Прокат листовой 12мм | D39: т | E39: 0.824 | F39: 0 | G39: 0 | H39: 96028.24 | I39: 79127.27 | J39: 79127.27
A40: 10 | B40: Прайс | C40: Прокат листовой 10мм | D40: т | E40: 0.721 | F40: 0 | G40: 0 | H40: 94506.24 | I40: 68139 | J40: 68139
A41: Перевозка материалов (металл 140 км. ОП "МКМ-СПб") | J41: 0
A42: 11 | C42: Металлопрокат, трубопрокат и металлоконструкции | D42: т | E42: 34.505 | F42: 0 | G42: 0 | H42: 0 | I42: 0 | J42: 0
A43: 12 | B43: ТССЦпг-03-02-01-140 | C43: Перевозка строительных грузов (кроме массовых навалочных, перевозимых автомобилями-самосвалами, а также бетонных и железобетонных изделий, стеновых и перегородочных материалов, лесоматериалов круглых и пиломатериалов, включенных в таблицу 03-01), бортовым автомобилем грузоподъемностью 5 т, на расстояние до 140 км I класс груза | D43: 1 т груза | E43: 34.505 | F43: 0 | G43: 0 | H43: 2338.68 | I43: 80695.99 | J43: 80695.99
A44: 13 | B44: ТССЦпг-01-01-02-015 | C44: Разгрузочные работы при автомобильных перевозках: металлических конструкций массой до 1 т | D44: 1 т груза | E44: 34.505 | F44: 0 | G44: 0 | H44: 470.67 | I44: 16240.33 | J44: 16240.33
A45: Раздел 2. Балки | J45: 0
A46: 14 | B46: ТЕР09-03-002-12 | C46: Монтаж балок, ригелей перекрытия, покрытия и под установку оборудования многоэтажных зданий при высоте здания: до 25 м | D46: 1 т конструкций | E46: 68.76383 | F46: 35504.73 | G46: 2441441.23 | H46: 1640.28 | I46: 112791.66 | J46: 2554232.89
B47: 101-0309 | C47: Канаты пеньковые пропитанные | D47: т | E47: 0,0001 0,0069 | J47: 0
B48: 101-0324 | C48: Кислород технический: газообразный | D48: м3 | E48: 1,95 134,1 | J48: 0
B49: 101-0797 | C49: Проволока горячекатаная в мотках, диаметром 6,3-6,5 мм | D49: т | E49: 0,00003 0,0021 | J49: 0
B50: 101-1019 | C50: Швеллеры № 40 из стали марки: Ст0 | D50: т | E50: 0,00194 0,1334 | J50: 0
B51: 101-1513 | C51: Электроды диаметром: 4 мм Э42 | D51: т | E51: 0,0031 0,2132 | J51: 0
B52: 101-1714 | C52: Болты с гайками и шайбами строительные | D52: т | E52: 0,0031 0,2132 | J52: 0
B53: 101-1805 | C53: Гвозди строительные | D53: т | E53: 0,00001 0,0007 | J53: 0
B54: 101-2278 | C54: Пропан-бутан, смесь техническая | D54: кг | E54: 0,59 40,57 | J54: 0
B55: 101-2467 | C55: Растворитель марки: Р-4 | D55: т | E55: 0,0006 0,0413 | J55: 0
B56: 102-0023 | C56: Бруски обрезные хвойных пород длиной: 4-6,5 м, шириной 75-150 мм, толщиной 40-75 мм, I сорта | D56: м3 | E56: 0,00103 0,0708 | J56: 0
B57: 113-0021 | C57: Грунтовка: ГФ-021 красно-коричневая | D57: т | E57: 0,00031 0,0213 | J57: 0
B58: 201-0756 | C58: Отдельные конструктивные элементы зданий и сооружений с преобладанием: горячекатаных профилей, средняя масса сборочной единицы от 0,1 до 0,5 т | D58: т | E58: 0,0005 0,0344 | J58: 0
B59: 508-0097 | C59: Канат двойной свивки типа ТК, конструкции 6х19(1+6+12)+1 о.с., оцинкованный из проволок марки В, маркировочная группа: 1770 н/мм2, диаметром 5,5 мм | D59: 10 м | E59: 0,0187 1,286 | J59: 0
A60: 15 | B60: ТЕРм38-01-002-03 | C60: Монорельсы, балки и другие аналогичные конструкции промышленных зданий, сборка с помощью: лебедок электрических (с установкой и снятием их в процессе работы) | D60: 1 т конструкций | E60: 68.083 | F60: 39050.33 | G60: 2658663.76 | H60: 602.18 | I60: 40998.04 | J60: 2699661.8
B61: 101-0324 | C61: Кислород технический: газообразный | D61: м3 | E61: 0,6 40,85 | J61: 0
B62: 101-1521 | C62: Электроды диаметром: 5 мм Э42 | D62: т | E62: 0,0032 0,2179 | J62: 0
B63: 101-2278 | C63: Пропан-бутан, смесь техническая | D63: кг | E63: 0,2 13,62 | J63: 0
B64: 999-9950 | C64: Вспомогательные ненормируемые ресурсы (2% от Оплаты труда рабочих) | D64: руб | E64: 10,14 690,4 | J64: 0
A65: 16 | B65: Прайс | C65: Двутавр 25Ш1 | D65: т | E65: 0.309 | F65: 0 | G65: 0 | H65: 93227.77 | I65: 28807.38 | J65: 28807.38
A66: 17 | B66: Прайс | C66: Двутавр 30Б1 | D66: т | E66: 16.068 | F66: 0 | G66: 0 | H66: 114649.14 | I66: 1842182.32 | J66: 1842182.32
A67: 18 | B67: Прайс | C67: Двутавр 30Ш1 | D67: т | E67: 4.017 | F67: 0 | G67: 0 | H67: 94324.58 | I67: 378901.82 | J67: 378901.82
A68: 19 | B68: Прайс | C68: Двутавр 35Ш1 | D68: т | E68: 12.257 | F68: 0 | G68: 0 | H68: 95663.51 | I68: 1172547.67 | J68: 1172547.67
A69: 20 | B69: Прайс | C69: Двутавр 40Ш1 | D69: т | E69: 9.373 | F69: 0 | G69: 0 | H69: 96028.48 | I69: 900074.98 | J69: 900074.98
A70: 21 | B70: Прайс | C70: Двутавр 70Б2 | D70: т | E70: 11.536 | F70: 0 | G70: 0 | H70: 121465.57 | I70: 1401226.77 | J70: 1401226.77
A71: 22 | B71: Прайс | C71: Швеллер 24П | D71: т | E71: 2.06 | F71: 0 | G71: 0 | H71: 109842.59 | I71: 226275.74 | J71: 226275.74
A72: 23 | B72: Прайс | C72: Уголок равнополочный 100*7 | D72: т | E72: 0.103 | F72: 0 | G72: 0 | H72: 112540 | I72: 11591.62 | J72: 11591.62
A73: 24 | B73: Прайс | C73: Уголок не равнополочный 100*63*8 | D73: т | E73: 1.236 | F73: 0 | G73: 0 | H73: 118666.29 | I73: 146671.53 | J73: 146671.53
A74: 25 | B74: Прайс | C74: Прокат листовой 16мм | D74: т | E74: 3.502 | F74: 0 | G74: 0 | H74: 103817.64 | I74: 363569.39 | J74: 363569.39
A75: 26 | B75: Прайс | C75: Прокат листовой 14мм | D75: т | E75: 2.678 | F75: 0 | G75: 0 | H75: 99313.74 | I75: 265962.19 | J75: 265962.19
A76: 27 | B76: Прайс | C76: Прокат листовой 12мм | D76: т | E76: 1.236 | F76: 0 | G76: 0 | H76: 96028.82 | I76: 118691.62 | J76: 118691.62
A77: 28 | B77: Прайс | C77: Прокат листовой 10мм | D77: т | E77: 3.708 | F77: 0 | G77: 0 | H77: 94507.02 | I77: 350432.03 | J77: 350432.03
A78: Перевозка материалов (металл 140 км. ОП "МКМ-СПб") | J78: 0
A79: 29 | C79: Металлопрокат, трубопрокат и металлоконструкции | D79: т | E79: 68.083 | F79: 0 | G79: 0 | H79: 0 | I79: 0 | J79: =G79+I79 -> 0
A80: 30 | B80: ТССЦпг-03-02-01-140 | C80: Перевозка строительных грузов (кроме массовых навалочных, перевозимых автомобилями-самосвалами, а также бетонных и железобетонных изделий, стеновых и перегородочных материалов, лесоматериалов круглых и пиломатериалов, включенных в таблицу 03-01), бортовым автомобилем грузоподъемностью 5 т, на расстояние до 140 км I класс груза | D80: 1 т груза | E80: 68.083 | F80: 0 | G80: 0 | H80: 2338.66 | I80: 159222.77 | J80: 159222.77
A81: 31 | B81: ТССЦпг-01-01-02-015 | C81: Разгрузочные работы при автомобильных перевозках: металлических конструкций массой до 1 т | D81: 1 т груза | E81: 68.083 | F81: 0 | G81: 0 | H81: 470.66 | I81: 32043.95 | J81: 32043.95
A82: Раздел 3. Прогоны | J82: 0
A83: 32 | B83: ТЕР09-03-015-01 | C83: Монтаж прогонов при шаге ферм до 12 м при высоте здания: до 25 м | D83: 1 т конструкций | E83: 5.72165 | F83: 24724.84 | G83: 141466.87 | H83: 1307.85 | I83: 7483.05 | J83: 148949.92
B84: 101-0309 | C84: Канаты пеньковые пропитанные | D84: т | E84: 0,0001 0,0006 | J84: 0
B85: 101-0324 | C85: Кислород технический: газообразный | D85: м3 | E85: 0,5 2,861 | J85: 0
B86: 101-0797 | C86: Проволока горячекатаная в мотках, диаметром 6,3-6,5 мм | D86: т | E86: 0,00003 0,0002 | J86: 0
B87: 101-1019 | C87: Швеллеры № 40 из стали марки: Ст0 | D87: т | E87: 0,00194 0,0111 | J87: 0
B88: 101-1513 | C88: Электроды диаметром: 4 мм Э42 | D88: т | E88: 0,0026 0,0149 | J88: 0
B89: 101-1714 | C89: Болты с гайками и шайбами строительные | D89: т | E89: 0,003 0,0172 | J89: 0
B90: 101-1805 | C90: Гвозди строительные | D90: т | E90: 0,00001 0,0001 | J90: 0
B91: 101-2278 | C91: Пропан-бутан, смесь техническая | D91: кг | E91: 0,15 0,8582 | J91: 0
B92: 101-2467 | C92: Растворитель марки: Р-4 | D92: т | E92: 0,0006 0,0034 | J92: 0
B93: 102-0023 | C93: Бруски обрезные хвойных пород длиной: 4-6,5 м, шириной 75-150 мм, толщиной 40-75 мм, I сорта | D93: м3 | E93: 0,00103 0,0059 | J93: 0
B94: 113-0021 | C94: Грунтовка: ГФ-021 красно-коричневая | D94: т | E94: 0,00031 0,0018 | J94: 0
B95: 201-0756 | C95: Отдельные конструктивные элементы зданий и сооружений с преобладанием: горячекатаных профилей, средняя масса сборочной единицы от 0,1 до 0,5 т | D95: т | E95: 0,0001 0,0006 | J95: 0
B96: 508-0097 | C96: Канат двойной свивки типа ТК, конструкции 6х19(1+6+12)+1 о.с., оцинкованный из проволок марки В, маркировочная группа: 1770 н/мм2, диаметром 5,5 мм | D96: 10 м | E96: 0,0187 0,107 | J96: 0
A97: 33 | B97: ТЕРм38-01-003-03 | C97: Решетчатые конструкции (стойки, опоры, фермы и пр.), сборка с помощью: лебедок электрических (с установкой и снятием их в процессе работы) | D97: 1 т конструкций | E97: 5.665 | F97: 145545.4 | G97: 824514.69 | H97: 3563.13 | I97: 20185.13 | J97: 844699.82
B98: 101-0324 | C98: Кислород технический: газообразный | D98: м3 | E98: 2,6 14,73 | J98: 0
B99: 101-1521 | C99: Электроды диаметром: 5 мм Э42 | D99: т | E99: 0,0215 0,1218 | J99: 0
B100: 101-2278 | C100: Пропан-бутан, смесь техническая | D100: кг | E100: 0,5 2,833 | J100: 0
B101: 999-9950 | C101: Вспомогательные ненормируемые ресурсы (2% от Оплаты труда рабочих) | D101: руб | E101: 42,32 239,7 | J101: 0
A102: 34 | B102: Прайс | C102: Швеллер 20П | D102: т | E102: 5.15 | F102: 0 | G102: 0 | H102: 107663.2 | I102: 554465.48 | J102: 554465.48
A103: 35 | B103: Прайс | C103: Уголок не равнополочный 140*90*8 | D103: т | E103: 0.515 | F103: 0 | G103: 0 | H103: 139173.55 | I103: 71674.38 | J103: 71674.38
A104: Перевозка материалов (металл 140 км. ОП "МКМ-СПб") | J104: 0
A105: 36 | C105: Металлопрокат, трубопрокат и металлоконструкции | D105: т | E105: 5.665 | F105: 0 | G105: 0 | H105: 0 | I105: 0 | J105: 0
A106: 37 | B106: ТССЦпг-03-02-01-140 | C106: Перевозка строительных грузов (кроме массовых навалочных, перевозимых автомобилями-самосвалами, а также бетонных и железобетонных изделий, стеновых и перегородочных материалов, лесоматериалов круглых и пиломатериалов, включенных в таблицу 03-01), бортовым автомобилем грузоподъемностью 5 т, на расстояние до 140 км I класс груза | D106: 1 т груза | E106: 5.665 | F106: 0 | G106: 0 | H106: 2338.56 | I106: 13247.97 | J106: 13247.97
A107: 38 | B107: ТССЦпг-01-01-02-015 | C107: Разгрузочные работы при автомобильных перевозках: металлических конструкций массой до 1 т | D107: 1 т груза | E107: 5.665 | F107: 0 | G107: 0 | H107: 470.65 | I107: 2666.26 | J107: 2666.26
A108: Раздел 4. Связи, распорки | J108: 0
A109: 39 | B109: ТЕР09-03-014-01 | C109: Монтаж связей и распорок из одиночных и парных уголков, гнутосварных профилей для пролетов: до 24 м при высоте здания до 25 м | D109: 1 т конструкций | E109: 12.58763 | F109: 85716.35 | G109: 1078965.72 | H109: 4252.29 | I109: 53526.3 | J109: 1132492.02
B110: 101-0309 | C110: Канаты пеньковые пропитанные | D110: т | E110: 0,0001 0,0013 | J110: 0
B111: 101-0324 | C111: Кислород технический: газообразный | D111: м3 | E111: 1,2 15,11 | J111: 0
B112: 101-0797 | C112: Проволока горячекатаная в мотках, диаметром 6,3-6,5 мм | D112: т | E112: 0,00003 0,0004 | J112: 0
B113: 101-1019 | C113: Швеллеры № 40 из стали марки: Ст0 | D113: т | E113: 0,00194 0,0244 | J113: 0
B114: 101-1513 | C114: Электроды диаметром: 4 мм Э42 | D114: т | E114: 0,00044 0,0055 | J114: 0
B115: 101-1714 | C115: Болты с гайками и шайбами строительные | D115: т | E115: 0,021 0,2643 | J115: 0
B116: 101-1805 | C116: Гвозди строительные | D116: т | E116: 0,00001 0,0001 | J116: 0
B117: 101-2278 | C117: Пропан-бутан, смесь техническая | D117: кг | E117: 0,36 4,532 | J117: 0
B118: 101-2467 | C118: Растворитель марки: Р-4 | D118: т | E118: 0,0006 0,0076 | J118: 0
B119: 102-0023 | C119: Бруски обрезные хвойных пород длиной: 4-6,5 м, шириной 75-150 мм, толщиной 40-75 мм, I сорта | D119: м3 | E119: 0,00103 0,013 | J119: 0
B120: 113-0021 | C120: Грунтовка: ГФ-021 красно-коричневая | D120: т | E120: 0,00031 0,0039 | J120: 0
B121: 201-0756 | C121: Отдельные конструктивные элементы зданий и сооружений с преобладанием: горячекатаных профилей, средняя масса сборочной единицы от 0,1 до 0,5 т | D121: т | E121: 0,0002 0,0025 | J121: 0
B122: 508-0097 | C122: Канат двойной свивки типа ТК, конструкции 6х19(1+6+12)+1 о.с., оцинкованный из проволок марки В, маркировочная группа: 1770 н/мм2, диаметром 5,5 мм | D122: 10 м | E122: 0,0187 0,2354 | J122: 0
A123: 40 | B123: ТЕРм38-01-003-03 | C123: Решетчатые конструкции (стойки, опоры, фермы и пр.), сборка с помощью: лебедок электрических (с установкой и снятием их в процессе работы) | D123: 1 т конструкций | E123: 12.463 | F123: 145545.29 | G123: 1813930.89 | H123: 3563.22 | I123: 44408.44 | J123: 1858339.33
B124: 101-0324 | C124: Кислород технический: газообразный | D124: м3 | E124: 2,6 32,4 | J124: 0
B125: 101-1521 | C125: Электроды диаметром: 5 мм Э42 | D125: т | E125: 0,0215 0,268 | J125: 0
B126: 101-2278 | C126: Пропан-бутан, смесь техническая | D126: кг | E126: 0,5 6,232 | J126: 0
B127: 999-9950 | C127: Вспомогательные ненормируемые ресурсы (2% от Оплаты труда рабочих) | D127: руб | E127: 42,32 527,4 | J127: 0
A128: 41 | B128: Прайс | C128: Профиль гн. 200*7 | D128: т | E128: 1.236 | F128: 0 | G128: 0 | H128: 134183.71 | I128: 165851.07 | J128: 165851.07
A129: 42 | B129: Прайс | C129: Профиль гн. 160*5 | D129: т | E129: 3.914 | F129: 0 | G129: 0 | H129: 124872.98 | I129: 488752.83 | J129: 488752.83
A130: 43 | B130: Прайс | C130: Профиль гн. 120*5 | D130: т | E130: 1.236 | F130: 0 | G130: 0 | H130: 113870.78 | I130: 140744.28 | J130: 140744.28
A131: 44 | B131: Прайс | C131: Профиль гн. 100*5 | D131: т | E131: 3.708 | F131: 0 | G131: 0 | H131: 109780.76 | I131: 407067.05 | J131: 407067.05
A132: 45 | B132: Прайс | C132: Профиль гн. 80*5 | D132: т | E132: 0.103 | F132: 0 | G132: 0 | H132: 99248.25 | I132: 10222.57 | J132: 10222.57
A133: 46 | B133: Прайс | C133: Уголок равнополочный 100*7 | D133: т | E133: 0.206 | F133: 0 | G133: 0 | H133: 112546.94 | I133: 23184.67 | J133: 23184.67
A134: 47 | B134: Прайс | C134: Прокат листовой 16мм | D134: т | E134: 1.133 | F134: 0 | G134: 0 | H134: 103817.91 | I134: 117625.69 | J134: 117625.69
A135: 48 | B135: Прайс | C135: Прокат листовой 12мм | D135: т | E135: 0.412 | F135: 0 | G135: 0 | H135: 96029.98 | I135: 39564.35 | J135: 39564.35
A136: 49 | B136: Прайс | C136: Прокат листовой 10мм | D136: т | E136: 0.412 | F136: 0 | G136: 0 | H136: 94506.24 | I136: 38936.57 | J136: 38936.57
A137: 50 | B137: Прайс | C137: Прокат листовой 4мм | D137: т | E137: 0.103 | F137: 0 | G137: 0 | H137: 76430.68 | I137: 7872.36 | J137: 7872.36
A138: Перевозка материалов (металл 140 км. ОП "МКМ-СПб") | J138: 0
A139: 51 | C139: Металлопрокат, трубопрокат и металлоконструкции | D139: т | E139: 12.463 | F139: 0 | G139: 0 | H139: 0 | I139: 0 | J139: 0
A140: 52 | B140: ТССЦпг-03-02-01-140 | C140: Перевозка строительных грузов (кроме массовых навалочных, перевозимых автомобилями-самосвалами, а также бетонных и железобетонных изделий, стеновых и перегородочных материалов, лесоматериалов круглых и пиломатериалов, включенных в таблицу 03-01), бортовым автомобилем грузоподъемностью 5 т, на расстояние до 140 км I класс груза | D140: 1 т груза | E140: 12.463 | F140: 0 | G140: 0 | H140: 2338.63 | I140: 29146.4 | J140: 29146.4
A141: 53 | B141: ТССЦпг-01-01-02-015 | C141: Разгрузочные работы при автомобильных перевозках: металлических конструкций массой до 1 т | D141: 1 т груза | E141: 12.463 | F141: 0 | G141: 0 | H141: 470.63 | I141: 5865.48 | J141: 5865.48
A142: Раздел 5. Балки крановые, рельсы и эл-ты крепления | J142: 0
A143: 54 | B143: ТЕР09-03-003-02 | C143: Монтаж одиночных подкрановых балок на отметке до 25 м массой: до 2,0 т | D143: 1 т конструкций | E143: 8.53046 | F143: 23013.39 | G143: 196314.8 | H143: 1989.35 | I143: 16970.11 | J143: =G143+I143 -> 213284.91
B144: 101-0309 | C144: Канаты пеньковые пропитанные | D144: т | E144: 0,0001 0,0009 | J144: 0
B145: 101-0324 | C145: Кислород технический: газообразный | D145: м3 | E145: 1,1 9,384 | J145: 0
B146: 101-0797 | C146: Проволока горячекатаная в мотках, диаметром 6,3-6,5 мм | D146: т | E146: 0,00003 0,0003 | J146: 0
B147: 101-1019 | C147: Швеллеры № 40 из стали марки: Ст0 | D147: т | E147: 0,00194 0,0165 | J147: 0
B148: 101-1513 | C148: Электроды диаметром: 4 мм Э42 | D148: т | E148: 0,0034 0,029 | J148: 0
B149: 101-1714 | C149: Болты с гайками и шайбами строительные | D149: т | E149: 0,0028 0,0239 | J149: 0
B150: 101-1805 | C150: Гвозди строительные | D150: т | E150: 0,00001 0,0001 | J150: 0
B151: 101-2278 | C151: Пропан-бутан, смесь техническая | D151: кг | E151: 0,33 2,815 | J151: 0
B152: 101-2467 | C152: Растворитель марки: Р-4 | D152: т | E152: 0,0006 0,0051 | J152: 0
B153: 102-0023 | C153: Бруски обрезные хвойных пород длиной: 4-6,5 м, шириной 75-150 мм, толщиной 40-75 мм, I сорта | D153: м3 | E153: 0,00103 0,0088 | J153: 0
B154: 113-0021 | C154: Грунтовка: ГФ-021 красно-коричневая | D154: т | E154: 0,00031 0,0026 | J154: 0
B155: 201-0756 | C155: Отдельные конструктивные элементы зданий и сооружений с преобладанием: горячекатаных профилей, средняя масса сборочной единицы от 0,1 до 0,5 т | D155: т | E155: 0,003 0,0256 | J155: 0
B156: 508-0097 | C156: Канат двойной свивки типа ТК, конструкции 6х19(1+6+12)+1 о.с., оцинкованный из проволок марки В, маркировочная группа: 1770 н/мм2, диаметром 5,5 мм | D156: 10 м | E156: 0,0187 0,1595 | J156: 0
A157: 55 | B157: ТЕРм38-01-002-03 | C157: Монорельсы, балки и другие аналогичные конструкции промышленных зданий, сборка с помощью: лебедок электрических (с установкой и снятием их в процессе работы) | D157: 1 т конструкций | E157: 8.446 | F157: 39050.13 | G157: 329817.37 | H157: 602.28 | I157: 5086.87 | J157: 334904.24
B158: 101-0324 | C158: Кислород технический: газообразный | D158: м3 | E158: 0,6 5,068 | J158: 0
B159: 101-1521 | C159: Электроды диаметром: 5 мм Э42 | D159: т | E159: 0,0032 0,027 | J159: 0
B160: 101-2278 | C160: Пропан-бутан, смесь техническая | D160: кг | E160: 0,2 1,689 | J160: 0
B161: 999-9950 | C161: Вспомогательные ненормируемые ресурсы (2% от Оплаты труда рабочих) | D161: руб | E161: 10,14 85,64 | J161: 0
A162: 56 | B162: Прайс | C162: Двутавр М45 | D162: т | E162: 5.768 | F162: 0 | G162: 0 | H162: 113067.48 | I162: 652173.24 | J162: 652173.24
A163: 57 | B163: Прайс | C163: Двутавр М36 | D163: т | E163: 0.721 | F163: 0 | G163: 0 | H163: 112215.21 | I163: 80907.17 | J163: 80907.17
A164: 58 | B164: Прайс | C164: Уголок равнополочный 100*7 | D164: т | E164: 0.103 | F164: 0 | G164: 0 | H164: 112540 | I164: 11591.62 | J164: 11591.62
A165: 59 | B165: Прайс | C165: Прокат листовой 16мм | D165: т | E165: 0.206 | F165: 0 | G165: 0 | H165: 103816.02 | I165: 21386.1 | J165: 21386.1
A166: 60 | B166: Прайс | C166: Прокат листовой 10мм | D166: т | E166: 0.618 | F166: 0 | G166: 0 | H166: 94506.25 | I166: 58404.86 | J166: 58404.86
A167: 61 | B167: ТЕР09-03-003-02 | C167: Монтаж одиночных подкрановых балок на отметке до 25 м массой: до 2,0 т | D167: 1 т конструкций | E167: 1.01 | F167: 26003.19 | G167: 26263.22 | H167: 2248.71 | I167: 2271.2 | J167: 28534.42
B168: 101-0309 | C168: Канаты пеньковые пропитанные | D168: т | E168: 0,000113 0,0001 | J168: 0
B169: 101-0324 | C169: Кислород технический: газообразный | D169: м3 | E169: 1,243 1,255 | J169: 0
B170: 101-0797 | C170: Проволока горячекатаная в мотках, диаметром 6,3-6,5 мм | D170: т | E170: 0,0000339 0 | J170: 0
B171: 101-1019 | C171: Швеллеры № 40 из стали марки: Ст0 | D171: т | E171: 0,0021922 0,0022 | J171: 0
B172: 101-1513 | C172: Электроды диаметром: 4 мм Э42 | D172: т | E172: 0,003842 0,0039 | J172: 0
B173: 101-1714 | C173: Болты с гайками и шайбами строительные | D173: т | E173: 0,003164 0,0032 | J173: 0
B174: 101-1805 | C174: Гвозди строительные | D174: т | E174: 0,0000113 0 | J174: 0
B175: 101-2278 | C175: Пропан-бутан, смесь техническая | D175: кг | E175: 0,3729 0,3766 | J175: 0
B176: 101-2467 | C176: Растворитель марки: Р-4 | D176: т | E176: 0,000678 0,0007 | J176: 0
B177: 102-0023 | C177: Бруски обрезные хвойных пород длиной: 4-6,5 м, шириной 75-150 мм, толщиной 40-75 мм, I сорта | D177: м3 | E177: 0,0011639 0,0012 | J177: 0
B178: 113-0021 | C178: Грунтовка: ГФ-021 красно-коричневая | D178: т | E178: 0,0003503 0,0004 | J178: 0
B179: 201-0756 | C179: Отдельные конструктивные элементы зданий и сооружений с преобладанием: горячекатаных профилей, средняя масса сборочной единицы от 0,1 до 0,5 т | D179: т | E179: 0,00339 0,0034 | J179: 0
B180: 508-0097 | C180: Канат двойной свивки типа ТК, конструкции 6х19(1+6+12)+1 о.с., оцинкованный из проволок марки В, маркировочная группа: 1770 н/мм2, диаметром 5,5 мм | D180: 10 м | E180: 0,021131 0,0213 | J180: 0
A181: 62 | B181: ТЕРм38-01-002-03 | C181: Монорельсы, балки и другие аналогичные конструкции промышленных зданий, сборка с помощью: лебедок электрических (с установкой и снятием их в процессе работы) | D181: 1 т конструкций | E181: 1.03 | F181: 39050.78 | G181: 40222.3 | H181: 601.13 | I181: 619.16 | J181: 40841.46
B182: 101-0324 | C182: Кислород технический: газообразный | D182: м3 | E182: 0,6 0,618 | J182: 0
B183: 101-1521 | C183: Электроды диаметром: 5 мм Э42 | D183: т | E183: 0,0032 0,0033 | J183: 0
B184: 101-2278 | C184: Пропан-бутан, смесь техническая | D184: кг | E184: 0,2 0,206 | J184: 0
B185: 999-9950 | C185: Вспомогательные ненормируемые ресурсы (2% от Оплаты труда рабочих) | D185: руб | E185: 10,14 10,44 | J185: 0
A186: 63 | B186: Прайс | C186: Прокат листовой 25мм | D186: т | E186: 1.03 | F186: 0 | G186: 0 | H186: 112337.75 | I186: 115707.88 | J186: 115707.88
A187: Перевозка материалов (металл 140 км. ОП "МКМ-СПб") | J187: 0
A188: 64 | C188: Металлопрокат, трубопрокат и металлоконструкции | D188: т | E188: 9.476 | F188: 0 | G188: 0 | H188: 0 | I188: 0 | J188: 0
A189: 65 | B189: ТССЦпг-03-02-01-140 | C189: Перевозка строительных грузов (кроме массовых навалочных, перевозимых автомобилями-самосвалами, а также бетонных и железобетонных изделий, стеновых и перегородочных материалов, лесоматериалов круглых и пиломатериалов, включенных в таблицу 03-01), бортовым автомобилем грузоподъемностью 5 т, на расстояние до 140 км I класс груза | D189: 1 т груза | E189: 9.476 | F189: 0 | G189: 0 | H189: 2338.73 | I189: 22161.84 | J189: 22161.84
A190: 66 | B190: ТССЦпг-01-01-02-015 | C190: Разгрузочные работы при автомобильных перевозках: металлических конструкций массой до 1 т | D190: 1 т груза | E190: 9.476 | F190: 0 | G190: 0 | H190: 470.72 | I190: 4460.52 | J190: 4460.52
A191: Раздел 6. Фахверк | J191: 0
A192: 67 | B192: ТЕР09-04-006-01 | C192: Монтаж фахверка | D192: 1 т конструкций | E192: 19.66167 | F192: 50227.03 | G192: 987547.23 | H192: 2655.95 | I192: 52220.46 | J192: 1039767.69
B193: 101-0309 | C193: Канаты пеньковые пропитанные | D193: т | E193: 0,0001 0,002 | J193: 0
B194: 101-0324 | C194: Кислород технический: газообразный | D194: м3 | E194: 2,6 51,12 | J194: 0
B195: 101-0797 | C195: Проволока горячекатаная в мотках, диаметром 6,3-6,5 мм | D195: т | E195: 0,00003 0,0006 | J195: 0
B196: 101-1019 | C196: Швеллеры № 40 из стали марки: Ст0 | D196: т | E196: 0,00194 0,0381 | J196: 0
B197: 101-1515 | C197: Электроды диаметром: 4 мм Э46 | D197: т | E197: 0,016 0,3146 | J197: 0
B198: 101-1805 | C198: Гвозди строительные | D198: т | E198: 0,00001 0,0002 | J198: 0
B199: 101-2278 | C199: Пропан-бутан, смесь техническая | D199: кг | E199: 0,78 15,34 | J199: 0
B200: 101-2467 | C200: Растворитель марки: Р-4 | D200: т | E200: 0,0006 0,0118 | J200: 0
B201: 113-0021 | C201: Грунтовка: ГФ-021 красно-коричневая | D201: т | E201: 0,00031 0,0061 | J201: 0
B202: 201-0756 | C202: Отдельные конструктивные элементы зданий и сооружений с преобладанием: горячекатаных профилей, средняя масса сборочной единицы от 0,1 до 0,5 т | D202: т | E202: 0,001 0,0197 | J202: 0
B203: 508-0097 | C203: Канат двойной свивки типа ТК, конструкции 6х19(1+6+12)+1 о.с., оцинкованный из проволок марки В, маркировочная группа: 1770 н/мм2, диаметром 5,5 мм | D203: 10 м | E203: 0,0187 0,3677 | J203: 0
... 128 more rows

Sheet 1632-2021-2.2.5,2.1.6,2.1.13-2
A2: Терминал по перевалке минеральных удобрений в морском торговом порту Усть-Луга. Береговые объекты терминала
A3: (наименование стройки)
A5: ЛОКАЛЬНАЯ СМЕТА № 1632-2021-2.2.5,2.1.6,2.1.13-КМ_07.04.045-П-00-01
A6: (локальная смета)
A7: на Конструкции металлические, 07.04.045 Конвейерная галерея №6 (код SAP 01.02.011) код ГП 2.1.3
A8: (наименование работ и затрат, наименование объекта)
B9: Основание: | C9: 1632-2021-2.2.5, 2.1.6, 2.1.13-КМ_2_0_RU_IFC
A11: № п/п | B11: Обоснование | C11: Наименование работ и затрат | D11: Ед. изм. | E11: Кол-во | F11: Цена за ед.измерения работ, руб. с НДС | G11: Всего, стоимость работ,руб. с НДС | H11: Цена за ед.измерения материалов, руб. с НДС | I11: Всего, стоимость материалов, руб. с НДС | J11: Итого, руб. с НДС
A12: 1 | B12: 2 | C12: 3 | D12: 4 | E12: 5 | F12: 6 | G12: 7 | H12: 8 | I12: 9 | J12: 10
A13: Раздел 1. Колонны
A14: 1 | B14: ТЕР09-03-002-10 | C14: Монтаж колонн многоэтажных зданий различного назначения при высоте здания: до 25 м | D14: 1 т конструкций | E14: 12.79569 | F14: 18512.18 | G14: 236876.13 | H14: 1232.49 | I14: 15770.58 | J14: =G14+I14 -> 252646.71
B15: 101-0309 | C15: Канаты пеньковые пропитанные | D15: т | E15: 0,0001 0,0013 | J15: =G15+I15 -> 0
B16: 101-0324 | C16: Кислород технический: газообразный | D16: м3 | E16: 1,95 24,95 | J16: 0
B17: 101-0797 | C17: Проволока горячекатаная в мотках, диаметром 6,3-6,5 мм | D17: т | E17: 0,00003 0,0004 | J17: 0
B18: 101-1019 | C18: Швеллеры № 40 из стали марки: Ст0 | D18: т | E18: 0,00194 0,0248 | J18: 0
B19: 101-1513 | C19: Электроды диаметром: 4 мм Э42 | D19: т | E19: 0,0016 0,0205 | J19: 0
B20: 101-1714 | C20: Болты с гайками и шайбами строительные | D20: т | E20: 0,00004 0,0005 | J20: 0
B21: 101-1805 | C21: Гвозди строительные | D21: т | E21: 0,00001 0,0001 | J21: 0
B22: 101-2278 | C22: Пропан-бутан, смесь техническая | D22: кг | E22: 0,59 7,549 | J22: 0
B23: 101-2467 | C23: Растворитель марки: Р-4 | D23: т | E23: 0,0006 0,0077 | J23: 0
B24: 102-0023 | C24: Бруски обрезные хвойных пород длиной: 4-6,5 м, шириной 75-150 мм, толщиной 40-75 мм, I сорта | D24: м3 | E24: 0,00103 0,0132 | J24: 0
B25: 113-0021 | C25: Грунтовка: ГФ-021 красно-коричневая | D25: т | E25: 0,00031 0,004 | J25: 0
B26: 201-0756 | C26: Отдельные конструктивные элементы зданий и сооружений с преобладанием: горячекатаных профилей, средняя масса сборочной единицы от 0,1 до 0,5 т | D26: т | E26: 0,0023 0,0294 | J26: 0
B27: 508-0097 | C27: Канат двойной свивки типа ТК, конструкции 6х19(1+6+12)+1 о.с., оцинкованный из проволок марки В, маркировочная группа: 1770 н/мм2, диаметром 5,5 мм | D27: 10 м | E27: 0,0187 0,2393 | J27: 0
A28: 2 | B28: ТЕРм38-01-002-03 | C28: Монорельсы, балки и другие аналогичные конструкции промышленных зданий, сборка с помощью: лебедок электрических (с установкой и снятием их в процессе работы) | D28: 1 т конструкций | E28: 12.669 | F28: 39050.13 | G28: 494726.06 | H28: 602.22 | I28: 7629.58 | J28: 502355.64
B29: 101-0324 | C29: Кислород технический: газообразный | D29: м3 | E29: 0,6 7,601 | J29: 0
B30: 101-1521 | C30: Электроды диаметром: 5 мм Э42 | D30: т | E30: 0,0032 0,0405 | J30: 0
B31: 101-2278 | C31: Пропан-бутан, смесь техническая | D31: кг | E31: 0,2 2,534 | J31: 0
B32: 999-9950 | C32: Вспомогательные ненормируемые ресурсы (2% от Оплаты труда рабочих) | D32: руб | E32: 10,14 128,5 | J32: 0
A33: 3 | B33: Прайс | C33: Двутавр 30Ш1 | D33: т | E33: 2.06 | F33: 0 | G33: 0 | H33: 94324.93 | I33: 194309.36 | J33: 194309.36
A34: 4 | B34: Прайс | C34: Двутавр 35Ш1 | D34: т | E34: 8.961 | F34: 0 | G34: 0 | H34: 95663.54 | I34: 857241.01 | J34: 857241.01
A35: 5 | B35: Прайс | C35: Уголок не равнополочный 100*63*8 | D35: т | E35: 0.103 | F35: 0 | G35: 0 | H35: 118662.82 | I35: 12222.27 | J35: 12222.27
A36: 6 | B36: Прайс | C36: Прокат листовой 30мм | D36: т | E36: 0.412 | F36: 0 | G36: 0 | H36: 117874.78 | I36: 48564.41 | J36: 48564.41
A37: 7 | B37: Прайс | C37: Прокат листовой 20мм | D37: т | E37: 0.515 | F37: 0 | G37: 0 | H37: 106983.42 | I37: 55096.46 | J37: 55096.46
A38: 8 | B38: Прайс | C38: Прокат листовой 12мм | D38: т | E38: 0.309 | F38: 0 | G38: 0 | H38: 96026.5 | I38: 29672.19 | J38: 29672.19
A39: 9 | B39: Прайс | C39: Прокат листовой 10мм | D39: т | E39: 0.309 | F39: 0 | G39: 0 | H39: 94506.25 | I39: 29202.43 | J39: 29202.43
A40: Перевозка материалов (металл 140 км. ОП "МКМ-СПб") | J40: 0
A41: 10 | C41: Арматура, металлопрокат, трубопрокат и металлоконструкции | D41: т | E41: 12.669 | F41: 0 | G41: 0 | H41: 0 | I41: 0 | J41: 0
A42: 11 | B42: ТССЦпг-03-02-01-140 | C42: Перевозка строительных грузов (кроме массовых навалочных, перевозимых автомобилями-самосвалами, а также бетонных и железобетонных изделий, стеновых и перегородочных материалов, лесоматериалов круглых и пиломатериалов, включенных в таблицу 03-01), бортовым автомобилем грузоподъемностью 5 т, на расстояние до 140 км I класс груза | D42: 1 т груза | E42: 12.669 | F42: 0 | G42: 0 | H42: 200.25 | I42: 2536.97 | J42: 2536.97
A43: 12 | B43: ТССЦпг-01-01-02-015 | C43: Разгрузочные работы при автомобильных перевозках: металлических конструкций массой до 1 т | D43: 1 т груза | E43: 12.669 | F43: 0 | G43: 0 | H43: 46.83 | I43: 593.3 | J43: 593.3
A44: Раздел 2. Балки | J44: 0
A45: 13 | B45: ТЕР09-03-002-12 | C45: Монтаж балок, ригелей перекрытия, покрытия и под установку оборудования многоэтажных зданий при высоте здания: до 25 м | D45: 1 т конструкций | E45: 27.15183 | F45: 35504.81 | G45: 964020.66 | H45: 1640.27 | I45: 44536.29 | J45: 1008556.95
B46: 101-0309 | C46: Канаты пеньковые пропитанные | D46: т | E46: 0,0001 0,0027 | J46: 0
B47: 101-0324 | C47: Кислород технический: газообразный | D47: м3 | E47: 1,95 52,95 | J47: 0
B48: 101-0797 | C48: Проволока горячекатаная в мотках, диаметром 6,3-6,5 мм | D48: т | E48: 0,00003 0,0008 | J48: 0
B49: 101-1019 | C49: Швеллеры № 40 из стали марки: Ст0 | D49: т | E49: 0,00194 0,0527 | J49: 0
B50: 101-1513 | C50: Электроды диаметром: 4 мм Э42 | D50: т | E50: 0,0031 0,0842 | J50: 0
B51: 101-1714 | C51: Болты с гайками и шайбами строительные | D51: т | E51: 0,0031 0,0842 | J51: 0
B52: 101-1805 | C52: Гвозди строительные | D52: т | E52: 0,00001 0,0003 | J52: 0
B53: 101-2278 | C53: Пропан-бутан, смесь техническая | D53: кг | E53: 0,59 16,02 | J53: 0
B54: 101-2467 | C54: Растворитель марки: Р-4 | D54: т | E54: 0,0006 0,0163 | J54: 0
B55: 102-0023 | C55: Бруски обрезные хвойных пород длиной: 4-6,5 м, шириной 75-150 мм, толщиной 40-75 мм, I сорта | D55: м3 | E55: 0,00103 0,028 | J55: 0
B56: 113-0021 | C56: Грунтовка: ГФ-021 красно-коричневая | D56: т | E56: 0,00031 0,0084 | J56: 0
B57: 201-0756 | C57: Отдельные конструктивные элементы зданий и сооружений с преобладанием: горячекатаных профилей, средняя масса сборочной единицы от 0,1 до 0,5 т | D57: т | E57: 0,0005 0,0136 | J57: 0
B58: 508-0097 | C58: Канат двойной свивки типа ТК, конструкции 6х19(1+6+12)+1 о.с., оцинкованный из проволок марки В, маркировочная группа: 1770 н/мм2, диаметром 5,5 мм | D58: 10 м | E58: 0,0187 0,5077 | J58: 0
A59: 14 | B59: ТЕРм38-01-002-01 | C59: Монорельсы, балки и другие аналогичные конструкции промышленных зданий, сборка с помощью: крана на автомобильном ходу | D59: 1 т конструкций | E59: 26.883 | F59: 32735.47 | G59: 880027.76 | H59: 583.91 | I59: 15697.31 | J59: 895725.07
B60: 101-0324 | C60: Кислород технический: газообразный | D60: м3 | E60: 0,6 16,13 | J60: 0
B61: 101-1521 | C61: Электроды диаметром: 5 мм Э42 | D61: т | E61: 0,0032 0,086 | J61: 0
B62: 101-2278 | C62: Пропан-бутан, смесь техническая | D62: кг | E62: 0,2 5,377 | J62: 0
B63: 999-9950 | C63: Вспомогательные ненормируемые ресурсы (2% от Оплаты труда рабочих) | D63: руб | E63: 8,5 228,5 | J63: 0
A64: 15 | B64: Прайс | C64: Двутавр 30Б1 | D64: т | E64: 5.562 | F64: 0 | G64: 0 | H64: 114649.11 | I64: 637678.33 | J64: 637678.33
A65: 16 | B65: Прайс | C65: Двутавр 30Ш1 | D65: т | E65: 6.695 | F65: 0 | G65: 0 | H65: 94324.72 | I65: 631503.99 | J65: 631503.99
A66: 17 | B66: Прайс | C66: Двутавр 35Ш1 | D66: т | E66: 4.738 | F66: 0 | G66: 0 | H66: 95663.56 | I66: 453253.95 | J66: 453253.95
A67: 18 | B67: Прайс | C67: Двутавр 40Ш1 | D67: т | E67: 2.987 | F67: 0 | G67: 0 | H67: 96028.42 | I67: 286836.88 | J67: 286836.88
A68: 19 | B68: Прайс | C68: Двутавр 70Б2 | D68: т | E68: 4.12 | F68: 0 | G68: 0 | H68: 121465.49 | I68: 500437.83 | J68: 500437.83
A69: 20 | B69: Прайс | C69: Швеллер 24П | D69: т | E69: 0.824 | F69: 0 | G69: 0 | H69: 109842.94 | I69: 90510.58 | J69: 90510.58
A70: 21 | B70: Прайс | C70: Уголок не равнополочный 100*63*8 | D70: т | E70: 0.515 | F70: 0 | G70: 0 | H70: 118665.59 | I70: 61112.78 | J70: 61112.78
A71: 22 | B71: Прайс | C71: Прокат листовой 12мм | D71: т | E71: 0.721 | F71: 0 | G71: 0 | H71: 96028.49 | I71: 69236.54 | J71: 69236.54
A72: 23 | B72: Прайс | C72: Прокат листовой 10мм | D72: т | E72: 0.721 | F72: 0 | G72: 0 | H72: 94506.24 | I72: 68139 | J72: 68139
A73: Перевозка материалов (металл 140 км. ОП "МКМ-СПб") | J73: 0
A74: 24 | C74: Арматура, металлопрокат, трубопрокат и металлоконструкции | D74: т | E74: 26.883 | F74: 0 | G74: 0 | H74: 0 | I74: 0 | J74: 0
A75: 25 | B75: ТССЦпг-03-02-01-140 | C75: Перевозка строительных грузов (кроме массовых навалочных, перевозимых автомобилями-самосвалами, а также бетонных и железобетонных изделий, стеновых и перегородочных материалов, лесоматериалов круглых и пиломатериалов, включенных в таблицу 03-01), бортовым автомобилем грузоподъемностью 5 т, на расстояние до 140 км I класс груза | D75: 1 т груза | E75: 26.883 | F75: 0 | G75: 0 | H75: 200.23 | I75: 5382.8 | J75: 5382.8
A76: 26 | B76: ТССЦпг-01-01-02-015 | C76: Разгрузочные работы при автомобильных перевозках: металлических конструкций массой до 1 т | D76: 1 т груза | E76: 26.883 | F76: 0 | G76: 0 | H76: 46.81 | I76: 1258.43 | J76: 1258.43
A77: Раздел 3. Прогоны | J77: 0
A78: 27 | B78: ТЕР09-03-015-01 | C78: Монтаж прогонов при шаге ферм до 12 м при высоте здания: до 25 м | D78: 1 т конструкций | E78: 2.0806 | F78: 24725.21 | G78: 51443.28 | H78: 1307.72 | I78: 2720.85 | J78: 54164.13
B79: 101-0309 | C79: Канаты пеньковые пропитанные | D79: т | E79: 0,0001 0,0002 | J79: =G79+I79 -> 0
B80: 101-0324 | C80: Кислород технический: газообразный | D80: м3 | E80: 0,5 1,04 | J80: 0
B81: 101-0797 | C81: Проволока горячекатаная в мотках, диаметром 6,3-6,5 мм | D81: т | E81: 0,00003 0,0001 | J81: 0
B82: 101-1019 | C82: Швеллеры № 40 из стали марки: Ст0 | D82: т | E82: 0,00194 0,004 | J82: 0
B83: 101-1513 | C83: Электроды диаметром: 4 мм Э42 | D83: т | E83: 0,0026 0,0054 | J83: 0
B84: 101-1714 | C84: Болты с гайками и шайбами строительные | D84: т | E84: 0,003 0,0062 | J84: 0
B85: 101-1805 | C85: Гвозди строительные | D85: т | E85: 0,00001 0 | J85: 0
B86: 101-2278 | C86: Пропан-бутан, смесь техническая | D86: кг | E86: 0,15 0,3121 | J86: 0
B87: 101-2467 | C87: Растворитель марки: Р-4 | D87: т | E87: 0,0006 0,0012 | J87: 0
B88: 102-0023 | C88: Бруски обрезные хвойных пород длиной: 4-6,5 м, шириной 75-150 мм, толщиной 40-75 мм, I сорта | D88: м3 | E88: 0,00103 0,0021 | J88: 0
B89: 113-0021 | C89: Грунтовка: ГФ-021 красно-коричневая | D89: т | E89: 0,00031 0,0006 | J89: 0
B90: 201-0756 | C90: Отдельные конструктивные элементы зданий и сооружений с преобладанием: горячекатаных профилей, средняя масса сборочной единицы от 0,1 до 0,5 т | D90: т | E90: 0,0001 0,0002 | J90: 0
B91: 508-0097 | C91: Канат двойной свивки типа ТК, конструкции 6х19(1+6+12)+1 о.с., оцинкованный из проволок марки В, маркировочная группа: 1770 н/мм2, диаметром 5,5 мм | D91: 10 м | E91: 0,0187 0,0389 | J91: 0
A92: 28 | B92: ТЕРм38-01-003-01 | C92: Решетчатые конструкции (стойки, опоры, фермы и пр.), сборка с помощью: крана на автомобильном ходу | D92: 1 т конструкций | E92: 2.06 | F92: 131478.19 | G92: 270845.07 | H92: 3461 | I92: 7129.66 | J92: 277974.73
B93: 101-0324 | C93: Кислород технический: газообразный | D93: м3 | E93: 2,6 5,356 | J93: 0
B94: 101-1521 | C94: Электроды диаметром: 5 мм Э42 | D94: т | E94: 0,0215 0,0443 | J94: 0
B95: 101-2278 | C95: Пропан-бутан, смесь техническая | D95: кг | E95: 0,5 1,03 | J95: 0
B96: 999-9950 | C96: Вспомогательные ненормируемые ресурсы (2% от Оплаты труда рабочих) | D96: руб | E96: 33,2 68,39 | J96: 0
A97: 29 | B97: Прайс | C97: Швеллер 20П | D97: т | E97: 1.854 | F97: 0 | G97: 0 | H97: 107663.11 | I97: 199607.4 | J97: 199607.4
A98: 30 | B98: Прайс | C98: Уголок не равнополочный 140*90*8 | D98: т | E98: 0.206 | F98: 0 | G98: 0 | H98: 139172.18 | I98: 28669.47 | J98: 28669.47
A99: Перевозка материалов (металл 140 км. ОП "МКМ-СПб") | J99: 0
A100: 31 | C100: Арматура, металлопрокат, трубопрокат и металлоконструкции | D100: т | E100: 2.06 | F100: 0 | G100: 0 | H100: 0 | I100: 0 | J100: 0
A101: 32 | B101: ТССЦпг-03-02-01-140 | C101: Перевозка строительных грузов (кроме массовых навалочных, перевозимых автомобилями-самосвалами, а также бетонных и железобетонных изделий, стеновых и перегородочных материалов, лесоматериалов круглых и пиломатериалов, включенных в таблицу 03-01), бортовым автомобилем грузоподъемностью 5 т, на расстояние до 140 км I класс груза | D101: 1 т груза | E101: 2.06 | F101: 0 | G101: 0 | H101: 200.14 | I101: 412.29 | J101: 412.29
A102: 33 | B102: ТССЦпг-01-01-02-015 | C102: Разгрузочные работы при автомобильных перевозках: металлических конструкций массой до 1 т | D102: 1 т груза | E102: 2.06 | F102: 0 | G102: 0 | H102: 46.72 | I102: 96.25 | J102: 96.25
A103: Раздел 4. Связи, распорки | J103: 0
A104: 34 | B104: ТЕР09-03-014-01 | C104: Монтаж связей и распорок из одиночных и парных уголков, гнутосварных профилей для пролетов: до 24 м при высоте здания до 25 м | D104: 1 т конструкций | E104: 4.68135 | F104: 85716.23 | G104: 401267.65 | H104: 4252.29 | I104: 19906.44 | J104: 421174.09
B105: 101-0309 | C105: Канаты пеньковые пропитанные | D105: т | E105: 0,0001 0,0005 | J105: 0
B106: 101-0324 | C106: Кислород технический: газообразный | D106: м3 | E106: 1,2 5,618 | J106: 0
B107: 101-0797 | C107: Проволока горячекатаная в мотках, диаметром 6,3-6,5 мм | D107: т | E107: 0,00003 0,0001 | J107: 0
B108: 101-1019 | C108: Швеллеры № 40 из стали марки: Ст0 | D108: т | E108: 0,00194 0,0091 | J108: 0
B109: 101-1513 | C109: Электроды диаметром: 4 мм Э42 | D109: т | E109: 0,00044 0,0021 | J109: 0
B110: 101-1714 | C110: Болты с гайками и шайбами строительные | D110: т | E110: 0,021 0,0983 | J110: 0
B111: 101-1805 | C111: Гвозди строительные | D111: т | E111: 0,00001 0 | J111: 0
B112: 101-2278 | C112: Пропан-бутан, смесь техническая | D112: кг | E112: 0,36 1,685 | J112: 0
B113: 101-2467 | C113: Растворитель марки: Р-4 | D113: т | E113: 0,0006 0,0028 | J113: 0
B114: 102-0023 | C114: Бруски обрезные хвойных пород длиной: 4-6,5 м, шириной 75-150 мм, толщиной 40-75 мм, I сорта | D114: м3 | E114: 0,00103 0,0048 | J114: 0
B115: 113-0021 | C115: Грунтовка: ГФ-021 красно-коричневая | D115: т | E115: 0,00031 0,0015 | J115: 0
B116: 201-0756 | C116: Отдельные конструктивные элементы зданий и сооружений с преобладанием: горячекатаных профилей, средняя масса сборочной единицы от 0,1 до 0,5 т | D116: т | E116: 0,0002 0,0009 | J116: 0
B117: 508-0097 | C117: Канат двойной свивки типа ТК, конструкции 6х19(1+6+12)+1 о.с., оцинкованный из проволок марки В, маркировочная группа: 1770 н/мм2, диаметром 5,5 мм | D117: 10 м | E117: 0,0187 0,0875 | J117: 0
A118: 35 | B118: ТЕРм38-01-003-01 | C118: Решетчатые конструкции (стойки, опоры, фермы и пр.), сборка с помощью: крана на автомобильном ходу | D118: 1 т конструкций | E118: 4.635 | F118: 131477.8 | G118: 609399.61 | H118: 3461.39 | I118: 16043.52 | J118: 625443.13
B119: 101-0324 | C119: Кислород технический: газообразный | D119: м3 | E119: 2,6 12,05 | J119: 0
B120: 101-1521 | C120: Электроды диаметром: 5 мм Э42 | D120: т | E120: 0,0215 0,0997 | J120: 0
B121: 101-2278 | C121: Пропан-бутан, смесь техническая | D121: кг | E121: 0,5 2,318 | J121: 0
B122: 999-9950 | C122: Вспомогательные ненормируемые ресурсы (2% от Оплаты труда рабочих) | D122: руб | E122: 33,2 153,9 | J122: 0
A123: 36 | B123: Прайс | C123: Профиль гн. 200*7 | D123: т | E123: 0.412 | F123: 0 | G123: 0 | H123: 134182.55 | I123: 55283.21 | J123: 55283.21
A124: 37 | B124: Прайс | C124: Профиль гн. 160*5 | D124: т | E124: 1.442 | F124: 0 | G124: 0 | H124: 124873.29 | I124: 180067.29 | J124: 180067.29
A125: 38 | B125: Прайс | C125: Профиль гн. 120*5 | D125: т | E125: 0.412 | F125: 0 | G125: 0 | H125: 113871.94 | I125: 46915.24 | J125: 46915.24
A126: 39 | B126: Прайс | C126: Профиль гн. 100*5 | D126: т | E126: 1.339 | F126: 0 | G126: 0 | H126: 109780.58 | I126: 146996.19 | J126: 146996.19
A127: 40 | B127: Прайс | C127: Профиль гн. 80*5 | D127: т | E127: 0.103 | F127: 0 | G127: 0 | H127: 99248.25 | I127: 10222.57 | J127: 10222.57
A128: 41 | B128: Прайс | C128: Прокат листовой 16мм | D128: т | E128: 0.515 | F128: 0 | G128: 0 | H128: 103817.4 | I128: 53465.96 | J128: 53465.96
A129: 42 | B129: Прайс | C129: Прокат листовой 12мм | D129: т | E129: 0.103 | F129: 0 | G129: 0 | H129: 96026.5 | I129: 9890.73 | J129: 9890.73
A130: 43 | B130: Прайс | C130: Прокат листовой 10мм | D130: т | E130: 0.206 | F130: 0 | G130: 0 | H130: 94506.26 | I130: 19468.29 | J130: 19468.29
A131: 44 | B131: Прайс | C131: Прокат листовой 4мм | D131: т | E131: 0.103 | F131: 0 | G131: 0 | H131: 76430.68 | I131: 7872.36 | J131: 7872.36
A132: Перевозка материалов (металл 140 км. ОП "МКМ-СПб") | J132: 0
A133: 45 | C133: Арматура, металлопрокат, трубопрокат и металлоконструкции | D133: т | E133: 4.635 | F133: 0 | G133: 0 | H133: 0 | I133: 0 | J133: 0
A134: 46 | B134: ТССЦпг-03-02-01-140 | C134: Перевозка строительных грузов (кроме массовых навалочных, перевозимых автомобилями-самосвалами, а также бетонных и железобетонных изделий, стеновых и перегородочных материалов, лесоматериалов круглых и пиломатериалов, включенных в таблицу 03-01), бортовым автомобилем грузоподъемностью 5 т, на расстояние до 140 км I класс груза | D134: 1 т груза | E134: 4.635 | F134: 0 | G134: 0 | H134: 200.22 | I134: 928.02 | J134: 928.02
A135: 47 | B135: ТССЦпг-01-01-02-015 | C135: Разгрузочные работы при автомобильных перевозках: металлических конструкций массой до 1 т | D135: 1 т груза | E135: 4.635 | F135: 0 | G135: 0 | H135: 46.8 | I135: 216.92 | J135: 216.92
A136: Раздел 5. Фахверк | J136: 0
A137: 48 | B137: ТЕР09-04-006-01 | C137: Монтаж фахверка | D137: 1 т конструкций | E137: 1.87254 | F137: 50227.57 | G137: 94053.14 | H137: 2655.95 | I137: 4973.38 | J137: 99026.52
B138: 101-0309 | C138: Канаты пеньковые пропитанные | D138: т | E138: 0,0001 0,0002 | J138: 0
B139: 101-0324 | C139: Кислород технический: газообразный | D139: м3 | E139: 2,6 4,869 | J139: 0
B140: 101-0797 | C140: Проволока горячекатаная в мотках, диаметром 6,3-6,5 мм | D140: т | E140: 0,00003 0,0001 | J140: 0
B141: 101-1019 | C141: Швеллеры № 40 из стали марки: Ст0 | D141: т | E141: 0,00194 0,0036 | J141: 0
B142: 101-1515 | C142: Электроды диаметром: 4 мм Э46 | D142: т | E142: 0,016 0,03 | J142: 0
B143: 101-1805 | C143: Гвозди строительные | D143: т | E143: 0,00001 0 | J143: =G143+I143 -> 0
B144: 101-2278 | C144: Пропан-бутан, смесь техническая | D144: кг | E144: 0,78 1,461 | J144: 0
B145: 101-2467 | C145: Растворитель марки: Р-4 | D145: т | E145: 0,0006 0,0011 | J145: 0
B146: 113-0021 | C146: Грунтовка: ГФ-021 красно-коричневая | D146: т | E146: 0,00031 0,0006 | J146: 0
B147: 201-0756 | C147: Отдельные конструктивные элементы зданий и сооружений с преобладанием: горячекатаных профилей, средняя масса сборочной единицы от 0,1 до 0,5 т | D147: т | E147: 0,001 0,0019 | J147: 0
B148: 508-0097 | C148: Канат двойной свивки типа ТК, конструкции 6х19(1+6+12)+1 о.с., оцинкованный из проволок марки В, маркировочная группа: 1770 н/мм2, диаметром 5,5 мм | D148: 10 м | E148: 0,0187 0,035 | J148: 0
A149: 49 | B149: ТЕРм38-01-003-01 | C149: Решетчатые конструкции (стойки, опоры, фермы и пр.), сборка с помощью: крана на автомобильном ходу | D149: 1 т конструкций | E149: 1.854 | F149: 131477.96 | G149: 243760.13 | H149: 3461.23 | I149: 6417.12 | J149: 250177.25
B150: 101-0324 | C150: Кислород технический: газообразный | D150: м3 | E150: 2,6 4,82 | J150: 0
B151: 101-1521 | C151: Электроды диаметром: 5 мм Э42 | D151: т | E151: 0,0215 0,0399 | J151: 0
B152: 101-2278 | C152: Пропан-бутан, смесь техническая | D152: кг | E152: 0,5 0,927 | J152: 0
B153: 999-9950 | C153: Вспомогательные ненормируемые ресурсы (2% от Оплаты труда рабочих) | D153: руб | E153: 33,2 61,55 | J153: 0
A154: 50 | B154: Прайс | C154: Профиль гн. 80*5 | D154: т | E154: 1.442 | F154: 0 | G154: 0 | H154: 99242.32 | I154: 143107.42 | J154: 143107.42
A155: 51 | B155: Прайс | C155: Уголок равнополочный 100*7 | D155: т | E155: 0.103 | F155: 0 | G155: 0 | H155: 112540 | I155: 11591.62 | J155: 11591.62
A156: 52 | B156: Прайс | C156: Уголок равнополочный 63*5 | D156: т | E156: 0.103 | F156: 0 | G156: 0 | H156: 103571.94 | I156: 10667.91 | J156: 10667.91
A157: 53 | B157: Прайс | C157: Прокат листовой 10мм | D157: т | E157: 0.103 | F157: 0 | G157: 0 | H157: 94506.21 | I157: 9734.14 | J157: 9734.14
A158: 54 | B158: Прайс | C158: Прокат листовой 4мм | D158: т | E158: 0.103 | F158: 0 | G158: 0 | H158: 76430.68 | I158: 7872.36 | J158: 7872.36
A159: Перевозка материалов (металл 140 км. ОП "МКМ-СПб") | J159: 0
A160: 55 | C160: Арматура, металлопрокат, трубопрокат и металлоконструкции | D160: т | E160: 1.854 | F160: 0 | G160: 0 | H160: 0 | I160: 0 | J160: 0
A161: 56 | B161: ТССЦпг-03-02-01-140 | C161: Перевозка строительных грузов (кроме массовых навалочных, перевозимых автомобилями-самосвалами, а также бетонных и железобетонных изделий, стеновых и перегородочных материалов, лесоматериалов круглых и пиломатериалов, включенных в таблицу 03-01), бортовым автомобилем грузоподъемностью 5 т, на расстояние до 140 км I класс груза | D161: 1 т груза | E161: 1.854 | F161: 0 | G161: 0 | H161: 199.91 | I161: 370.63 | J161: 370.63
A162: 57 | B162: ТССЦпг-01-01-02-015 | C162: Разгрузочные работы при автомобильных перевозках: металлических конструкций массой до 1 т | D162: 1 т груза | E162: 1.854 | F162: 0 | G162: 0 | H162: 46.49 | I162: 86.19 | J162: 86.19
A163: Раздел 6. Лестницы, площадки, ограждения, щиты и рамы | J163: 0
A164: 58 | B164: ТЕР09-03-029-01 | C164: Монтаж лестниц прямолинейных и криволинейных, пожарных с ограждением | D164: 1 т конструкций | E164: 2.912 | F164: 57879.33 | G164: 168544.62 | H164: 1156.85 | I164: 3368.74 | J164: 171913.36
B165: 101-0309 | C165: Канаты пеньковые пропитанные | D165: т | E165: 0,0001 0,0003 | J165: 0
B166: 101-0324 | C166: Кислород технический: газообразный | D166: м3 | E166: 1,37 3,989 | J166: 0
B167: 101-0797 | C167: Проволока горячекатаная в мотках, диаметром 6,3-6,5 мм | D167: т | E167: 0,00003 0,0001 | J167: 0
B168: 101-1019 | C168: Швеллеры № 40 из стали марки: Ст0 | D168: т | E168: 0,00194 0,0056 | J168: 0
B169: 101-1515 | C169: Электроды диаметром: 4 мм Э46 | D169: т | E169: 0,004 0,0116 | J169: 0
B170: 101-1805 | C170: Гвозди строительные | D170: т | E170: 0,00001 0 | J170: 0
B171: 101-2278 | C171: Пропан-бутан, смесь техническая | D171: кг | E171: 0,41 1,194 | J171: 0
B172: 101-2467 | C172: Растворитель марки: Р-4 | D172: т | E172: 0,0006 0,0017 | J172: 0
B173: 102-0023 | C173: Бруски обрезные хвойных пород длиной: 4-6,5 м, шириной 75-150 мм, толщиной 40-75 мм, I сорта | D173: м3 | E173: 0,00103 0,003 | J173: 0
B174: 113-0021 | C174: Грунтовка: ГФ-021 красно-коричневая | D174: т | E174: 0,00031 0,0009 | J174: 0
B175: 201-0756 | C175: Отдельные конструктивные элементы зданий и сооружений с преобладанием: горячекатаных профилей, средняя масса сборочной единицы от 0,1 до 0,5 т | D175: т | E175: 0,001 0,0029 | J175: 0
B176: 508-0097 | C176: Канат двойной свивки типа ТК, конструкции 6х19(1+6+12)+1 о.с., оцинкованный из проволок марки В, маркировочная группа: 1770 н/мм2, диаметром 5,5 мм | D176: 10 м | E176: 0,0187 0,0545 | J176: 0
A177: 59 | B177: ТЕРм38-01-004-02 | C177: Сборка с помощью крана на автомобильном ходу: лестницы прямолинейные и криволинейные с ограждением | D177: 1 т конструкций | E177: 2.884 | F177: 156867.18 | G177: 452404.94 | H177: 2404.4 | I177: 6934.28 | J177: 459339.22
B178: 101-0324 | C178: Кислород технический: газообразный | D178: м3 | E178: 0,6 1,73 | J178: 0
B179: 101-1515 | C179: Электроды диаметром: 4 мм Э46 | D179: т | E179: 0,016 0,0461 | J179: 0
B180: 101-2278 | C180: Пропан-бутан, смесь техническая | D180: кг | E180: 0,2 0,5768 | J180: 0
B181: 999-9950 | C181: Вспомогательные ненормируемые ресурсы (2% от Оплаты труда рабочих) | D181: руб | E181: 43,78 126,3 | J181: 0
A182: 60 | B182: Прайс | C182: Профиль гн. 80*5 | D182: т | E182: 0.309 | F182: 0 | G182: 0 | H182: 99243.66 | I182: 30666.29 | J182: 30666.29
A183: 61 | B183: Прайс | C183: Швеллер 24П | D183: т | E183: 0.721 | F183: 0 | G183: 0 | H183: 109842.19 | I183: 79196.22 | J183: 79196.22
A184: 62 | B184: Прайс | C184: Швеллер 16П | D184: т | E184: 0.721 | F184: 0 | G184: 0 | H184: 102842.69 | I184: 74149.58 | J184: 74149.58
A185: 63 | B185: Прайс | C185: Швеллер 12П | D185: т | E185: 0.103 | F185: 0 | G185: 0 | H185: 98425.44 | I185: 10137.82 | J185: 10137.82
A186: 64 | B186: Прайс | C186: Уголок равнополочный 100*7 | D186: т | E186: 0.309 | F186: 0 | G186: 0 | H186: 112544.63 | I186: 34776.29 | J186: 34776.29
A187: 65 | B187: Прайс | C187: Уголок равнополочный 90*6 | D187: т | E187: 0.103 | F187: 0 | G187: 0 | H187: 108955.53 | I187: 11222.42 | J187: 11222.42
A188: 66 | B188: Прайс | C188: Уголок равнополочный 35*4 | D188: т | E188: 0.206 | F188: 0 | G188: 0 | H188: 95175.73 | I188: 19606.2 | J188: 19606.2
A189: 67 | B189: Прайс | C189: Прокат листовой 4мм | D189: т | E189: 0.206 | F189: 0 | G189: 0 | H189: 76430.68 | I189: 15744.72 | J189: 15744.72
A190: 68 | B190: Прайс | C190: Прокат стальной горячетканый круглый диаметр 16мм | D190: т | E190: 0.206 | F190: 0 | G190: 0 | H190: 102993.11 | I190: 21216.58 | J190: 21216.58
A191: 69 | B191: ТССЦ-110-0008 | C191: Болты сборочные с гайками и шайбами по классу прочности: 8,8 | D191: т | E191: 0.037856 | F191: 0 | G191: 0 | H191: 150388.05 | I191: 5693.09 | J191: 5693.09
A192: Перевозка материалов (металл 140 км. ОП "МКМ-СПб") | J192: 0
A193: 70 | C193: Арматура, металлопрокат, трубопрокат и металлоконструкции | D193: т | E193: 2.912 | F193: 0 | G193: 0 | H193: 0 | I193: 0 | J193: 0
A194: 71 | B194: ТССЦпг-03-02-01-140 | C194: Перевозка строительных грузов (кроме массовых навалочных, перевозимых автомобилями-самосвалами, а также бетонных и железобетонных изделий, стеновых и перегородочных материалов, лесоматериалов круглых и пиломатериалов, включенных в таблицу 03-01), бортовым автомобилем грузоподъемностью 5 т, на расстояние до 140 км I класс груза | D194: 1 т груза | E194: 2.912 | F194: 0 | G194: 0 | H194: 200.29 | I194: 583.24 | J194: 583.24
A195: 72 | B195: ТССЦпг-01-01-02-015 | C195: Разгрузочные работы при автомобильных перевозках: металлических конструкций массой до 1 т | D195: 1 т груза | E195: 2.912 | F195: 0 | G195: 0 | H195: 46.86 | I195: 136.47 | J195: 136.47
A196: Раздел 7. Настил | J196: 0
A197: 73 | B197: ТЕР09-03-030-01 | C197: Монтаж площадок с настилом и ограждением из листовой, рифленой, просечной и круглой стали | D197: 1 т конструкций | E197: 1.248 | F197: 57046.35 | G197: 71193.85 | H197: 1156.84 | I197: 1443.74 | J197: 72637.59
B198: 101-0309 | C198: Канаты пеньковые пропитанные | D198: т | E198: 0,0001 0,0001 | J198: 0
B199: 101-0324 | C199: Кислород технический: газообразный | D199: м3 | E199: 1,37 1,71 | J199: 0
B200: 101-0797 | C200: Проволока горячекатаная в мотках, диаметром 6,3-6,5 мм | D200: т | E200: 0,00003 0 | J200: 0
B201: 101-1019 | C201: Швеллеры № 40 из стали марки: Ст0 | D201: т | E201: 0,00194 0,0024 | J201: 0
B202: 101-1515 | C202: Электроды диаметром: 4 мм Э46 | D202: т | E202: 0,004 0,005 | J202: 0
B203: 101-1805 | C203: Гвозди строительные | D203: т | E203: 0,00001 0 | J203: 0
... 54 more rows

Sheet 1632-2021-2.2.5,2.1.6,2.1.13-3
A2: Терминал по перевалке минеральных удобрений в морском торговом порту Усть-Луга. Береговые объекты терминала
A3: (наименование стройки)
A5: ЛОКАЛЬНАЯ СМЕТА № 1632-2021-2.2.5,2.1.6,2.1.13-КМ_07.04.052-П-00-01
A6: (локальная смета)
A7: на Конструкции металлические, 07.04.052 Конвейерная галерея № 13 (код SAP 01.02.011) код ГП 2.1.3
A8: (наименование работ и затрат, наименование объекта)
B9: Основание: | C9: 1632-2021-2.2.5, 2.1.6, 2.1.13-КМ_2_0_RU_IFC
A11: № п/п | B11: Обоснование | C11: Наименование работ и затрат | D11: Ед. изм. | E11: Кол-во | F11: Цена за ед.измерения работ, руб. с НДС | G11: Всего, стоимость работ,руб. с НДС | H11: Цена за ед.измерения материалов, руб. с НДС | I11: Всего, стоимость материалов, руб. с НДС | J11: Итого, руб. с НДС
A12: 1 | B12: 2 | C12: 3 | D12: 4 | E12: 5 | F12: 6 | G12: 7 | H12: 8 | I12: 9 | J12: 10
A13: Раздел 1. Колонны
A14: 1 | B14: ТЕР09-03-002-02 | C14: Монтаж колонн одноэтажных и многоэтажных зданий и крановых эстакад высотой: до 25 м цельного сечения массой до 3,0 т | D14: 1 т конструкций | E14: 7.8 | F14: 11888.1 | G14: 92727.2 | H14: 834.86 | I14: 6511.94 | J14: =G14+I14 -> 99239.14
B15: 101-0309 | C15: Канаты пеньковые пропитанные | D15: т | E15: 0,0001 0,0008 | J15: =G15+I15 -> 0
B16: 101-0324 | C16: Кислород технический: газообразный | D16: м3 | E16: 0,7 5,46 | J16: 0
B17: 101-0797 | C17: Проволока горячекатаная в мотках, диаметром 6,3-6,5 мм | D17: т | E17: 0,00003 0,0002 | J17: 0
B18: 101-1019 | C18: Швеллеры № 40 из стали марки: Ст0 | D18: т | E18: 0,00194 0,0151 | J18: 0
B19: 101-1513 | C19: Электроды диаметром: 4 мм Э42 | D19: т | E19: 0,0018 0,014 | J19: 0
B20: 101-1714 | C20: Болты с гайками и шайбами строительные | D20: т | E20: 0,00015 0,0012 | J20: 0
B21: 101-1805 | C21: Гвозди строительные | D21: т | E21: 0,00001 0,0001 | J21: 0
B22: 101-2278 | C22: Пропан-бутан, смесь техническая | D22: кг | E22: 0,21 1,638 | J22: 0
B23: 101-2467 | C23: Растворитель марки: Р-4 | D23: т | E23: 0,0006 0,0047 | J23: 0
B24: 102-0023 | C24: Бруски обрезные хвойных пород длиной: 4-6,5 м, шириной 75-150 мм, толщиной 40-75 мм, I сорта | D24: м3 | E24: 0,00103 0,008 | J24: 0
B25: 113-0021 | C25: Грунтовка: ГФ-021 красно-коричневая | D25: т | E25: 0,00031 0,0024 | J25: 0
B26: 201-0756 | C26: Отдельные конструктивные элементы зданий и сооружений с преобладанием: горячекатаных профилей, средняя масса сборочной единицы от 0,1 до 0,5 т | D26: т | E26: 0,0007 0,0055 | J26: 0
B27: 508-0097 | C27: Канат двойной свивки типа ТК, конструкции 6х19(1+6+12)+1 о.с., оцинкованный из проволок марки В, маркировочная группа: 1770 н/мм2, диаметром 5,5 мм | D27: 10 м | E27: 0,0187 0,1459 | J27: 0
A28: 2 | B28: ТЕРм38-01-002-03 | C28: Монорельсы, балки и другие аналогичные конструкции промышленных зданий, сборка с помощью: лебедок электрических (с установкой и снятием их в процессе работы) | D28: 1 т конструкций | E28: 7.725 | F28: 39049.94 | G28: 301660.76 | H28: 602.33 | I28: 4653.02 | J28: 306313.78
B29: 101-0324 | C29: Кислород технический: газообразный | D29: м3 | E29: 0,6 4,635 | J29: 0
B30: 101-1521 | C30: Электроды диаметром: 5 мм Э42 | D30: т | E30: 0,0032 0,0247 | J30: 0
B31: 101-2278 | C31: Пропан-бутан, смесь техническая | D31: кг | E31: 0,2 1,545 | J31: 0
B32: 999-9950 | C32: Вспомогательные ненормируемые ресурсы (2% от Оплаты труда рабочих) | D32: руб | E32: 10,14 78,33 | J32: 0
A33: 3 | B33: Прайс | C33: Двутавр 35Ш1 | D33: т | E33: 5.459 | F33: 0 | G33: 0 | H33: 95663.6 | I33: 522227.6 | J33: 522227.6
A34: 4 | B34: Прайс | C34: Двутавр 30Ш1 | D34: т | E34: 1.236 | F34: 0 | G34: 0 | H34: 94324.94 | I34: 116585.62 | J34: 116585.62
A35: 5 | B35: Прайс | C35: Уголок не равнополочный 100*63*8 | D35: т | E35: 0.103 | F35: 0 | G35: 0 | H35: 118662.82 | I35: 12222.27 | J35: 12222.27
A36: 6 | B36: Прайс | C36: Прокат листовой 30мм | D36: т | E36: 0.206 | F36: 0 | G36: 0 | H36: 117874.81 | I36: 24282.21 | J36: 24282.21
A37: 7 | B37: Прайс | C37: Прокат листовой 20мм | D37: т | E37: 0.309 | F37: 0 | G37: 0 | H37: 106984.34 | I37: 33058.16 | J37: 33058.16
A38: 8 | B38: Прайс | C38: Прокат листовой 12мм | D38: т | E38: 0.206 | F38: 0 | G38: 0 | H38: 96026.5 | I38: 19781.46 | J38: 19781.46
A39: 9 | B39: Прайс | C39: Прокат листовой 10мм | D39: т | E39: 0.206 | F39: 0 | G39: 0 | H39: 94506.26 | I39: 19468.29 | J39: 19468.29
A40: Перевозка материалов (металл 140 км. ОП "МКМ-СПб") | J40: 0
A41: 10 | C41: металлопрокат, трубопрокат и металлоконструкции | D41: т | E41: 7.725 | F41: 0 | G41: 0 | H41: 0 | I41: 0 | J41: 0
A42: 11 | B42: ТССЦпг-03-02-01-140 | C42: Перевозка строительных грузов (кроме массовых навалочных, перевозимых автомобилями-самосвалами, а также бетонных и железобетонных изделий, стеновых и перегородочных материалов, лесоматериалов круглых и пиломатериалов, включенных в таблицу 03-01), бортовым автомобилем грузоподъемностью 5 т, на расстояние до 140 км I класс груза | D42: 1 т груза | E42: 7.725 | F42: 0 | G42: 0 | H42: 2338.67 | I42: 18066.2 | J42: 18066.2
A43: 12 | B43: ТССЦпг-01-01-02-015 | C43: Разгрузочные работы при автомобильных перевозках: металлических конструкций массой до 1 т | D43: 1 т груза | E43: 7.725 | F43: 0 | G43: 0 | H43: 470.67 | I43: 3635.94 | J43: 3635.94
A44: Раздел 2. Балки | J44: 0
A45: 13 | B45: ТЕР09-03-002-12 | C45: Монтаж балок, ригелей перекрытия, покрытия и под установку оборудования многоэтажных зданий при высоте здания: до 25 м | D45: 1 т конструкций | E45: 11.232 | F45: 35504.9 | G45: 398791.02 | H45: 1640.18 | I45: 18422.47 | J45: 417213.49
B46: 101-0309 | C46: Канаты пеньковые пропитанные | D46: т | E46: 0,0001 0,0011 | J46: 0
B47: 101-0324 | C47: Кислород технический: газообразный | D47: м3 | E47: 1,95 21,9 | J47: 0
B48: 101-0797 | C48: Проволока горячекатаная в мотках, диаметром 6,3-6,5 мм | D48: т | E48: 0,00003 0,0003 | J48: 0
B49: 101-1019 | C49: Швеллеры № 40 из стали марки: Ст0 | D49: т | E49: 0,00194 0,0218 | J49: 0
B50: 101-1513 | C50: Электроды диаметром: 4 мм Э42 | D50: т | E50: 0,0031 0,0348 | J50: 0
B51: 101-1714 | C51: Болты с гайками и шайбами строительные | D51: т | E51: 0,0031 0,0348 | J51: 0
B52: 101-1805 | C52: Гвозди строительные | D52: т | E52: 0,00001 0,0001 | J52: 0
B53: 101-2278 | C53: Пропан-бутан, смесь техническая | D53: кг | E53: 0,59 6,627 | J53: 0
B54: 101-2467 | C54: Растворитель марки: Р-4 | D54: т | E54: 0,0006 0,0067 | J54: 0
B55: 102-0023 | C55: Бруски обрезные хвойных пород длиной: 4-6,5 м, шириной 75-150 мм, толщиной 40-75 мм, I сорта | D55: м3 | E55: 0,00103 0,0116 | J55: 0
B56: 113-0021 | C56: Грунтовка: ГФ-021 красно-коричневая | D56: т | E56: 0,00031 0,0035 | J56: 0
B57: 201-0756 | C57: Отдельные конструктивные элементы зданий и сооружений с преобладанием: горячекатаных профилей, средняя масса сборочной единицы от 0,1 до 0,5 т | D57: т | E57: 0,0005 0,0056 | J57: 0
B58: 508-0097 | C58: Канат двойной свивки типа ТК, конструкции 6х19(1+6+12)+1 о.с., оцинкованный из проволок марки В, маркировочная группа: 1770 н/мм2, диаметром 5,5 мм | D58: 10 м | E58: 0,0187 0,21 | J58: 0
A59: 14 | B59: ТЕРм38-01-002-03 | C59: Монорельсы, балки и другие аналогичные конструкции промышленных зданий, сборка с помощью: лебедок электрических (с установкой и снятием их в процессе работы) | D59: 1 т конструкций | E59: 11.124 | F59: 39050.23 | G59: 434394.77 | H59: 602.31 | I59: 6700.12 | J59: 441094.89
B60: 101-0324 | C60: Кислород технический: газообразный | D60: м3 | E60: 0,6 6,674 | J60: 0
B61: 101-1521 | C61: Электроды диаметром: 5 мм Э42 | D61: т | E61: 0,0032 0,0356 | J61: 0
B62: 101-2278 | C62: Пропан-бутан, смесь техническая | D62: кг | E62: 0,2 2,225 | J62: 0
B63: 999-9950 | C63: Вспомогательные ненормируемые ресурсы (2% от Оплаты труда рабочих) | D63: руб | E63: 10,14 112,8 | J63: 0
A64: 15 | B64: Прайс | C64: Двутавр 25Ш1 | D64: т | E64: 2.884 | F64: 0 | G64: 0 | H64: 93228.58 | I64: 268871.23 | J64: 268871.23
A65: 16 | B65: Прайс | C65: Двутавр 30Б1 | D65: т | E65: 3.399 | F65: 0 | G65: 0 | H65: 114648.96 | I65: 389691.83 | J65: 389691.83
A66: 17 | B66: Прайс | C66: Двутавр 30Ш1 | D66: т | E66: 0.309 | F66: 0 | G66: 0 | H66: 94324.92 | I66: 29146.4 | J66: 29146.4
A67: 18 | B67: Прайс | C67: Двутавр 35Ш1 | D67: т | E67: 2.884 | F67: 0 | G67: 0 | H67: 95663.37 | I67: 275893.15 | J67: 275893.15
A68: 19 | B68: Прайс | C68: Швеллер 24П | D68: т | E68: 0.515 | F68: 0 | G68: 0 | H68: 109842.58 | I68: 56568.93 | J68: 56568.93
A69: 20 | B69: Прайс | C69: Уголок не равнополочный 100*63*8 | D69: т | E69: 0.309 | F69: 0 | G69: 0 | H69: 118667.44 | I69: 36668.24 | J69: 36668.24
A70: 21 | B70: Прайс | C70: Прокат листовой 12мм | D70: т | E70: 0.412 | F70: 0 | G70: 0 | H70: 96029.98 | I70: 39564.35 | J70: 39564.35
A71: 22 | B71: Прайс | C71: Прокат листовой 10мм | D71: т | E71: 0.412 | F71: 0 | G71: 0 | H71: 94506.24 | I71: 38936.57 | J71: 38936.57
A72: Перевозка материалов (металл 140 км. ОП "МКМ-СПб") | J72: 0
A73: 23 | C73: металлопрокат, трубопрокат и металлоконструкции | D73: т | E73: 11.124 | F73: 0 | G73: 0 | H73: 0 | I73: 0 | J73: 0
A74: 24 | B74: ТССЦпг-03-02-01-140 | C74: Перевозка строительных грузов (кроме массовых навалочных, перевозимых автомобилями-самосвалами, а также бетонных и железобетонных изделий, стеновых и перегородочных материалов, лесоматериалов круглых и пиломатериалов, включенных в таблицу 03-01), бортовым автомобилем грузоподъемностью 5 т, на расстояние до 140 км I класс груза | D74: 1 т груза | E74: 11.124 | F74: 0 | G74: 0 | H74: 2338.61 | I74: 26014.7 | J74: 26014.7
A75: 25 | B75: ТССЦпг-01-01-02-015 | C75: Разгрузочные работы при автомобильных перевозках: металлических конструкций массой до 1 т | D75: 1 т груза | E75: 11.124 | F75: 0 | G75: 0 | H75: 470.72 | I75: 5236.27 | J75: 5236.27
A76: Раздел 3. Прогоны | J76: 0
A77: 26 | B77: ТЕР09-03-015-01 | C77: Монтаж прогонов при шаге ферм до 12 м при высоте здания: до 25 м | D77: 1 т конструкций | E77: 1.248 | F77: 24726.59 | G77: 30858.79 | H77: 1306.49 | I77: 1630.5 | J77: 32489.29
B78: 101-0309 | C78: Канаты пеньковые пропитанные | D78: т | E78: 0,0001 0,0001 | J78: 0
B79: 101-0324 | C79: Кислород технический: газообразный | D79: м3 | E79: 0,5 0,624 | J79: =G79+I79 -> 0
B80: 101-0797 | C80: Проволока горячекатаная в мотках, диаметром 6,3-6,5 мм | D80: т | E80: 0,00003 0 | J80: 0
B81: 101-1019 | C81: Швеллеры № 40 из стали марки: Ст0 | D81: т | E81: 0,00194 0,0024 | J81: 0
B82: 101-1513 | C82: Электроды диаметром: 4 мм Э42 | D82: т | E82: 0,0026 0,0032 | J82: 0
B83: 101-1714 | C83: Болты с гайками и шайбами строительные | D83: т | E83: 0,003 0,0037 | J83: 0
B84: 101-1805 | C84: Гвозди строительные | D84: т | E84: 0,00001 0 | J84: 0
B85: 101-2278 | C85: Пропан-бутан, смесь техническая | D85: кг | E85: 0,15 0,1872 | J85: 0
B86: 101-2467 | C86: Растворитель марки: Р-4 | D86: т | E86: 0,0006 0,0007 | J86: 0
B87: 102-0023 | C87: Бруски обрезные хвойных пород длиной: 4-6,5 м, шириной 75-150 мм, толщиной 40-75 мм, I сорта | D87: м3 | E87: 0,00103 0,0013 | J87: 0
B88: 113-0021 | C88: Грунтовка: ГФ-021 красно-коричневая | D88: т | E88: 0,00031 0,0004 | J88: 0
B89: 201-0756 | C89: Отдельные конструктивные элементы зданий и сооружений с преобладанием: горячекатаных профилей, средняя масса сборочной единицы от 0,1 до 0,5 т | D89: т | E89: 0,0001 0,0001 | J89: 0
B90: 508-0097 | C90: Канат двойной свивки типа ТК, конструкции 6х19(1+6+12)+1 о.с., оцинкованный из проволок марки В, маркировочная группа: 1770 н/мм2, диаметром 5,5 мм | D90: 10 м | E90: 0,0187 0,0233 | J90: 0
A91: 27 | B91: ТЕРм38-01-003-03 | C91: Решетчатые конструкции (стойки, опоры, фермы и пр.), сборка с помощью: лебедок электрических (с установкой и снятием их в процессе работы) | D91: 1 т конструкций | E91: 1.236 | F91: 145546.04 | G91: 179894.9 | H91: 3563.51 | I91: 4404.5 | J91: 184299.4
B92: 101-0324 | C92: Кислород технический: газообразный | D92: м3 | E92: 2,6 3,214 | J92: 0
B93: 101-1521 | C93: Электроды диаметром: 5 мм Э42 | D93: т | E93: 0,0215 0,0266 | J93: 0
B94: 101-2278 | C94: Пропан-бутан, смесь техническая | D94: кг | E94: 0,5 0,618 | J94: 0
B95: 999-9950 | C95: Вспомогательные ненормируемые ресурсы (2% от Оплаты труда рабочих) | D95: руб | E95: 42,32 52,31 | J95: 0
A96: 28 | B96: Прайс | C96: Швеллер 20П | D96: т | E96: 1.133 | F96: 0 | G96: 0 | H96: 107663.53 | I96: 121982.78 | J96: 121982.78
A97: 29 | B97: Прайс | C97: Уголок не равнополочный 140*90*8 | D97: т | E97: 0.103 | F97: 0 | G97: 0 | H97: 139179.13 | I97: 14335.45 | J97: 14335.45
A98: Перевозка материалов (металл 140 км. ОП "МКМ-СПб") | J98: 0
A99: 30 | C99: металлопрокат, трубопрокат и металлоконструкции | D99: т | E99: 1.236 | F99: 0 | G99: 0 | H99: 0 | I99: 0 | J99: 0
A100: 31 | B100: ТССЦпг-03-02-01-140 | C100: Перевозка строительных грузов (кроме массовых навалочных, перевозимых автомобилями-самосвалами, а также бетонных и железобетонных изделий, стеновых и перегородочных материалов, лесоматериалов круглых и пиломатериалов, включенных в таблицу 03-01), бортовым автомобилем грузоподъемностью 5 т, на расстояние до 140 км I класс груза | D100: 1 т груза | E100: 1.236 | F100: 0 | G100: 0 | H100: 2338.48 | I100: 2890.36 | J100: 2890.36
A101: 32 | B101: ТССЦпг-01-01-02-015 | C101: Разгрузочные работы при автомобильных перевозках: металлических конструкций массой до 1 т | D101: 1 т груза | E101: 1.236 | F101: 0 | G101: 0 | H101: 470.72 | I101: 581.81 | J101: 581.81
A102: Раздел 4. Связи, распорки | J102: 0
A103: 33 | B103: ТЕР09-03-014-01 | C103: Монтаж связей и распорок из одиночных и парных уголков, гнутосварных профилей для пролетов: до 24 м при высоте здания до 25 м | D103: 1 т конструкций | E103: 1.56 | F103: 85715.78 | G103: 133716.62 | H103: 4251.67 | I103: 6632.61 | J103: 140349.23
B104: 101-0309 | C104: Канаты пеньковые пропитанные | D104: т | E104: 0,0001 0,0002 | J104: 0
B105: 101-0324 | C105: Кислород технический: газообразный | D105: м3 | E105: 1,2 1,872 | J105: 0
B106: 101-0797 | C106: Проволока горячекатаная в мотках, диаметром 6,3-6,5 мм | D106: т | E106: 0,00003 0 | J106: 0
B107: 101-1019 | C107: Швеллеры № 40 из стали марки: Ст0 | D107: т | E107: 0,00194 0,003 | J107: 0
B108: 101-1513 | C108: Электроды диаметром: 4 мм Э42 | D108: т | E108: 0,00044 0,0007 | J108: 0
B109: 101-1714 | C109: Болты с гайками и шайбами строительные | D109: т | E109: 0,021 0,0328 | J109: 0
B110: 101-1805 | C110: Гвозди строительные | D110: т | E110: 0,00001 0 | J110: 0
B111: 101-2278 | C111: Пропан-бутан, смесь техническая | D111: кг | E111: 0,36 0,5616 | J111: 0
B112: 101-2467 | C112: Растворитель марки: Р-4 | D112: т | E112: 0,0006 0,0009 | J112: 0
B113: 102-0023 | C113: Бруски обрезные хвойных пород длиной: 4-6,5 м, шириной 75-150 мм, толщиной 40-75 мм, I сорта | D113: м3 | E113: 0,00103 0,0016 | J113: 0
B114: 113-0021 | C114: Грунтовка: ГФ-021 красно-коричневая | D114: т | E114: 0,00031 0,0005 | J114: 0
B115: 201-0756 | C115: Отдельные конструктивные элементы зданий и сооружений с преобладанием: горячекатаных профилей, средняя масса сборочной единицы от 0,1 до 0,5 т | D115: т | E115: 0,0002 0,0003 | J115: 0
B116: 508-0097 | C116: Канат двойной свивки типа ТК, конструкции 6х19(1+6+12)+1 о.с., оцинкованный из проволок марки В, маркировочная группа: 1770 н/мм2, диаметром 5,5 мм | D116: 10 м | E116: 0,0187 0,0292 | J116: 0
A117: 34 | B117: ТЕРм38-01-003-03 | C117: Решетчатые конструкции (стойки, опоры, фермы и пр.), сборка с помощью: лебедок электрических (с установкой и снятием их в процессе работы) | D117: 1 т конструкций | E117: 1.545 | F117: 145545.57 | G117: 224867.91 | H117: 3563.05 | I117: 5504.91 | J117: 230372.82
B118: 101-0324 | C118: Кислород технический: газообразный | D118: м3 | E118: 2,6 4,017 | J118: 0
B119: 101-1521 | C119: Электроды диаметром: 5 мм Э42 | D119: т | E119: 0,0215 0,0332 | J119: 0
B120: 101-2278 | C120: Пропан-бутан, смесь техническая | D120: кг | E120: 0,5 0,7725 | J120: 0
B121: 999-9950 | C121: Вспомогательные ненормируемые ресурсы (2% от Оплаты труда рабочих) | D121: руб | E121: 42,32 65,38 | J121: 0
A122: 35 | B122: Прайс | C122: Профиль гн. 120*5 | D122: т | E122: 0.309 | F122: 0 | G122: 0 | H122: 113869.61 | I122: 35185.71 | J122: 35185.71
A123: 36 | B123: Прайс | C123: Профиль гн. 100*5 | D123: т | E123: 0.824 | F123: 0 | G123: 0 | H123: 109780.18 | I123: 90458.87 | J123: 90458.87
A124: 37 | B124: Прайс | C124: Профиль гн. 80*5 | D124: т | E124: 0.103 | F124: 0 | G124: 0 | H124: 99248.25 | I124: 10222.57 | J124: 10222.57
A125: 38 | B125: Прайс | C125: Прокат листовой 12мм | D125: т | E125: 0.103 | F125: 0 | G125: 0 | H125: 96026.5 | I125: 9890.73 | J125: 9890.73
A126: 39 | B126: Прайс | C126: Прокат листовой 10мм | D126: т | E126: 0.103 | F126: 0 | G126: 0 | H126: 94506.21 | I126: 9734.14 | J126: 9734.14
A127: 40 | B127: Прайс | C127: Прокат листовой 4мм | D127: т | E127: 0.103 | F127: 0 | G127: 0 | H127: 76430.68 | I127: 7872.36 | J127: 7872.36
A128: Перевозка материалов (металл 140 км. ОП "МКМ-СПб") | J128: 0
A129: 41 | C129: металлопрокат, трубопрокат и металлоконструкции | D129: т | E129: 1.545 | F129: 0 | G129: 0 | H129: 0 | I129: 0 | J129: 0
A130: 42 | B130: ТССЦпг-03-02-01-140 | C130: Перевозка строительных грузов (кроме массовых навалочных, перевозимых автомобилями-самосвалами, а также бетонных и железобетонных изделий, стеновых и перегородочных материалов, лесоматериалов круглых и пиломатериалов, включенных в таблицу 03-01), бортовым автомобилем грузоподъемностью 5 т, на расстояние до 140 км I класс груза | D130: 1 т груза | E130: 1.545 | F130: 0 | G130: 0 | H130: 2338.48 | I130: 3612.95 | J130: 3612.95
A131: 43 | B131: ТССЦпг-01-01-02-015 | C131: Разгрузочные работы при автомобильных перевозках: металлических конструкций массой до 1 т | D131: 1 т груза | E131: 1.545 | F131: 0 | G131: 0 | H131: 470.49 | I131: 726.9 | J131: 726.9
A132: Раздел 5. Фахверк | J132: 0
A133: 44 | B133: ТЕР09-04-006-01 | C133: Монтаж фахверка | D133: 1 т конструкций | E133: 2.496 | F133: 50226.14 | G133: 125364.45 | H133: 2656.14 | I133: 6629.73 | J133: 131994.18
B134: 101-0309 | C134: Канаты пеньковые пропитанные | D134: т | E134: 0,0001 0,0002 | J134: 0
B135: 101-0324 | C135: Кислород технический: газообразный | D135: м3 | E135: 2,6 6,49 | J135: 0
B136: 101-0797 | C136: Проволока горячекатаная в мотках, диаметром 6,3-6,5 мм | D136: т | E136: 0,00003 0,0001 | J136: 0
B137: 101-1019 | C137: Швеллеры № 40 из стали марки: Ст0 | D137: т | E137: 0,00194 0,0048 | J137: 0
B138: 101-1515 | C138: Электроды диаметром: 4 мм Э46 | D138: т | E138: 0,016 0,0399 | J138: 0
B139: 101-1805 | C139: Гвозди строительные | D139: т | E139: 0,00001 0 | J139: 0
B140: 101-2278 | C140: Пропан-бутан, смесь техническая | D140: кг | E140: 0,78 1,947 | J140: 0
B141: 101-2467 | C141: Растворитель марки: Р-4 | D141: т | E141: 0,0006 0,0015 | J141: 0
B142: 113-0021 | C142: Грунтовка: ГФ-021 красно-коричневая | D142: т | E142: 0,00031 0,0008 | J142: 0
B143: 201-0756 | C143: Отдельные конструктивные элементы зданий и сооружений с преобладанием: горячекатаных профилей, средняя масса сборочной единицы от 0,1 до 0,5 т | D143: т | E143: 0,001 0,0025 | J143: =G143+I143 -> 0
B144: 508-0097 | C144: Канат двойной свивки типа ТК, конструкции 6х19(1+6+12)+1 о.с., оцинкованный из проволок марки В, маркировочная группа: 1770 н/мм2, диаметром 5,5 мм | D144: 10 м | E144: 0,0187 0,0467 | J144: 0
A145: 45 | B145: ТЕРм38-01-003-03 | C145: Решетчатые конструкции (стойки, опоры, фермы и пр.), сборка с помощью: лебедок электрических (с установкой и снятием их в процессе работы) | D145: 1 т конструкций | E145: 2.472 | F145: 145544.29 | G145: 359785.49 | H145: 3563.51 | I145: 8809 | J145: 368594.49
B146: 101-0324 | C146: Кислород технический: газообразный | D146: м3 | E146: 2,6 6,427 | J146: 0
B147: 101-1521 | C147: Электроды диаметром: 5 мм Э42 | D147: т | E147: 0,0215 0,0531 | J147: 0
B148: 101-2278 | C148: Пропан-бутан, смесь техническая | D148: кг | E148: 0,5 1,236 | J148: 0
B149: 999-9950 | C149: Вспомогательные ненормируемые ресурсы (2% от Оплаты труда рабочих) | D149: руб | E149: 42,32 104,6 | J149: 0
A150: 46 | B150: Прайс | C150: Профиль гн. 100*5 | D150: т | E150: 0.515 | F150: 0 | G150: 0 | H150: 109781.22 | I150: 56537.33 | J150: 56537.33
A151: 47 | B151: Прайс | C151: Профиль гн. 80*5 | D151: т | E151: 1.545 | F151: 0 | G151: 0 | H151: 99241.79 | I151: 153328.56 | J151: 153328.56
A152: 48 | B152: Прайс | C152: Уголок равнополочный 100*7 | D152: т | E152: 0.103 | F152: 0 | G152: 0 | H152: 112540 | I152: 11591.62 | J152: 11591.62
A153: 49 | B153: Прайс | C153: Уголок равнополочный 63*5 | D153: т | E153: 0.103 | F153: 0 | G153: 0 | H153: 103571.94 | I153: 10667.91 | J153: 10667.91
A154: 50 | B154: Прайс | C154: Прокат листовой 10мм | D154: т | E154: 0.103 | F154: 0 | G154: 0 | H154: 94506.21 | I154: 9734.14 | J154: 9734.14
A155: 51 | B155: Прайс | C155: Прокат листовой 4мм | D155: т | E155: 0.103 | F155: 0 | G155: 0 | H155: 76430.68 | I155: 7872.36 | J155: 7872.36
A156: Перевозка материалов (металл 140 км. ОП "МКМ-СПб") | J156: 0
A157: 52 | C157: металлопрокат, трубопрокат и металлоконструкции | D157: т | E157: 2.472 | F157: 0 | G157: 0 | H157: 0 | I157: 0 | J157: 0
A158: 53 | B158: ТССЦпг-03-02-01-140 | C158: Перевозка строительных грузов (кроме массовых навалочных, перевозимых автомобилями-самосвалами, а также бетонных и железобетонных изделий, стеновых и перегородочных материалов, лесоматериалов круглых и пиломатериалов, включенных в таблицу 03-01), бортовым автомобилем грузоподъемностью 5 т, на расстояние до 140 км I класс груза | D158: 1 т груза | E158: 2.472 | F158: 0 | G158: 0 | H158: 2338.48 | I158: 5780.73 | J158: 5780.73
A159: 54 | B159: ТССЦпг-01-01-02-015 | C159: Разгрузочные работы при автомобильных перевозках: металлических конструкций массой до 1 т | D159: 1 т груза | E159: 2.472 | F159: 0 | G159: 0 | H159: 470.72 | I159: 1163.62 | J159: 1163.62
A160: Раздел 6. Лестницы, площадки, ограждения, щиты и рамы | J160: 0
A161: 55 | B161: ТЕР09-03-029-01 | C161: Монтаж лестниц прямолинейных и криволинейных, пожарных с ограждением | D161: 1 т конструкций | E161: 0.104 | F161: 57863.08 | G161: 6017.76 | H161: 1160.29 | I161: 120.67 | J161: 6138.43
B162: 101-0309 | C162: Канаты пеньковые пропитанные | D162: т | E162: 0,0001 0 | J162: 0
B163: 101-0324 | C163: Кислород технический: газообразный | D163: м3 | E163: 1,37 0,1425 | J163: 0
B164: 101-0797 | C164: Проволока горячекатаная в мотках, диаметром 6,3-6,5 мм | D164: т | E164: 0,00003 0 | J164: 0
B165: 101-1019 | C165: Швеллеры № 40 из стали марки: Ст0 | D165: т | E165: 0,00194 0,0002 | J165: 0
B166: 101-1515 | C166: Электроды диаметром: 4 мм Э46 | D166: т | E166: 0,004 0,0004 | J166: 0
B167: 101-1805 | C167: Гвозди строительные | D167: т | E167: 0,00001 0 | J167: 0
B168: 101-2278 | C168: Пропан-бутан, смесь техническая | D168: кг | E168: 0,41 0,0426 | J168: 0
B169: 101-2467 | C169: Растворитель марки: Р-4 | D169: т | E169: 0,0006 0,0001 | J169: 0
B170: 102-0023 | C170: Бруски обрезные хвойных пород длиной: 4-6,5 м, шириной 75-150 мм, толщиной 40-75 мм, I сорта | D170: м3 | E170: 0,00103 0,0001 | J170: 0
B171: 113-0021 | C171: Грунтовка: ГФ-021 красно-коричневая | D171: т | E171: 0,00031 0 | J171: 0
B172: 201-0756 | C172: Отдельные конструктивные элементы зданий и сооружений с преобладанием: горячекатаных профилей, средняя масса сборочной единицы от 0,1 до 0,5 т | D172: т | E172: 0,001 0,0001 | J172: 0
B173: 508-0097 | C173: Канат двойной свивки типа ТК, конструкции 6х19(1+6+12)+1 о.с., оцинкованный из проволок марки В, маркировочная группа: 1770 н/мм2, диаметром 5,5 мм | D173: 10 м | E173: 0,0187 0,0019 | J173: 0
A174: 56 | B174: ТЕРм38-01-004-06 | C174: Сборка с помощью лебедок электрических (с установкой и снятием их в процессе работы): лестницы прямолинейные и криволинейные с ограждением | D174: 1 т конструкций | E174: 0.103 | F174: 181383.4 | G174: 18682.49 | H174: 2733.69 | I174: 281.57 | J174: 18964.06
B175: 101-0324 | C175: Кислород технический: газообразный | D175: м3 | E175: 0,6 0,0618 | J175: 0
B176: 101-1521 | C176: Электроды диаметром: 5 мм Э42 | D176: т | E176: 0,016 0,0016 | J176: 0
B177: 101-2278 | C177: Пропан-бутан, смесь техническая | D177: кг | E177: 0,2 0,0206 | J177: 0
B178: 999-9950 | C178: Вспомогательные ненормируемые ресурсы (2% от Оплаты труда рабочих) | D178: руб | E178: 51,07 5,26 | J178: 0
A179: 57 | B179: Прайс | C179: Прокат стальной горячетканый круглый диаметр 16мм | D179: т | E179: 0.103 | F179: 0 | G179: 0 | H179: 102986.12 | I179: 10607.57 | J179: 10607.57
A180: 58 | B180: ТССЦ-110-0008 | C180: Болты сборочные с гайками и шайбами по классу прочности: 8,8 | D180: т | E180: 0.001352 | F180: 0 | G180: 0 | H180: 150880.18 | I180: 203.99 | J180: 203.99
A181: Перевозка материалов (металл 140 км. ОП "МКМ-СПб") | J181: 0
A182: 59 | C182: металлопрокат, трубопрокат и металлоконструкции | D182: т | E182: 0.103 | F182: 0 | G182: 0 | H182: 0 | I182: 0 | J182: 0
A183: 60 | B183: ТССЦпг-03-02-01-140 | C183: Перевозка строительных грузов (кроме массовых навалочных, перевозимых автомобилями-самосвалами, а также бетонных и железобетонных изделий, стеновых и перегородочных материалов, лесоматериалов круглых и пиломатериалов, включенных в таблицу 03-01), бортовым автомобилем грузоподъемностью 5 т, на расстояние до 140 км I класс груза | D183: 1 т груза | E183: 0.103 | F183: 0 | G183: 0 | H183: 2343.11 | I183: 241.34 | J183: 241.34
A184: 61 | B184: ТССЦпг-01-01-02-015 | C184: Разгрузочные работы при автомобильных перевозках: металлических конструкций массой до 1 т | D184: 1 т груза | E184: 0.103 | F184: 0 | G184: 0 | H184: 474.17 | I184: 48.84 | J184: 48.84
A185: Раздел 7. Настил | J185: 0
A186: 62 | B186: ТЕР09-04-002-01 | C186: Монтаж кровельного покрытия: из профилированного листа при высоте здания до 25 м | D186: 100 м2 покрытия | E186: 1.14 | F186: 52050.17 | G186: 59337.19 | H186: 3033.16 | I186: 3457.8 | J186: 62794.99
B187: 101-0309 | C187: Канаты пеньковые пропитанные | D187: т | E187: 0,00015 0,0002 | J187: 0
B188: 101-0324 | C188: Кислород технический: газообразный | D188: м3 | E188: 1,4 1,596 | J188: 0
B189: 101-0797 | C189: Проволока горячекатаная в мотках, диаметром 6,3-6,5 мм | D189: т | E189: 0,00004 0 | J189: 0
B190: 101-1019 | C190: Швеллеры № 40 из стали марки: Ст0 | D190: т | E190: 0,00297 0,0034 | J190: 0
B191: 101-1513 | C191: Электроды диаметром: 4 мм Э42 | D191: т | E191: 0,00061 0,0007 | J191: 0
B192: 101-1714 | C192: Болты с гайками и шайбами строительные | D192: т | E192: 0,0022 0,0025 | J192: 0
B193: 101-2278 | C193: Пропан-бутан, смесь техническая | D193: кг | E193: 0,42 0,4788 | J193: 0
B194: 101-2467 | C194: Растворитель марки: Р-4 | D194: т | E194: 0,00009 0,0001 | J194: 0
B195: 102-0023 | C195: Бруски обрезные хвойных пород длиной: 4-6,5 м, шириной 75-150 мм, толщиной 40-75 мм, I сорта | D195: м3 | E195: 0,0013 0,0015 | J195: 0
B196: 113-0021 | C196: Грунтовка: ГФ-021 красно-коричневая | D196: т | E196: 0,00047 0,0005 | J196: 0
B197: 201-0756 | C197: Отдельные конструктивные элементы зданий и сооружений с преобладанием: горячекатаных профилей, средняя масса сборочной единицы от 0,1 до 0,5 т | D197: т | E197: 0,011 0,0125 | J197: 0
B198: 508-0097 | C198: Канат двойной свивки типа ТК, конструкции 6х19(1+6+12)+1 о.с., оцинкованный из проволок марки В, маркировочная группа: 1770 н/мм2, диаметром 5,5 мм | D198: 10 м | E198: 0,016 0,0182 | J198: 0
A199: 63 | B199: Прайс | C199: Профиль стальной H57-750-0,8 | D199: т | E199: 1.236 | F199: 0 | G199: 0 | H199: 153670.28 | I199: 189936.47 | J199: 189936.47
A200: 64 | B200: ТССЦ-101-1810 | C200: Винты самонарезающие: для крепления профилированного настила и панелей к несущим конструкциям | D200: т | E200: 0.041 | F200: 0 | G200: 0 | H200: 256478.78 | I200: 10515.63 | J200: 10515.63
A201: 65 | B201: ТЕР09-04-006-02 | C201: Монтаж ограждающих конструкций стен: из профилированного листа при высоте здания до 30 м | D201: 100 м2 | E201: 1.1274 | F201: 166241.71 | G201: 187420.9 | H201: 5922.6 | I201: 6677.14 | J201: 194098.04
B202: 101-0309 | C202: Канаты пеньковые пропитанные | D202: т | E202: 0,00015 0,0002 | J202: 0
B203: 101-0324 | C203: Кислород технический: газообразный | D203: м3 | E203: 2,98 3,36 | J203: 0
... 26 more rows

Sheet 1632-2021-2.2.6-КМ
A2: Терминал по перевалке минеральных удобрений в морском торговом порту Усть-Луга. Береговые объекты терминала
A3: (наименование стройки)
A5: ЛОКАЛЬНАЯ СМЕТА № 1632-2021-2.2.6-КМ_07.04.025-П-01-03
A6: (локальная смета)
A7: на Конструкции металлические, 07.04.025 Пересыпная станция №6 (код SAP 01.02.020) код ГП 2.2.6
A8: (наименование работ и затрат, наименование объекта)
B9: Основание: | C9: 1632-2021-2.2.6-КМ_2_0_RU_IFС
A11: № п/п | B11: Обоснование | C11: Наименование работ и затрат | D11: Ед. изм. | E11: Кол-во | F11: Цена за ед.измерения работ, руб. с НДС | G11: Всего, стоимость работ,руб. с НДС | H11: Цена за ед.измерения материалов, руб. с НДС | I11: Всего, стоимость материалов, руб. с НДС | J11: Итого, руб. с НДС
A12: 1 | B12: 2 | C12: 3 | D12: 4 | E12: 5 | F12: 6 | G12: 7 | H12: 8 | I12: 9 | J12: 10
A13: Раздел 1. Колонны
A14: 1 | B14: ТЕР09-03-002-03 | C14: Монтаж колонн одноэтажных и многоэтажных зданий и крановых эстакад высотой: до 25 м цельного сечения массой до 5,0 т | D14: 1 т конструкций | E14: 17.576 | F14: 9556.05 | G14: 167957.07 | H14: 638.84 | I14: 11228.17 | J14: =G14+I14 -> 179185.24
B15: 101-0309 | C15: Канаты пеньковые пропитанные | D15: т | E15: 0,0001 0,0018 | J15: =G15+I15 -> 0
B16: 101-0324 | C16: Кислород технический: газообразный | D16: м3 | E16: 0,6 10,55 | J16: 0
B17: 101-0797 | C17: Проволока горячекатаная в мотках, диаметром 6,3-6,5 мм | D17: т | E17: 0,00003 0,0005 | J17: 0
B18: 101-1019 | C18: Швеллеры № 40 из стали марки: Ст0 | D18: т | E18: 0,00194 0,0341 | J18: 0
B19: 101-1513 | C19: Электроды диаметром: 4 мм Э42 | D19: т | E19: 0,0011 0,0193 | J19: 0
B20: 101-1714 | C20: Болты с гайками и шайбами строительные | D20: т | E20: 0,00007 0,0012 | J20: 0
B21: 101-1805 | C21: Гвозди строительные | D21: т | E21: 0,00001 0,0002 | J21: 0
B22: 101-2278 | C22: Пропан-бутан, смесь техническая | D22: кг | E22: 0,18 3,164 | J22: 0
B23: 101-2467 | C23: Растворитель марки: Р-4 | D23: т | E23: 0,0006 0,0105 | J23: 0
B24: 102-0023 | C24: Бруски обрезные хвойных пород длиной: 4-6,5 м, шириной 75-150 мм, толщиной 40-75 мм, I сорта | D24: м3 | E24: 0,00103 0,0181 | J24: 0
B25: 113-0021 | C25: Грунтовка: ГФ-021 красно-коричневая | D25: т | E25: 0,00031 0,0054 | J25: 0
B26: 201-0756 | C26: Отдельные конструктивные элементы зданий и сооружений с преобладанием: горячекатаных профилей, средняя масса сборочной единицы от 0,1 до 0,5 т | D26: т | E26: 0,0003 0,0053 | J26: 0
B27: 508-0097 | C27: Канат двойной свивки типа ТК, конструкции 6х19(1+6+12)+1 о.с., оцинкованный из проволок марки В, маркировочная группа: 1770 н/мм2, диаметром 5,5 мм | D27: 10 м | E27: 0,0187 0,3287 | J27: 0
A28: 2 | B28: ТЕРм38-01-002-03 | C28: Монорельсы, балки и другие аналогичные конструкции промышленных зданий, сборка с помощью: лебедок электрических (с установкой и снятием их в процессе работы) | D28: 1 т конструкций | E28: 16.9 | F28: 39050.3 | G28: 659950.78 | H28: 602.17 | I28: 10176.6 | J28: 670127.38
B29: 101-0324 | C29: Кислород технический: газообразный | D29: м3 | E29: 0,6 10,14 | J29: 0
B30: 101-1521 | C30: Электроды диаметром: 5 мм Э42 | D30: т | E30: 0,0032 0,0541 | J30: 0
B31: 101-2278 | C31: Пропан-бутан, смесь техническая | D31: кг | E31: 0,2 3,38 | J31: 0
B32: 999-9950 | C32: Вспомогательные ненормируемые ресурсы (2% от Оплаты труда рабочих) | D32: руб | E32: 10,14 171,4 | J32: 0
A33: 3 | B33: Прайс | C33: Двутавр 35Ш1 | D33: т | E33: 14.144 | F33: 0 | G33: 0 | H33: 95663.5 | I33: 1353064.6 | J33: 1353064.6
A34: 4 | B34: Прайс | C34: Двутавр 25К1 | D34: т | E34: 1.04 | F34: 0 | G34: 0 | H34: 89394.21 | I34: 92969.98 | J34: 92969.98
A35: 5 | B35: Прайс | C35: Уголок не равнополочный 100*63*8 | D35: т | E35: 0.208 | F35: 0 | G35: 0 | H35: 118668.32 | I35: 24683.01 | J35: 24683.01
A36: 6 | B36: Прайс | C36: Прокат листовой 30мм | D36: т | E36: 0.416 | F36: 0 | G36: 0 | H36: 117874.04 | I36: 49035.6 | J36: 49035.6
A37: 7 | B37: Прайс | C37: Прокат листовой 20мм | D37: т | E37: 0.52 | F37: 0 | G37: 0 | H37: 106982.42 | I37: 55630.86 | J37: 55630.86
A38: 8 | B38: Прайс | C38: Прокат листовой 16мм | D38: т | E38: 0.104 | F38: 0 | G38: 0 | H38: 103819.23 | I38: 10797.2 | J38: 10797.2
A39: 9 | B39: Прайс | C39: Прокат листовой 12мм | D39: т | E39: 0.624 | F39: 0 | G39: 0 | H39: 96028.64 | I39: 59921.87 | J39: 59921.87
A40: 10 | B40: Прайс | C40: Прокат листовой 10мм | D40: т | E40: 0.312 | F40: 0 | G40: 0 | H40: 94509.2 | I40: 29486.87 | J40: 29486.87
A41: 11 | B41: Прайс | C41: Прокат листовой 8мм | D41: т | E41: 0.208 | F41: 0 | G41: 0 | H41: 93155.53 | I41: 19376.35 | J41: 19376.35
A42: Перевозка материалов (металл 140 км. ОП "МКМ-СПб") | J42: 0
A43: 12 | C43: Металлопрокат, трубопрокат и металлоконструкции | D43: т | E43: 16.9 | F43: 0 | G43: 0 | H43: 0 | I43: 0 | J43: 0
A44: 13 | B44: ТССЦпг-03-02-01-140 | C44: Перевозка строительных грузов (кроме массовых навалочных, перевозимых автомобилями-самосвалами, а также бетонных и железобетонных изделий, стеновых и перегородочных материалов, лесоматериалов круглых и пиломатериалов, включенных в таблицу 03-01), бортовым автомобилем грузоподъемностью 5 т, на расстояние до 140 км I класс груза | D44: 1 т груза | E44: 16.9 | F44: 0 | G44: 0 | H44: 2338.71 | I44: 39524.13 | J44: 39524.13
A45: 14 | B45: ТССЦпг-01-01-02-015 | C45: Разгрузочные работы при автомобильных перевозках: металлических конструкций массой до 1 т | D45: 1 т груза | E45: 16.9 | F45: 0 | G45: 0 | H45: 470.67 | I45: 7954.24 | J45: 7954.24
A46: Раздел 2. Балки | J46: 0
A47: 15 | B47: ТЕР09-03-002-12 | C47: Монтаж балок, ригелей перекрытия, покрытия и под установку оборудования многоэтажных зданий при высоте здания: до 25 м | D47: 1 т конструкций | E47: 16.016 | F47: 35504.77 | G47: 568644.35 | H47: 1640.26 | I47: 26270.41 | J47: 594914.76
B48: 101-0309 | C48: Канаты пеньковые пропитанные | D48: т | E48: 0,0001 0,0016 | J48: 0
B49: 101-0324 | C49: Кислород технический: газообразный | D49: м3 | E49: 1,95 31,23 | J49: 0
B50: 101-0797 | C50: Проволока горячекатаная в мотках, диаметром 6,3-6,5 мм | D50: т | E50: 0,00003 0,0005 | J50: 0
B51: 101-1019 | C51: Швеллеры № 40 из стали марки: Ст0 | D51: т | E51: 0,00194 0,0311 | J51: 0
B52: 101-1513 | C52: Электроды диаметром: 4 мм Э42 | D52: т | E52: 0,0031 0,0496 | J52: 0
B53: 101-1714 | C53: Болты с гайками и шайбами строительные | D53: т | E53: 0,0031 0,0496 | J53: 0
B54: 101-1805 | C54: Гвозди строительные | D54: т | E54: 0,00001 0,0002 | J54: 0
B55: 101-2278 | C55: Пропан-бутан, смесь техническая | D55: кг | E55: 0,59 9,449 | J55: 0
B56: 101-2467 | C56: Растворитель марки: Р-4 | D56: т | E56: 0,0006 0,0096 | J56: 0
B57: 102-0023 | C57: Бруски обрезные хвойных пород длиной: 4-6,5 м, шириной 75-150 мм, толщиной 40-75 мм, I сорта | D57: м3 | E57: 0,00103 0,0165 | J57: 0
B58: 113-0021 | C58: Грунтовка: ГФ-021 красно-коричневая | D58: т | E58: 0,00031 0,005 | J58: 0
B59: 201-0756 | C59: Отдельные конструктивные элементы зданий и сооружений с преобладанием: горячекатаных профилей, средняя масса сборочной единицы от 0,1 до 0,5 т | D59: т | E59: 0,0005 0,008 | J59: 0
B60: 508-0097 | C60: Канат двойной свивки типа ТК, конструкции 6х19(1+6+12)+1 о.с., оцинкованный из проволок марки В, маркировочная группа: 1770 н/мм2, диаметром 5,5 мм | D60: 10 м | E60: 0,0187 0,2995 | J60: 0
A61: 16 | B61: ТЕРм38-01-002-03 | C61: Монорельсы, балки и другие аналогичные конструкции промышленных зданий, сборка с помощью: лебедок электрических (с установкой и снятием их в процессе работы) | D61: 1 т конструкций | E61: 15.4 | F61: 39050.3 | G61: 601374.97 | H61: 602.24 | I61: 9274.44 | J61: 610649.41
B62: 101-0324 | C62: Кислород технический: газообразный | D62: м3 | E62: 0,6 9,24 | J62: 0
B63: 101-1521 | C63: Электроды диаметром: 5 мм Э42 | D63: т | E63: 0,0032 0,0493 | J63: 0
B64: 101-2278 | C64: Пропан-бутан, смесь техническая | D64: кг | E64: 0,2 3,08 | J64: 0
B65: 999-9950 | C65: Вспомогательные ненормируемые ресурсы (2% от Оплаты труда рабочих) | D65: руб | E65: 10,14 156,2 | J65: 0
A66: 17 | B66: Прайс | C66: Двутавр 30Б1 | D66: т | E66: 4.264 | F66: 0 | G66: 0 | H66: 114649.03 | I66: 488863.45 | J66: 488863.45
A67: 18 | B67: Прайс | C67: Двутавр 35Б1 | D67: т | E67: 1.144 | F67: 0 | G67: 0 | H67: 116414.26 | I67: 133177.91 | J67: 133177.91
A68: 19 | B68: Прайс | C68: Двутавр 40Ш1 | D68: т | E68: 3.952 | F68: 0 | G68: 0 | H68: 96028.27 | I68: 379503.74 | J68: 379503.74
A69: 20 | B69: Прайс | C69: Двутавр 35Ш1 | D69: т | E69: 3.328 | F69: 0 | G69: 0 | H69: 95663.45 | I69: 318367.97 | J69: 318367.97
A70: 21 | B70: Прайс | C70: Швеллер 20П | D70: т | E70: 1.144 | F70: 0 | G70: 0 | H70: 107663.03 | I70: 123166.51 | J70: 123166.51
A71: 22 | B71: Прайс | C71: Уголок не равнополочный 100*63*8 | D71: т | E71: 0.208 | F71: 0 | G71: 0 | H71: 118668.32 | I71: 24683.01 | J71: 24683.01
A72: 23 | B72: Прайс | C72: Прокат листовой 12мм | D72: т | E72: 1.04 | F72: 0 | G72: 0 | H72: 96028.63 | I72: 99869.78 | J72: 99869.78
A73: 24 | B73: Прайс | C73: Прокат листовой 10мм | D73: т | E73: 0.728 | F73: 0 | G73: 0 | H73: 94507.23 | I73: 68801.26 | J73: 68801.26
A74: 25 | B74: Прайс | C74: Прокат листовой 8мм | D74: т | E74: 0.208 | F74: 0 | G74: 0 | H74: 93155.53 | I74: 19376.35 | J74: 19376.35
A75: Перевозка материалов (металл 140 км. ОП "МКМ-СПб") | J75: 0
A76: 26 | C76: Металлопрокат, трубопрокат и металлоконструкции | D76: т | E76: 15.4 | F76: 0 | G76: 0 | H76: 0 | I76: 0 | J76: 0
A77: 27 | B77: ТССЦпг-03-02-01-140 | C77: Перевозка строительных грузов (кроме массовых навалочных, перевозимых автомобилями-самосвалами, а также бетонных и железобетонных изделий, стеновых и перегородочных материалов, лесоматериалов круглых и пиломатериалов, включенных в таблицу 03-01), бортовым автомобилем грузоподъемностью 5 т, на расстояние до 140 км I класс груза | D77: 1 т груза | E77: 15.4 | F77: 0 | G77: 0 | H77: 2338.7 | I77: 36016.04 | J77: 36016.04
A78: 28 | B78: ТССЦпг-01-01-02-015 | C78: Разгрузочные работы при автомобильных перевозках: металлических конструкций массой до 1 т | D78: 1 т груза | E78: 15.4 | F78: 0 | G78: 0 | H78: 470.71 | I78: 7248.89 | J78: 7248.89
A79: Раздел 3. Прогоны | J79: =G79+I79 -> 0
A80: 29 | B80: ТЕР09-03-015-01 | C80: Монтаж прогонов при шаге ферм до 12 м при высоте здания: до 25 м | D80: 1 т конструкций | E80: 1.976 | F80: 24725.44 | G80: 48857.47 | H80: 1307.16 | I80: 2582.94 | J80: 51440.41
B81: 101-0309 | C81: Канаты пеньковые пропитанные | D81: т | E81: 0,0001 0,0002 | J81: 0
B82: 101-0324 | C82: Кислород технический: газообразный | D82: м3 | E82: 0,5 0,988 | J82: 0
B83: 101-0797 | C83: Проволока горячекатаная в мотках, диаметром 6,3-6,5 мм | D83: т | E83: 0,00003 0,0001 | J83: 0
B84: 101-1019 | C84: Швеллеры № 40 из стали марки: Ст0 | D84: т | E84: 0,00194 0,0038 | J84: 0
B85: 101-1513 | C85: Электроды диаметром: 4 мм Э42 | D85: т | E85: 0,0026 0,0051 | J85: 0
B86: 101-1714 | C86: Болты с гайками и шайбами строительные | D86: т | E86: 0,003 0,0059 | J86: 0
B87: 101-1805 | C87: Гвозди строительные | D87: т | E87: 0,00001 0 | J87: 0
B88: 101-2278 | C88: Пропан-бутан, смесь техническая | D88: кг | E88: 0,15 0,2964 | J88: 0
B89: 101-2467 | C89: Растворитель марки: Р-4 | D89: т | E89: 0,0006 0,0012 | J89: 0
B90: 102-0023 | C90: Бруски обрезные хвойных пород длиной: 4-6,5 м, шириной 75-150 мм, толщиной 40-75 мм, I сорта | D90: м3 | E90: 0,00103 0,002 | J90: 0
B91: 113-0021 | C91: Грунтовка: ГФ-021 красно-коричневая | D91: т | E91: 0,00031 0,0006 | J91: 0
B92: 201-0756 | C92: Отдельные конструктивные элементы зданий и сооружений с преобладанием: горячекатаных профилей, средняя масса сборочной единицы от 0,1 до 0,5 т | D92: т | E92: 0,0001 0,0002 | J92: 0
B93: 508-0097 | C93: Канат двойной свивки типа ТК, конструкции 6х19(1+6+12)+1 о.с., оцинкованный из проволок марки В, маркировочная группа: 1770 н/мм2, диаметром 5,5 мм | D93: 10 м | E93: 0,0187 0,037 | J93: 0
A94: 30 | B94: ТЕРм38-01-003-03 | C94: Решетчатые конструкции (стойки, опоры, фермы и пр.), сборка с помощью: лебедок электрических (с установкой и снятием их в процессе работы) | D94: 1 т конструкций | E94: 1.9 | F94: 145544.9 | G94: 276535.29 | H94: 3562.67 | I94: 6769.08 | J94: 283304.37
B95: 101-0324 | C95: Кислород технический: газообразный | D95: м3 | E95: 2,6 4,94 | J95: 0
B96: 101-1521 | C96: Электроды диаметром: 5 мм Э42 | D96: т | E96: 0,0215 0,0409 | J96: 0
B97: 101-2278 | C97: Пропан-бутан, смесь техническая | D97: кг | E97: 0,5 0,95 | J97: 0
B98: 999-9950 | C98: Вспомогательные ненормируемые ресурсы (2% от Оплаты труда рабочих) | D98: руб | E98: 42,32 80,41 | J98: 0
A99: 31 | B99: Прайс | C99: Швеллер 20П | D99: т | E99: 1.56 | F99: 0 | G99: 0 | H99: 107662.95 | I99: 167954.2 | J99: 167954.2
A100: 32 | B100: Прайс | C100: Уголок равнополочный 75*6 | D100: т | E100: 0.208 | F100: 0 | G100: 0 | H100: 106132.93 | I100: 22075.65 | J100: 22075.65
A101: 33 | B101: Прайс | C101: Уголок не равнополочный 140*90*8 | D101: т | E101: 0.208 | F101: 0 | G101: 0 | H101: 139173.85 | I101: 28948.16 | J101: 28948.16
A102: Перевозка материалов (металл 140 км. ОП "МКМ-СПб") | J102: 0
A103: 34 | C103: Металлопрокат, трубопрокат и металлоконструкции | D103: т | E103: 1.9 | F103: 0 | G103: 0 | H103: 0 | I103: 0 | J103: 0
A104: 35 | B104: ТССЦпг-03-02-01-140 | C104: Перевозка строительных грузов (кроме массовых навалочных, перевозимых автомобилями-самосвалами, а также бетонных и железобетонных изделий, стеновых и перегородочных материалов, лесоматериалов круглых и пиломатериалов, включенных в таблицу 03-01), бортовым автомобилем грузоподъемностью 5 т, на расстояние до 140 км I класс груза | D104: 1 т груза | E104: 1.9 | F104: 0 | G104: 0 | H104: 2338.57 | I104: 4443.29 | J104: 4443.29
A105: 36 | B105: ТССЦпг-01-01-02-015 | C105: Разгрузочные работы при автомобильных перевозках: металлических конструкций массой до 1 т | D105: 1 т груза | E105: 1.9 | F105: 0 | G105: 0 | H105: 471.04 | I105: 894.98 | J105: 894.98
A106: Раздел 4. Связи, распорки | J106: 0
A107: 37 | B107: ТЕР09-03-014-01 | C107: Монтаж связей и распорок из одиночных и парных уголков, гнутосварных профилей для пролетов: до 24 м при высоте здания до 25 м | D107: 1 т конструкций | E107: 6.448 | F107: 85716.49 | G107: 552699.95 | H107: 4252.21 | I107: 27418.22 | J107: 580118.17
B108: 101-0309 | C108: Канаты пеньковые пропитанные | D108: т | E108: 0,0001 0,0006 | J108: 0
B109: 101-0324 | C109: Кислород технический: газообразный | D109: м3 | E109: 1,2 7,738 | J109: 0
B110: 101-0797 | C110: Проволока горячекатаная в мотках, диаметром 6,3-6,5 мм | D110: т | E110: 0,00003 0,0002 | J110: 0
B111: 101-1019 | C111: Швеллеры № 40 из стали марки: Ст0 | D111: т | E111: 0,00194 0,0125 | J111: 0
B112: 101-1513 | C112: Электроды диаметром: 4 мм Э42 | D112: т | E112: 0,00044 0,0028 | J112: 0
B113: 101-1714 | C113: Болты с гайками и шайбами строительные | D113: т | E113: 0,021 0,1354 | J113: 0
B114: 101-1805 | C114: Гвозди строительные | D114: т | E114: 0,00001 0,0001 | J114: 0
B115: 101-2278 | C115: Пропан-бутан, смесь техническая | D115: кг | E115: 0,36 2,321 | J115: 0
B116: 101-2467 | C116: Растворитель марки: Р-4 | D116: т | E116: 0,0006 0,0039 | J116: 0
B117: 102-0023 | C117: Бруски обрезные хвойных пород длиной: 4-6,5 м, шириной 75-150 мм, толщиной 40-75 мм, I сорта | D117: м3 | E117: 0,00103 0,0066 | J117: 0
B118: 113-0021 | C118: Грунтовка: ГФ-021 красно-коричневая | D118: т | E118: 0,00031 0,002 | J118: 0
B119: 201-0756 | C119: Отдельные конструктивные элементы зданий и сооружений с преобладанием: горячекатаных профилей, средняя масса сборочной единицы от 0,1 до 0,5 т | D119: т | E119: 0,0002 0,0013 | J119: 0
